Workbook

Sheet Introduction
C4: Joint Monitoring Programme for Water Supply, Sanitation and Hygiene
C6: Estimates on household water, sanitation and hygiene by wealth quintile and sub-national region in
C7: =+Water!B5 -> North Macedonia
C9: Updated May 2021
C11: Follow the links below to find the following information:
C13: JMP Estimates
C14: WASH status and trends by wealth quintile (customized quintiles made without water and sanitation assets)
C15: Water
C16: Sanitation
C17: Hygiene
C19: Data inputs
C20: customized wealth quintiles and subnational data:
C21: =IF(INDIRECT(CONCATENATE("Water","!B105"))=0,"",INDIRECT(CONCATENATE("Water","!B105"))) -> MICS06
C22: =IF(INDIRECT(CONCATENATE("Water","!B106"))=0,"",INDIRECT(CONCATENATE("Water","!B106"))) -> MICS11
C23: =IF(INDIRECT(CONCATENATE("Water","!B107"))=0,"",INDIRECT(CONCATENATE("Water","!B107"))) -> MICS19
C24: =IF(INDIRECT(CONCATENATE("Water","!B108"))=0,"",INDIRECT(CONCATENATE("Water","!B108"))) -> 
C25: =IF(INDIRECT(CONCATENATE("Water","!B109"))=0,"",INDIRECT(CONCATENATE("Water","!B109"))) -> 
C26: =IF(INDIRECT(CONCATENATE("Water","!B110"))=0,"",INDIRECT(CONCATENATE("Water","!B110"))) -> 
C27: =IF(INDIRECT(CONCATENATE("Water","!B111"))=0,"",INDIRECT(CONCATENATE("Water","!B111"))) -> 
C28: =IF(INDIRECT(CONCATENATE("Water","!B112"))=0,"",INDIRECT(CONCATENATE("Water","!B112"))) -> 
C29: =IF(INDIRECT(CONCATENATE("Water","!B113"))=0,"",INDIRECT(CONCATENATE("Water","!B113"))) -> 
C30: =IF(INDIRECT(CONCATENATE("Water","!B114"))=0,"",INDIRECT(CONCATENATE("Water","!B114"))) -> 
C31: =IF(INDIRECT(CONCATENATE("Water","!B115"))=0,"",INDIRECT(CONCATENATE("Water","!B115"))) -> 
C32: =IF(INDIRECT(CONCATENATE("Water","!B116"))=0,"",INDIRECT(CONCATENATE("Water","!B116"))) -> 
L55: =+IF(ISNUMBER(M48), "", "Insufficient data to estimate safely managed sanitation services at national level") -> Insufficient data to estimate safely managed sanitation services at national level

Sheet Water
A1: BGD
B4: Summary of trends in use of drinking water by wealth quintile (%)
B5: =IF(ISERROR(INDIRECT(CONCATENATE($B105,"!A2"))),"",INDIRECT(CONCATENATE($B105,"!A2"))) -> North Macedonia
B7: =B118 -> National use of drinking water sources, 2000–2020 | J7: =B218 -> Urban use of drinking water sources, 2000–2020 | R7: =B318 -> Rural use of drinking water sources, 2000–2020
B31: =IF(ISERROR(INDIRECT(CONCATENATE($B105,"!A2"))),"",INDIRECT(CONCATENATE($B105,"!A2"))) -> North Macedonia | F31: Poorest | J31: Poor | N31: Middle | R31: Rich | V31: Richest
F32: Basic | G32: Limited | H32: Unimproved | I32: Surface water | J32: Basic | K32: Limited | L32: Unimproved | M32: Surface water | N32: Basic | O32: Limited | P32: Unimproved | Q32: Surface water | R32: Basic | S32: Limited | T32: Unimproved | U32: Surface water | V32: Basic | W32: Limited | X32: Unimproved | Y32: Surface water
B33: NATIONAL | D33: Estimate | E33: =C99 -> 2000 | F33: =E99 -> 97.48336464 | G33: =F99 -> 1.069159573 | H33: 0.8734456355 | I33: 0.5740301487 | J33: =J99 -> 98.91074787 | K33: =K99 -> 0.536295981 | L33: 0.5529561465 | M33: 0 | N33: =O99 -> 98.72384244 | O33: =P99 -> 0.5201172857 | P33: 0.7230986485 | Q33: 0.03294162413 | R33: =T99 -> 99.71881204 | S33: =U99 -> 0.1751883604 | T33: 0.1059996008 | U33: 0 | V33: =Y99 -> 99.85055646 | W33: =Z99 -> 0.1494435403 | X33: 0 | Y33: 0
E34: =C100 -> 2020 | F34: =E100 -> 97.42302274 | G34: 1.068497766 | H34: 1.508479489 | I34: 0 | J34: =J100 -> 98.78341896 | K34: 0.5356056012 | L34: 0.5224130005 | M34: 0.1585624426 | N34: =O100 -> 98.73820212 | O34: 0.5201929383 | P34: 0.7416049456 | Q34: 0 | R34: =T100 -> 99.50346681 | S34: 0.1748100368 | T34: 0.3217231482 | U34: 0 | V34: =Y100 -> 99.79087372 | W34: 0.1493542148 | X34: 0.0597720618 | Y34: 0
B36: URBAN | D36: Estimate | E36: =C199 -> 2000 | F36: =E199 -> 97.99477287 | G36: =F199 -> 1.434991784 | H36: 0.4311537774 | I36: 0.1390815669 | J36: =J199 -> 99.15633476 | K36: =K199 -> 0.8436652369 | L36: 0 | M36: 0 | N36: =O199 -> 100 | O36: =P199 -> 0 | P36: 0 | Q36: 0 | R36: =T199 -> 99.70038327 | S36: =U199 -> 0.2960136174 | T36: 0.003603110436 | U36: 0 | V36: =Y199 -> 99.80314796 | W36: =Z199 -> 0.1968520371 | X36: 0 | Y36: 0
E37: =C200 -> 2020 | F37: =E200 -> 98.36338541 | G37: 1.440389581 | H37: 0.196225004 | I37: 0 | J37: =J200 -> 97.95712837 | K37: 0.8334618672 | L37: 1.209409761 | M37: 0 | N37: =O200 -> 99.92316242 | O37: 0 | P37: 0.07683757691 | Q37: 0 | R37: =T200 -> 99.66999705 | S37: 0.2959233997 | T37: 0.03407954882 | U37: 0 | V37: =Y200 -> 99.80314796 | W37: 0.1968520371 | X37: 0 | Y37: 0
B39: RURAL | D39: Estimate | E39: =C299 -> 2000 | F39: =E299 -> 96.43825867 | G39: =F299 -> 0.4537965826 | H39: 1.972180234 | I39: 1.135764513 | J39: =J299 -> 98.23948251 | K39: =K299 -> 1.052541246 | L39: 0.6957972214 | M39: 0.01217902038 | N39: =O299 -> 99.71251216 | O39: =P299 -> 0.2874878372 | P39: 0 | Q39: 0 | R39: =T299 -> 97.41843043 | S39: =U299 -> 0.264592038 | T39: 2.240620315 | U39: 0.07635721947 | V39: =Y299 -> 99.73376041 | W39: =Z299 -> 0.07579023482 | X39: 0.1904493537 | Y39: 0
E40: =C300 -> 2020 | F40: =E300 -> 98.76701814 | G40: 0.4647547137 | H40: 0.7682271446 | I40: 0 | J40: =J300 -> 95.88919979 | K40: 1.027360235 | L40: 2.992687093 | M40: 0.09075288435 | N40: =O300 -> 98.69872479 | O40: 0.2845649188 | P40: 0.5773986229 | Q40: 0.4393116671 | R40: =T300 -> 99.12876735 | S40: 0.269237376 | T40: 0.6019952753 | U40: 0 | V40: =Y300 -> 98.95375539 | W40: 0.07519748905 | X40: 0.9710471238 | Y40: 0
A97: NATIONAL | D97: Poorest | I97: Poor | N97: Middle | S97: Rich | X97: Richest
D98: Improved | E98: Basic | F98: Limited | G98: Unimproved | H98: Surface water | I98: Improved | J98: Basic | K98: Limited | L98: Unimproved | M98: Surface water | N98: Improved | O98: Basic | P98: Limited | Q98: Unimproved | R98: Surface water | S98: Improved | T98: Basic | U98: Limited | V98: Unimproved | W98: Surface water | X98: Improved | Y98: Basic | Z98: Limited | AA98: Unimproved | AB98: Surface water
A99: Forecast period: | C99: 2000 | D99: =IF((D101+H101)>100,D101*100/(D101+H101),D101) -> 98.55252422 | E99: =D99*AVERAGEIF(E105:E116,">0")/100 -> 97.48336464 | F99: =D99*(100-AVERAGEIF(E105:E116,">0"))/100 -> 1.069159573 | G99: =100-(E99+F99+H99) -> 0.8734456355 | H99: =IF((D101+H101)>100,H101*100/(D101+H101),H101) -> 0.5740301487 | I99: =IF((I101+M101)>100,I101*100/(I101+M101),I101) -> 99.44704385 | J99: =I99*AVERAGEIF(J105:J116,">0")/100 -> 98.91074787 | K99: =I99*(100-AVERAGEIF(J105:J116,">0"))/100 -> 0.536295981 | L99: =100-(J99+K99+M99) -> 0.5529561465 | M99: =IF((I101+M101)>100,M101*100/(I101+M101),M101) -> 0 | N99: =IF((N101+R101)>100,N101*100/(N101+R101),N101) -> 99.24395973 | O99: =N99*AVERAGEIF(O105:O116,">0")/100 -> 98.72384244 | P99: =N99*(100-AVERAGEIF(O105:O116,">0"))/100 -> 0.5201172857 | Q99: =100-(O99+P99+R99) -> 0.7230986485 | R99: =IF((N101+R101)>100,R101*100/(N101+R101),R101) -> 0.03294162413 | S99: =IF((S101+W101)>100,S101*100/(S101+W101),S101) -> 99.8940004 | T99: =S99*AVERAGEIF(T105:T116,">0")/100 -> 99.71881204 | U99: =S99*(100-AVERAGEIF(T105:T116,">0"))/100 -> 0.1751883604 | V99: =100-(T99+U99+W99) -> 0.1059996008 | W99: =IF((S101+W101)>100,W101*100/(S101+W101),W101) -> 0 | X99: =IF((X101+AB101)>100,X101*100/(X101+AB101),X101) -> 100 | Y99: =X99*AVERAGEIF(Y105:Y116,">0")/100 -> 99.85055646 | Z99: =X99*(100-AVERAGEIF(Y105:Y116,">0"))/100 -> 0.1494435403 | AA99: =100-(Y99+Z99+AB99) -> 0 | AB99: =IF((X101+AB101)>100,AB101*100/(X101+AB101),AB101) -> 0
C100: 2020 | D100: =IF((D102+H102)>100,D102*100/(D102+H102),D102) -> 98.49152051 | E100: =D100*AVERAGEIF(E105:E116,">0")/100 -> 97.42302274 | F100: =D100*(100-AVERAGEIF(E105:E116,">0"))/100 -> 1.068497766 | G100: =100-(E100+F100+H100) -> 1.508479489 | H100: =IF((D102+H102)>100,H102*100/(D102+H102),H102) -> 0 | I100: =IF((I102+M102)>100,I102*100/(I102+M102),I102) -> 99.31902456 | J100: =I100*AVERAGEIF(J105:J116,">0")/100 -> 98.78341896 | K100: =I100*(100-AVERAGEIF(J105:J116,">0"))/100 -> 0.5356056012 | L100: =100-(J100+K100+M100) -> 0.5224130005 | M100: =IF((I102+M102)>100,M102*100/(I102+M102),M102) -> 0.1585624426 | N100: =IF((N102+R102)>100,N102*100/(N102+R102),N102) -> 99.25839505 | O100: =N100*AVERAGEIF(O105:O116,">0")/100 -> 98.73820212 | P100: =N100*(100-AVERAGEIF(O105:O116,">0"))/100 -> 0.5201929383 | Q100: =100-(O100+P100+R100) -> 0.7416049456 | R100: =IF((N102+R102)>100,R102*100/(N102+R102),R102) -> 0 | S100: =IF((S102+W102)>100,S102*100/(S102+W102),S102) -> 99.67827685 | T100: =S100*AVERAGEIF(T105:T116,">0")/100 -> 99.50346681 | U100: =S100*(100-AVERAGEIF(T105:T116,">0"))/100 -> 0.1748100368 | V100: =100-(T100+U100+W100) -> 0.3217231482 | W100: =IF((S102+W102)>100,W102*100/(S102+W102),W102) -> 0 | X100: =IF((X102+AB102)>100,X102*100/(X102+AB102),X102) -> 99.94022794 | Y100: =X100*AVERAGEIF(Y105:Y116,">0")/100 -> 99.79087372 | Z100: =X100*(100-AVERAGEIF(Y105:Y116,">0"))/100 -> 0.1493542148 | AA100: =100-(Y100+Z100+AB100) -> 0.0597720618 | AB100: =IF((X102+AB102)>100,AB102*100/(X102+AB102),AB102) -> 0
A101: Regression period: | C101: =MinRegYear(C99,C105:C116) -> 2004 | D101: =IF(MAX(C105:C116)-MIN(C105:C116)<5,AVERAGEIF(C105:C116,">0",D105:D116), IF(FORECAST($C101,D$105:D$116,$C$105:$C$116)<0,0, IF(FORECAST($C101,D$105:D$116,$C$105:$C$116)>100,100, FORECAST($C101,D$105:D$116,$C$105:$C$116)))) -> 98.55252422 | H101: =IF(MAX(C105:C116)-MIN(C105:C116)<5,AVERAGEIF(C105:C116,">0",H105:H116), IF(FORECAST($C101,H$105:H$116,$C$105:$C$116)<0,0, IF(FORECAST($C101,H$105:H$116,$C$105:$C$116)>100,100, FORECAST($C101,H$105:H$116,$C$105:$C$116)))) -> 0.5740301487 | I101: =IF(MAX(C105:C116)-MIN(C105:C116)<5,AVERAGEIF(C105:C116,">0",I105:I116), IF(FORECAST($C101,I$105:I$116,$C$105:$C$116)<0,0, IF(FORECAST($C101,I$105:I$116,$C$105:$C$116)>100,100, FORECAST($C101,I$105:I$116,$C$105:$C$116)))) -> 99.44704385 | M101: =IF(MAX(C105:C116)-MIN(C105:C116)<5,AVERAGEIF(C105:C116,">0",M105:M116), IF(FORECAST($C101,M$105:M$116,$C$105:$C$116)<0,0, IF(FORECAST($C101,M$105:M$116,$C$105:$C$116)>100,100, FORECAST($C101,M$105:M$116,$C$105:$C$116)))) -> 0 | N101: =IF(MAX(C105:C116)-MIN(C105:C116)<5,AVERAGEIF(C105:C116,">0",N105:N116), IF(FORECAST($C101,N$105:N$116,$C$105:$C$116)<0,0, IF(FORECAST($C101,N$105:N$116,$C$105:$C$116)>100,100, FORECAST($C101,N$105:N$116,$C$105:$C$116)))) -> 99.24395973 | R101: =IF(MAX(C105:C116)-MIN(C105:C116)<5,AVERAGEIF(C105:C116,">0",R105:R116), IF(FORECAST($C101,R$105:R$116,$C$105:$C$116)<0,0, IF(FORECAST($C101,R$105:R$116,$C$105:$C$116)>100,100, FORECAST($C101,R$105:R$116,$C$105:$C$116)))) -> 0.03294162413 | S101: =IF(MAX(C105:C116)-MIN(C105:C116)<5,AVERAGEIF(C105:C116,">0",S105:S116), IF(FORECAST($C101,S$105:S$116,$C$105:$C$116)<0,0, IF(FORECAST($C101,S$105:S$116,$C$105:$C$116)>100,100, FORECAST($C101,S$105:S$116,$C$105:$C$116)))) -> 99.8940004 | W101: =IF(MAX(C105:C116)-MIN(C105:C116)<5,AVERAGEIF(C105:C116,">0",W105:W116), IF(FORECAST($C101,W$105:W$116,$C$105:$C$116)<0,0, IF(FORECAST($C101,W$105:W$116,$C$105:$C$116)>100,100, FORECAST($C101,W$105:W$116,$C$105:$C$116)))) -> 0 | X101: =IF(MAX(C105:C116)-MIN(C105:C116)<5,AVERAGEIF(C105:C116,">0",X105:X116), IF(FORECAST($C101,X$105:X$116,$C$105:$C$116)<0,0, IF(FORECAST($C101,X$105:X$116,$C$105:$C$116)>100,100, FORECAST($C101,X$105:X$116,$C$105:$C$116)))) -> 100 | AB101: =IF(MAX(C105:C116)-MIN(C105:C116)<5,AVERAGEIF(C105:C116,">0",AB105:AB116), IF(FORECAST($C101,AB$105:AB$116,$C$105:$C$116)<0,0, IF(FORECAST($C101,AB$105:AB$116,$C$105:$C$116)>100,100, FORECAST($C101,AB$105:AB$116,$C$105:$C$116)))) -> 0
C102: =MaxRegYear(C100,C105:C116) -> 2020 | D102: =IF(MAX(C105:C116)-MIN(C105:C116)<5,AVERAGEIF(C105:C116,">0",D105:D116), IF(FORECAST($C102,D$105:D$116,$C$105:$C$116)<0,0, IF(FORECAST($C102,D$105:D$116,$C$105:$C$116)>100,100, FORECAST($C102,D$105:D$116,$C$105:$C$116)))) -> 98.49152051 | H102: =IF(MAX(C105:C116)-MIN(C105:C116)<5,AVERAGEIF(C105:C116,">0",H105:H116), IF(FORECAST($C102,H$105:H$116,$C$105:$C$116)<0,0, IF(FORECAST($C102,H$105:H$116,$C$105:$C$116)>100,100, FORECAST($C102,H$105:H$116,$C$105:$C$116)))) -> 0 | I102: =IF(MAX(C105:C116)-MIN(C105:C116)<5,AVERAGEIF(C105:C116,">0",I105:I116), IF(FORECAST($C102,I$105:I$116,$C$105:$C$116)<0,0, IF(FORECAST($C102,I$105:I$116,$C$105:$C$116)>100,100, FORECAST($C102,I$105:I$116,$C$105:$C$116)))) -> 99.31902456 | M102: =IF(MAX(C105:C116)-MIN(C105:C116)<5,AVERAGEIF(C105:C116,">0",M105:M116), IF(FORECAST($C102,M$105:M$116,$C$105:$C$116)<0,0, IF(FORECAST($C102,M$105:M$116,$C$105:$C$116)>100,100, FORECAST($C102,M$105:M$116,$C$105:$C$116)))) -> 0.1585624426 | N102: =IF(MAX(C105:C116)-MIN(C105:C116)<5,AVERAGEIF(C105:C116,">0",N105:N116), IF(FORECAST($C102,N$105:N$116,$C$105:$C$116)<0,0, IF(FORECAST($C102,N$105:N$116,$C$105:$C$116)>100,100, FORECAST($C102,N$105:N$116,$C$105:$C$116)))) -> 99.25839505 | R102: =IF(MAX(C105:C116)-MIN(C105:C116)<5,AVERAGEIF(C105:C116,">0",R105:R116), IF(FORECAST($C102,R$105:R$116,$C$105:$C$116)<0,0, IF(FORECAST($C102,R$105:R$116,$C$105:$C$116)>100,100, FORECAST($C102,R$105:R$116,$C$105:$C$116)))) -> 0 | S102: =IF(MAX(C105:C116)-MIN(C105:C116)<5,AVERAGEIF(C105:C116,">0",S105:S116), IF(FORECAST($C102,S$105:S$116,$C$105:$C$116)<0,0, IF(FORECAST($C102,S$105:S$116,$C$105:$C$116)>100,100, FORECAST($C102,S$105:S$116,$C$105:$C$116)))) -> 99.67827685 | W102: =IF(MAX(C105:C116)-MIN(C105:C116)<5,AVERAGEIF(C105:C116,">0",W105:W116), IF(FORECAST($C102,W$105:W$116,$C$105:$C$116)<0,0, IF(FORECAST($C102,W$105:W$116,$C$105:$C$116)>100,100, FORECAST($C102,W$105:W$116,$C$105:$C$116)))) -> 0 | X102: =IF(MAX(C105:C116)-MIN(C105:C116)<5,AVERAGEIF(C105:C116,">0",X105:X116), IF(FORECAST($C102,X$105:X$116,$C$105:$C$116)<0,0, IF(FORECAST($C102,X$105:X$116,$C$105:$C$116)>100,100, FORECAST($C102,X$105:X$116,$C$105:$C$116)))) -> 99.94022794 | AB102: =IF(MAX(C105:C116)-MIN(C105:C116)<5,AVERAGEIF(C105:C116,">0",AB105:AB116), IF(FORECAST($C102,AB$105:AB$116,$C$105:$C$116)<0,0, IF(FORECAST($C102,AB$105:AB$116,$C$105:$C$116)>100,100, FORECAST($C102,AB$105:AB$116,$C$105:$C$116)))) -> 0
B104: Survey | C104: Year | D104: Improved | E104: % Improved < = 30min | H104: Surface water | I104: Improved | J104: % Improved < = 30min | M104: Surface water | N104: Improved | O104: % Improved < = 30min | R104: Surface water | S104: Improved | T104: % Improved < = 30min | W104: Surface water | X104: Improved | Y104: % Improved < = 30min | AB104: Surface water
B105: MICS06 | C105: 2006 | D105: =IF(ISERROR(INDIRECT(CONCATENATE($B105,"!C16"))),"",INDIRECT(CONCATENATE($B105,"!C16"))) -> 98.43772035 | E105: =IF(ISERROR(INDIRECT(CONCATENATE($B105,"!C23"))),"",INDIRECT(CONCATENATE($B105,"!C23"))) -> 97.89284392 | H105: =IF(ISERROR(INDIRECT(CONCATENATE($B105,"!C21"))),"",INDIRECT(CONCATENATE($B105,"!C21"))) -> 0.6574073125 | I105: =IF(ISERROR(INDIRECT(CONCATENATE($B105,"!D16"))),"",INDIRECT(CONCATENATE($B105,"!D16"))) -> 99.17937093 | J105: =IF(ISERROR(INDIRECT(CONCATENATE($B105,"!D23"))),"",INDIRECT(CONCATENATE($B105,"!D23"))) -> 99.49727747 | M105: =IF(ISERROR(INDIRECT(CONCATENATE($B105,"!D21"))),"",INDIRECT(CONCATENATE($B105,"!D21"))) -> 0.05269501026 | N105: =IF(ISERROR(INDIRECT(CONCATENATE($B105,"!E16"))),"",INDIRECT(CONCATENATE($B105,"!E16"))) -> 98.96901041 | O105: =IF(ISERROR(INDIRECT(CONCATENATE($B105,"!E23"))),"",INDIRECT(CONCATENATE($B105,"!E23"))) -> 98.81299313 | R105: =IF(ISERROR(INDIRECT(CONCATENATE($B105,"!E21"))),"",INDIRECT(CONCATENATE($B105,"!E21"))) -> 0.03695190881 | S105: =IF(ISERROR(INDIRECT(CONCATENATE($B105,"!F16"))),"",INDIRECT(CONCATENATE($B105,"!F16"))) -> 99.98987886 | T105: =IF(ISERROR(INDIRECT(CONCATENATE($B105,"!F23"))),"",INDIRECT(CONCATENATE($B105,"!F23"))) -> 99.96450071 | W105: =IF(ISERROR(INDIRECT(CONCATENATE($B105,"!F21"))),"",INDIRECT(CONCATENATE($B105,"!F21"))) -> 0 | X105: =IF(ISERROR(INDIRECT(CONCATENATE($B105,"!G16"))),"",INDIRECT(CONCATENATE($B105,"!G16"))) -> 100 | Y105: =IF(ISERROR(INDIRECT(CONCATENATE($B105,"!G23"))),"",INDIRECT(CONCATENATE($B105,"!G23"))) -> 100 | AB105: =IF(ISERROR(INDIRECT(CONCATENATE($B105,"!G221"))),"",INDIRECT(CONCATENATE($B105,"!G21"))) -> 0
B106: MICS11 | C106: 2011 | D106: 98.7 | E106: 99.6 | H106: 0 | I106: 99.8 | J106: 99.7 | M106: 0 | N106: 99.7 | O106: 100 | R106: 0 | S106: 99.6 | T106: 99.8 | W106: 0 | X106: 100 | Y106: 99.8 | AB106: 0
B107: MICS19 | C107: 2019 | D107: 98.42834674 | E107: 99.25256798 | H107: 0.03785248176 | I107: 99.16973169 | J107: 99.18488868 | M107: 0.1730922078 | N107: 99.08452176 | O107: 99.61476826 | R107: 0 | S107: 99.76853701 | T107: 99.70937652 | W107: 0 | X107: 99.93928665 | Y107: 99.75166938 | AB107: 0
D111: =IF(ISERROR(INDIRECT(CONCATENATE($B111,"!C16"))),"",INDIRECT(CONCATENATE($B111,"!C16"))) ->  | E111: =IF(ISERROR(INDIRECT(CONCATENATE($B111,"!C23"))),"",INDIRECT(CONCATENATE($B111,"!C23"))) ->  | H111: =IF(ISERROR(INDIRECT(CONCATENATE($B111,"!C21"))),"",INDIRECT(CONCATENATE($B111,"!C21"))) ->  | I111: =IF(ISERROR(INDIRECT(CONCATENATE($B111,"!D16"))),"",INDIRECT(CONCATENATE($B111,"!D16"))) ->  | J111: =IF(ISERROR(INDIRECT(CONCATENATE($B111,"!D23"))),"",INDIRECT(CONCATENATE($B111,"!D23"))) ->  | M111: =IF(ISERROR(INDIRECT(CONCATENATE($B111,"!D21"))),"",INDIRECT(CONCATENATE($B111,"!D21"))) ->  | N111: =IF(ISERROR(INDIRECT(CONCATENATE($B111,"!E16"))),"",INDIRECT(CONCATENATE($B111,"!E16"))) ->  | O111: =IF(ISERROR(INDIRECT(CONCATENATE($B111,"!E23"))),"",INDIRECT(CONCATENATE($B111,"!E23"))) ->  | R111: =IF(ISERROR(INDIRECT(CONCATENATE($B111,"!E21"))),"",INDIRECT(CONCATENATE($B111,"!E21"))) ->  | S111: =IF(ISERROR(INDIRECT(CONCATENATE($B111,"!F16"))),"",INDIRECT(CONCATENATE($B111,"!F16"))) ->  | T111: =IF(ISERROR(INDIRECT(CONCATENATE($B111,"!F23"))),"",INDIRECT(CONCATENATE($B111,"!F23"))) ->  | W111: =IF(ISERROR(INDIRECT(CONCATENATE($B111,"!F21"))),"",INDIRECT(CONCATENATE($B111,"!F21"))) ->  | X111: =IF(ISERROR(INDIRECT(CONCATENATE($B111,"!G16"))),"",INDIRECT(CONCATENATE($B111,"!G16"))) ->  | Y111: =IF(ISERROR(INDIRECT(CONCATENATE($B111,"!G23"))),"",INDIRECT(CONCATENATE($B111,"!G23"))) ->  | AB111: =IF(ISERROR(INDIRECT(CONCATENATE($B111,"!G221"))),"",INDIRECT(CONCATENATE($B111,"!G21"))) -> 
D112: =IF(ISERROR(INDIRECT(CONCATENATE($B112,"!C16"))),"",INDIRECT(CONCATENATE($B112,"!C16"))) ->  | E112: =IF(ISERROR(INDIRECT(CONCATENATE($B112,"!C23"))),"",INDIRECT(CONCATENATE($B112,"!C23"))) ->  | H112: =IF(ISERROR(INDIRECT(CONCATENATE($B112,"!C21"))),"",INDIRECT(CONCATENATE($B112,"!C21"))) ->  | I112: =IF(ISERROR(INDIRECT(CONCATENATE($B112,"!D16"))),"",INDIRECT(CONCATENATE($B112,"!D16"))) ->  | J112: =IF(ISERROR(INDIRECT(CONCATENATE($B112,"!D23"))),"",INDIRECT(CONCATENATE($B112,"!D23"))) ->  | M112: =IF(ISERROR(INDIRECT(CONCATENATE($B112,"!D21"))),"",INDIRECT(CONCATENATE($B112,"!D21"))) ->  | N112: =IF(ISERROR(INDIRECT(CONCATENATE($B112,"!E16"))),"",INDIRECT(CONCATENATE($B112,"!E16"))) ->  | O112: =IF(ISERROR(INDIRECT(CONCATENATE($B112,"!E23"))),"",INDIRECT(CONCATENATE($B112,"!E23"))) ->  | R112: =IF(ISERROR(INDIRECT(CONCATENATE($B112,"!E21"))),"",INDIRECT(CONCATENATE($B112,"!E21"))) ->  | S112: =IF(ISERROR(INDIRECT(CONCATENATE($B112,"!F16"))),"",INDIRECT(CONCATENATE($B112,"!F16"))) ->  | T112: =IF(ISERROR(INDIRECT(CONCATENATE($B112,"!F23"))),"",INDIRECT(CONCATENATE($B112,"!F23"))) ->  | W112: =IF(ISERROR(INDIRECT(CONCATENATE($B112,"!F21"))),"",INDIRECT(CONCATENATE($B112,"!F21"))) ->  | X112: =IF(ISERROR(INDIRECT(CONCATENATE($B112,"!G16"))),"",INDIRECT(CONCATENATE($B112,"!G16"))) ->  | Y112: =IF(ISERROR(INDIRECT(CONCATENATE($B112,"!G23"))),"",INDIRECT(CONCATENATE($B112,"!G23"))) ->  | AB112: =IF(ISERROR(INDIRECT(CONCATENATE($B112,"!G221"))),"",INDIRECT(CONCATENATE($B112,"!G21"))) -> 
B118: =CONCATENATE("National use of drinking water sources, ",C99,"–",C100) -> National use of drinking water sources, 2000–2020 | S118: Data points used for regression
E153: =IF(ISERROR(INDIRECT(CONCATENATE($B153,"!M18"))),"",INDIRECT(CONCATENATE($B153,"!M18"))) ->  | F153: =IF(ISERROR(INDIRECT(CONCATENATE($B153,"!M19"))),"",INDIRECT(CONCATENATE($B153,"!M19"))) ->  | G153: =IF(ISERROR(INDIRECT(CONCATENATE($B153,"!M20"))),"",INDIRECT(CONCATENATE($B153,"!M20"))) ->  | H153: =IF(ISERROR(INDIRECT(CONCATENATE($B153,"!M21"))),"",INDIRECT(CONCATENATE($B153,"!M21"))) ->  | J153: =IF(ISERROR(INDIRECT(CONCATENATE($B153,"!N18"))),"",INDIRECT(CONCATENATE($B153,"!N18"))) ->  | K153: =IF(ISERROR(INDIRECT(CONCATENATE($B153,"!N19"))),"",INDIRECT(CONCATENATE($B153,"!N19"))) ->  | L153: =IF(ISERROR(INDIRECT(CONCATENATE($B153,"!N20"))),"",INDIRECT(CONCATENATE($B153,"!N20"))) ->  | M153: =IF(ISERROR(INDIRECT(CONCATENATE($B153,"!N21"))),"",INDIRECT(CONCATENATE($B153,"!N21"))) ->  | O153: =IF(ISERROR(INDIRECT(CONCATENATE($B153,"!O18"))),"",INDIRECT(CONCATENATE($B153,"!O18"))) ->  | P153: =IF(ISERROR(INDIRECT(CONCATENATE($B153,"!O19"))),"",INDIRECT(CONCATENATE($B153,"!O19"))) ->  | Q153: =IF(ISERROR(INDIRECT(CONCATENATE($B153,"!O20"))),"",INDIRECT(CONCATENATE($B153,"!O20"))) ->  | R153: =IF(ISERROR(INDIRECT(CONCATENATE($B153,"!O21"))),"",INDIRECT(CONCATENATE($B153,"!O21"))) ->  | T153: =IF(ISERROR(INDIRECT(CONCATENATE($B153,"!P18"))),"",INDIRECT(CONCATENATE($B153,"!P18"))) ->  | U153: =IF(ISERROR(INDIRECT(CONCATENATE($B153,"!P19"))),"",INDIRECT(CONCATENATE($B153,"!P19"))) ->  | V153: =IF(ISERROR(INDIRECT(CONCATENATE($B153,"!P20"))),"",INDIRECT(CONCATENATE($B153,"!P20"))) ->  | W153: =IF(ISERROR(INDIRECT(CONCATENATE($B153,"!P21"))),"",INDIRECT(CONCATENATE($B153,"!P21"))) ->  | Y153: =IF(ISERROR(INDIRECT(CONCATENATE($B153,"!Q18"))),"",INDIRECT(CONCATENATE($B153,"!Q18"))) ->  | Z153: =IF(ISERROR(INDIRECT(CONCATENATE($B153,"!Q19"))),"",INDIRECT(CONCATENATE($B153,"!Q19"))) ->  | AA153: =IF(ISERROR(INDIRECT(CONCATENATE($B153,"!Q20"))),"",INDIRECT(CONCATENATE($B153,"!Q20"))) ->  | AB153: =IF(ISERROR(INDIRECT(CONCATENATE($B153,"!Q21"))),"",INDIRECT(CONCATENATE($B153,"!Q1"))) -> 
A197: URBAN | D197: Poorest | I197: Poor | N197: Middle | S197: Rich | X197: Richest
D198: Improved | E198: Basic | F198: Limited | G198: Unimproved | H198: Surface water | I198: Improved | J198: Basic | K198: Limited | L198: Unimproved | M198: Surface water | N198: Improved | O198: Basic | P198: Limited | Q198: Unimproved | R198: Surface water | S198: Improved | T198: Basic | U198: Limited | V198: Unimproved | W198: Surface water | X198: Improved | Y198: Basic | Z198: Limited | AA198: Unimproved | AB198: Surface water
A199: Forecast period: | C199: 2000 | D199: =IF((D201+H201)>100,D201*100/(D201+H201),D201) -> 99.42976466 | E199: =D199*AVERAGEIF(E205:E216,">0")/100 -> 97.99477287 | F199: =D199*(100-AVERAGEIF(E205:E216,">0"))/100 -> 1.434991784 | G199: =100-(E199+F199+H199) -> 0.4311537774 | H199: =IF((D201+H201)>100,H201*100/(D201+H201),H201) -> 0.1390815669 | I199: =IF((I201+M201)>100,I201*100/(I201+M201),I201) -> 100 | J199: =I199*AVERAGEIF(J205:J216,">0")/100 -> 99.15633476 | K199: =I199*(100-AVERAGEIF(J205:J216,">0"))/100 -> 0.8436652369 | L199: =100-(J199+K199+M199) -> 0 | M199: =IF((I201+M201)>100,M201*100/(I201+M201),M201) -> 0 | N199: =IF((N201+R201)>100,N201*100/(N201+R201),N201) -> 100 | O199: =N199*AVERAGEIF(O205:O216,">0")/100 -> 100 | P199: =N199*(100-AVERAGEIF(O205:O216,">0"))/100 -> 0 | Q199: =100-(O199+P199+R199) -> 0 | R199: =IF((N201+R201)>100,R201*100/(N201+R201),R201) -> 0 | S199: =IF((S201+W201)>100,S201*100/(S201+W201),S201) -> 99.99639689 | T199: =S199*AVERAGEIF(T205:T216,">0")/100 -> 99.70038327 | U199: =S199*(100-AVERAGEIF(T205:T216,">0"))/100 -> 0.2960136174 | V199: =100-(T199+U199+W199) -> 0.003603110436 | W199: =IF((S201+W201)>100,W201*100/(S201+W201),W201) -> 0 | X199: =IF((X201+AB201)>100,X201*100/(X201+AB201),X201) -> 100 | Y199: =X199*AVERAGEIF(Y205:Y216,">0")/100 -> 99.80314796 | Z199: =X199*(100-AVERAGEIF(Y205:Y216,">0"))/100 -> 0.1968520371 | AA199: =100-(Y199+Z199+AB199) -> 0 | AB199: =IF((X201+AB201)>100,AB201*100/(X201+AB201),AB201) -> 0
C200: 2020 | D200: =IF((D202+H202)>100,D202*100/(D202+H202),D202) -> 99.803775 | E200: =D200*AVERAGEIF(E205:E216,">0")/100 -> 98.36338541 | F200: =D200*(100-AVERAGEIF(E205:E216,">0"))/100 -> 1.440389581 | G200: =100-(E200+F200+H200) -> 0.196225004 | H200: =IF((D202+H202)>100,H202*100/(D202+H202),H202) -> 0 | I200: =IF((I202+M202)>100,I202*100/(I202+M202),I202) -> 98.79059024 | J200: =I200*AVERAGEIF(J205:J216,">0")/100 -> 97.95712837 | K200: =I200*(100-AVERAGEIF(J205:J216,">0"))/100 -> 0.8334618672 | L200: =100-(J200+K200+M200) -> 1.209409761 | M200: =IF((I202+M202)>100,M202*100/(I202+M202),M202) -> 0 | N200: =IF((N202+R202)>100,N202*100/(N202+R202),N202) -> 99.92316242 | O200: =N200*AVERAGEIF(O205:O216,">0")/100 -> 99.92316242 | P200: =N200*(100-AVERAGEIF(O205:O216,">0"))/100 -> 0 | Q200: =100-(O200+P200+R200) -> 0.07683757691 | R200: =IF((N202+R202)>100,R202*100/(N202+R202),R202) -> 0 | S200: =IF((S202+W202)>100,S202*100/(S202+W202),S202) -> 99.96592045 | T200: =S200*AVERAGEIF(T205:T216,">0")/100 -> 99.66999705 | U200: =S200*(100-AVERAGEIF(T205:T216,">0"))/100 -> 0.2959233997 | V200: =100-(T200+U200+W200) -> 0.03407954882 | W200: =IF((S202+W202)>100,W202*100/(S202+W202),W202) -> 0 | X200: =IF((X202+AB202)>100,X202*100/(X202+AB202),X202) -> 100 | Y200: =X200*AVERAGEIF(Y205:Y216,">0")/100 -> 99.80314796 | Z200: =X200*(100-AVERAGEIF(Y205:Y216,">0"))/100 -> 0.1968520371 | AA200: =100-(Y200+Z200+AB200) -> 0 | AB200: =IF((X202+AB202)>100,AB202*100/(X202+AB202),AB202) -> 0
A201: Regression period: | C201: =MinRegYear(C199,C205:C216) -> 2004 | D201: =IF(MAX(C205:C216)-MIN(C205:C216)<5,AVERAGEIF(C205:C216,">0",D205:D216), IF(FORECAST($C201,D$205:D$216,$C$205:$C$216)<0,0, IF(FORECAST($C201,D$205:D$216,$C$205:$C$216)>100,100, FORECAST($C201,D$205:D$216,$C$205:$C$216)))) -> 99.42976466 | H201: =IF(MAX(C205:C216)-MIN(C205:C216)<5,AVERAGEIF(C205:C216,">0",H205:H216), IF(FORECAST($C201,H$205:H$216,$C$205:$C$216)<0,0, IF(FORECAST($C201,H$205:H$216,$C$205:$C$216)>100,100, FORECAST($C201,H$205:H$216,$C$205:$C$216)))) -> 0.1390815669 | I201: =IF(MAX(C205:C216)-MIN(C205:C216)<5,AVERAGEIF(C205:C216,">0",I205:I216), IF(FORECAST($C201,I$205:I$216,$C$205:$C$216)<0,0, IF(FORECAST($C201,I$205:I$216,$C$205:$C$216)>100,100, FORECAST($C201,I$205:I$216,$C$205:$C$216)))) -> 100 | M201: =IF(MAX(C205:C216)-MIN(C205:C216)<5,AVERAGEIF(C205:C216,">0",M205:M216), IF(FORECAST($C201,M$205:M$216,$C$205:$C$216)<0,0, IF(FORECAST($C201,M$205:M$216,$C$205:$C$216)>100,100, FORECAST($C201,M$205:M$216,$C$205:$C$216)))) -> 0 | N201: =IF(MAX(C205:C216)-MIN(C205:C216)<5,AVERAGEIF(C205:C216,">0",N205:N216), IF(FORECAST($C201,N$205:N$216,$C$205:$C$216)<0,0, IF(FORECAST($C201,N$205:N$216,$C$205:$C$216)>100,100, FORECAST($C201,N$205:N$216,$C$205:$C$216)))) -> 100 | R201: =IF(MAX(C205:C216)-MIN(C205:C216)<5,AVERAGEIF(C205:C216,">0",R205:R216), IF(FORECAST($C201,R$205:R$216,$C$205:$C$216)<0,0, IF(FORECAST($C201,R$205:R$216,$C$205:$C$216)>100,100, FORECAST($C201,R$205:R$216,$C$205:$C$216)))) -> 0 | S201: =IF(MAX(C205:C216)-MIN(C205:C216)<5,AVERAGEIF(C205:C216,">0",S205:S216), IF(FORECAST($C201,S$205:S$216,$C$205:$C$216)<0,0, IF(FORECAST($C201,S$205:S$216,$C$205:$C$216)>100,100, FORECAST($C201,S$205:S$216,$C$205:$C$216)))) -> 99.99639689 | W201: =IF(MAX(C205:C216)-MIN(C205:C216)<5,AVERAGEIF(C205:C216,">0",W205:W216), IF(FORECAST($C201,W$205:W$216,$C$205:$C$216)<0,0, IF(FORECAST($C201,W$205:W$216,$C$205:$C$216)>100,100, FORECAST($C201,W$205:W$216,$C$205:$C$216)))) -> 0 | X201: =IF(MAX(C205:C216)-MIN(C205:C216)<5,AVERAGEIF(C205:C216,">0",X205:X216), IF(FORECAST($C201,X$205:X$216,$C$205:$C$216)<0,0, IF(FORECAST($C201,X$205:X$216,$C$205:$C$216)>100,100, FORECAST($C201,X$205:X$216,$C$205:$C$216)))) -> 100 | AB201: =IF(MAX(C205:C216)-MIN(C205:C216)<5,AVERAGEIF(C205:C216,">0",AB205:AB216), IF(FORECAST($C201,AB$205:AB$216,$C$205:$C$216)<0,0, IF(FORECAST($C201,AB$205:AB$216,$C$205:$C$216)>100,100, FORECAST($C201,AB$205:AB$216,$C$205:$C$216)))) -> 0
C202: =MaxRegYear(C200,C205:C216) -> 2020 | D202: =IF(MAX(C205:C216)-MIN(C205:C216)<5,AVERAGEIF(C205:C216,">0",D205:D216), IF(FORECAST($C202,D$205:D$216,$C$205:$C$216)<0,0, IF(FORECAST($C202,D$205:D$216,$C$205:$C$216)>100,100, FORECAST($C202,D$205:D$216,$C$205:$C$216)))) -> 99.803775 | H202: =IF(MAX(C205:C216)-MIN(C205:C216)<5,AVERAGEIF(C205:C216,">0",H205:H216), IF(FORECAST($C202,H$205:H$216,$C$205:$C$216)<0,0, IF(FORECAST($C202,H$205:H$216,$C$205:$C$216)>100,100, FORECAST($C202,H$205:H$216,$C$205:$C$216)))) -> 0 | I202: =IF(MAX(C205:C216)-MIN(C205:C216)<5,AVERAGEIF(C205:C216,">0",I205:I216), IF(FORECAST($C202,I$205:I$216,$C$205:$C$216)<0,0, IF(FORECAST($C202,I$205:I$216,$C$205:$C$216)>100,100, FORECAST($C202,I$205:I$216,$C$205:$C$216)))) -> 98.79059024 | M202: =IF(MAX(C205:C216)-MIN(C205:C216)<5,AVERAGEIF(C205:C216,">0",M205:M216), IF(FORECAST($C202,M$205:M$216,$C$205:$C$216)<0,0, IF(FORECAST($C202,M$205:M$216,$C$205:$C$216)>100,100, FORECAST($C202,M$205:M$216,$C$205:$C$216)))) -> 0 | N202: =IF(MAX(C205:C216)-MIN(C205:C216)<5,AVERAGEIF(C205:C216,">0",N205:N216), IF(FORECAST($C202,N$205:N$216,$C$205:$C$216)<0,0, IF(FORECAST($C202,N$205:N$216,$C$205:$C$216)>100,100, FORECAST($C202,N$205:N$216,$C$205:$C$216)))) -> 99.92316242 | R202: =IF(MAX(C205:C216)-MIN(C205:C216)<5,AVERAGEIF(C205:C216,">0",R205:R216), IF(FORECAST($C202,R$205:R$216,$C$205:$C$216)<0,0, IF(FORECAST($C202,R$205:R$216,$C$205:$C$216)>100,100, FORECAST($C202,R$205:R$216,$C$205:$C$216)))) -> 0 | S202: =IF(MAX(C205:C216)-MIN(C205:C216)<5,AVERAGEIF(C205:C216,">0",S205:S216), IF(FORECAST($C202,S$205:S$216,$C$205:$C$216)<0,0, IF(FORECAST($C202,S$205:S$216,$C$205:$C$216)>100,100, FORECAST($C202,S$205:S$216,$C$205:$C$216)))) -> 99.96592045 | W202: =IF(MAX(C205:C216)-MIN(C205:C216)<5,AVERAGEIF(C205:C216,">0",W205:W216), IF(FORECAST($C202,W$205:W$216,$C$205:$C$216)<0,0, IF(FORECAST($C202,W$205:W$216,$C$205:$C$216)>100,100, FORECAST($C202,W$205:W$216,$C$205:$C$216)))) -> 0 | X202: =IF(MAX(C205:C216)-MIN(C205:C216)<5,AVERAGEIF(C205:C216,">0",X205:X216), IF(FORECAST($C202,X$205:X$216,$C$205:$C$216)<0,0, IF(FORECAST($C202,X$205:X$216,$C$205:$C$216)>100,100, FORECAST($C202,X$205:X$216,$C$205:$C$216)))) -> 100 | AB202: =IF(MAX(C205:C216)-MIN(C205:C216)<5,AVERAGEIF(C205:C216,">0",AB205:AB216), IF(FORECAST($C202,AB$205:AB$216,$C$205:$C$216)<0,0, IF(FORECAST($C202,AB$205:AB$216,$C$205:$C$216)>100,100, FORECAST($C202,AB$205:AB$216,$C$205:$C$216)))) -> 0
B204: Survey | C204: Year | D204: Improved | E204: % Improved < = 30min | H204: Surface water | I204: Improved | J204: % Improved < = 30min | M204: Surface water | N204: Improved | O204: % Improved < = 30min | R204: Surface water | S204: Improved | T204: % Improved < = 30min | W204: Surface water | X204: Improved | Y204: % Improved < = 30min | AB204: Surface water
B205: MICS06 | C205: 2006 | D205: =IF(ISERROR(INDIRECT(CONCATENATE($B205,"!H16"))),"",INDIRECT(CONCATENATE($B205,"!H16"))) -> 99.22629698 | E205: =IF(ISERROR(INDIRECT(CONCATENATE($B205,"!H23"))),"",INDIRECT(CONCATENATE($B205,"!H23"))) -> 96.37016458 | H205: =IF(ISERROR(INDIRECT(CONCATENATE($B205,"!H21"))),"",INDIRECT(CONCATENATE($B205,"!H21"))) -> 0.1560132359 | I205: =IF(ISERROR(INDIRECT(CONCATENATE($B205,"!I16"))),"",INDIRECT(CONCATENATE($B205,"!I16"))) -> 100 | J205: =IF(ISERROR(INDIRECT(CONCATENATE($B205,"!I23"))),"",INDIRECT(CONCATENATE($B205,"!I23"))) -> 98.02497498 | M205: =IF(ISERROR(INDIRECT(CONCATENATE($B205,"!I21"))),"",INDIRECT(CONCATENATE($B205,"!I21"))) -> 0 | N205: =IF(ISERROR(INDIRECT(CONCATENATE($B205,"!J16"))),"",INDIRECT(CONCATENATE($B205,"!J16"))) -> 100 | O205: =IF(ISERROR(INDIRECT(CONCATENATE($B205,"!J23"))),"",INDIRECT(CONCATENATE($B205,"!J23"))) -> 100 | R205: =IF(ISERROR(INDIRECT(CONCATENATE($B205,"!J21"))),"",INDIRECT(CONCATENATE($B205,"!J21"))) -> 0 | S205: =IF(ISERROR(INDIRECT(CONCATENATE($B205,"!K16"))),"",INDIRECT(CONCATENATE($B205,"!K16"))) -> 99.98216484 | T205: =IF(ISERROR(INDIRECT(CONCATENATE($B205,"!K23"))),"",INDIRECT(CONCATENATE($B205,"!K23"))) -> 99.93743941 | W205: =IF(ISERROR(INDIRECT(CONCATENATE($B205,"!K21"))),"",INDIRECT(CONCATENATE($B205,"!K21"))) -> 0 | X205: =IF(ISERROR(INDIRECT(CONCATENATE($B205,"!L16"))),"",INDIRECT(CONCATENATE($B205,"!L16"))) -> 100 | Y205: =IF(ISERROR(INDIRECT(CONCATENATE($B205,"!L23"))),"",INDIRECT(CONCATENATE($B205,"!L23"))) -> 100 | AB205: =IF(ISERROR(INDIRECT(CONCATENATE($B205,"!L221"))),"",INDIRECT(CONCATENATE($B205,"!L21"))) -> 0
B206: MICS11 | C206: 2011 | D206: 100 | E206: 99.6 | H206: 0 | I206: 100 | J206: 100 | M206: 0 | N206: 100 | O206: 100 | R206: 0 | S206: 100 | T206: 99.5 | W206: 0 | X206: 100 | Y206: 99.8 | AB206: 0
B207: MICS19 | C207: 2019 | D207: 99.6240125 | E207: 99.70017079 | H207: 0 | I207: 98.77154442 | J207: 99.44402931 | M207: 0 | N207: 99.92195238 | O207: 100 | R207: 0 | S207: 99.96131117 | T207: 99.67448774 | W207: 0 | X207: 100 | Y207: 99.60944389 | AB207: 0
B218: =CONCATENATE("Urban use of drinking water sources, ",C199,"–",C200) -> Urban use of drinking water sources, 2000–2020 | S218: Data points used for regression
E253: =IF(ISERROR(INDIRECT(CONCATENATE($B253,"!M18"))),"",INDIRECT(CONCATENATE($B253,"!M18"))) ->  | F253: =IF(ISERROR(INDIRECT(CONCATENATE($B253,"!M19"))),"",INDIRECT(CONCATENATE($B253,"!M19"))) ->  | G253: =IF(ISERROR(INDIRECT(CONCATENATE($B253,"!M20"))),"",INDIRECT(CONCATENATE($B253,"!M20"))) ->  | H253: =IF(ISERROR(INDIRECT(CONCATENATE($B253,"!M21"))),"",INDIRECT(CONCATENATE($B253,"!M21"))) ->  | J253: =IF(ISERROR(INDIRECT(CONCATENATE($B253,"!N18"))),"",INDIRECT(CONCATENATE($B253,"!N18"))) ->  | K253: =IF(ISERROR(INDIRECT(CONCATENATE($B253,"!N19"))),"",INDIRECT(CONCATENATE($B253,"!N19"))) ->  | L253: =IF(ISERROR(INDIRECT(CONCATENATE($B253,"!N20"))),"",INDIRECT(CONCATENATE($B253,"!N20"))) ->  | M253: =IF(ISERROR(INDIRECT(CONCATENATE($B253,"!N21"))),"",INDIRECT(CONCATENATE($B253,"!N21"))) ->  | O253: =IF(ISERROR(INDIRECT(CONCATENATE($B253,"!O18"))),"",INDIRECT(CONCATENATE($B253,"!O18"))) ->  | P253: =IF(ISERROR(INDIRECT(CONCATENATE($B253,"!O19"))),"",INDIRECT(CONCATENATE($B253,"!O19"))) ->  | Q253: =IF(ISERROR(INDIRECT(CONCATENATE($B253,"!O20"))),"",INDIRECT(CONCATENATE($B253,"!O20"))) ->  | R253: =IF(ISERROR(INDIRECT(CONCATENATE($B253,"!O21"))),"",INDIRECT(CONCATENATE($B253,"!O21"))) ->  | T253: =IF(ISERROR(INDIRECT(CONCATENATE($B253,"!P18"))),"",INDIRECT(CONCATENATE($B253,"!P18"))) ->  | U253: =IF(ISERROR(INDIRECT(CONCATENATE($B253,"!P19"))),"",INDIRECT(CONCATENATE($B253,"!P19"))) ->  | V253: =IF(ISERROR(INDIRECT(CONCATENATE($B253,"!P20"))),"",INDIRECT(CONCATENATE($B253,"!P20"))) ->  | W253: =IF(ISERROR(INDIRECT(CONCATENATE($B253,"!P21"))),"",INDIRECT(CONCATENATE($B253,"!P21"))) ->  | Y253: =IF(ISERROR(INDIRECT(CONCATENATE($B253,"!Q18"))),"",INDIRECT(CONCATENATE($B253,"!Q18"))) ->  | Z253: =IF(ISERROR(INDIRECT(CONCATENATE($B253,"!Q19"))),"",INDIRECT(CONCATENATE($B253,"!Q19"))) ->  | AA253: =IF(ISERROR(INDIRECT(CONCATENATE($B253,"!Q20"))),"",INDIRECT(CONCATENATE($B253,"!Q20"))) ->  | AB253: =IF(ISERROR(INDIRECT(CONCATENATE($B253,"!Q21"))),"",INDIRECT(CONCATENATE($B253,"!Q1"))) -> 
E254: =IF(ISERROR(INDIRECT(CONCATENATE($B254,"!M18"))),"",INDIRECT(CONCATENATE($B254,"!M18"))) ->  | F254: =IF(ISERROR(INDIRECT(CONCATENATE($B254,"!M19"))),"",INDIRECT(CONCATENATE($B254,"!M19"))) ->  | G254: =IF(ISERROR(INDIRECT(CONCATENATE($B254,"!M20"))),"",INDIRECT(CONCATENATE($B254,"!M20"))) ->  | H254: =IF(ISERROR(INDIRECT(CONCATENATE($B254,"!M21"))),"",INDIRECT(CONCATENATE($B254,"!M21"))) ->  | J254: =IF(ISERROR(INDIRECT(CONCATENATE($B254,"!N18"))),"",INDIRECT(CONCATENATE($B254,"!N18"))) ->  | K254: =IF(ISERROR(INDIRECT(CONCATENATE($B254,"!N19"))),"",INDIRECT(CONCATENATE($B254,"!N19"))) ->  | L254: =IF(ISERROR(INDIRECT(CONCATENATE($B254,"!N20"))),"",INDIRECT(CONCATENATE($B254,"!N20"))) ->  | M254: =IF(ISERROR(INDIRECT(CONCATENATE($B254,"!N21"))),"",INDIRECT(CONCATENATE($B254,"!N21"))) ->  | O254: =IF(ISERROR(INDIRECT(CONCATENATE($B254,"!O18"))),"",INDIRECT(CONCATENATE($B254,"!O18"))) ->  | P254: =IF(ISERROR(INDIRECT(CONCATENATE($B254,"!O19"))),"",INDIRECT(CONCATENATE($B254,"!O19"))) ->  | Q254: =IF(ISERROR(INDIRECT(CONCATENATE($B254,"!O20"))),"",INDIRECT(CONCATENATE($B254,"!O20"))) ->  | R254: =IF(ISERROR(INDIRECT(CONCATENATE($B254,"!O21"))),"",INDIRECT(CONCATENATE($B254,"!O21"))) ->  | T254: =IF(ISERROR(INDIRECT(CONCATENATE($B254,"!P18"))),"",INDIRECT(CONCATENATE($B254,"!P18"))) ->  | U254: =IF(ISERROR(INDIRECT(CONCATENATE($B254,"!P19"))),"",INDIRECT(CONCATENATE($B254,"!P19"))) ->  | V254: =IF(ISERROR(INDIRECT(CONCATENATE($B254,"!P20"))),"",INDIRECT(CONCATENATE($B254,"!P20"))) ->  | W254: =IF(ISERROR(INDIRECT(CONCATENATE($B254,"!P21"))),"",INDIRECT(CONCATENATE($B254,"!P21"))) ->  | Y254: =IF(ISERROR(INDIRECT(CONCATENATE($B254,"!Q18"))),"",INDIRECT(CONCATENATE($B254,"!Q18"))) ->  | Z254: =IF(ISERROR(INDIRECT(CONCATENATE($B254,"!Q19"))),"",INDIRECT(CONCATENATE($B254,"!Q19"))) ->  | AA254: =IF(ISERROR(INDIRECT(CONCATENATE($B254,"!Q20"))),"",INDIRECT(CONCATENATE($B254,"!Q20"))) ->  | AB254: =IF(ISERROR(INDIRECT(CONCATENATE($B254,"!Q21"))),"",INDIRECT(CONCATENATE($B254,"!Q1"))) -> 
E255: =IF(ISERROR(INDIRECT(CONCATENATE($B255,"!M18"))),"",INDIRECT(CONCATENATE($B255,"!M18"))) ->  | F255: =IF(ISERROR(INDIRECT(CONCATENATE($B255,"!M19"))),"",INDIRECT(CONCATENATE($B255,"!M19"))) ->  | G255: =IF(ISERROR(INDIRECT(CONCATENATE($B255,"!M20"))),"",INDIRECT(CONCATENATE($B255,"!M20"))) ->  | H255: =IF(ISERROR(INDIRECT(CONCATENATE($B255,"!M21"))),"",INDIRECT(CONCATENATE($B255,"!M21"))) ->  | J255: =IF(ISERROR(INDIRECT(CONCATENATE($B255,"!N18"))),"",INDIRECT(CONCATENATE($B255,"!N18"))) ->  | K255: =IF(ISERROR(INDIRECT(CONCATENATE($B255,"!N19"))),"",INDIRECT(CONCATENATE($B255,"!N19"))) ->  | L255: =IF(ISERROR(INDIRECT(CONCATENATE($B255,"!N20"))),"",INDIRECT(CONCATENATE($B255,"!N20"))) ->  | M255: =IF(ISERROR(INDIRECT(CONCATENATE($B255,"!N21"))),"",INDIRECT(CONCATENATE($B255,"!N21"))) ->  | O255: =IF(ISERROR(INDIRECT(CONCATENATE($B255,"!O18"))),"",INDIRECT(CONCATENATE($B255,"!O18"))) ->  | P255: =IF(ISERROR(INDIRECT(CONCATENATE($B255,"!O19"))),"",INDIRECT(CONCATENATE($B255,"!O19"))) ->  | Q255: =IF(ISERROR(INDIRECT(CONCATENATE($B255,"!O20"))),"",INDIRECT(CONCATENATE($B255,"!O20"))) ->  | R255: =IF(ISERROR(INDIRECT(CONCATENATE($B255,"!O21"))),"",INDIRECT(CONCATENATE($B255,"!O21"))) ->  | T255: =IF(ISERROR(INDIRECT(CONCATENATE($B255,"!P18"))),"",INDIRECT(CONCATENATE($B255,"!P18"))) ->  | U255: =IF(ISERROR(INDIRECT(CONCATENATE($B255,"!P19"))),"",INDIRECT(CONCATENATE($B255,"!P19"))) ->  | V255: =IF(ISERROR(INDIRECT(CONCATENATE($B255,"!P20"))),"",INDIRECT(CONCATENATE($B255,"!P20"))) ->  | W255: =IF(ISERROR(INDIRECT(CONCATENATE($B255,"!P21"))),"",INDIRECT(CONCATENATE($B255,"!P21"))) ->  | Y255: =IF(ISERROR(INDIRECT(CONCATENATE($B255,"!Q18"))),"",INDIRECT(CONCATENATE($B255,"!Q18"))) ->  | Z255: =IF(ISERROR(INDIRECT(CONCATENATE($B255,"!Q19"))),"",INDIRECT(CONCATENATE($B255,"!Q19"))) ->  | AA255: =IF(ISERROR(INDIRECT(CONCATENATE($B255,"!Q20"))),"",INDIRECT(CONCATENATE($B255,"!Q20"))) ->  | AB255: =IF(ISERROR(INDIRECT(CONCATENATE($B255,"!Q21"))),"",INDIRECT(CONCATENATE($B255,"!Q1"))) -> 
E256: =IF(ISERROR(INDIRECT(CONCATENATE($B256,"!M18"))),"",INDIRECT(CONCATENATE($B256,"!M18"))) ->  | F256: =IF(ISERROR(INDIRECT(CONCATENATE($B256,"!M19"))),"",INDIRECT(CONCATENATE($B256,"!M19"))) ->  | G256: =IF(ISERROR(INDIRECT(CONCATENATE($B256,"!M20"))),"",INDIRECT(CONCATENATE($B256,"!M20"))) ->  | H256: =IF(ISERROR(INDIRECT(CONCATENATE($B256,"!M21"))),"",INDIRECT(CONCATENATE($B256,"!M21"))) ->  | J256: =IF(ISERROR(INDIRECT(CONCATENATE($B256,"!N18"))),"",INDIRECT(CONCATENATE($B256,"!N18"))) ->  | K256: =IF(ISERROR(INDIRECT(CONCATENATE($B256,"!N19"))),"",INDIRECT(CONCATENATE($B256,"!N19"))) ->  | L256: =IF(ISERROR(INDIRECT(CONCATENATE($B256,"!N20"))),"",INDIRECT(CONCATENATE($B256,"!N20"))) ->  | M256: =IF(ISERROR(INDIRECT(CONCATENATE($B256,"!N21"))),"",INDIRECT(CONCATENATE($B256,"!N21"))) ->  | O256: =IF(ISERROR(INDIRECT(CONCATENATE($B256,"!O18"))),"",INDIRECT(CONCATENATE($B256,"!O18"))) ->  | P256: =IF(ISERROR(INDIRECT(CONCATENATE($B256,"!O19"))),"",INDIRECT(CONCATENATE($B256,"!O19"))) ->  | Q256: =IF(ISERROR(INDIRECT(CONCATENATE($B256,"!O20"))),"",INDIRECT(CONCATENATE($B256,"!O20"))) ->  | R256: =IF(ISERROR(INDIRECT(CONCATENATE($B256,"!O21"))),"",INDIRECT(CONCATENATE($B256,"!O21"))) ->  | T256: =IF(ISERROR(INDIRECT(CONCATENATE($B256,"!P18"))),"",INDIRECT(CONCATENATE($B256,"!P18"))) ->  | U256: =IF(ISERROR(INDIRECT(CONCATENATE($B256,"!P19"))),"",INDIRECT(CONCATENATE($B256,"!P19"))) ->  | V256: =IF(ISERROR(INDIRECT(CONCATENATE($B256,"!P20"))),"",INDIRECT(CONCATENATE($B256,"!P20"))) ->  | W256: =IF(ISERROR(INDIRECT(CONCATENATE($B256,"!P21"))),"",INDIRECT(CONCATENATE($B256,"!P21"))) ->  | Y256: =IF(ISERROR(INDIRECT(CONCATENATE($B256,"!Q18"))),"",INDIRECT(CONCATENATE($B256,"!Q18"))) ->  | Z256: =IF(ISERROR(INDIRECT(CONCATENATE($B256,"!Q19"))),"",INDIRECT(CONCATENATE($B256,"!Q19"))) ->  | AA256: =IF(ISERROR(INDIRECT(CONCATENATE($B256,"!Q20"))),"",INDIRECT(CONCATENATE($B256,"!Q20"))) ->  | AB256: =IF(ISERROR(INDIRECT(CONCATENATE($B256,"!Q21"))),"",INDIRECT(CONCATENATE($B256,"!Q1"))) -> 
E257: =IF(ISERROR(INDIRECT(CONCATENATE($B257,"!M18"))),"",INDIRECT(CONCATENATE($B257,"!M18"))) ->  | F257: =IF(ISERROR(INDIRECT(CONCATENATE($B257,"!M19"))),"",INDIRECT(CONCATENATE($B257,"!M19"))) ->  | G257: =IF(ISERROR(INDIRECT(CONCATENATE($B257,"!M20"))),"",INDIRECT(CONCATENATE($B257,"!M20"))) ->  | H257: =IF(ISERROR(INDIRECT(CONCATENATE($B257,"!M21"))),"",INDIRECT(CONCATENATE($B257,"!M21"))) ->  | J257: =IF(ISERROR(INDIRECT(CONCATENATE($B257,"!N18"))),"",INDIRECT(CONCATENATE($B257,"!N18"))) ->  | K257: =IF(ISERROR(INDIRECT(CONCATENATE($B257,"!N19"))),"",INDIRECT(CONCATENATE($B257,"!N19"))) ->  | L257: =IF(ISERROR(INDIRECT(CONCATENATE($B257,"!N20"))),"",INDIRECT(CONCATENATE($B257,"!N20"))) ->  | M257: =IF(ISERROR(INDIRECT(CONCATENATE($B257,"!N21"))),"",INDIRECT(CONCATENATE($B257,"!N21"))) ->  | O257: =IF(ISERROR(INDIRECT(CONCATENATE($B257,"!O18"))),"",INDIRECT(CONCATENATE($B257,"!O18"))) ->  | P257: =IF(ISERROR(INDIRECT(CONCATENATE($B257,"!O19"))),"",INDIRECT(CONCATENATE($B257,"!O19"))) ->  | Q257: =IF(ISERROR(INDIRECT(CONCATENATE($B257,"!O20"))),"",INDIRECT(CONCATENATE($B257,"!O20"))) ->  | R257: =IF(ISERROR(INDIRECT(CONCATENATE($B257,"!O21"))),"",INDIRECT(CONCATENATE($B257,"!O21"))) ->  | T257: =IF(ISERROR(INDIRECT(CONCATENATE($B257,"!P18"))),"",INDIRECT(CONCATENATE($B257,"!P18"))) ->  | U257: =IF(ISERROR(INDIRECT(CONCATENATE($B257,"!P19"))),"",INDIRECT(CONCATENATE($B257,"!P19"))) ->  | V257: =IF(ISERROR(INDIRECT(CONCATENATE($B257,"!P20"))),"",INDIRECT(CONCATENATE($B257,"!P20"))) ->  | W257: =IF(ISERROR(INDIRECT(CONCATENATE($B257,"!P21"))),"",INDIRECT(CONCATENATE($B257,"!P21"))) ->  | Y257: =IF(ISERROR(INDIRECT(CONCATENATE($B257,"!Q18"))),"",INDIRECT(CONCATENATE($B257,"!Q18"))) ->  | Z257: =IF(ISERROR(INDIRECT(CONCATENATE($B257,"!Q19"))),"",INDIRECT(CONCATENATE($B257,"!Q19"))) ->  | AA257: =IF(ISERROR(INDIRECT(CONCATENATE($B257,"!Q20"))),"",INDIRECT(CONCATENATE($B257,"!Q20"))) ->  | AB257: =IF(ISERROR(INDIRECT(CONCATENATE($B257,"!Q21"))),"",INDIRECT(CONCATENATE($B257,"!Q1"))) -> 
A297: RURAL | D297: Poorest | I297: Poor | N297: Middle | S297: Rich | X297: Richest
D298: Improved | E298: Basic | F298: Limited | G298: Unimproved | H298: Surface water | I298: Improved | J298: Basic | K298: Limited | L298: Unimproved | M298: Surface water | N298: Improved | O298: Basic | P298: Limited | Q298: Unimproved | R298: Surface water | S298: Improved | T298: Basic | U298: Limited | V298: Unimproved | W298: Surface water | X298: Improved | Y298: Basic | Z298: Limited | AA298: Unimproved | AB298: Surface water
A299: Forecast period: | C299: 2000 | D299: =IF((D301+H301)>100,D301*100/(D301+H301),D301) -> 96.89205525 | E299: =D299*AVERAGEIF(E305:E316,">0")/100 -> 96.43825867 | F299: =D299*(100-AVERAGEIF(E305:E316,">0"))/100 -> 0.4537965826 | G299: =100-(E299+F299+H299) -> 1.972180234 | H299: =IF((D301+H301)>100,H301*100/(D301+H301),H301) -> 1.135764513 | I299: =IF((I301+M301)>100,I301*100/(I301+M301),I301) -> 99.29202376 | J299: =I299*AVERAGEIF(J305:J316,">0")/100 -> 98.23948251 | K299: =I299*(100-AVERAGEIF(J305:J316,">0"))/100 -> 1.052541246 | L299: =100-(J299+K299+M299) -> 0.6957972214 | M299: =IF((I301+M301)>100,M301*100/(I301+M301),M301) -> 0.01217902038 | N299: =IF((N301+R301)>100,N301*100/(N301+R301),N301) -> 100 | O299: =N299*AVERAGEIF(O305:O316,">0")/100 -> 99.71251216 | P299: =N299*(100-AVERAGEIF(O305:O316,">0"))/100 -> 0.2874878372 | Q299: =100-(O299+P299+R299) -> 0 | R299: =IF((N301+R301)>100,R301*100/(N301+R301),R301) -> 0 | S299: =IF((S301+W301)>100,S301*100/(S301+W301),S301) -> 97.68302247 | T299: =S299*AVERAGEIF(T305:T316,">0")/100 -> 97.41843043 | U299: =S299*(100-AVERAGEIF(T305:T316,">0"))/100 -> 0.264592038 | V299: =100-(T299+U299+W299) -> 2.240620315 | W299: =IF((S301+W301)>100,W301*100/(S301+W301),W301) -> 0.07635721947 | X299: =IF((X301+AB301)>100,X301*100/(X301+AB301),X301) -> 99.80955065 | Y299: =X299*AVERAGEIF(Y305:Y316,">0")/100 -> 99.73376041 | Z299: =X299*(100-AVERAGEIF(Y305:Y316,">0"))/100 -> 0.07579023482 | AA299: =100-(Y299+Z299+AB299) -> 0.1904493537 | AB299: =IF((X301+AB301)>100,AB301*100/(X301+AB301),AB301) -> 0
C300: 2020 | D300: =IF((D302+H302)>100,D302*100/(D302+H302),D302) -> 99.23177286 | E300: =D300*AVERAGEIF(E305:E316,">0")/100 -> 98.76701814 | F300: =D300*(100-AVERAGEIF(E305:E316,">0"))/100 -> 0.4647547137 | G300: =100-(E300+F300+H300) -> 0.7682271446 | H300: =IF((D302+H302)>100,H302*100/(D302+H302),H302) -> 0 | I300: =IF((I302+M302)>100,I302*100/(I302+M302),I302) -> 96.91656002 | J300: =I300*AVERAGEIF(J305:J316,">0")/100 -> 95.88919979 | K300: =I300*(100-AVERAGEIF(J305:J316,">0"))/100 -> 1.027360235 | L300: =100-(J300+K300+M300) -> 2.992687093 | M300: =IF((I302+M302)>100,M302*100/(I302+M302),M302) -> 0.09075288435 | N300: =IF((N302+R302)>100,N302*100/(N302+R302),N302) -> 98.98328971 | O300: =N300*AVERAGEIF(O305:O316,">0")/100 -> 98.69872479 | P300: =N300*(100-AVERAGEIF(O305:O316,">0"))/100 -> 0.2845649188 | Q300: =100-(O300+P300+R300) -> 0.5773986229 | R300: =IF((N302+R302)>100,R302*100/(N302+R302),R302) -> 0.4393116671 | S300: =IF((S302+W302)>100,S302*100/(S302+W302),S302) -> 99.39800472 | T300: =S300*AVERAGEIF(T305:T316,">0")/100 -> 99.12876735 | U300: =S300*(100-AVERAGEIF(T305:T316,">0"))/100 -> 0.269237376 | V300: =100-(T300+U300+W300) -> 0.6019952753 | W300: =IF((S302+W302)>100,W302*100/(S302+W302),W302) -> 0 | X300: =IF((X302+AB302)>100,X302*100/(X302+AB302),X302) -> 99.02895288 | Y300: =X300*AVERAGEIF(Y305:Y316,">0")/100 -> 98.95375539 | Z300: =X300*(100-AVERAGEIF(Y305:Y316,">0"))/100 -> 0.07519748905 | AA300: =100-(Y300+Z300+AB300) -> 0.9710471238 | AB300: =IF((X302+AB302)>100,AB302*100/(X302+AB302),AB302) -> 0
A301: Regression period: | C301: =MinRegYear(C299,C305:C316) -> 2004 | D301: =IF(MAX(C305:C316)-MIN(C305:C316)<5,AVERAGEIF(C305:C316,">0",D305:D316), IF(FORECAST($C301,D$305:D$316,$C$305:$C$316)<0,0, IF(FORECAST($C301,D$305:D$316,$C$305:$C$316)>100,100, FORECAST($C301,D$305:D$316,$C$305:$C$316)))) -> 96.89205525 | H301: =IF(MAX(C305:C316)-MIN(C305:C316)<5,AVERAGEIF(C305:C316,">0",H305:H316), IF(FORECAST($C301,H$305:H$316,$C$305:$C$316)<0,0, IF(FORECAST($C301,H$305:H$316,$C$305:$C$316)>100,100, FORECAST($C301,H$305:H$316,$C$305:$C$316)))) -> 1.135764513 | I301: =IF(MAX(C305:C316)-MIN(C305:C316)<5,AVERAGEIF(C305:C316,">0",I305:I316), IF(FORECAST($C301,I$305:I$316,$C$305:$C$316)<0,0, IF(FORECAST($C301,I$305:I$316,$C$305:$C$316)>100,100, FORECAST($C301,I$305:I$316,$C$305:$C$316)))) -> 99.29202376 | M301: =IF(MAX(C305:C316)-MIN(C305:C316)<5,AVERAGEIF(C305:C316,">0",M305:M316), IF(FORECAST($C301,M$305:M$316,$C$305:$C$316)<0,0, IF(FORECAST($C301,M$305:M$316,$C$305:$C$316)>100,100, FORECAST($C301,M$305:M$316,$C$305:$C$316)))) -> 0.01217902038 | N301: =IF(MAX(C305:C316)-MIN(C305:C316)<5,AVERAGEIF(C305:C316,">0",N305:N316), IF(FORECAST($C301,N$305:N$316,$C$305:$C$316)<0,0, IF(FORECAST($C301,N$305:N$316,$C$305:$C$316)>100,100, FORECAST($C301,N$305:N$316,$C$305:$C$316)))) -> 100 | R301: =IF(MAX(C305:C316)-MIN(C305:C316)<5,AVERAGEIF(C305:C316,">0",R305:R316), IF(FORECAST($C301,R$305:R$316,$C$305:$C$316)<0,0, IF(FORECAST($C301,R$305:R$316,$C$305:$C$316)>100,100, FORECAST($C301,R$305:R$316,$C$305:$C$316)))) -> 0 | S301: =IF(MAX(C305:C316)-MIN(C305:C316)<5,AVERAGEIF(C305:C316,">0",S305:S316), IF(FORECAST($C301,S$305:S$316,$C$305:$C$316)<0,0, IF(FORECAST($C301,S$305:S$316,$C$305:$C$316)>100,100, FORECAST($C301,S$305:S$316,$C$305:$C$316)))) -> 97.68302247 | W301: =IF(MAX(C305:C316)-MIN(C305:C316)<5,AVERAGEIF(C305:C316,">0",W305:W316), IF(FORECAST($C301,W$305:W$316,$C$305:$C$316)<0,0, IF(FORECAST($C301,W$305:W$316,$C$305:$C$316)>100,100, FORECAST($C301,W$305:W$316,$C$305:$C$316)))) -> 0.07635721947 | X301: =IF(MAX(C305:C316)-MIN(C305:C316)<5,AVERAGEIF(C305:C316,">0",X305:X316), IF(FORECAST($C301,X$305:X$316,$C$305:$C$316)<0,0, IF(FORECAST($C301,X$305:X$316,$C$305:$C$316)>100,100, FORECAST($C301,X$305:X$316,$C$305:$C$316)))) -> 99.80955065 | AB301: =IF(MAX(C305:C316)-MIN(C305:C316)<5,AVERAGEIF(C305:C316,">0",AB305:AB316), IF(FORECAST($C301,AB$305:AB$316,$C$305:$C$316)<0,0, IF(FORECAST($C301,AB$305:AB$316,$C$305:$C$316)>100,100, FORECAST($C301,AB$305:AB$316,$C$305:$C$316)))) -> 0
C302: =MaxRegYear(C300,C305:C316) -> 2020 | D302: =IF(MAX(C305:C316)-MIN(C305:C316)<5,AVERAGEIF(C305:C316,">0",D305:D316), IF(FORECAST($C302,D$305:D$316,$C$305:$C$316)<0,0, IF(FORECAST($C302,D$305:D$316,$C$305:$C$316)>100,100, FORECAST($C302,D$305:D$316,$C$305:$C$316)))) -> 99.23177286 | H302: =IF(MAX(C305:C316)-MIN(C305:C316)<5,AVERAGEIF(C305:C316,">0",H305:H316), IF(FORECAST($C302,H$305:H$316,$C$305:$C$316)<0,0, IF(FORECAST($C302,H$305:H$316,$C$305:$C$316)>100,100, FORECAST($C302,H$305:H$316,$C$305:$C$316)))) -> 0 | I302: =IF(MAX(C305:C316)-MIN(C305:C316)<5,AVERAGEIF(C305:C316,">0",I305:I316), IF(FORECAST($C302,I$305:I$316,$C$305:$C$316)<0,0, IF(FORECAST($C302,I$305:I$316,$C$305:$C$316)>100,100, FORECAST($C302,I$305:I$316,$C$305:$C$316)))) -> 96.91656002 | M302: =IF(MAX(C305:C316)-MIN(C305:C316)<5,AVERAGEIF(C305:C316,">0",M305:M316), IF(FORECAST($C302,M$305:M$316,$C$305:$C$316)<0,0, IF(FORECAST($C302,M$305:M$316,$C$305:$C$316)>100,100, FORECAST($C302,M$305:M$316,$C$305:$C$316)))) -> 0.09075288435 | N302: =IF(MAX(C305:C316)-MIN(C305:C316)<5,AVERAGEIF(C305:C316,">0",N305:N316), IF(FORECAST($C302,N$305:N$316,$C$305:$C$316)<0,0, IF(FORECAST($C302,N$305:N$316,$C$305:$C$316)>100,100, FORECAST($C302,N$305:N$316,$C$305:$C$316)))) -> 98.98328971 | R302: =IF(MAX(C305:C316)-MIN(C305:C316)<5,AVERAGEIF(C305:C316,">0",R305:R316), IF(FORECAST($C302,R$305:R$316,$C$305:$C$316)<0,0, IF(FORECAST($C302,R$305:R$316,$C$305:$C$316)>100,100, FORECAST($C302,R$305:R$316,$C$305:$C$316)))) -> 0.4393116671 | S302: =IF(MAX(C305:C316)-MIN(C305:C316)<5,AVERAGEIF(C305:C316,">0",S305:S316), IF(FORECAST($C302,S$305:S$316,$C$305:$C$316)<0,0, IF(FORECAST($C302,S$305:S$316,$C$305:$C$316)>100,100, FORECAST($C302,S$305:S$316,$C$305:$C$316)))) -> 99.39800472 | W302: =IF(MAX(C305:C316)-MIN(C305:C316)<5,AVERAGEIF(C305:C316,">0",W305:W316), IF(FORECAST($C302,W$305:W$316,$C$305:$C$316)<0,0, IF(FORECAST($C302,W$305:W$316,$C$305:$C$316)>100,100, FORECAST($C302,W$305:W$316,$C$305:$C$316)))) -> 0 | X302: =IF(MAX(C305:C316)-MIN(C305:C316)<5,AVERAGEIF(C305:C316,">0",X305:X316), IF(FORECAST($C302,X$305:X$316,$C$305:$C$316)<0,0, IF(FORECAST($C302,X$305:X$316,$C$305:$C$316)>100,100, FORECAST($C302,X$305:X$316,$C$305:$C$316)))) -> 99.02895288 | AB302: =IF(MAX(C305:C316)-MIN(C305:C316)<5,AVERAGEIF(C305:C316,">0",AB305:AB316), IF(FORECAST($C302,AB$305:AB$316,$C$305:$C$316)<0,0, IF(FORECAST($C302,AB$305:AB$316,$C$305:$C$316)>100,100, FORECAST($C302,AB$305:AB$316,$C$305:$C$316)))) -> 0
B304: Survey | C304: Year | D304: Improved | E304: % Improved < = 30min | H304: Surface water | I304: Improved | J304: % Improved < = 30min | M304: Surface water | N304: Improved | O304: % Improved < = 30min | R304: Surface water | S304: Improved | T304: % Improved < = 30min | W304: Surface water | X304: Improved | Y304: % Improved < = 30min | AB304: Surface water
B305: MICS06 | C305: 2006 | D305: =IF(ISERROR(INDIRECT(CONCATENATE($B305,"!M16"))),"",INDIRECT(CONCATENATE($B305,"!M16"))) -> 97.25570869 | E305: =IF(ISERROR(INDIRECT(CONCATENATE($B305,"!M23"))),"",INDIRECT(CONCATENATE($B305,"!M23"))) -> 100 | H305: =IF(ISERROR(INDIRECT(CONCATENATE($B305,"!M21"))),"",INDIRECT(CONCATENATE($B305,"!M21"))) -> 1.274031497 | I305: =IF(ISERROR(INDIRECT(CONCATENATE($B305,"!N16"))),"",INDIRECT(CONCATENATE($B305,"!N16"))) -> 98.35063441 | J305: =IF(ISERROR(INDIRECT(CONCATENATE($B305,"!N23"))),"",INDIRECT(CONCATENATE($B305,"!N23"))) -> 98.77952692 | M305: =IF(ISERROR(INDIRECT(CONCATENATE($B305,"!N21"))),"",INDIRECT(CONCATENATE($B305,"!N21"))) -> 0.05065003699 | N305: =IF(ISERROR(INDIRECT(CONCATENATE($B305,"!O16"))),"",INDIRECT(CONCATENATE($B305,"!O16"))) -> 99.87725829 | O305: =IF(ISERROR(INDIRECT(CONCATENATE($B305,"!O23"))),"",INDIRECT(CONCATENATE($B305,"!O23"))) -> 99.90812201 | R305: =IF(ISERROR(INDIRECT(CONCATENATE($B305,"!O21"))),"",INDIRECT(CONCATENATE($B305,"!O21"))) -> 0.1227417107 | S305: =IF(ISERROR(INDIRECT(CONCATENATE($B305,"!P16"))),"",INDIRECT(CONCATENATE($B305,"!P16"))) -> 97.61021199 | T305: =IF(ISERROR(INDIRECT(CONCATENATE($B305,"!P23"))),"",INDIRECT(CONCATENATE($B305,"!P23"))) -> 99.92740331 | W305: =IF(ISERROR(INDIRECT(CONCATENATE($B305,"!P21"))),"",INDIRECT(CONCATENATE($B305,"!P21"))) -> 0.08565288097 | X305: =IF(ISERROR(INDIRECT(CONCATENATE($B305,"!Q16"))),"",INDIRECT(CONCATENATE($B305,"!Q16"))) -> 100 | Y305: =IF(ISERROR(INDIRECT(CONCATENATE($B305,"!Q23"))),"",INDIRECT(CONCATENATE($B305,"!Q23"))) -> 100 | AB305: =IF(ISERROR(INDIRECT(CONCATENATE($B305,"!Q221"))),"",INDIRECT(CONCATENATE($B305,"!Q21"))) -> 0
B306: MICS11 | C306: 2011 | D306: 97.8 | E306: 99.9 | H306: 0 | I306: 99.3 | J306: 99.3 | M306: 0 | N306: 100 | O306: 99.8 | R306: 0 | S306: 98.9 | T306: 100 | W306: 0 | X306: 99 | Y306: 100 | AB306: 0
B307: MICS19 | C307: 2019 | D307: 99.13003347 | E307: 98.69494182 | H307: 0 | I307: 96.66224127 | J307: 98.74033472 | M307: 0.1037478201 | N307: 98.93925089 | O307: 99.42941448 | R307: 0.4742575958 | S307: 99.1113288 | T307: 99.25999273 | W307: 0 | X307: 99.25775528 | Y307: 99.77219544 | AB307: 0
B318: =CONCATENATE("Rural use of drinking water sources, ",C299,"–",C300) -> Rural use of drinking water sources, 2000–2020 | S318: Data points used for regression

Sheet Sanitation
B4: Summary of trends in use of sanitation facilities by wealth quintile (%)
B5: =IF(ISERROR(INDIRECT(CONCATENATE($B105,"!A2"))),"",INDIRECT(CONCATENATE($B105,"!A2"))) -> North Macedonia
B7: =B118 -> National use of sanitation facilities, 2000–2020 | J7: =B218 -> Urban use of sanitation facilities, 2000–2020 | R7: =B318 -> Rural use of sanitation facilities, 2000–2020
B31: =IF(ISERROR(INDIRECT(CONCATENATE($B105,"!A2"))),"",INDIRECT(CONCATENATE($B105,"!A2"))) -> North Macedonia | F31: Poorest | J31: Poor | N31: Middle | R31: Rich | V31: Richest
F32: Basic | G32: Limited | H32: Unimproved | I32: Open defecation | J32: Basic | K32: Limited | L32: Unimproved | M32: Open defecation | N32: Basic | O32: Limited | P32: Unimproved | Q32: Open defecation | R32: Basic | S32: Limited | T32: Unimproved | U32: Open defecation | V32: Basic | W32: Limited | X32: Unimproved | Y32: Open defecation
B33: NATIONAL | D33: Estimate | E33: =C99 -> 2000 | F33: =E99 -> 73.42472066 | G33: =F99 -> 6.178317635 | H33: 18.26480413 | I33: 2.13215757 | J33: =J99 -> 88.12623573 | K33: =K99 -> 3.098054301 | L33: 8.688433349 | M33: 0.08727661585 | N33: =O99 -> 93.10133689 | O33: =P99 -> 3.271227933 | P33: 3.627435173 | Q33: 0 | R33: =T99 -> 96.73992105 | S33: =U99 -> 1.439251688 | T33: 1.820827258 | U33: 0 | V33: =Y99 -> 98.24786204 | W33: =Z99 -> 0.2197374626 | X33: 1.532400495 | Y33: 0
E34: =C100 -> 2020 | F34: =E100 -> 83.13785693 | G34: 6.995628761 | H34: 9.292105693 | I34: 0.5744086112 | J34: =J100 -> 93.6863639 | K34: 3.293519123 | L34: 2.9709247 | M34: 0.04919227439 | N34: =O100 -> 95.62618858 | O34: 3.359941646 | P34: 1.013869777 | Q34: 0 | R34: =T100 -> 98.52850995 | S34: 1.465861484 | T34: 0.005628570402 | U34: 0 | V34: =Y100 -> 99.77684288 | W34: 0.2231571235 | X34: 0 | Y34: 0
B36: URBAN | D36: Estimate | E36: =C199 -> 2000 | F36: =E199 -> 89.24053572 | G36: =F199 -> 4.959941472 | H36: 5.576513757 | I36: 0.2230090477 | J36: =J199 -> 93.37044962 | K36: =K199 -> 2.842842055 | L36: 3.786708324 | M36: 0 | N36: =O199 -> 94.95802315 | O36: =P199 -> 2.722610993 | P36: 2.319365858 | Q36: 0 | R36: =T199 -> 99.12379139 | S36: =U199 -> 0.8565139742 | T36: 0.0196946397 | U36: 0 | V36: =Y199 -> 98.58986694 | W36: =Z199 -> 0.09185146847 | X36: 1.318281592 | Y36: 0
E37: =C200 -> 2020 | F37: =E200 -> 94.73469602 | G37: 5.265303977 | H37: 0 | I37: 0 | J37: =J200 -> 97.04527097 | K37: 2.954729025 | L37: 0 | M37: 0 | N37: =O200 -> 97.2127423 | O37: 2.787257697 | P37: 0 | Q37: 0 | R37: =T200 -> 99.14331731 | S37: 0.8566826948 | T37: 0 | U37: 0 | V37: =Y200 -> 99.90692149 | W37: 0.09307850528 | X37: 0 | Y37: 0
B39: RURAL | D39: Estimate | E39: =C299 -> 2000 | F39: =E299 -> 62.82949535 | G39: =F299 -> 6.916772771 | H39: 26.27817742 | I39: 3.975554459 | J39: =J299 -> 78.96520624 | K39: =K299 -> 3.181355302 | L39: 17.15883453 | M39: 0.6946039295 | N39: =O299 -> 87.42600712 | O39: =P299 -> 3.549655927 | P39: 8.94543427 | Q39: 0.0789026861 | R39: =T299 -> 92.71105145 | S39: =U299 -> 3.185094472 | T39: 4.10385408 | U39: 0 | V39: =Y299 -> 96.13819795 | W39: =Z299 -> 1.219860343 | X39: 2.641941709 | Y39: 0
E40: =C300 -> 2020 | F40: =E300 -> 74.17384291 | G40: 8.165649177 | H40: 16.56945726 | I40: 1.091050657 | J40: =J300 -> 87.23585937 | K40: 3.514563907 | L40: 8.858072685 | M40: 0.391504033 | N40: =O300 -> 90.54781201 | O40: 3.676406921 | P40: 5.731308647 | Q40: 0.04447242307 | R40: =T300 -> 92.78921418 | S40: 3.187779758 | T40: 4.023006059 | U40: 0 | V40: =Y300 -> 95.68168335 | W40: 1.214067806 | X40: 3.10424884 | Y40: 0
A97: NATIONAL | D97: Poorest | I97: Poor | N97: Middle | S97: Rich | X97: Richest
D98: Improved | E98: Basic | F98: Limited | G98: Unimproved | H98: Open defecation | I98: Improved | J98: Basic | K98: Limited | L98: Unimproved | M98: Open defecation | N98: Improved | O98: Basic | P98: Limited | Q98: Unimproved | R98: Open defecation | S98: Improved | T98: Basic | U98: Limited | V98: Unimproved | W98: Open defecation | X98: Improved | Y98: Basic | Z98: Limited | AA98: Unimproved | AB98: Open defecation
A99: Forecast period: | C99: 2000 | D99: =IF((D101+H101)>100,D101*100/(D101+H101),D101) -> 79.6030383 | E99: =D99*AVERAGEIF(E105:E116,">0")/100 -> 73.42472066 | F99: =D99*(100-AVERAGEIF(E105:E116,">0"))/100 -> 6.178317635 | G99: =100-(E99+F99+H99) -> 18.26480413 | H99: =IF((D101+H101)>100,H101*100/(D101+H101),H101) -> 2.13215757 | I99: =IF((I101+M101)>100,I101*100/(I101+M101),I101) -> 91.22429004 | J99: =I99*AVERAGEIF(J105:J116,">0")/100 -> 88.12623573 | K99: =I99*(100-AVERAGEIF(J105:J116,">0"))/100 -> 3.098054301 | L99: =100-(J99+K99+M99) -> 8.688433349 | M99: =IF((I101+M101)>100,M101*100/(I101+M101),M101) -> 0.08727661585 | N99: =IF((N101+R101)>100,N101*100/(N101+R101),N101) -> 96.37256483 | O99: =N99*AVERAGEIF(O105:O116,">0")/100 -> 93.10133689 | P99: =N99*(100-AVERAGEIF(O105:O116,">0"))/100 -> 3.271227933 | Q99: =100-(O99+P99+R99) -> 3.627435173 | R99: =IF((N101+R101)>100,R101*100/(N101+R101),R101) -> 0 | S99: =IF((S101+W101)>100,S101*100/(S101+W101),S101) -> 98.17917274 | T99: =S99*AVERAGEIF(T105:T116,">0")/100 -> 96.73992105 | U99: =S99*(100-AVERAGEIF(T105:T116,">0"))/100 -> 1.439251688 | V99: =100-(T99+U99+W99) -> 1.820827258 | W99: =IF((S101+W101)>100,W101*100/(S101+W101),W101) -> 0 | X99: =IF((X101+AB101)>100,X101*100/(X101+AB101),X101) -> 98.4675995 | Y99: =X99*AVERAGEIF(Y105:Y116,">0")/100 -> 98.24786204 | Z99: =X99*(100-AVERAGEIF(Y105:Y116,">0"))/100 -> 0.2197374626 | AA99: =100-(Y99+Z99+AB99) -> 1.532400495 | AB99: =IF((X101+AB101)>100,AB101*100/(X101+AB101),AB101) -> 0
C100: 2020 | D100: =IF((D102+H102)>100,D102*100/(D102+H102),D102) -> 90.1334857 | E100: =D100*AVERAGEIF(E105:E116,">0")/100 -> 83.13785693 | F100: =D100*(100-AVERAGEIF(E105:E116,">0"))/100 -> 6.995628761 | G100: =100-(E100+F100+H100) -> 9.292105693 | H100: =IF((D102+H102)>100,H102*100/(D102+H102),H102) -> 0.5744086112 | I100: =IF((I102+M102)>100,I102*100/(I102+M102),I102) -> 96.97988303 | J100: =I100*AVERAGEIF(J105:J116,">0")/100 -> 93.6863639 | K100: =I100*(100-AVERAGEIF(J105:J116,">0"))/100 -> 3.293519123 | L100: =100-(J100+K100+M100) -> 2.9709247 | M100: =IF((I102+M102)>100,M102*100/(I102+M102),M102) -> 0.04919227439 | N100: =IF((N102+R102)>100,N102*100/(N102+R102),N102) -> 98.98613022 | O100: =N100*AVERAGEIF(O105:O116,">0")/100 -> 95.62618858 | P100: =N100*(100-AVERAGEIF(O105:O116,">0"))/100 -> 3.359941646 | Q100: =100-(O100+P100+R100) -> 1.013869777 | R100: =IF((N102+R102)>100,R102*100/(N102+R102),R102) -> 0 | S100: =IF((S102+W102)>100,S102*100/(S102+W102),S102) -> 99.99437143 | T100: =S100*AVERAGEIF(T105:T116,">0")/100 -> 98.52850995 | U100: =S100*(100-AVERAGEIF(T105:T116,">0"))/100 -> 1.465861484 | V100: =100-(T100+U100+W100) -> 0.005628570402 | W100: =IF((S102+W102)>100,W102*100/(S102+W102),W102) -> 0 | X100: =IF((X102+AB102)>100,X102*100/(X102+AB102),X102) -> 100 | Y100: =X100*AVERAGEIF(Y105:Y116,">0")/100 -> 99.77684288 | Z100: =X100*(100-AVERAGEIF(Y105:Y116,">0"))/100 -> 0.2231571235 | AA100: =100-(Y100+Z100+AB100) -> 0 | AB100: =IF((X102+AB102)>100,AB102*100/(X102+AB102),AB102) -> 0
A101: Regression period: | C101: =MinRegYear(C99,C105:C116) -> 2004 | D101: =IF(MAX(C105:C116)-MIN(C105:C116)<5,AVERAGEIF(C105:C116,">0",D105:D116), IF(FORECAST($C101,D$105:D$116,$C$105:$C$116)<0,0, IF(FORECAST($C101,D$105:D$116,$C$105:$C$116)>100,100, FORECAST($C101,D$105:D$116,$C$105:$C$116)))) -> 79.6030383 | H101: =IF(MAX(C105:C116)-MIN(C105:C116)<5,AVERAGEIF(C105:C116,">0",H105:H116), IF(FORECAST($C101,H$105:H$116,$C$105:$C$116)<0,0, IF(FORECAST($C101,H$105:H$116,$C$105:$C$116)>100,100, FORECAST($C101,H$105:H$116,$C$105:$C$116)))) -> 2.13215757 | I101: =IF(MAX(C105:C116)-MIN(C105:C116)<5,AVERAGEIF(C105:C116,">0",I105:I116), IF(FORECAST($C101,I$105:I$116,$C$105:$C$116)<0,0, IF(FORECAST($C101,I$105:I$116,$C$105:$C$116)>100,100, FORECAST($C101,I$105:I$116,$C$105:$C$116)))) -> 91.22429004 | M101: =IF(MAX(C105:C116)-MIN(C105:C116)<5,AVERAGEIF(C105:C116,">0",M105:M116), IF(FORECAST($C101,M$105:M$116,$C$105:$C$116)<0,0, IF(FORECAST($C101,M$105:M$116,$C$105:$C$116)>100,100, FORECAST($C101,M$105:M$116,$C$105:$C$116)))) -> 0.08727661585 | N101: =IF(MAX(C105:C116)-MIN(C105:C116)<5,AVERAGEIF(C105:C116,">0",N105:N116), IF(FORECAST($C101,N$105:N$116,$C$105:$C$116)<0,0, IF(FORECAST($C101,N$105:N$116,$C$105:$C$116)>100,100, FORECAST($C101,N$105:N$116,$C$105:$C$116)))) -> 96.37256483 | R101: =IF(MAX(C105:C116)-MIN(C105:C116)<5,AVERAGEIF(C105:C116,">0",R105:R116), IF(FORECAST($C101,R$105:R$116,$C$105:$C$116)<0,0, IF(FORECAST($C101,R$105:R$116,$C$105:$C$116)>100,100, FORECAST($C101,R$105:R$116,$C$105:$C$116)))) -> 0 | S101: =IF(MAX(C105:C116)-MIN(C105:C116)<5,AVERAGEIF(C105:C116,">0",S105:S116), IF(FORECAST($C101,S$105:S$116,$C$105:$C$116)<0,0, IF(FORECAST($C101,S$105:S$116,$C$105:$C$116)>100,100, FORECAST($C101,S$105:S$116,$C$105:$C$116)))) -> 98.17917274 | W101: =IF(MAX(C105:C116)-MIN(C105:C116)<5,AVERAGEIF(C105:C116,">0",W105:W116), IF(FORECAST($C101,W$105:W$116,$C$105:$C$116)<0,0, IF(FORECAST($C101,W$105:W$116,$C$105:$C$116)>100,100, FORECAST($C101,W$105:W$116,$C$105:$C$116)))) -> 0 | X101: =IF(MAX(C105:C116)-MIN(C105:C116)<5,AVERAGEIF(C105:C116,">0",X105:X116), IF(FORECAST($C101,X$105:X$116,$C$105:$C$116)<0,0, IF(FORECAST($C101,X$105:X$116,$C$105:$C$116)>100,100, FORECAST($C101,X$105:X$116,$C$105:$C$116)))) -> 98.4675995 | AB101: =IF(MAX(C105:C116)-MIN(C105:C116)<5,AVERAGEIF(C105:C116,">0",AB105:AB116), IF(FORECAST($C101,AB$105:AB$116,$C$105:$C$116)<0,0, IF(FORECAST($C101,AB$105:AB$116,$C$105:$C$116)>100,100, FORECAST($C101,AB$105:AB$116,$C$105:$C$116)))) -> 0
C102: =MaxRegYear(C100,C105:C116) -> 2020 | D102: =IF(MAX(C105:C116)-MIN(C105:C116)<5,AVERAGEIF(C105:C116,">0",D105:D116), IF(FORECAST($C102,D$105:D$116,$C$105:$C$116)<0,0, IF(FORECAST($C102,D$105:D$116,$C$105:$C$116)>100,100, FORECAST($C102,D$105:D$116,$C$105:$C$116)))) -> 90.1334857 | H102: =IF(MAX(C105:C116)-MIN(C105:C116)<5,AVERAGEIF(C105:C116,">0",H105:H116), IF(FORECAST($C102,H$105:H$116,$C$105:$C$116)<0,0, IF(FORECAST($C102,H$105:H$116,$C$105:$C$116)>100,100, FORECAST($C102,H$105:H$116,$C$105:$C$116)))) -> 0.5744086112 | I102: =IF(MAX(C105:C116)-MIN(C105:C116)<5,AVERAGEIF(C105:C116,">0",I105:I116), IF(FORECAST($C102,I$105:I$116,$C$105:$C$116)<0,0, IF(FORECAST($C102,I$105:I$116,$C$105:$C$116)>100,100, FORECAST($C102,I$105:I$116,$C$105:$C$116)))) -> 96.97988303 | M102: =IF(MAX(C105:C116)-MIN(C105:C116)<5,AVERAGEIF(C105:C116,">0",M105:M116), IF(FORECAST($C102,M$105:M$116,$C$105:$C$116)<0,0, IF(FORECAST($C102,M$105:M$116,$C$105:$C$116)>100,100, FORECAST($C102,M$105:M$116,$C$105:$C$116)))) -> 0.04919227439 | N102: =IF(MAX(C105:C116)-MIN(C105:C116)<5,AVERAGEIF(C105:C116,">0",N105:N116), IF(FORECAST($C102,N$105:N$116,$C$105:$C$116)<0,0, IF(FORECAST($C102,N$105:N$116,$C$105:$C$116)>100,100, FORECAST($C102,N$105:N$116,$C$105:$C$116)))) -> 98.98613022 | R102: =IF(MAX(C105:C116)-MIN(C105:C116)<5,AVERAGEIF(C105:C116,">0",R105:R116), IF(FORECAST($C102,R$105:R$116,$C$105:$C$116)<0,0, IF(FORECAST($C102,R$105:R$116,$C$105:$C$116)>100,100, FORECAST($C102,R$105:R$116,$C$105:$C$116)))) -> 0 | S102: =IF(MAX(C105:C116)-MIN(C105:C116)<5,AVERAGEIF(C105:C116,">0",S105:S116), IF(FORECAST($C102,S$105:S$116,$C$105:$C$116)<0,0, IF(FORECAST($C102,S$105:S$116,$C$105:$C$116)>100,100, FORECAST($C102,S$105:S$116,$C$105:$C$116)))) -> 99.99437143 | W102: =IF(MAX(C105:C116)-MIN(C105:C116)<5,AVERAGEIF(C105:C116,">0",W105:W116), IF(FORECAST($C102,W$105:W$116,$C$105:$C$116)<0,0, IF(FORECAST($C102,W$105:W$116,$C$105:$C$116)>100,100, FORECAST($C102,W$105:W$116,$C$105:$C$116)))) -> 0 | X102: =IF(MAX(C105:C116)-MIN(C105:C116)<5,AVERAGEIF(C105:C116,">0",X105:X116), IF(FORECAST($C102,X$105:X$116,$C$105:$C$116)<0,0, IF(FORECAST($C102,X$105:X$116,$C$105:$C$116)>100,100, FORECAST($C102,X$105:X$116,$C$105:$C$116)))) -> 100 | AB102: =IF(MAX(C105:C116)-MIN(C105:C116)<5,AVERAGEIF(C105:C116,">0",AB105:AB116), IF(FORECAST($C102,AB$105:AB$116,$C$105:$C$116)<0,0, IF(FORECAST($C102,AB$105:AB$116,$C$105:$C$116)>100,100, FORECAST($C102,AB$105:AB$116,$C$105:$C$116)))) -> 0
B104: Survey | C104: Year | D104: Improved | E104: Not shared | H104: Open defecation | I104: Improved | J104: Not shared | M104: Open defecation | N104: Improved | O104: Not shared | R104: Open defecation | S104: Improved | T104: Not shared | W104: Open defecation | X104: Improved | Y104: Not shared | AB104: Open defecation
B105: MICS06 | C105: 2006 | D105: =IF(ISERROR(INDIRECT(CONCATENATE($B105,"!C122"))),"",INDIRECT(CONCATENATE($B105,"!C122"))) -> 83.18066606 | E105: =IF(ISERROR(INDIRECT(CONCATENATE($B105,"!C129"))),"",INDIRECT(CONCATENATE($B105,"!C129"))) -> 89.20427642 | H105: =IF(ISERROR(INDIRECT(CONCATENATE($B105,"!C127"))),"",INDIRECT(CONCATENATE($B105,"!C127"))) -> 1.184487915 | I105: =IF(ISERROR(INDIRECT(CONCATENATE($B105,"!D122"))),"",INDIRECT(CONCATENATE($B105,"!D122"))) -> 92.12916173 | J105: =IF(ISERROR(INDIRECT(CONCATENATE($B105,"!D129"))),"",INDIRECT(CONCATENATE($B105,"!D129"))) -> 92.92065524 | M105: =IF(ISERROR(INDIRECT(CONCATENATE($B105,"!D127"))),"",INDIRECT(CONCATENATE($B105,"!D127"))) -> 0 | N105: =IF(ISERROR(INDIRECT(CONCATENATE($B105,"!E122"))),"",INDIRECT(CONCATENATE($B105,"!E122"))) -> 96.07005432 | O105: =IF(ISERROR(INDIRECT(CONCATENATE($B105,"!E129"))),"",INDIRECT(CONCATENATE($B105,"!E129"))) -> 91.66438263 | R105: =IF(ISERROR(INDIRECT(CONCATENATE($B105,"!E127"))),"",INDIRECT(CONCATENATE($B105,"!E127"))) -> 0 | S105: =IF(ISERROR(INDIRECT(CONCATENATE($B105,"!F122"))),"",INDIRECT(CONCATENATE($B105,"!F122"))) -> 98.03669677 | T105: =IF(ISERROR(INDIRECT(CONCATENATE($B105,"!F129"))),"",INDIRECT(CONCATENATE($B105,"!F129"))) -> 96.21822081 | W105: =IF(ISERROR(INDIRECT(CONCATENATE($B105,"!F127"))),"",INDIRECT(CONCATENATE($B105,"!F127"))) -> 0 | X105: =IF(ISERROR(INDIRECT(CONCATENATE($B105,"!G122"))),"",INDIRECT(CONCATENATE($B105,"!G122"))) -> 98.34267545 | Y105: =IF(ISERROR(INDIRECT(CONCATENATE($B105,"!G129"))),"",INDIRECT(CONCATENATE($B105,"!G129"))) -> 99.58806702 | AB105: =IF(ISERROR(INDIRECT(CONCATENATE($B105,"!G2127"))),"",INDIRECT(CONCATENATE($B105,"!G127"))) -> 0
B106: MICS11 | C106: 2011 | D106: 80.53546105 | E106: 93.93610724 | H106: 2.674187833 | I106: 93.44105029 | J106: 98.11655384 | M106: 0.2047033354 | N106: 98.53845974 | O106: 99.57880149 | R106: 0 | S106: 99.57355786 | T106: 99.47712918 | W106: 0 | X106: 99.82027018 | Y106: 99.92059955 | AB106: 0
B107: MICS19 | C107: 2019 | D107: 90.88865888 | E107: 93.57538838 | H107: 0.201173524 | I107: 96.73604757 | J107: 98.77453635 | M107: 0 | N107: 98.42952852 | O107: 98.57374789 | R107: 0 | S107: 99.65006163 | T107: 99.90681803 | W107: 0 | X107: 99.93176099 | Y107: 99.82186206 | AB107: 0
B118: =CONCATENATE("National use of sanitation facilities, ",C99,"–",C100) -> National use of sanitation facilities, 2000–2020 | S118: Data points used for regression
A197: URBAN | D197: Poorest | I197: Poor | N197: Middle | S197: Rich | X197: Richest
D198: Improved | E198: Basic | F198: Limited | G198: Unimproved | H198: Open defecation | I198: Improved | J198: Basic | K198: Limited | L198: Unimproved | M198: Open defecation | N198: Improved | O198: Basic | P198: Limited | Q198: Unimproved | R198: Open defecation | S198: Improved | T198: Basic | U198: Limited | V198: Unimproved | W198: Open defecation | X198: Improved | Y198: Basic | Z198: Limited | AA198: Unimproved | AB198: Open defecation
A199: Forecast period: | C199: 2000 | D199: =IF((D201+H201)>100,D201*100/(D201+H201),D201) -> 94.2004772 | E199: =D199*AVERAGEIF(E205:E216,">0")/100 -> 89.24053572 | F199: =D199*(100-AVERAGEIF(E205:E216,">0"))/100 -> 4.959941472 | G199: =100-(E199+F199+H199) -> 5.576513757 | H199: =IF((D201+H201)>100,H201*100/(D201+H201),H201) -> 0.2230090477 | I199: =IF((I201+M201)>100,I201*100/(I201+M201),I201) -> 96.21329168 | J199: =I199*AVERAGEIF(J205:J216,">0")/100 -> 93.37044962 | K199: =I199*(100-AVERAGEIF(J205:J216,">0"))/100 -> 2.842842055 | L199: =100-(J199+K199+M199) -> 3.786708324 | M199: =IF((I201+M201)>100,M201*100/(I201+M201),M201) -> 0 | N199: =IF((N201+R201)>100,N201*100/(N201+R201),N201) -> 97.68063414 | O199: =N199*AVERAGEIF(O205:O216,">0")/100 -> 94.95802315 | P199: =N199*(100-AVERAGEIF(O205:O216,">0"))/100 -> 2.722610993 | Q199: =100-(O199+P199+R199) -> 2.319365858 | R199: =IF((N201+R201)>100,R201*100/(N201+R201),R201) -> 0 | S199: =IF((S201+W201)>100,S201*100/(S201+W201),S201) -> 99.98030536 | T199: =S199*AVERAGEIF(T205:T216,">0")/100 -> 99.12379139 | U199: =S199*(100-AVERAGEIF(T205:T216,">0"))/100 -> 0.8565139742 | V199: =100-(T199+U199+W199) -> 0.0196946397 | W199: =IF((S201+W201)>100,W201*100/(S201+W201),W201) -> 0 | X199: =IF((X201+AB201)>100,X201*100/(X201+AB201),X201) -> 98.68171841 | Y199: =X199*AVERAGEIF(Y205:Y216,">0")/100 -> 98.58986694 | Z199: =X199*(100-AVERAGEIF(Y205:Y216,">0"))/100 -> 0.09185146847 | AA199: =100-(Y199+Z199+AB199) -> 1.318281592 | AB199: =IF((X201+AB201)>100,AB201*100/(X201+AB201),AB201) -> 0
C200: 2020 | D200: =IF((D202+H202)>100,D202*100/(D202+H202),D202) -> 100 | E200: =D200*AVERAGEIF(E205:E216,">0")/100 -> 94.73469602 | F200: =D200*(100-AVERAGEIF(E205:E216,">0"))/100 -> 5.265303977 | G200: =100-(E200+F200+H200) -> 0 | H200: =IF((D202+H202)>100,H202*100/(D202+H202),H202) -> 0 | I200: =IF((I202+M202)>100,I202*100/(I202+M202),I202) -> 100 | J200: =I200*AVERAGEIF(J205:J216,">0")/100 -> 97.04527097 | K200: =I200*(100-AVERAGEIF(J205:J216,">0"))/100 -> 2.954729025 | L200: =100-(J200+K200+M200) -> 0 | M200: =IF((I202+M202)>100,M202*100/(I202+M202),M202) -> 0 | N200: =IF((N202+R202)>100,N202*100/(N202+R202),N202) -> 100 | O200: =N200*AVERAGEIF(O205:O216,">0")/100 -> 97.2127423 | P200: =N200*(100-AVERAGEIF(O205:O216,">0"))/100 -> 2.787257697 | Q200: =100-(O200+P200+R200) -> 0 | R200: =IF((N202+R202)>100,R202*100/(N202+R202),R202) -> 0 | S200: =IF((S202+W202)>100,S202*100/(S202+W202),S202) -> 100 | T200: =S200*AVERAGEIF(T205:T216,">0")/100 -> 99.14331731 | U200: =S200*(100-AVERAGEIF(T205:T216,">0"))/100 -> 0.8566826948 | V200: =100-(T200+U200+W200) -> 0 | W200: =IF((S202+W202)>100,W202*100/(S202+W202),W202) -> 0 | X200: =IF((X202+AB202)>100,X202*100/(X202+AB202),X202) -> 100 | Y200: =X200*AVERAGEIF(Y205:Y216,">0")/100 -> 99.90692149 | Z200: =X200*(100-AVERAGEIF(Y205:Y216,">0"))/100 -> 0.09307850528 | AA200: =100-(Y200+Z200+AB200) -> 0 | AB200: =IF((X202+AB202)>100,AB202*100/(X202+AB202),AB202) -> 0
A201: Regression period: | C201: =MinRegYear(C199,C205:C216) -> 2004 | D201: =IF(MAX(C205:C216)-MIN(C205:C216)<5,AVERAGEIF(C205:C216,">0",D205:D216), IF(FORECAST($C201,D$205:D$216,$C$205:$C$216)<0,0, IF(FORECAST($C201,D$205:D$216,$C$205:$C$216)>100,100, FORECAST($C201,D$205:D$216,$C$205:$C$216)))) -> 94.2004772 | H201: =IF(MAX(C205:C216)-MIN(C205:C216)<5,AVERAGEIF(C205:C216,">0",H205:H216), IF(FORECAST($C201,H$205:H$216,$C$205:$C$216)<0,0, IF(FORECAST($C201,H$205:H$216,$C$205:$C$216)>100,100, FORECAST($C201,H$205:H$216,$C$205:$C$216)))) -> 0.2230090477 | I201: =IF(MAX(C205:C216)-MIN(C205:C216)<5,AVERAGEIF(C205:C216,">0",I205:I216), IF(FORECAST($C201,I$205:I$216,$C$205:$C$216)<0,0, IF(FORECAST($C201,I$205:I$216,$C$205:$C$216)>100,100, FORECAST($C201,I$205:I$216,$C$205:$C$216)))) -> 96.21329168 | M201: =IF(MAX(C205:C216)-MIN(C205:C216)<5,AVERAGEIF(C205:C216,">0",M205:M216), IF(FORECAST($C201,M$205:M$216,$C$205:$C$216)<0,0, IF(FORECAST($C201,M$205:M$216,$C$205:$C$216)>100,100, FORECAST($C201,M$205:M$216,$C$205:$C$216)))) -> 0 | N201: =IF(MAX(C205:C216)-MIN(C205:C216)<5,AVERAGEIF(C205:C216,">0",N205:N216), IF(FORECAST($C201,N$205:N$216,$C$205:$C$216)<0,0, IF(FORECAST($C201,N$205:N$216,$C$205:$C$216)>100,100, FORECAST($C201,N$205:N$216,$C$205:$C$216)))) -> 97.68063414 | R201: =IF(MAX(C205:C216)-MIN(C205:C216)<5,AVERAGEIF(C205:C216,">0",R205:R216), IF(FORECAST($C201,R$205:R$216,$C$205:$C$216)<0,0, IF(FORECAST($C201,R$205:R$216,$C$205:$C$216)>100,100, FORECAST($C201,R$205:R$216,$C$205:$C$216)))) -> 0 | S201: =IF(MAX(C205:C216)-MIN(C205:C216)<5,AVERAGEIF(C205:C216,">0",S205:S216), IF(FORECAST($C201,S$205:S$216,$C$205:$C$216)<0,0, IF(FORECAST($C201,S$205:S$216,$C$205:$C$216)>100,100, FORECAST($C201,S$205:S$216,$C$205:$C$216)))) -> 99.98030536 | W201: =IF(MAX(C205:C216)-MIN(C205:C216)<5,AVERAGEIF(C205:C216,">0",W205:W216), IF(FORECAST($C201,W$205:W$216,$C$205:$C$216)<0,0, IF(FORECAST($C201,W$205:W$216,$C$205:$C$216)>100,100, FORECAST($C201,W$205:W$216,$C$205:$C$216)))) -> 0 | X201: =IF(MAX(C205:C216)-MIN(C205:C216)<5,AVERAGEIF(C205:C216,">0",X205:X216), IF(FORECAST($C201,X$205:X$216,$C$205:$C$216)<0,0, IF(FORECAST($C201,X$205:X$216,$C$205:$C$216)>100,100, FORECAST($C201,X$205:X$216,$C$205:$C$216)))) -> 98.68171841 | AB201: =IF(MAX(C205:C216)-MIN(C205:C216)<5,AVERAGEIF(C205:C216,">0",AB205:AB216), IF(FORECAST($C201,AB$205:AB$216,$C$205:$C$216)<0,0, IF(FORECAST($C201,AB$205:AB$216,$C$205:$C$216)>100,100, FORECAST($C201,AB$205:AB$216,$C$205:$C$216)))) -> 0
C202: =MaxRegYear(C200,C205:C216) -> 2020 | D202: =IF(MAX(C205:C216)-MIN(C205:C216)<5,AVERAGEIF(C205:C216,">0",D205:D216), IF(FORECAST($C202,D$205:D$216,$C$205:$C$216)<0,0, IF(FORECAST($C202,D$205:D$216,$C$205:$C$216)>100,100, FORECAST($C202,D$205:D$216,$C$205:$C$216)))) -> 100 | H202: =IF(MAX(C205:C216)-MIN(C205:C216)<5,AVERAGEIF(C205:C216,">0",H205:H216), IF(FORECAST($C202,H$205:H$216,$C$205:$C$216)<0,0, IF(FORECAST($C202,H$205:H$216,$C$205:$C$216)>100,100, FORECAST($C202,H$205:H$216,$C$205:$C$216)))) -> 0 | I202: =IF(MAX(C205:C216)-MIN(C205:C216)<5,AVERAGEIF(C205:C216,">0",I205:I216), IF(FORECAST($C202,I$205:I$216,$C$205:$C$216)<0,0, IF(FORECAST($C202,I$205:I$216,$C$205:$C$216)>100,100, FORECAST($C202,I$205:I$216,$C$205:$C$216)))) -> 100 | M202: =IF(MAX(C205:C216)-MIN(C205:C216)<5,AVERAGEIF(C205:C216,">0",M205:M216), IF(FORECAST($C202,M$205:M$216,$C$205:$C$216)<0,0, IF(FORECAST($C202,M$205:M$216,$C$205:$C$216)>100,100, FORECAST($C202,M$205:M$216,$C$205:$C$216)))) -> 0 | N202: =IF(MAX(C205:C216)-MIN(C205:C216)<5,AVERAGEIF(C205:C216,">0",N205:N216), IF(FORECAST($C202,N$205:N$216,$C$205:$C$216)<0,0, IF(FORECAST($C202,N$205:N$216,$C$205:$C$216)>100,100, FORECAST($C202,N$205:N$216,$C$205:$C$216)))) -> 100 | R202: =IF(MAX(C205:C216)-MIN(C205:C216)<5,AVERAGEIF(C205:C216,">0",R205:R216), IF(FORECAST($C202,R$205:R$216,$C$205:$C$216)<0,0, IF(FORECAST($C202,R$205:R$216,$C$205:$C$216)>100,100, FORECAST($C202,R$205:R$216,$C$205:$C$216)))) -> 0 | S202: =IF(MAX(C205:C216)-MIN(C205:C216)<5,AVERAGEIF(C205:C216,">0",S205:S216), IF(FORECAST($C202,S$205:S$216,$C$205:$C$216)<0,0, IF(FORECAST($C202,S$205:S$216,$C$205:$C$216)>100,100, FORECAST($C202,S$205:S$216,$C$205:$C$216)))) -> 100 | W202: =IF(MAX(C205:C216)-MIN(C205:C216)<5,AVERAGEIF(C205:C216,">0",W205:W216), IF(FORECAST($C202,W$205:W$216,$C$205:$C$216)<0,0, IF(FORECAST($C202,W$205:W$216,$C$205:$C$216)>100,100, FORECAST($C202,W$205:W$216,$C$205:$C$216)))) -> 0 | X202: =IF(MAX(C205:C216)-MIN(C205:C216)<5,AVERAGEIF(C205:C216,">0",X205:X216), IF(FORECAST($C202,X$205:X$216,$C$205:$C$216)<0,0, IF(FORECAST($C202,X$205:X$216,$C$205:$C$216)>100,100, FORECAST($C202,X$205:X$216,$C$205:$C$216)))) -> 100 | AB202: =IF(MAX(C205:C216)-MIN(C205:C216)<5,AVERAGEIF(C205:C216,">0",AB205:AB216), IF(FORECAST($C202,AB$205:AB$216,$C$205:$C$216)<0,0, IF(FORECAST($C202,AB$205:AB$216,$C$205:$C$216)>100,100, FORECAST($C202,AB$205:AB$216,$C$205:$C$216)))) -> 0
B204: Survey | C204: Year | D204: Improved | E204: Not shared | H204: Open defecation | I204: Improved | J204: Not shared | M204: Open defecation | N204: Improved | O204: Not shared | R204: Open defecation | S204: Improved | T204: Not shared | W204: Open defecation | X204: Improved | Y204: Not shared | AB204: Open defecation
B205: MICS06 | C205: 2006 | D205: =IF(ISERROR(INDIRECT(CONCATENATE($B205,"!H122"))),"",INDIRECT(CONCATENATE($B205,"!H122"))) -> 93.89834602 | E205: =IF(ISERROR(INDIRECT(CONCATENATE($B205,"!H129"))),"",INDIRECT(CONCATENATE($B205,"!H129"))) -> 93.61442631 | H205: =IF(ISERROR(INDIRECT(CONCATENATE($B205,"!H127"))),"",INDIRECT(CONCATENATE($B205,"!H127"))) -> 0.2229147759 | I205: =IF(ISERROR(INDIRECT(CONCATENATE($B205,"!I122"))),"",INDIRECT(CONCATENATE($B205,"!I122"))) -> 95.45787229 | J205: =IF(ISERROR(INDIRECT(CONCATENATE($B205,"!I129"))),"",INDIRECT(CONCATENATE($B205,"!I129"))) -> 92.76939141 | M205: =IF(ISERROR(INDIRECT(CONCATENATE($B205,"!I127"))),"",INDIRECT(CONCATENATE($B205,"!I127"))) -> 0 | N205: =IF(ISERROR(INDIRECT(CONCATENATE($B205,"!J122"))),"",INDIRECT(CONCATENATE($B205,"!J122"))) -> 97.39827656 | O205: =IF(ISERROR(INDIRECT(CONCATENATE($B205,"!J129"))),"",INDIRECT(CONCATENATE($B205,"!J129"))) -> 92.60404445 | R205: =IF(ISERROR(INDIRECT(CONCATENATE($B205,"!J127"))),"",INDIRECT(CONCATENATE($B205,"!J127"))) -> 0 | S205: =IF(ISERROR(INDIRECT(CONCATENATE($B205,"!K122"))),"",INDIRECT(CONCATENATE($B205,"!K122"))) -> 99.97790775 | T205: =IF(ISERROR(INDIRECT(CONCATENATE($B205,"!K129"))),"",INDIRECT(CONCATENATE($B205,"!K129"))) -> 97.42995192 | W205: =IF(ISERROR(INDIRECT(CONCATENATE($B205,"!K127"))),"",INDIRECT(CONCATENATE($B205,"!K127"))) -> 0 | X205: =IF(ISERROR(INDIRECT(CONCATENATE($B205,"!L122"))),"",INDIRECT(CONCATENATE($B205,"!L122"))) -> 98.52123195 | Y205: =IF(ISERROR(INDIRECT(CONCATENATE($B205,"!L129"))),"",INDIRECT(CONCATENATE($B205,"!L129"))) -> 99.86352221 | AB205: =IF(ISERROR(INDIRECT(CONCATENATE($B205,"!L2127"))),"",INDIRECT(CONCATENATE($B205,"!L127"))) -> 0
B206: MICS11 | C206: 2011 | D206: 99.15548665 | E206: 96.42210096 | H206: 0.0569630531 | I206: 100 | J206: 99.42433084 | M206: 0 | N206: 100 | O206: 99.29336712 | R206: 0 | S206: 100 | T206: 100 | W206: 0 | X206: 100 | Y206: 99.85724227 | AB206: 0
B207: MICS19 | C207: 2019 | D207: 100 | E207: 94.16756081 | H207: 0 | I207: 99.1741631 | J207: 98.94209067 | M207: 0 | N207: 100 | O207: 99.74081534 | R207: 0 | S207: 100 | T207: 100 | W207: 0 | X207: 100 | Y207: 100 | AB207: 0
B218: =CONCATENATE("Urban use of sanitation facilities, ",C199,"–",C200) -> Urban use of sanitation facilities, 2000–2020 | S218: Data points used for regression
A297: RURAL | D297: Poorest | I297: Poor | N297: Middle | S297: Rich | X297: Richest
D298: Improved | E298: Basic | F298: Limited | G298: Unimproved | H298: Open defecation | I298: Improved | J298: Basic | K298: Limited | L298: Unimproved | M298: Open defecation | N298: Improved | O298: Basic | P298: Limited | Q298: Unimproved | R298: Open defecation | S298: Improved | T298: Basic | U298: Limited | V298: Unimproved | W298: Open defecation | X298: Improved | Y298: Basic | Z298: Limited | AA298: Unimproved | AB298: Open defecation
A299: Forecast period: | C299: 2000 | D299: =IF((D301+H301)>100,D301*100/(D301+H301),D301) -> 69.74626812 | E299: =D299*AVERAGEIF(E305:E316,">0")/100 -> 62.82949535 | F299: =D299*(100-AVERAGEIF(E305:E316,">0"))/100 -> 6.916772771 | G299: =100-(E299+F299+H299) -> 26.27817742 | H299: =IF((D301+H301)>100,H301*100/(D301+H301),H301) -> 3.975554459 | I299: =IF((I301+M301)>100,I301*100/(I301+M301),I301) -> 82.14656154 | J299: =I299*AVERAGEIF(J305:J316,">0")/100 -> 78.96520624 | K299: =I299*(100-AVERAGEIF(J305:J316,">0"))/100 -> 3.181355302 | L299: =100-(J299+K299+M299) -> 17.15883453 | M299: =IF((I301+M301)>100,M301*100/(I301+M301),M301) -> 0.6946039295 | N299: =IF((N301+R301)>100,N301*100/(N301+R301),N301) -> 90.97566304 | O299: =N299*AVERAGEIF(O305:O316,">0")/100 -> 87.42600712 | P299: =N299*(100-AVERAGEIF(O305:O316,">0"))/100 -> 3.549655927 | Q299: =100-(O299+P299+R299) -> 8.94543427 | R299: =IF((N301+R301)>100,R301*100/(N301+R301),R301) -> 0.0789026861 | S299: =IF((S301+W301)>100,S301*100/(S301+W301),S301) -> 95.89614592 | T299: =S299*AVERAGEIF(T305:T316,">0")/100 -> 92.71105145 | U299: =S299*(100-AVERAGEIF(T305:T316,">0"))/100 -> 3.185094472 | V299: =100-(T299+U299+W299) -> 4.10385408 | W299: =IF((S301+W301)>100,W301*100/(S301+W301),W301) -> 0 | X299: =IF((X301+AB301)>100,X301*100/(X301+AB301),X301) -> 97.35805829 | Y299: =X299*AVERAGEIF(Y305:Y316,">0")/100 -> 96.13819795 | Z299: =X299*(100-AVERAGEIF(Y305:Y316,">0"))/100 -> 1.219860343 | AA299: =100-(Y299+Z299+AB299) -> 2.641941709 | AB299: =IF((X301+AB301)>100,AB301*100/(X301+AB301),AB301) -> 0
C300: 2020 | D300: =IF((D302+H302)>100,D302*100/(D302+H302),D302) -> 82.33949209 | E300: =D300*AVERAGEIF(E305:E316,">0")/100 -> 74.17384291 | F300: =D300*(100-AVERAGEIF(E305:E316,">0"))/100 -> 8.165649177 | G300: =100-(E300+F300+H300) -> 16.56945726 | H300: =IF((D302+H302)>100,H302*100/(D302+H302),H302) -> 1.091050657 | I300: =IF((I302+M302)>100,I302*100/(I302+M302),I302) -> 90.75042328 | J300: =I300*AVERAGEIF(J305:J316,">0")/100 -> 87.23585937 | K300: =I300*(100-AVERAGEIF(J305:J316,">0"))/100 -> 3.514563907 | L300: =100-(J300+K300+M300) -> 8.858072685 | M300: =IF((I302+M302)>100,M302*100/(I302+M302),M302) -> 0.391504033 | N300: =IF((N302+R302)>100,N302*100/(N302+R302),N302) -> 94.22421893 | O300: =N300*AVERAGEIF(O305:O316,">0")/100 -> 90.54781201 | P300: =N300*(100-AVERAGEIF(O305:O316,">0"))/100 -> 3.676406921 | Q300: =100-(O300+P300+R300) -> 5.731308647 | R300: =IF((N302+R302)>100,R302*100/(N302+R302),R302) -> 0.04447242307 | S300: =IF((S302+W302)>100,S302*100/(S302+W302),S302) -> 95.97699394 | T300: =S300*AVERAGEIF(T305:T316,">0")/100 -> 92.78921418 | U300: =S300*(100-AVERAGEIF(T305:T316,">0"))/100 -> 3.187779758 | V300: =100-(T300+U300+W300) -> 4.023006059 | W300: =IF((S302+W302)>100,W302*100/(S302+W302),W302) -> 0 | X300: =IF((X302+AB302)>100,X302*100/(X302+AB302),X302) -> 96.89575116 | Y300: =X300*AVERAGEIF(Y305:Y316,">0")/100 -> 95.68168335 | Z300: =X300*(100-AVERAGEIF(Y305:Y316,">0"))/100 -> 1.214067806 | AA300: =100-(Y300+Z300+AB300) -> 3.10424884 | AB300: =IF((X302+AB302)>100,AB302*100/(X302+AB302),AB302) -> 0
A301: Regression period: | C301: =MinRegYear(C299,C305:C316) -> 2004 | D301: =IF(MAX(C305:C316)-MIN(C305:C316)<5,AVERAGEIF(C305:C316,">0",D305:D316), IF(FORECAST($C301,D$305:D$316,$C$305:$C$316)<0,0, IF(FORECAST($C301,D$305:D$316,$C$305:$C$316)>100,100, FORECAST($C301,D$305:D$316,$C$305:$C$316)))) -> 69.74626812 | H301: =IF(MAX(C305:C316)-MIN(C305:C316)<5,AVERAGEIF(C305:C316,">0",H305:H316), IF(FORECAST($C301,H$305:H$316,$C$305:$C$316)<0,0, IF(FORECAST($C301,H$305:H$316,$C$305:$C$316)>100,100, FORECAST($C301,H$305:H$316,$C$305:$C$316)))) -> 3.975554459 | I301: =IF(MAX(C305:C316)-MIN(C305:C316)<5,AVERAGEIF(C305:C316,">0",I305:I316), IF(FORECAST($C301,I$305:I$316,$C$305:$C$316)<0,0, IF(FORECAST($C301,I$305:I$316,$C$305:$C$316)>100,100, FORECAST($C301,I$305:I$316,$C$305:$C$316)))) -> 82.14656154 | M301: =IF(MAX(C305:C316)-MIN(C305:C316)<5,AVERAGEIF(C305:C316,">0",M305:M316), IF(FORECAST($C301,M$305:M$316,$C$305:$C$316)<0,0, IF(FORECAST($C301,M$305:M$316,$C$305:$C$316)>100,100, FORECAST($C301,M$305:M$316,$C$305:$C$316)))) -> 0.6946039295 | N301: =IF(MAX(C305:C316)-MIN(C305:C316)<5,AVERAGEIF(C305:C316,">0",N305:N316), IF(FORECAST($C301,N$305:N$316,$C$305:$C$316)<0,0, IF(FORECAST($C301,N$305:N$316,$C$305:$C$316)>100,100, FORECAST($C301,N$305:N$316,$C$305:$C$316)))) -> 90.97566304 | R301: =IF(MAX(C305:C316)-MIN(C305:C316)<5,AVERAGEIF(C305:C316,">0",R305:R316), IF(FORECAST($C301,R$305:R$316,$C$305:$C$316)<0,0, IF(FORECAST($C301,R$305:R$316,$C$305:$C$316)>100,100, FORECAST($C301,R$305:R$316,$C$305:$C$316)))) -> 0.0789026861 | S301: =IF(MAX(C305:C316)-MIN(C305:C316)<5,AVERAGEIF(C305:C316,">0",S305:S316), IF(FORECAST($C301,S$305:S$316,$C$305:$C$316)<0,0, IF(FORECAST($C301,S$305:S$316,$C$305:$C$316)>100,100, FORECAST($C301,S$305:S$316,$C$305:$C$316)))) -> 95.89614592 | W301: =IF(MAX(C305:C316)-MIN(C305:C316)<5,AVERAGEIF(C305:C316,">0",W305:W316), IF(FORECAST($C301,W$305:W$316,$C$305:$C$316)<0,0, IF(FORECAST($C301,W$305:W$316,$C$305:$C$316)>100,100, FORECAST($C301,W$305:W$316,$C$305:$C$316)))) -> 0 | X301: =IF(MAX(C305:C316)-MIN(C305:C316)<5,AVERAGEIF(C305:C316,">0",X305:X316), IF(FORECAST($C301,X$305:X$316,$C$305:$C$316)<0,0, IF(FORECAST($C301,X$305:X$316,$C$305:$C$316)>100,100, FORECAST($C301,X$305:X$316,$C$305:$C$316)))) -> 97.35805829 | AB301: =IF(MAX(C305:C316)-MIN(C305:C316)<5,AVERAGEIF(C305:C316,">0",AB305:AB316), IF(FORECAST($C301,AB$305:AB$316,$C$305:$C$316)<0,0, IF(FORECAST($C301,AB$305:AB$316,$C$305:$C$316)>100,100, FORECAST($C301,AB$305:AB$316,$C$305:$C$316)))) -> 0
C302: =MaxRegYear(C300,C305:C316) -> 2020 | D302: =IF(MAX(C305:C316)-MIN(C305:C316)<5,AVERAGEIF(C305:C316,">0",D305:D316), IF(FORECAST($C302,D$305:D$316,$C$305:$C$316)<0,0, IF(FORECAST($C302,D$305:D$316,$C$305:$C$316)>100,100, FORECAST($C302,D$305:D$316,$C$305:$C$316)))) -> 82.33949209 | H302: =IF(MAX(C305:C316)-MIN(C305:C316)<5,AVERAGEIF(C305:C316,">0",H305:H316), IF(FORECAST($C302,H$305:H$316,$C$305:$C$316)<0,0, IF(FORECAST($C302,H$305:H$316,$C$305:$C$316)>100,100, FORECAST($C302,H$305:H$316,$C$305:$C$316)))) -> 1.091050657 | I302: =IF(MAX(C305:C316)-MIN(C305:C316)<5,AVERAGEIF(C305:C316,">0",I305:I316), IF(FORECAST($C302,I$305:I$316,$C$305:$C$316)<0,0, IF(FORECAST($C302,I$305:I$316,$C$305:$C$316)>100,100, FORECAST($C302,I$305:I$316,$C$305:$C$316)))) -> 90.75042328 | M302: =IF(MAX(C305:C316)-MIN(C305:C316)<5,AVERAGEIF(C305:C316,">0",M305:M316), IF(FORECAST($C302,M$305:M$316,$C$305:$C$316)<0,0, IF(FORECAST($C302,M$305:M$316,$C$305:$C$316)>100,100, FORECAST($C302,M$305:M$316,$C$305:$C$316)))) -> 0.391504033 | N302: =IF(MAX(C305:C316)-MIN(C305:C316)<5,AVERAGEIF(C305:C316,">0",N305:N316), IF(FORECAST($C302,N$305:N$316,$C$305:$C$316)<0,0, IF(FORECAST($C302,N$305:N$316,$C$305:$C$316)>100,100, FORECAST($C302,N$305:N$316,$C$305:$C$316)))) -> 94.22421893 | R302: =IF(MAX(C305:C316)-MIN(C305:C316)<5,AVERAGEIF(C305:C316,">0",R305:R316), IF(FORECAST($C302,R$305:R$316,$C$305:$C$316)<0,0, IF(FORECAST($C302,R$305:R$316,$C$305:$C$316)>100,100, FORECAST($C302,R$305:R$316,$C$305:$C$316)))) -> 0.04447242307 | S302: =IF(MAX(C305:C316)-MIN(C305:C316)<5,AVERAGEIF(C305:C316,">0",S305:S316), IF(FORECAST($C302,S$305:S$316,$C$305:$C$316)<0,0, IF(FORECAST($C302,S$305:S$316,$C$305:$C$316)>100,100, FORECAST($C302,S$305:S$316,$C$305:$C$316)))) -> 95.97699394 | W302: =IF(MAX(C305:C316)-MIN(C305:C316)<5,AVERAGEIF(C305:C316,">0",W305:W316), IF(FORECAST($C302,W$305:W$316,$C$305:$C$316)<0,0, IF(FORECAST($C302,W$305:W$316,$C$305:$C$316)>100,100, FORECAST($C302,W$305:W$316,$C$305:$C$316)))) -> 0 | X302: =IF(MAX(C305:C316)-MIN(C305:C316)<5,AVERAGEIF(C305:C316,">0",X305:X316), IF(FORECAST($C302,X$305:X$316,$C$305:$C$316)<0,0, IF(FORECAST($C302,X$305:X$316,$C$305:$C$316)>100,100, FORECAST($C302,X$305:X$316,$C$305:$C$316)))) -> 96.89575116 | AB302: =IF(MAX(C305:C316)-MIN(C305:C316)<5,AVERAGEIF(C305:C316,">0",AB305:AB316), IF(FORECAST($C302,AB$305:AB$316,$C$305:$C$316)<0,0, IF(FORECAST($C302,AB$305:AB$316,$C$305:$C$316)>100,100, FORECAST($C302,AB$305:AB$316,$C$305:$C$316)))) -> 0
B304: Survey | C304: Year | D304: Improved | E304: Not shared | H304: Open defecation | I304: Improved | J304: Not shared | M304: Open defecation | N304: Improved | O304: Not shared | R304: Open defecation | S304: Improved | T304: Not shared | W304: Open defecation | X304: Improved | Y304: Not shared | AB304: Open defecation
B305: MICS06 | C305: 2006 | D305: =IF(ISERROR(INDIRECT(CONCATENATE($B305,"!M122"))),"",INDIRECT(CONCATENATE($B305,"!M122"))) -> 74.12160438 | E305: =IF(ISERROR(INDIRECT(CONCATENATE($B305,"!M129"))),"",INDIRECT(CONCATENATE($B305,"!M129"))) -> 84.54454713 | H305: =IF(ISERROR(INDIRECT(CONCATENATE($B305,"!M127"))),"",INDIRECT(CONCATENATE($B305,"!M127"))) -> 2.463511334 | I305: =IF(ISERROR(INDIRECT(CONCATENATE($B305,"!N122"))),"",INDIRECT(CONCATENATE($B305,"!N122"))) -> 84.4456585 | J305: =IF(ISERROR(INDIRECT(CONCATENATE($B305,"!N129"))),"",INDIRECT(CONCATENATE($B305,"!N129"))) -> 92.98523285 | M305: =IF(ISERROR(INDIRECT(CONCATENATE($B305,"!N127"))),"",INDIRECT(CONCATENATE($B305,"!N127"))) -> 0 | N305: =IF(ISERROR(INDIRECT(CONCATENATE($B305,"!O122"))),"",INDIRECT(CONCATENATE($B305,"!O122"))) -> 92.6822075 | O305: =IF(ISERROR(INDIRECT(CONCATENATE($B305,"!O129"))),"",INDIRECT(CONCATENATE($B305,"!O129"))) -> 92.21495122 | R305: =IF(ISERROR(INDIRECT(CONCATENATE($B305,"!O127"))),"",INDIRECT(CONCATENATE($B305,"!O127"))) -> 0 | S305: =IF(ISERROR(INDIRECT(CONCATENATE($B305,"!P122"))),"",INDIRECT(CONCATENATE($B305,"!P122"))) -> 96.33766901 | T305: =IF(ISERROR(INDIRECT(CONCATENATE($B305,"!P129"))),"",INDIRECT(CONCATENATE($B305,"!P129"))) -> 91.87739251 | W305: =IF(ISERROR(INDIRECT(CONCATENATE($B305,"!P127"))),"",INDIRECT(CONCATENATE($B305,"!P127"))) -> 0 | X305: =IF(ISERROR(INDIRECT(CONCATENATE($B305,"!Q122"))),"",INDIRECT(CONCATENATE($B305,"!Q122"))) -> 96.95756696 | Y305: =IF(ISERROR(INDIRECT(CONCATENATE($B305,"!Q129"))),"",INDIRECT(CONCATENATE($B305,"!Q129"))) -> 98.37316917 | AB305: =IF(ISERROR(INDIRECT(CONCATENATE($B305,"!Q2127"))),"",INDIRECT(CONCATENATE($B305,"!Q127"))) -> 0
B306: MICS11 | C306: 2011 | D306: 70.7038808 | E306: 93.09122715 | H306: 4.584739289 | I306: 83.92237792 | J306: 96.54820712 | M306: 1.629161944 | N306: 90.28363441 | O306: 97.81291999 | R306: 0.1850626638 | S306: 95.23046416 | T306: 98.99041975 | W306: 0 | X306: 97.71269119 | Y306: 99.70469673 | AB306: 0
B307: MICS19 | C307: 2019 | D307: 83.30315513 | E307: 92.61307362 | H307: 0.5516570509 | I307: 90.97744082 | J307: 98.84822113 | M307: 0 | N307: 94.83398105 | O307: 98.26683594 | R307: 0 | S307: 96.24157662 | T307: 99.1679881 | W307: 0 | X307: 96.71045602 | Y307: 98.16324542 | AB307: 0
B318: =CONCATENATE("Rural use of sanitation facilities, ",C299,"–",C300) -> Rural use of sanitation facilities, 2000–2020 | S318: Data points used for regression

Sheet Hygiene
B4: Access to hygiene facilities by wealth quintile (%)
B5: =IF(ISERROR(INDIRECT(CONCATENATE($E$32,"!A2"))),"",INDIRECT(CONCATENATE($E$32,"!A2"))) -> Macedonia
B7: =CONCATENATE("National ",IF(ISERROR(INDIRECT(CONCATENATE($E$32,"!A2"))),"",INDIRECT(CONCATENATE($E$32,"!A210")))) -> National Access to hygiene facilities | K7: =CONCATENATE("Urban ",IF(ISERROR(INDIRECT(CONCATENATE($E$32,"!A2"))),"",INDIRECT(CONCATENATE($E$32,"!A210")))) -> Urban Access to hygiene facilities | S7: =CONCATENATE("Rural ",IF(ISERROR(INDIRECT(CONCATENATE($E$32,"!A2"))),"",INDIRECT(CONCATENATE($E$32,"!A210")))) -> Rural Access to hygiene facilities
E32: =INDEX(B88:B100,A88) -> MICS19 | G32: =IF(ISERROR(INDIRECT(CONCATENATE($E$32,"!A2"))),"",INDIRECT(CONCATENATE($E$32,"!A2"))) -> Macedonia | K32: Poorest | N32: Poor | Q32: Middle | T32: Rich | W32: Richest
K33: Basic | L33: Limited | M33: No facility | N33: Basic | O33: Limited | P33: No facility | Q33: Basic | R33: Limited | S33: No facility | T33: Basic | U33: Limited | V33: No facility | W33: Basic | X33: Limited | Y33: No facility
B34: >>> Select Survey : | G34: NATIONAL | J34: =IF(ISERROR(INDIRECT(CONCATENATE(#REF!,"!A2"))),"",INDIRECT(CONCATENATE(#REF!,"!A210"))) ->  | K34: =IF(ISERROR(INDIRECT(CONCATENATE($E$32,"!C222"))),"",INDIRECT(CONCATENATE($E$32,"!C222"))) -> 98.86098137 | L34: =IF(ISERROR(INDIRECT(CONCATENATE($E$32,"!C223"))),"",INDIRECT(CONCATENATE($E$32,"!C223"))) -> 1.13901863 | M34: =IF(ISERROR(INDIRECT(CONCATENATE($E$32,"!C224"))),"",INDIRECT(CONCATENATE($E$32,"!C224"))) -> N/A | N34: =IF(ISERROR(INDIRECT(CONCATENATE($E$32,"!D222"))),"",INDIRECT(CONCATENATE($E$32,"!D222"))) -> 100 | O34: =IF(ISERROR(INDIRECT(CONCATENATE($E$32,"!D223"))),"",INDIRECT(CONCATENATE($E$32,"!D223"))) -> 0 | P34: =IF(ISERROR(INDIRECT(CONCATENATE($E$32,"!D224"))),"",INDIRECT(CONCATENATE($E$32,"!D224"))) -> N/A | Q34: =IF(ISERROR(INDIRECT(CONCATENATE($E$32,"!E222"))),"",INDIRECT(CONCATENATE($E$32,"!E222"))) -> 99.92369042 | R34: =IF(ISERROR(INDIRECT(CONCATENATE($E$32,"!E223"))),"",INDIRECT(CONCATENATE($E$32,"!E223"))) -> 0.07630957824 | S34: =IF(ISERROR(INDIRECT(CONCATENATE($E$32,"!E224"))),"",INDIRECT(CONCATENATE($E$32,"!E224"))) -> N/A | T34: =IF(ISERROR(INDIRECT(CONCATENATE($E$32,"!F222"))),"",INDIRECT(CONCATENATE($E$32,"!F222"))) -> 100 | U34: =IF(ISERROR(INDIRECT(CONCATENATE($E$32,"!F223"))),"",INDIRECT(CONCATENATE($E$32,"!F223"))) -> 0 | V34: =IF(ISERROR(INDIRECT(CONCATENATE($E$32,"!F224"))),"",INDIRECT(CONCATENATE($E$32,"!F224"))) -> N/A | W34: =IF(ISERROR(INDIRECT(CONCATENATE($E$32,"!G222"))),"",INDIRECT(CONCATENATE($E$32,"!G222"))) -> 100 | X34: =IF(ISERROR(INDIRECT(CONCATENATE($E$32,"!G223"))),"",INDIRECT(CONCATENATE($E$32,"!G223"))) -> 0 | Y34: =IF(ISERROR(INDIRECT(CONCATENATE($E$32,"!G224"))),"",INDIRECT(CONCATENATE($E$32,"!G224"))) -> N/A
G37: URBAN | J37: =IF(ISERROR(INDIRECT(CONCATENATE(#REF!,"!A2"))),"",INDIRECT(CONCATENATE(#REF!,"!A210"))) ->  | K37: =IF(ISERROR(INDIRECT(CONCATENATE($E$32,"!H222"))),"",INDIRECT(CONCATENATE($E$32,"!H222"))) -> 99.70753216 | L37: =IF(ISERROR(INDIRECT(CONCATENATE($E$32,"!H223"))),"",INDIRECT(CONCATENATE($E$32,"!H223"))) -> 0.2924678406 | M37: =IF(ISERROR(INDIRECT(CONCATENATE($E$32,"!H224"))),"",INDIRECT(CONCATENATE($E$32,"!H224"))) -> N/A | N37: =IF(ISERROR(INDIRECT(CONCATENATE($E$32,"!I222"))),"",INDIRECT(CONCATENATE($E$32,"!I222"))) -> 99.87915548 | O37: =IF(ISERROR(INDIRECT(CONCATENATE($E$32,"!I223"))),"",INDIRECT(CONCATENATE($E$32,"!I223"))) -> 0.120844517 | P37: =IF(ISERROR(INDIRECT(CONCATENATE($E$32,"!I224"))),"",INDIRECT(CONCATENATE($E$32,"!I224"))) -> N/A | Q37: =IF(ISERROR(INDIRECT(CONCATENATE($E$32,"!J222"))),"",INDIRECT(CONCATENATE($E$32,"!J222"))) -> 100 | R37: =IF(ISERROR(INDIRECT(CONCATENATE($E$32,"!J223"))),"",INDIRECT(CONCATENATE($E$32,"!J223"))) -> 0 | S37: =IF(ISERROR(INDIRECT(CONCATENATE($E$32,"!J224"))),"",INDIRECT(CONCATENATE($E$32,"!J224"))) -> N/A | T37: =IF(ISERROR(INDIRECT(CONCATENATE($E$32,"!K222"))),"",INDIRECT(CONCATENATE($E$32,"!K222"))) -> 100 | U37: =IF(ISERROR(INDIRECT(CONCATENATE($E$32,"!K223"))),"",INDIRECT(CONCATENATE($E$32,"!K223"))) -> 0 | V37: =IF(ISERROR(INDIRECT(CONCATENATE($E$32,"!K224"))),"",INDIRECT(CONCATENATE($E$32,"!K224"))) -> N/A | W37: =IF(ISERROR(INDIRECT(CONCATENATE($E$32,"!L222"))),"",INDIRECT(CONCATENATE($E$32,"!L222"))) -> 100 | X37: =IF(ISERROR(INDIRECT(CONCATENATE($E$32,"!L223"))),"",INDIRECT(CONCATENATE($E$32,"!L223"))) -> 0 | Y37: =IF(ISERROR(INDIRECT(CONCATENATE($E$32,"!L224"))),"",INDIRECT(CONCATENATE($E$32,"!L224"))) -> N/A
G40: RURAL | J40: =IF(ISERROR(INDIRECT(CONCATENATE(#REF!,"!A2"))),"",INDIRECT(CONCATENATE(#REF!,"!A210"))) ->  | K40: =IF(ISERROR(INDIRECT(CONCATENATE($E$32,"!M222"))),"",INDIRECT(CONCATENATE($E$32,"!M222"))) -> 97.80357108 | L40: =IF(ISERROR(INDIRECT(CONCATENATE($E$32,"!M223"))),"",INDIRECT(CONCATENATE($E$32,"!M223"))) -> 2.196428923 | M40: =IF(ISERROR(INDIRECT(CONCATENATE($E$32,"!M224"))),"",INDIRECT(CONCATENATE($E$32,"!M224"))) -> N/A | N40: =IF(ISERROR(INDIRECT(CONCATENATE($E$32,"!N222"))),"",INDIRECT(CONCATENATE($E$32,"!N222"))) -> 99.58394744 | O40: =IF(ISERROR(INDIRECT(CONCATENATE($E$32,"!N223"))),"",INDIRECT(CONCATENATE($E$32,"!N223"))) -> 0.4160525619 | P40: =IF(ISERROR(INDIRECT(CONCATENATE($E$32,"!N224"))),"",INDIRECT(CONCATENATE($E$32,"!N224"))) -> N/A | Q40: =IF(ISERROR(INDIRECT(CONCATENATE($E$32,"!O222"))),"",INDIRECT(CONCATENATE($E$32,"!O222"))) -> 100 | R40: =IF(ISERROR(INDIRECT(CONCATENATE($E$32,"!O223"))),"",INDIRECT(CONCATENATE($E$32,"!O223"))) -> 0 | S40: =IF(ISERROR(INDIRECT(CONCATENATE($E$32,"!O224"))),"",INDIRECT(CONCATENATE($E$32,"!O224"))) -> N/A | T40: =IF(ISERROR(INDIRECT(CONCATENATE($E$32,"!P222"))),"",INDIRECT(CONCATENATE($E$32,"!P222"))) -> 100 | U40: =IF(ISERROR(INDIRECT(CONCATENATE($E$32,"!P223"))),"",INDIRECT(CONCATENATE($E$32,"!P223"))) -> 0 | V40: =IF(ISERROR(INDIRECT(CONCATENATE($E$32,"!P224"))),"",INDIRECT(CONCATENATE($E$32,"!P224"))) -> N/A | W40: =IF(ISERROR(INDIRECT(CONCATENATE($E$32,"!Q222"))),"",INDIRECT(CONCATENATE($E$32,"!Q222"))) -> 100 | X40: =IF(ISERROR(INDIRECT(CONCATENATE($E$32,"!Q223"))),"",INDIRECT(CONCATENATE($E$32,"!Q223"))) -> 0 | Y40: =IF(ISERROR(INDIRECT(CONCATENATE($E$32,"!Q224"))),"",INDIRECT(CONCATENATE($E$32,"!Q224"))) -> N/A
A88: 3 | B88: MICS06
B89: MICS11
B90: MICS19
B91: Input
B92: Template

Sheet MICS06
A2: =A1026 -> North Macedonia
A3: =A1034 -> 2006
A4: Use of drinking water sources
A5: by wealth quintile and sub-national region
A6: Notes:
A7: WHO/UNICEF JMP customised wealth index excludes water,
A8: sanitation and hygiene assets.
A9: Survey used for analysis: | B9: =A1025 -> MICS06
A10: =B1028 -> 
A11: =B1027 -> 
A14: Use of drinking water sources | C14: NATIONAL wealth index quintile | H14: URBAN wealth index quintile | M14: RURAL wealth index quintile | R14: SUB-REGIONS: | BA14: Raw numbers of respondents: | BB14: Use of drinking water sources | BC14: NATIONAL wealth index quintile | BH14: URBAN wealth index quintile | BM14: RURAL wealth index quintile | BR14: SUB-REGIONS:
A15: Weighted percentage (used in graphs) | C15: Poorest | D15: Poor | E15: Middle | F15: Rich | G15: Richest | H15: Poorest | I15: Poor | J15: Middle | K15: Rich | L15: Richest | M15: Poorest | N15: Poor | O15: Middle | P15: Rich | Q15: Richest | R15: East | S15: North East | T15: Pelagoniski | U15: Poloski | V15: Skopski | W15: South East | X15: South West | Y15: Vardarski | BA15: Water data, raw numbers (weighted) | BC15: Poorest | BD15: Poor | BE15: Middle | BF15: Rich | BG15: Richest | BH15: Poorest | BI15: Poor | BJ15: Middle | BK15: Rich | BL15: Richest | BM15: Poorest | BN15: Poor | BO15: Middle | BP15: Rich | BQ15: Richest | BR15: East | BS15: North East | BT15: Pelagoniski | BU15: Poloski | BV15: Skopski | BW15: South East | BX15: South West | BY15: Vardarski
A16: Water | B16: Improved | C16: 98.43772035 | D16: 99.17937093 | E16: 98.96901041 | F16: 99.98987886 | G16: 100 | H16: 99.22629698 | I16: 100 | J16: 100 | K16: 99.98216484 | L16: 100 | M16: 97.25570869 | N16: 98.35063441 | O16: 99.87725829 | P16: 97.61021199 | Q16: 100 | R16: 99.69036194 | S16: 100 | T16: 99.90297974 | U16: 98.54945518 | V16: 100 | W16: 96.90588692 | X16: 98.7093939 | Y16: 99.91233612 | BA16: Water | BB16: Improved | BC16: N/A | BD16: N/A | BE16: N/A | BF16: N/A | BG16: N/A | BH16: N/A | BI16: N/A | BJ16: N/A | BK16: N/A | BL16: N/A | BM16: N/A | BN16: N/A | BO16: N/A | BP16: N/A | BQ16: N/A | BR16: N/A | BS16: N/A | BT16: N/A | BU16: N/A | BV16: N/A | BW16: N/A | BX16: N/A | BY16: N/A
B17: Not Improved | C17: 1.562279651 | D17: 0.8206290748 | E17: 1.03098959 | F17: 0.01012113822 | G17: 0 | H17: 0.7737030181 | I17: 0 | J17: 0 | K17: 0.01783515891 | L17: 0 | M17: 2.744291306 | N17: 1.649365594 | O17: 0.1227417107 | P17: 2.389788011 | Q17: 0 | R17: 0.3096380632 | S17: 0 | T17: 0.09702026277 | U17: 1.450544816 | V17: 0 | W17: 3.094113084 | X17: 1.290606104 | Y17: 0.08766388234 | BB17: Not Improved | BC17: N/A | BD17: N/A | BE17: N/A | BF17: N/A | BG17: N/A | BH17: N/A | BI17: N/A | BJ17: N/A | BK17: N/A | BL17: N/A | BM17: N/A | BN17: N/A | BO17: N/A | BP17: N/A | BQ17: N/A | BR17: N/A | BS17: N/A | BT17: N/A | BU17: N/A | BV17: N/A | BW17: N/A | BX17: N/A | BY17: N/A
A18: Water ladder | B18: Basic | C18: 96.36348394 | D18: 98.68077388 | E18: 97.79424146 | F18: 99.95438316 | G18: 100 | H18: 95.62454571 | I18: 98.02497498 | J18: 100 | K18: 99.91961541 | L18: 100 | M18: 97.25570869 | N18: 97.15029139 | O18: 99.78549307 | P18: 97.5393502 | Q18: 100 | R18: 99.69036194 | S18: 96.80822517 | T18: 99.76699431 | U18: 98.54945518 | V18: 99.60412134 | W18: 92.03323342 | X18: 98.7093939 | Y18: 99.91233612 | BA18: Water ladder | BB18: Basic | BC18: N/A | BD18: N/A | BE18: N/A | BF18: N/A | BG18: N/A | BH18: N/A | BI18: N/A | BJ18: N/A | BK18: N/A | BL18: N/A | BM18: N/A | BN18: N/A | BO18: N/A | BP18: N/A | BQ18: N/A | BR18: N/A | BS18: N/A | BT18: N/A | BU18: N/A | BV18: N/A | BW18: N/A | BX18: N/A | BY18: N/A
B19: Limited | C19: 2.074236407 | D19: 0.4985970474 | E19: 1.174768954 | F19: 0.03549569754 | G19: 0 | H19: 3.601751274 | I19: 1.975025022 | J19: 0 | K19: 0.06254942797 | L19: 0 | M19: 0 | N19: 1.200343017 | O19: 0.09176521935 | P19: 0.07086178665 | Q19: 0 | R19: 0 | S19: 3.191774831 | T19: 0.1359854312 | U19: 0 | V19: 0.3958786623 | W19: 4.872653496 | X19: 0 | Y19: 0 | BB19: Limited | BC19: N/A | BD19: N/A | BE19: N/A | BF19: N/A | BG19: N/A | BH19: N/A | BI19: N/A | BJ19: N/A | BK19: N/A | BL19: N/A | BM19: N/A | BN19: N/A | BO19: N/A | BP19: N/A | BQ19: N/A | BR19: N/A | BS19: N/A | BT19: N/A | BU19: N/A | BV19: N/A | BW19: N/A | BX19: N/A | BY19: N/A
B20: Unimproved | C20: 0.904872338 | D20: 0.7679340645 | E20: 0.9940376815 | F20: 0.01012113822 | G20: 0 | H20: 0.6176897822 | I20: 0 | J20: 0 | K20: 0.01783515891 | L20: 0 | M20: 1.470259809 | N20: 1.598715557 | O20: 0 | P20: 2.30413513 | Q20: 0 | R20: 0.3096380632 | S20: 0 | T20: 0 | U20: 1.360714376 | V20: 0 | W20: 1.530385366 | X20: 1.290606104 | Y20: 0.08766388234 | BB20: Unimproved | BC20: N/A | BD20: N/A | BE20: N/A | BF20: N/A | BG20: N/A | BH20: N/A | BI20: N/A | BJ20: N/A | BK20: N/A | BL20: N/A | BM20: N/A | BN20: N/A | BO20: N/A | BP20: N/A | BQ20: N/A | BR20: N/A | BS20: N/A | BT20: N/A | BU20: N/A | BV20: N/A | BW20: N/A | BX20: N/A | BY20: N/A
B21: Surface water | C21: 0.6574073125 | D21: 0.05269501026 | E21: 0.03695190881 | F21: 0 | G21: 0 | H21: 0.1560132359 | I21: 0 | J21: 0 | K21: 0 | L21: 0 | M21: 1.274031497 | N21: 0.05065003699 | O21: 0.1227417107 | P21: 0.08565288097 | Q21: 0 | R21: 0 | S21: 0 | T21: 0.09702026277 | U21: 0.08983044075 | V21: 0 | W21: 1.563727719 | X21: 0 | Y21: 0 | BB21: Surface water | BC21: N/A | BD21: N/A | BE21: N/A | BF21: N/A | BG21: N/A | BH21: N/A | BI21: N/A | BJ21: N/A | BK21: N/A | BL21: N/A | BM21: N/A | BN21: N/A | BO21: N/A | BP21: N/A | BQ21: N/A | BR21: N/A | BS21: N/A | BT21: N/A | BU21: N/A | BV21: N/A | BW21: N/A | BX21: N/A | BY21: N/A
A22: Improved water point at more than 30 minutes | B22: Yes | C22: 2.107156077 | D22: 0.5027225347 | E22: 1.187006871 | F22: 0.03549929047 | G22: 0 | H22: 3.62983542 | I22: 1.975025022 | J22: 0 | K22: 0.06256058575 | L22: 0 | M22: 0 | N22: 1.22047308 | O22: 0.09187799197 | P22: 0.07259669373 | Q22: 0 | R22: 0 | S22: 3.191774831 | T22: 0.1361174928 | U22: 0 | V22: 0.3958786623 | W22: 5.028232702 | X22: 0 | Y22: 0 | BA22: Improved water point at more than 30 minutes | BB22: Yes | BC22: N/A | BD22: N/A | BE22: N/A | BF22: N/A | BG22: N/A | BH22: N/A | BI22: N/A | BJ22: N/A | BK22: N/A | BL22: N/A | BM22: N/A | BN22: N/A | BO22: N/A | BP22: N/A | BQ22: N/A | BR22: N/A | BS22: N/A | BT22: N/A | BU22: N/A | BV22: N/A | BW22: N/A | BX22: N/A | BY22: N/A
B23: No | C23: 97.89284392 | D23: 99.49727747 | E23: 98.81299313 | F23: 99.96450071 | G23: 100 | H23: 96.37016458 | I23: 98.02497498 | J23: 100 | K23: 99.93743941 | L23: 100 | M23: 100 | N23: 98.77952692 | O23: 99.90812201 | P23: 99.92740331 | Q23: 100 | R23: 100 | S23: 96.80822517 | T23: 99.86388251 | U23: 100 | V23: 99.60412134 | W23: 94.9717673 | X23: 100 | Y23: 100 | BB23: No | BC23: N/A | BD23: N/A | BE23: N/A | BF23: N/A | BG23: N/A | BH23: N/A | BI23: N/A | BJ23: N/A | BK23: N/A | BL23: N/A | BM23: N/A | BN23: N/A | BO23: N/A | BP23: N/A | BQ23: N/A | BR23: N/A | BS23: N/A | BT23: N/A | BU23: N/A | BV23: N/A | BW23: N/A | BX23: N/A | BY23: N/A
A24: Manually calculated ratios | B24: Improved wells
B25: Improved springs
B26: Other
C27: NATIONAL wealth index quintile | H27: URBAN wealth index quintile | M27: RURAL wealth index quintile | R27: SUB-REGIONS: | BA27: Raw numbers of respondents: | BB27: Use of drinking water sources | BC27: NATIONAL wealth index quintile | BH27: URBAN wealth index quintile | BM27: RURAL wealth index quintile | BR27: SUB-REGIONS:
A28: Percentage based on weighted population | C28: Poorest | D28: Poor | E28: Middle | F28: Rich | G28: Richest | H28: Poorest | I28: Poor | J28: Middle | K28: Rich | L28: Richest | M28: Poorest | N28: Poor | O28: Middle | P28: Rich | Q28: Richest | R28: East | S28: North East | T28: Pelagoniski | U28: Poloski | V28: Skopski | W28: South East | X28: South West | Y28: Vardarski | BA28: Water data, raw numbers (weighted) | BC28: Poorest | BD28: Poor | BE28: Middle | BF28: Rich | BG28: Richest | BH28: Poorest | BI28: Poor | BJ28: Middle | BK28: Rich | BL28: Richest | BM28: Poorest | BN28: Poor | BO28: Middle | BP28: Rich | BQ28: Richest | BR28: East | BS28: North East | BT28: Pelagoniski | BU28: Poloski | BV28: Skopski | BW28: South East | BX28: South West | BY28: Vardarski
A29: Piped water | B29: Yes | C29: 86.25355905 | D29: 89.43776 | E29: 90.84078038 | F29: 97.6344688 | G29: 97.51592451 | H29: 93.65106305 | I29: 97.67638327 | J29: 99.84673453 | K29: 99.81536637 | L29: 100 | M29: 80.42057057 | N29: 84.90343522 | O29: 82.05530633 | P29: 85.87218767 | Q29: 89.63959347 | R29: 98.19565791 | S29: 78.24110501 | T29: 96.18383981 | U29: 90.4454342 | V29: 96.50328389 | W29: 79.66242756 | X29: 94.16058686 | Y29: 91.13286985 | BA29: Piped water | BB29: Yes | BC29: N/A | BD29: N/A | BE29: N/A | BF29: N/A | BG29: N/A | BH29: N/A | BI29: N/A | BJ29: N/A | BK29: N/A | BL29: N/A | BM29: N/A | BN29: N/A | BO29: N/A | BP29: N/A | BQ29: N/A | BR29: N/A | BS29: N/A | BT29: N/A | BU29: N/A | BV29: N/A | BW29: N/A | BX29: N/A | BY29: N/A
B30: No | C30: 13.74644095 | D30: 10.56224 | E30: 9.159219616 | F30: 2.365531202 | G30: 2.48407549 | H30: 6.348936947 | I30: 2.323616728 | J30: 0.1532654725 | K30: 0.1846336335 | L30: 0 | M30: 19.57942943 | N30: 15.09656478 | O30: 17.94469367 | P30: 14.12781233 | Q30: 10.36040653 | R30: 1.804342088 | S30: 21.75889499 | T30: 3.816160186 | U30: 9.554565804 | V30: 3.496716107 | W30: 20.33757244 | X30: 5.839413139 | Y30: 8.867130145 | BB30: No | BC30: N/A | BD30: N/A | BE30: N/A | BF30: N/A | BG30: N/A | BH30: N/A | BI30: N/A | BJ30: N/A | BK30: N/A | BL30: N/A | BM30: N/A | BN30: N/A | BO30: N/A | BP30: N/A | BQ30: N/A | BR30: N/A | BS30: N/A | BT30: N/A | BU30: N/A | BV30: N/A | BW30: N/A | BX30: N/A | BY30: N/A
A31: Piped water on premises | B31: Yes | C31: 82.32358599 | D31: 89.23811329 | E31: 90.68748134 | F31: 96.70506113 | G31: 96.40854513 | H31: 86.9199277 | I31: 97.61300243 | J31: 99.63889015 | K31: 98.47330083 | L31: 99.22806151 | M31: 79.87023076 | N31: 84.81318494 | O31: 82.03267303 | P31: 85.50367958 | Q31: 88.01824865 | R31: 97.48830355 | S31: 78.10651415 | T31: 95.7615314 | U31: 89.67455952 | V31: 95.02657205 | W31: 72.4846424 | X31: 94.09791691 | Y31: 90.923657 | BA31: Piped water on premises | BB31: Yes | BC31: N/A | BD31: N/A | BE31: N/A | BF31: N/A | BG31: N/A | BH31: N/A | BI31: N/A | BJ31: N/A | BK31: N/A | BL31: N/A | BM31: N/A | BN31: N/A | BO31: N/A | BP31: N/A | BQ31: N/A | BR31: N/A | BS31: N/A | BT31: N/A | BU31: N/A | BV31: N/A | BW31: N/A | BX31: N/A | BY31: N/A
B32: No | C32: 17.67641401 | D32: 10.76188671 | E32: 9.312518658 | F32: 3.294938869 | G32: 3.591454868 | H32: 13.0800723 | I32: 2.386997566 | J32: 0.3611098528 | K32: 1.526699169 | L32: 0.7719384896 | M32: 20.12976924 | N32: 15.18681506 | O32: 17.96732697 | P32: 14.49632042 | Q32: 11.98175135 | R32: 2.511696452 | S32: 21.89348585 | T32: 4.238468605 | U32: 10.32544048 | V32: 4.973427953 | W32: 27.5153576 | X32: 5.902083085 | Y32: 9.076343 | BB32: No | BC32: N/A | BD32: N/A | BE32: N/A | BF32: N/A | BG32: N/A | BH32: N/A | BI32: N/A | BJ32: N/A | BK32: N/A | BL32: N/A | BM32: N/A | BN32: N/A | BO32: N/A | BP32: N/A | BQ32: N/A | BR32: N/A | BS32: N/A | BT32: N/A | BU32: N/A | BV32: N/A | BW32: N/A | BX32: N/A | BY32: N/A
A33: Piped water into dwelling | B33: Yes | C33: N/A | D33: N/A | E33: N/A | F33: N/A | G33: N/A | H33: N/A | I33: N/A | J33: N/A | K33: N/A | L33: N/A | M33: N/A | N33: N/A | O33: N/A | P33: N/A | Q33: N/A | R33: N/A | S33: N/A | T33: N/A | U33: N/A | V33: N/A | W33: N/A | X33: N/A | Y33: N/A | BA33: Piped water into dwelling | BB33: Yes | BC33: N/A | BD33: N/A | BE33: N/A | BF33: N/A | BG33: N/A | BH33: N/A | BI33: N/A | BJ33: N/A | BK33: N/A | BL33: N/A | BM33: N/A | BN33: N/A | BO33: N/A | BP33: N/A | BQ33: N/A | BR33: N/A | BS33: N/A | BT33: N/A | BU33: N/A | BV33: N/A | BW33: N/A | BX33: N/A | BY33: N/A
B34: No | C34: N/A | D34: N/A | E34: N/A | F34: N/A | G34: N/A | H34: N/A | I34: N/A | J34: N/A | K34: N/A | L34: N/A | M34: N/A | N34: N/A | O34: N/A | P34: N/A | Q34: N/A | R34: N/A | S34: N/A | T34: N/A | U34: N/A | V34: N/A | W34: N/A | X34: N/A | Y34: N/A | BB34: No | BC34: N/A | BD34: N/A | BE34: N/A | BF34: N/A | BG34: N/A | BH34: N/A | BI34: N/A | BJ34: N/A | BK34: N/A | BL34: N/A | BM34: N/A | BN34: N/A | BO34: N/A | BP34: N/A | BQ34: N/A | BR34: N/A | BS34: N/A | BT34: N/A | BU34: N/A | BV34: N/A | BW34: N/A | BX34: N/A | BY34: N/A
A35: Water source on premises | B35: Yes | C35: 89.25086824 | D35: 94.88675579 | E35: 95.65896433 | F35: 99.77187414 | G35: 99.95434187 | H35: 87.33181624 | I35: 97.67349367 | J35: 99.785192 | K35: 99.81536637 | L35: 100 | M35: 91.73332456 | N35: 91.2137895 | O35: 94.8454193 | P35: 95.19231865 | Q35: 99.72456016 | R35: 98.8397995 | S35: 84.63932239 | T35: 98.64477886 | U35: 96.85798389 | V35: 98.42109629 | W35: 79.04408819 | X35: 99.87193016 | Y35: 99.70312326 | BA35: Water source on premises | BB35: Yes | BC35: N/A | BD35: N/A | BE35: N/A | BF35: N/A | BG35: N/A | BH35: N/A | BI35: N/A | BJ35: N/A | BK35: N/A | BL35: N/A | BM35: N/A | BN35: N/A | BO35: N/A | BP35: N/A | BQ35: N/A | BR35: N/A | BS35: N/A | BT35: N/A | BU35: N/A | BV35: N/A | BW35: N/A | BX35: N/A | BY35: N/A
B36: No | C36: 10.74913176 | D36: 5.113244208 | E36: 4.341035674 | F36: 0.2281258604 | G36: 0.04565813039 | H36: 12.66818376 | I36: 2.326506328 | J36: 0.214808004 | K36: 0.1846336335 | L36: 0 | M36: 8.266675438 | N36: 8.7862105 | O36: 5.154580703 | P36: 4.807681354 | Q36: 0.2754398361 | R36: 1.160200497 | S36: 15.36067761 | T36: 1.355221135 | U36: 3.142016109 | V36: 1.578903707 | W36: 20.95591181 | X36: 0.1280698407 | Y36: 0.2968767375 | BB36: No | BC36: N/A | BD36: N/A | BE36: N/A | BF36: N/A | BG36: N/A | BH36: N/A | BI36: N/A | BJ36: N/A | BK36: N/A | BL36: N/A | BM36: N/A | BN36: N/A | BO36: N/A | BP36: N/A | BQ36: N/A | BR36: N/A | BS36: N/A | BT36: N/A | BU36: N/A | BV36: N/A | BW36: N/A | BX36: N/A | BY36: N/A
A37: Improved Water source on premises | B37: Yes | C37: 90.56506865 | D37: 95.00194421 | E37: 96.65547218 | F37: 99.78197321 | G37: 99.95434187 | H37: 87.83378073 | I37: 97.67349367 | J37: 99.785192 | K37: 99.83317177 | L37: 100 | M37: 94.32178922 | N37: 91.17974127 | O37: 94.96197725 | P37: 97.52290944 | Q37: 99.72456016 | R37: 99.14679572 | S37: 84.63932239 | T37: 98.64346275 | U37: 98.28363202 | V37: 98.42109629 | W37: 81.56789097 | X37: 99.98051546 | Y37: 99.79060358 | BA37: Improved water source on premises | BB37: Yes | BC37: N/A | BD37: N/A | BE37: N/A | BF37: N/A | BG37: N/A | BH37: N/A | BI37: N/A | BJ37: N/A | BK37: N/A | BL37: N/A | BM37: N/A | BN37: N/A | BO37: N/A | BP37: N/A | BQ37: N/A | BR37: N/A | BS37: N/A | BT37: N/A | BU37: N/A | BV37: N/A | BW37: N/A | BX37: N/A | BY37: N/A
B38: No | C38: 9.434931353 | D38: 4.99805579 | E38: 3.344527817 | F38: 0.2180267889 | G38: 0.04565813039 | H38: 12.16621927 | I38: 2.326506328 | J38: 0.214808004 | K38: 0.1668282287 | L38: 0 | M38: 5.678210777 | N38: 8.820258731 | O38: 5.038022747 | P38: 2.477090556 | Q38: 0.2754398361 | R38: 0.853204279 | S38: 15.36067761 | T38: 1.356537251 | U38: 1.716367979 | V38: 1.578903707 | W38: 18.43210903 | X38: 0.01948453722 | Y38: 0.2093964202 | BB38: No | BC38: N/A | BD38: N/A | BE38: N/A | BF38: N/A | BG38: N/A | BH38: N/A | BI38: N/A | BJ38: N/A | BK38: N/A | BL38: N/A | BM38: N/A | BN38: N/A | BO38: N/A | BP38: N/A | BQ38: N/A | BR38: N/A | BS38: N/A | BT38: N/A | BU38: N/A | BV38: N/A | BW38: N/A | BX38: N/A | BY38: N/A
A39: Piped water on premises available when needed | B39: Yes | C39: N/A | D39: N/A | E39: N/A | F39: N/A | G39: N/A | H39: N/A | I39: N/A | J39: N/A | K39: N/A | L39: N/A | M39: N/A | N39: N/A | O39: N/A | P39: N/A | Q39: N/A | R39: N/A | S39: N/A | T39: N/A | U39: N/A | V39: N/A | W39: N/A | X39: N/A | Y39: N/A | BA39: Piped water on premises available when needed | BB39: Yes | BC39: N/A | BD39: N/A | BE39: N/A | BF39: N/A | BG39: N/A | BH39: N/A | BI39: N/A | BJ39: N/A | BK39: N/A | BL39: N/A | BM39: N/A | BN39: N/A | BO39: N/A | BP39: N/A | BQ39: N/A | BR39: N/A | BS39: N/A | BT39: N/A | BU39: N/A | BV39: N/A | BW39: N/A | BX39: N/A | BY39: N/A
B40: No | C40: N/A | D40: N/A | E40: N/A | F40: N/A | G40: N/A | H40: N/A | I40: N/A | J40: N/A | K40: N/A | L40: N/A | M40: N/A | N40: N/A | O40: N/A | P40: N/A | Q40: N/A | R40: N/A | S40: N/A | T40: N/A | U40: N/A | V40: N/A | W40: N/A | X40: N/A | Y40: N/A | BB40: No | BC40: N/A | BD40: N/A | BE40: N/A | BF40: N/A | BG40: N/A | BH40: N/A | BI40: N/A | BJ40: N/A | BK40: N/A | BL40: N/A | BM40: N/A | BN40: N/A | BO40: N/A | BP40: N/A | BQ40: N/A | BR40: N/A | BS40: N/A | BT40: N/A | BU40: N/A | BV40: N/A | BW40: N/A | BX40: N/A | BY40: N/A
A41: Water point at more than 30 minutes | B41: Yes | C41: 2.105324709 | D41: 0.4985970474 | E41: 1.174768954 | F41: 0.03549569754 | G41: 0 | H41: 3.601751274 | I41: 1.975025022 | J41: 0 | K41: 0.06254942797 | L41: 0 | M41: 0.07093714931 | N41: 1.200343017 | O41: 0.09176521935 | P41: 0.07086178665 | Q41: 0 | R41: 0 | S41: 3.191774831 | T41: 0.1359854312 | U41: 0 | V41: 0.3958786623 | W41: 4.953075402 | X41: 0 | Y41: 0 | BA41: Water point at more than 30 minutes | BB41: Yes | BC41: N/A | BD41: N/A | BE41: N/A | BF41: N/A | BG41: N/A | BH41: N/A | BI41: N/A | BJ41: N/A | BK41: N/A | BL41: N/A | BM41: N/A | BN41: N/A | BO41: N/A | BP41: N/A | BQ41: N/A | BR41: N/A | BS41: N/A | BT41: N/A | BU41: N/A | BV41: N/A | BW41: N/A | BX41: N/A | BY41: N/A
B42: No | C42: 97.89467529 | D42: 99.50140295 | E42: 98.82523105 | F42: 99.9645043 | G42: 100 | H42: 96.39824873 | I42: 98.02497498 | J42: 100 | K42: 99.93745057 | L42: 100 | M42: 99.92906285 | N42: 98.79965698 | O42: 99.90823478 | P42: 99.92913821 | Q42: 100 | R42: 100 | S42: 96.80822517 | T42: 99.86401457 | U42: 100 | V42: 99.60412134 | W42: 95.0469246 | X42: 100 | Y42: 100 | BB42: No | BC42: N/A | BD42: N/A | BE42: N/A | BF42: N/A | BG42: N/A | BH42: N/A | BI42: N/A | BJ42: N/A | BK42: N/A | BL42: N/A | BM42: N/A | BN42: N/A | BO42: N/A | BP42: N/A | BQ42: N/A | BR42: N/A | BS42: N/A | BT42: N/A | BU42: N/A | BV42: N/A | BW42: N/A | BX42: N/A | BY42: N/A
A43: Water source available when needed | B43: Yes | C43: N/A | D43: N/A | E43: N/A | F43: N/A | G43: N/A | H43: N/A | I43: N/A | J43: N/A | K43: N/A | L43: N/A | M43: N/A | N43: N/A | O43: N/A | P43: N/A | Q43: N/A | R43: N/A | S43: N/A | T43: N/A | U43: N/A | V43: N/A | W43: N/A | X43: N/A | Y43: N/A | BA43: Water source available when needed | BB43: Yes | BC43: N/A | BD43: N/A | BE43: N/A | BF43: N/A | BG43: N/A | BH43: N/A | BI43: N/A | BJ43: N/A | BK43: N/A | BL43: N/A | BM43: N/A | BN43: N/A | BO43: N/A | BP43: N/A | BQ43: N/A | BR43: N/A | BS43: N/A | BT43: N/A | BU43: N/A | BV43: N/A | BW43: N/A | BX43: N/A | BY43: N/A
B44: No | C44: N/A | D44: N/A | E44: N/A | F44: N/A | G44: N/A | H44: N/A | I44: N/A | J44: N/A | K44: N/A | L44: N/A | M44: N/A | N44: N/A | O44: N/A | P44: N/A | Q44: N/A | R44: N/A | S44: N/A | T44: N/A | U44: N/A | V44: N/A | W44: N/A | X44: N/A | Y44: N/A | BB44: No | BC44: N/A | BD44: N/A | BE44: N/A | BF44: N/A | BG44: N/A | BH44: N/A | BI44: N/A | BJ44: N/A | BK44: N/A | BL44: N/A | BM44: N/A | BN44: N/A | BO44: N/A | BP44: N/A | BQ44: N/A | BR44: N/A | BS44: N/A | BT44: N/A | BU44: N/A | BV44: N/A | BW44: N/A | BX44: N/A | BY44: N/A
A45: Improved water source available when needed | B45: Yes | C45: N/A | D45: N/A | E45: N/A | F45: N/A | G45: N/A | H45: N/A | I45: N/A | J45: N/A | K45: N/A | L45: N/A | M45: N/A | N45: N/A | O45: N/A | P45: N/A | Q45: N/A | R45: N/A | S45: N/A | T45: N/A | U45: N/A | V45: N/A | W45: N/A | X45: N/A | Y45: N/A | BA45: Improved water source available when needed | BB45: Yes | BC45: N/A | BD45: N/A | BE45: N/A | BF45: N/A | BG45: N/A | BH45: N/A | BI45: N/A | BJ45: N/A | BK45: N/A | BL45: N/A | BM45: N/A | BN45: N/A | BO45: N/A | BP45: N/A | BQ45: N/A | BR45: N/A | BS45: N/A | BT45: N/A | BU45: N/A | BV45: N/A | BW45: N/A | BX45: N/A | BY45: N/A
B46: No | C46: N/A | D46: N/A | E46: N/A | F46: N/A | G46: N/A | H46: N/A | I46: N/A | J46: N/A | K46: N/A | L46: N/A | M46: N/A | N46: N/A | O46: N/A | P46: N/A | Q46: N/A | R46: N/A | S46: N/A | T46: N/A | U46: N/A | V46: N/A | W46: N/A | X46: N/A | Y46: N/A | BB46: No | BC46: N/A | BD46: N/A | BE46: N/A | BF46: N/A | BG46: N/A | BH46: N/A | BI46: N/A | BJ46: N/A | BK46: N/A | BL46: N/A | BM46: N/A | BN46: N/A | BO46: N/A | BP46: N/A | BQ46: N/A | BR46: N/A | BS46: N/A | BT46: N/A | BU46: N/A | BV46: N/A | BW46: N/A | BX46: N/A | BY46: N/A
A47: Microbiological quality at point of collection | B47: Not contaminated (No E. coli in 100 mL) | C47: N/A | D47: N/A | E47: N/A | F47: N/A | G47: N/A | H47: N/A | I47: N/A | J47: N/A | K47: N/A | L47: N/A | M47: N/A | N47: N/A | O47: N/A | P47: N/A | Q47: N/A | R47: N/A | S47: N/A | T47: N/A | U47: N/A | V47: N/A | W47: N/A | X47: N/A | Y47: N/A | BA47: Microbiological quality at point of collection | BB47: Not contaminated (No E. coli in 100 mL) | BC47: N/A | BD47: N/A | BE47: N/A | BF47: N/A | BG47: N/A | BH47: N/A | BI47: N/A | BJ47: N/A | BK47: N/A | BL47: N/A | BM47: N/A | BN47: N/A | BO47: N/A | BP47: N/A | BQ47: N/A | BR47: N/A | BS47: N/A | BT47: N/A | BU47: N/A | BV47: N/A | BW47: N/A | BX47: N/A | BY47: N/A
B48: Contaminated (E. coli detected in 100 mL) | C48: N/A | D48: N/A | E48: N/A | F48: N/A | G48: N/A | H48: N/A | I48: N/A | J48: N/A | K48: N/A | L48: N/A | M48: N/A | N48: N/A | O48: N/A | P48: N/A | Q48: N/A | R48: N/A | S48: N/A | T48: N/A | U48: N/A | V48: N/A | W48: N/A | X48: N/A | Y48: N/A | BB48: Contaminated (E. coli detected in 100 mL) | BC48: N/A | BD48: N/A | BE48: N/A | BF48: N/A | BG48: N/A | BH48: N/A | BI48: N/A | BJ48: N/A | BK48: N/A | BL48: N/A | BM48: N/A | BN48: N/A | BO48: N/A | BP48: N/A | BQ48: N/A | BR48: N/A | BS48: N/A | BT48: N/A | BU48: N/A | BV48: N/A | BW48: N/A | BX48: N/A | BY48: N/A
B49: Highly contaminated (>100 CFU/100 mL) | C49: N/A | D49: N/A | E49: N/A | F49: N/A | G49: N/A | H49: N/A | I49: N/A | J49: N/A | K49: N/A | L49: N/A | M49: N/A | N49: N/A | O49: N/A | P49: N/A | Q49: N/A | R49: N/A | S49: N/A | T49: N/A | U49: N/A | V49: N/A | W49: N/A | X49: N/A | Y49: N/A | BB49: Highly contaminated (>100 CFU/100 mL) | BC49: N/A | BD49: N/A | BE49: N/A | BF49: N/A | BG49: N/A | BH49: N/A | BI49: N/A | BJ49: N/A | BK49: N/A | BL49: N/A | BM49: N/A | BN49: N/A | BO49: N/A | BP49: N/A | BQ49: N/A | BR49: N/A | BS49: N/A | BT49: N/A | BU49: N/A | BV49: N/A | BW49: N/A | BX49: N/A | BY49: N/A
A50: Microbiological quality of improved water sources at point of collection | B50: Not contaminated (No E. coli in 100 mL) | C50: N/A | D50: N/A | E50: N/A | F50: N/A | G50: N/A | H50: N/A | I50: N/A | J50: N/A | K50: N/A | L50: N/A | M50: N/A | N50: N/A | O50: N/A | P50: N/A | Q50: N/A | R50: N/A | S50: N/A | T50: N/A | U50: N/A | V50: N/A | W50: N/A | X50: N/A | Y50: N/A | BA50: Microbiological quality of improved water sources at point of collection | BB50: Not contaminated (No E. coli in 100 mL) | BC50: N/A | BD50: N/A | BE50: N/A | BF50: N/A | BG50: N/A | BH50: N/A | BI50: N/A | BJ50: N/A | BK50: N/A | BL50: N/A | BM50: N/A | BN50: N/A | BO50: N/A | BP50: N/A | BQ50: N/A | BR50: N/A | BS50: N/A | BT50: N/A | BU50: N/A | BV50: N/A | BW50: N/A | BX50: N/A | BY50: N/A
B51: Contaminated (E. coli detected in 100 mL) | C51: N/A | D51: N/A | E51: N/A | F51: N/A | G51: N/A | H51: N/A | I51: N/A | J51: N/A | K51: N/A | L51: N/A | M51: N/A | N51: N/A | O51: N/A | P51: N/A | Q51: N/A | R51: N/A | S51: N/A | T51: N/A | U51: N/A | V51: N/A | W51: N/A | X51: N/A | Y51: N/A | BB51: Contaminated (E. coli detected in 100 mL) | BC51: N/A | BD51: N/A | BE51: N/A | BF51: N/A | BG51: N/A | BH51: N/A | BI51: N/A | BJ51: N/A | BK51: N/A | BL51: N/A | BM51: N/A | BN51: N/A | BO51: N/A | BP51: N/A | BQ51: N/A | BR51: N/A | BS51: N/A | BT51: N/A | BU51: N/A | BV51: N/A | BW51: N/A | BX51: N/A | BY51: N/A
B52: Highly contaminated (>100 CFU/100 mL) | C52: N/A | D52: N/A | E52: N/A | F52: N/A | G52: N/A | H52: N/A | I52: N/A | J52: N/A | K52: N/A | L52: N/A | M52: N/A | N52: N/A | O52: N/A | P52: N/A | Q52: N/A | R52: N/A | S52: N/A | T52: N/A | U52: N/A | V52: N/A | W52: N/A | X52: N/A | Y52: N/A | BB52: Highly contaminated (>100 CFU/100 mL) | BC52: N/A | BD52: N/A | BE52: N/A | BF52: N/A | BG52: N/A | BH52: N/A | BI52: N/A | BJ52: N/A | BK52: N/A | BL52: N/A | BM52: N/A | BN52: N/A | BO52: N/A | BP52: N/A | BQ52: N/A | BR52: N/A | BS52: N/A | BT52: N/A | BU52: N/A | BV52: N/A | BW52: N/A | BX52: N/A | BY52: N/A
A53: Microbiological quality of piped on premises at point of collection | B53: Not contaminated (No E. coli in 100 mL) | C53: N/A | D53: N/A | E53: N/A | F53: N/A | G53: N/A | H53: N/A | I53: N/A | J53: N/A | K53: N/A | L53: N/A | M53: N/A | N53: N/A | O53: N/A | P53: N/A | Q53: N/A | R53: N/A | S53: N/A | T53: N/A | U53: N/A | V53: N/A | W53: N/A | X53: N/A | Y53: N/A | BA53: Microbiological quality of piped on premises at point of collection | BB53: Not contaminated (No E. coli in 100 mL) | BC53: N/A | BD53: N/A | BE53: N/A | BF53: N/A | BG53: N/A | BH53: N/A | BI53: N/A | BJ53: N/A | BK53: N/A | BL53: N/A | BM53: N/A | BN53: N/A | BO53: N/A | BP53: N/A | BQ53: N/A | BR53: N/A | BS53: N/A | BT53: N/A | BU53: N/A | BV53: N/A | BW53: N/A | BX53: N/A | BY53: N/A
B54: Contaminated (E. coli detected in 100 mL) | C54: N/A | D54: N/A | E54: N/A | F54: N/A | G54: N/A | H54: N/A | I54: N/A | J54: N/A | K54: N/A | L54: N/A | M54: N/A | N54: N/A | O54: N/A | P54: N/A | Q54: N/A | R54: N/A | S54: N/A | T54: N/A | U54: N/A | V54: N/A | W54: N/A | X54: N/A | Y54: N/A | BB54: Contaminated (E. coli detected in 100 mL) | BC54: N/A | BD54: N/A | BE54: N/A | BF54: N/A | BG54: N/A | BH54: N/A | BI54: N/A | BJ54: N/A | BK54: N/A | BL54: N/A | BM54: N/A | BN54: N/A | BO54: N/A | BP54: N/A | BQ54: N/A | BR54: N/A | BS54: N/A | BT54: N/A | BU54: N/A | BV54: N/A | BW54: N/A | BX54: N/A | BY54: N/A
B55: Highly contaminated (>100 CFU/100 mL) | C55: N/A | D55: N/A | E55: N/A | F55: N/A | G55: N/A | H55: N/A | I55: N/A | J55: N/A | K55: N/A | L55: N/A | M55: N/A | N55: N/A | O55: N/A | P55: N/A | Q55: N/A | R55: N/A | S55: N/A | T55: N/A | U55: N/A | V55: N/A | W55: N/A | X55: N/A | Y55: N/A | BB55: Highly contaminated (>100 CFU/100 mL) | BC55: N/A | BD55: N/A | BE55: N/A | BF55: N/A | BG55: N/A | BH55: N/A | BI55: N/A | BJ55: N/A | BK55: N/A | BL55: N/A | BM55: N/A | BN55: N/A | BO55: N/A | BP55: N/A | BQ55: N/A | BR55: N/A | BS55: N/A | BT55: N/A | BU55: N/A | BV55: N/A | BW55: N/A | BX55: N/A | BY55: N/A
C56: NATIONAL wealth index quintile | H56: URBAN wealth index quintile | M56: RURAL wealth index quintile | R56: SUB-REGIONS: | BA56: Raw numbers of respondents: | BB56: Use of drinking water sources | BC56: NATIONAL wealth index quintile | BH56: URBAN wealth index quintile | BM56: RURAL wealth index quintile | BR56: SUB-REGIONS:
A57: Percentage based on weighted population | C57: Poorest | D57: Poor | E57: Middle | F57: Rich | G57: Richest | H57: Poorest | I57: Poor | J57: Middle | K57: Rich | L57: Richest | M57: Poorest | N57: Poor | O57: Middle | P57: Rich | Q57: Richest | R57: East | S57: North East | T57: Pelagoniski | U57: Poloski | V57: Skopski | W57: South East | X57: South West | Y57: Vardarski | BA57: Water data, raw numbers (weighted) | BC57: Poorest | BD57: Poor | BE57: Middle | BF57: Rich | BG57: Richest | BH57: Poorest | BI57: Poor | BJ57: Middle | BK57: Rich | BL57: Richest | BM57: Poorest | BN57: Poor | BO57: Middle | BP57: Rich | BQ57: Richest | BR57: East | BS57: North East | BT57: Pelagoniski | BU57: Poloski | BV57: Skopski | BW57: South East | BX57: South West | BY57: Vardarski
A58: Main source of drinking water | B58: Piped into dwelling | C58: 72.22505032 | D58: 88.15566479 | E58: 89.47855605 | F58: 96.66016883 | G58: 96.31466393 | H58: 82.31018911 | I58: 96.74709165 | J58: 99.63889015 | K58: 98.47330083 | L58: 99.13314275 | M58: 66.24285394 | N58: 80.44893769 | O58: 80.11373235 | P58: 83.80152641 | Q58: 87.82253115 | R58: 96.78388896 | S58: 77.73036012 | T58: 93.61390182 | U58: 88.07298269 | V58: 91.54103189 | W58: 68.21746114 | X58: 93.06103966 | Y58: 83.38531503
B59: Piped into yard or plot | C59: 10.09853567 | D59: 1.082448497 | E59: 1.208925294 | F59: 0.04489230418 | G59: 0.0184651547 | H59: 4.6097386 | I59: 0.865910787 | J59: 0 | K59: 0 | L59: 0 | M59: 13.62737681 | N59: 4.364247255 | O59: 1.918940672 | P59: 1.702153163 | Q59: 0.146118614 | R59: 0.6985367096 | S59: 0.3761540285 | T59: 2.076938083 | U59: 1.601576832 | V59: 3.461940157 | W59: 4.267181259 | X59: 1.036877256 | Y59: 7.53834197
B60: Public tap/standpipe | C60: 3.929973064 | D60: 0.199646715 | E60: 0.1532990421 | F60: 0.9294076674 | G60: 1.107379378 | H60: 6.731135348 | I60: 0.06338083795 | J60: 0.2078443802 | K60: 1.342065535 | L60: 0.7719384896 | M60: 0.5503398161 | N60: 0.09025027938 | O60: 0.02263330488 | P60: 0.3685080911 | Q60: 1.621344819 | R60: 0.7073543642 | S60: 0.1345908645 | T60: 0.4223084193 | U60: 0.7708746752 | V60: 1.476711846 | W60: 7.177785157 | X60: 0.06266994658 | Y60: 0.2092128552
B61: Tubewell/borehole | C61: 6.013642953 | D61: 6.056027173 | E61: 3.989014945 | F61: 2.115052668 | G61: 1.723743195 | H61: 0.2969132622 | I61: 0.06049123745 | J61: 0 | K61: 0 | L61: 0 | M61: 10.00015508 | N61: 7.484927559 | O61: 13.22297479 | P61: 6.626168418 | Q61: 8.398606655 | R61: 0 | S61: 8.265295786 | T61: 0.9234961341 | U61: 7.414870302 | V61: 2.350605663 | W61: 16.8912815 | X61: 0.09711763586 | Y61: 0.6153124184
B62: Protected well | C62: 4.032320026 | D62: 1.508981634 | E62: 2.189269692 | F62: 0 | G62: 0.744975137 | H62: 1.636781741 | I62: 0 | J62: 0 | K62: 0 | L62: 0 | M62: 6.68273785 | N62: 2.765541661 | O62: 1.350603834 | P62: 5.005080149 | Q62: 1.715196937 | R62: 1.351495955 | S62: 4.425969874 | T62: 0.04177877223 | U62: 0.6891506863 | V62: 0.1492466516 | W62: 0.1647566512 | X62: 4.451689399 | Y62: 8.164153844
B63: Unprotected well | C63: 0 | D63: 0.6644251576 | E63: 0 | F63: 0 | G63: 0 | H63: 0 | I63: 0 | J63: 0 | K63: 0 | L63: 0 | M63: 0 | N63: 1.537935513 | O63: 0 | P63: 0 | Q63: 0 | R63: 0 | S63: 0 | T63: 0 | U63: 0 | V63: 0 | W63: 0 | X63: 1.102609981 | Y63: 0
B64: Protected spring | C64: 2.138198318 | D64: 2.176602115 | E64: 1.949945388 | F64: 0.240357395 | G64: 0.01535715837 | H64: 3.641538926 | I64: 2.26312549 | J64: 0.1532654725 | K64: 0.1667984746 | L64: 0 | M64: 0.1522451917 | N64: 3.196729965 | O64: 3.248373332 | P64: 0.1067757537 | Q64: 0.2466029369 | R64: 0.1432080696 | S64: 9.067629325 | T64: 2.753865017 | U64: 0 | V64: 0.9968637925 | W64: 0.1874212044 | X64: 0 | Y64: 0
B65: Unprotected spring | C65: 0 | D65: 0 | E65: 0 | F65: 0.01012113822 | G65: 0 | H65: 0 | I65: 0 | J65: 0 | K65: 0.01783515891 | L65: 0 | M65: 0 | N65: 0 | O65: 0 | P65: 0 | Q65: 0 | R65: 0 | S65: 0 | T65: 0 | U65: 0 | V65: 0 | W65: 0 | X65: 0 | Y65: 0.03274325646
B66: Surface water | C66: 0.6574073125 | D66: 0.05269501026 | E66: 0.03695190881 | F66: 0 | G66: 0 | H66: 0.1560132359 | I66: 0 | J66: 0 | K66: 0 | L66: 0 | M66: 1.274031497 | N66: 0.05065003699 | O66: 0.1227417107 | P66: 0.08565288097 | Q66: 0 | R66: 0 | S66: 0 | T66: 0.09702026277 | U66: 0.08983044075 | V66: 0 | W66: 1.563727719 | X66: 0 | Y66: 0
B67: Bottled water | C67: 0 | D67: 0 | E67: 0 | F67: 0 | G67: 0.07541604692 | H67: 0 | I67: 0 | J67: 0 | K67: 0 | L67: 0.09491875827 | M67: 0 | N67: 0 | O67: 0 | P67: 0 | Q67: 0.0495988896 | R67: 0.005877882439 | S67: 0 | T67: 0.07069149623 | U67: 0 | V67: 0.02360000014 | W67: 0 | X67: 0 | Y67: 0
B68: Other | C68: 0.904872338 | D68: 0.1035089069 | E68: 0.9940376815 | F68: 0 | G68: 0 | H68: 0.6176897822 | I68: 0 | J68: 0 | K68: 0 | L68: 0 | M68: 1.470259809 | N68: 0.06078004439 | O68: 0 | P68: 2.30413513 | Q68: 0 | R68: 0.3096380632 | S68: 0 | T68: 0 | U68: 1.360714376 | V68: 0 | W68: 1.530385366 | X68: 0.1879961234 | Y68: 0.05492062589
A108: =A1026 -> North Macedonia
A109: =A1034 -> 2006
A110: Use of sanitation facilities
A111: by wealth quintile and sub-national region
A112: Notes:
A113: WHO/UNICEF JMP customised wealth index excludes water,
A114: sanitation and hygiene assets.
A115: Survey used for analysis: | B115: =A1025 -> MICS06
A116: =B1030 -> 
A117: =B1029 -> 
A120: Use of sanitation facilities | C120: NATIONAL wealth index quintile | H120: URBAN wealth index quintile | M120: RURAL wealth index quintile | R120: SUB-REGIONS: | BA120: Raw numbers of respondents: | BB120: Use of sanitation facilities | BC120: NATIONAL wealth index quintile | BH120: URBAN wealth index quintile | BM120: RURAL wealth index quintile | BR120: SUB-REGIONS:
A121: Weighted percentage (used in graphs) | C121: Poorest | D121: Poor | E121: Middle | F121: Rich | G121: Richest | H121: Poorest | I121: Poor | J121: Middle | K121: Rich | L121: Richest | M121: Poorest | N121: Poor | O121: Middle | P121: Rich | Q121: Richest | R121: East | S121: North East | T121: Pelagoniski | U121: Poloski | V121: Skopski | W121: South East | X121: South West | Y121: Vardarski | BA121: Sanitation data, raw numbers (weighted) | BC121: Poorest | BD121: Poor | BE121: Middle | BF121: Rich | BG121: Richest | BH121: Poorest | BI121: Poor | BJ121: Middle | BK121: Rich | BL121: Richest | BM121: Poorest | BN121: Poor | BO121: Middle | BP121: Rich | BQ121: Richest | BR121: East | BS121: North East | BT121: Pelagoniski | BU121: Poloski | BV121: Skopski | BW121: South East | BX121: South West | BY121: Vardarski
A122: Sanitation | B122: Improved | C122: =C153+C154+C155+C157+C158+C159 -> 83.18066606 | D122: =D153+D154+D155+D157+D158+D159 -> 92.12916173 | E122: 96.07005432 | F122: 98.03669677 | G122: 98.34267545 | H122: 93.89834602 | I122: 95.45787229 | J122: 97.39827656 | K122: 99.97790775 | L122: 98.52123195 | M122: 74.12160438 | N122: 84.4456585 | O122: 92.6822075 | P122: 96.33766901 | Q122: 96.95756696 | R122: 98.3645471 | S122: 93.77555545 | T122: 79.27486495 | U122: 99.86978035 | V122: 97.18806125 | W122: 85.67318085 | X122: 91.77741085 | Y122: 90.70173355 | BA122: Sanitation | BB122: Improved | BC122: 3916.886853 | BD122: 4311.70092 | BE122: 4505.554943 | BF122: 4608.102522 | BG122: 4611.452119 | BH122: 2506.418691 | BI122: 2533.340123 | BJ122: 2632.401328 | BK122: 2666.79652 | BL122: 2622.089942 | BM122: 1499.154181 | BN122: 1707.405902 | BO122: 1862.195187 | BP122: 1949.177053 | BQ122: 1974.718431 | BR122: 2542.502037 | BS122: 1673.857705 | BT122: 2049.640265 | BU122: 3767.744061 | BV122: 6410.852848 | BW122: 1602.997891 | BX122: 2588.281208 | BY122: 1317.821343
B123: Not Improved | C123: 16.81933394 | D123: 7.870838268 | E123: 3.929945685 | F123: 1.963303231 | G123: 1.657324547 | H123: 6.101653977 | I123: 4.542127711 | J123: 2.601723441 | K123: 0.02209224801 | L123: 1.478768047 | M123: 25.87839562 | N123: 15.5543415 | O123: 7.317792497 | P123: 3.662330989 | Q123: 3.042433035 | R123: 1.635452899 | S123: 6.224444552 | T123: 20.72513505 | U123: 0.1302196502 | V123: 2.81193875 | W123: 14.32681915 | X123: 8.222589148 | Y123: 9.298266453 | BB123: Not Improved | BC123: 792.0040929 | BD123: 368.3600281 | BE123: 184.30911 | BF123: 92.28281726 | BG123: 77.71471293 | BH123: 162.8708089 | BI123: 120.5427494 | BJ123: 70.31726313 | BK123: 0.5892854875 | BL123: 39.35662136 | BM123: 523.406169 | BN123: 314.493071 | BO123: 147.0310034 | BP123: 74.0990684 | BQ123: 61.96472103 | BR123: 42.27277459 | BS123: 111.1039484 | BT123: 535.8453946 | BU123: 4.912740489 | BV123: 185.4849795 | BW123: 268.0635953 | BX123: 231.8911895 | BY123: 135.0961388
A124: Sanitation ladder | B124: Basic | C124: 74.20071128 | D124: 85.60702075 | E124: 88.06202218 | F124: 94.32916537 | G124: 97.93756954 | H124: 87.90239794 | I124: 88.55568718 | J124: 90.19474332 | K124: 97.40842745 | L124: 98.38677236 | M124: 62.66577475 | N124: 78.52199219 | O124: 85.46685244 | P124: 88.51253829 | Q124: 95.38023137 | R124: 95.81277521 | S124: 91.9985398 | T124: 74.16754115 | U124: 86.71524829 | V124: 95.06434701 | W124: 80.77201638 | X124: 81.82647355 | Y124: 86.67529746 | BA124: Sanitation ladder | BB124: Basic | BC124: 3494.030575 | BD124: 4006.460747 | BE124: 4129.989123 | BF124: 4433.83426 | BG124: 4592.456026 | BH124: 2346.369479 | BI124: 2350.164215 | BJ124: 2437.710096 | BK124: 2598.258567 | BL124: 2618.511372 | BM124: 1267.453113 | BN124: 1587.635353 | BO124: 1717.222383 | BP124: 1790.853052 | BQ124: 1942.593103 | BR124: 2476.54448 | BS124: 1642.138657 | BT124: 1917.59114 | BU124: 3271.468712 | BV124: 6270.765482 | BW124: 1511.29409 | BX124: 2307.647621 | BY124: 1259.320549
B125: Limited | C125: 8.979954781 | D125: 6.522140982 | E125: 8.008032133 | F125: 3.7075314 | G125: 0.4051059154 | H125: 5.995948083 | I125: 6.902185111 | J125: 7.203533242 | K125: 2.569480303 | L125: 0.134459596 | M125: 11.45582963 | N125: 5.923666308 | O125: 7.215355064 | P125: 7.825130716 | Q125: 1.577335593 | R125: 2.551771889 | S125: 1.77701565 | T125: 5.107323798 | U125: 13.15453206 | V125: 2.123714243 | W125: 4.90116447 | X125: 9.950937306 | Y125: 4.02643609 | BB125: Limited | BC125: 422.8562776 | BD125: 305.2401731 | BE125: 375.5658203 | BF125: 174.2682624 | BG125: 18.99609222 | BH125: 160.0492126 | BI125: 183.1759085 | BJ125: 194.6912321 | BK125: 68.53795288 | BL125: 3.578570297 | BM125: 231.7010679 | BN125: 119.7705482 | BO125: 144.9728036 | BP125: 158.3240013 | BQ125: 32.12532826 | BR125: 65.95755704 | BS125: 31.71904793 | BT125: 132.0491244 | BU125: 496.2753486 | BV125: 140.087366 | BW125: 91.70380075 | BX125: 280.6335871 | BY125: 58.50079384
B126: Unimproved | C126: 15.63484602 | D126: 7.870838268 | E126: 3.929945685 | F126: 1.963303231 | G126: 1.657324547 | H126: 5.878739201 | I126: 4.542127711 | J126: 2.601723441 | K126: 0.02209224801 | L126: 1.478768047 | M126: 23.41488428 | N126: 15.5543415 | O126: 7.317792497 | P126: 3.662330989 | Q126: 3.042433035 | R126: 1.627165741 | S126: 6.224444552 | T126: 18.6316969 | U126: 0.1302196502 | V126: 2.81193875 | W126: 14.25004473 | X126: 8.222589148 | Y126: 9.298266453 | BB126: Unimproved | BC126: 736.2278487 | BD126: 368.3600281 | BE126: 184.30911 | BF126: 92.28281726 | BG126: 77.71471293 | BH126: 156.9205682 | BI126: 120.5427494 | BJ126: 70.31726313 | BK126: 0.5892854875 | BL126: 39.35662136 | BM126: 473.5801655 | BN126: 314.493071 | BO126: 147.0310034 | BP126: 74.0990684 | BQ126: 61.96472103 | BR126: 42.05857022 | BS126: 111.1039484 | BT126: 481.7198515 | BU126: 4.912740489 | BV126: 185.4849795 | BW126: 266.6270986 | BX126: 231.8911895 | BY126: 135.0961388
B127: Open defecation | C127: 1.184487915 | D127: 0 | E127: 0 | F127: 0 | G127: 0 | H127: 0.2229147759 | I127: 0 | J127: 0 | K127: 0 | L127: 0 | M127: 2.463511334 | N127: 0 | O127: 0 | P127: 0 | Q127: 0 | R127: 0.008287158016 | S127: 0 | T127: 2.093438149 | U127: 0 | V127: 0 | W127: 0.07677442319 | X127: 0 | Y127: 0 | BB127: Open defecation | BC127: 55.77624417 | BD127: 0 | BE127: 0 | BF127: 0 | BG127: 0 | BH127: 5.950240707 | BI127: 0 | BJ127: 0 | BK127: 0 | BL127: 0 | BM127: 49.82600347 | BN127: 0 | BO127: 0 | BP127: 0 | BQ127: 0 | BR127: 0.214204373 | BS127: 0 | BT127: 54.12554314 | BU127: 0 | BV127: 0 | BW127: 1.436496663 | BX127: 0 | BY127: 0
A128: Shared among Improved Sanitation | B128: Yes | C128: 10.79572358 | D128: 7.079344758 | E128: 8.335617368 | F128: 3.781779193 | G128: 0.4119329818 | H128: 6.385573694 | I128: 7.230608588 | J128: 7.395955552 | K128: 2.570048084 | L128: 0.1364777859 | M128: 15.45545287 | N128: 7.014767145 | O128: 7.785048779 | P128: 8.122607487 | Q128: 1.626830831 | R128: 2.594198788 | S128: 1.894966808 | T128: 6.442551245 | U128: 13.17168419 | V128: 2.185159593 | W128: 5.720768648 | X128: 10.84246898 | Y128: 4.439205219 | BA128: Shared among improved sanitation facilities | BB128: Yes | BC128: N/A | BD128: N/A | BE128: N/A | BF128: N/A | BG128: N/A | BH128: N/A | BI128: N/A | BJ128: N/A | BK128: N/A | BL128: N/A | BM128: N/A | BN128: N/A | BO128: N/A | BP128: N/A | BQ128: N/A | BR128: N/A | BS128: N/A | BT128: N/A | BU128: N/A | BV128: N/A | BW128: N/A | BX128: N/A | BY128: N/A
B129: No | C129: 89.20427642 | D129: 92.92065524 | E129: 91.66438263 | F129: 96.21822081 | G129: 99.58806702 | H129: 93.61442631 | I129: 92.76939141 | J129: 92.60404445 | K129: 97.42995192 | L129: 99.86352221 | M129: 84.54454713 | N129: 92.98523285 | O129: 92.21495122 | P129: 91.87739251 | Q129: 98.37316917 | R129: 97.40580121 | S129: 98.10503319 | T129: 93.55744876 | U129: 86.82831581 | V129: 97.81484041 | W129: 94.27923135 | X129: 89.15753102 | Y129: 95.56079478 | BB129: No | BC129: N/A | BD129: N/A | BE129: N/A | BF129: N/A | BG129: N/A | BH129: N/A | BI129: N/A | BJ129: N/A | BK129: N/A | BL129: N/A | BM129: N/A | BN129: N/A | BO129: N/A | BP129: N/A | BQ129: N/A | BR129: N/A | BS129: N/A | BT129: N/A | BU129: N/A | BV129: N/A | BW129: N/A | BX129: N/A | BY129: N/A
A130: Manually calculated ratios | B130: Improved latrines
B131: Other
B132: Other
C133: NATIONAL wealth index quintile | H133: URBAN wealth index quintile | M133: RURAL wealth index quintile | R133: SUB-REGIONS: | BA133: Raw numbers of respondents: | BB133: Use of sanitation facilities | BC133: NATIONAL wealth index quintile | BH133: URBAN wealth index quintile | BM133: RURAL wealth index quintile | BR133: SUB-REGIONS:
A134: Percentage based on weighted population | C134: Poorest | D134: Poor | E134: Middle | F134: Rich | G134: Richest | H134: Poorest | I134: Poor | J134: Middle | K134: Rich | L134: Richest | M134: Poorest | N134: Poor | O134: Middle | P134: Rich | Q134: Richest | R134: East | S134: North East | T134: Pelagoniski | U134: Poloski | V134: Skopski | W134: South East | X134: South West | Y134: Vardarski | BA134: Sanitation data, raw numbers (weighted) | BC134: Poorest | BD134: Poor | BE134: Middle | BF134: Rich | BG134: Richest | BH134: Poorest | BI134: Poor | BJ134: Middle | BK134: Rich | BL134: Richest | BM134: Poorest | BN134: Poor | BO134: Middle | BP134: Rich | BQ134: Richest | BR134: East | BS134: North East | BT134: Pelagoniski | BU134: Poloski | BV134: Skopski | BW134: South East | BX134: South West | BY134: Vardarski
A135: Sanitation type | B135: Sewer connection | C135: 40.77902609 | D135: 52.89589361 | E135: 59.48643653 | F135: 68.66980503 | G135: 80.96452377 | H135: 77.94675846 | I135: 84.48277531 | J135: 82.9683308 | K135: 83.28504801 | L135: 86.97638047 | M135: 16.33851737 | N135: 28.01897697 | O135: 31.78644446 | P135: 33.50713626 | Q135: 43.93919865 | R135: 96.91503321 | S135: 66.80273367 | T135: 60.93166343 | U135: 23.40735133 | V135: 66.98335505 | W135: 47.34293468 | X135: 56.95632419 | Y135: 78.70458242 | BA135: Sanitation type | BB135: Sewer connection | BC135: N/A | BD135: N/A | BE135: N/A | BF135: N/A | BG135: N/A | BH135: N/A | BI135: N/A | BJ135: N/A | BK135: N/A | BL135: N/A | BM135: N/A | BN135: N/A | BO135: N/A | BP135: N/A | BQ135: N/A | BR135: N/A | BS135: N/A | BT135: N/A | BU135: N/A | BV135: N/A | BW135: N/A | BX135: N/A | BY135: N/A
B136: Septic tank connection | C136: 33.93745691 | D136: 34.50381189 | E136: 35.39562274 | F136: 28.221254 | G136: 17.23726572 | H136: 10.07925777 | I136: 9.048431543 | J136: 14.42994576 | K136: 16.69285974 | L136: 11.50056838 | M136: 47.71883818 | N136: 50.27622151 | O136: 56.08029617 | P136: 60.47164188 | Q136: 50.3360604 | R136: 0.1781051107 | S136: 18.80224267 | T136: 17.20657354 | U136: 72.2742227 | V136: 27.72237941 | W136: 28.5054853 | X136: 34.52896471 | Y136: 11.02155399 | BB136: Septic tank connection | BC136: N/A | BD136: N/A | BE136: N/A | BF136: N/A | BG136: N/A | BH136: N/A | BI136: N/A | BJ136: N/A | BK136: N/A | BL136: N/A | BM136: N/A | BN136: N/A | BO136: N/A | BP136: N/A | BQ136: N/A | BR136: N/A | BS136: N/A | BT136: N/A | BU136: N/A | BV136: N/A | BW136: N/A | BX136: N/A | BY136: N/A
B137: Improved latrines | C137: 8.464183066 | D137: 4.72945623 | E137: 1.187995049 | F137: 1.14563774 | G137: 0.1408859556 | H137: 5.872329795 | I137: 1.926665436 | J137: 0 | K137: 0 | L137: 0.04428309744 | M137: 10.06424884 | N137: 6.150460023 | O137: 4.815466873 | P137: 2.358890873 | Q137: 2.682307908 | R137: 1.271408779 | S137: 8.170579101 | T137: 1.136627971 | U137: 4.188206313 | V137: 2.482326788 | W137: 9.824760862 | X137: 0.2921219526 | Y137: 0.9755971355 | BB137: Improved latrines | BC137: N/A | BD137: N/A | BE137: N/A | BF137: N/A | BG137: N/A | BH137: N/A | BI137: N/A | BJ137: N/A | BK137: N/A | BL137: N/A | BM137: N/A | BN137: N/A | BO137: N/A | BP137: N/A | BQ137: N/A | BR137: N/A | BS137: N/A | BT137: N/A | BU137: N/A | BV137: N/A | BW137: N/A | BX137: N/A | BY137: N/A
B138: Unimproved facilities | C138: 15.63484602 | D138: 7.870838268 | E138: 3.929945685 | F138: 1.963303231 | G138: 1.657324547 | H138: 5.878739201 | I138: 4.542127711 | J138: 2.601723441 | K138: 0.02209224801 | L138: 1.478768047 | M138: 23.41488428 | N138: 15.5543415 | O138: 7.317792497 | P138: 3.662330989 | Q138: 3.042433035 | R138: 1.627165741 | S138: 6.224444552 | T138: 18.6316969 | U138: 0.1302196502 | V138: 2.81193875 | W138: 14.25004473 | X138: 8.222589148 | Y138: 9.298266453 | BB138: Unimproved facilities | BC138: N/A | BD138: N/A | BE138: N/A | BF138: N/A | BG138: N/A | BH138: N/A | BI138: N/A | BJ138: N/A | BK138: N/A | BL138: N/A | BM138: N/A | BN138: N/A | BO138: N/A | BP138: N/A | BQ138: N/A | BR138: N/A | BS138: N/A | BT138: N/A | BU138: N/A | BV138: N/A | BW138: N/A | BX138: N/A | BY138: N/A
B139: Open defecation | C139: 1.184487915 | D139: 0 | E139: 0 | F139: 0 | G139: 0 | H139: 0.2229147759 | I139: 0 | J139: 0 | K139: 0 | L139: 0 | M139: 2.463511334 | N139: 0 | O139: 0 | P139: 0 | Q139: 0 | R139: 0.008287158016 | S139: 0 | T139: 2.093438149 | U139: 0 | V139: 0 | W139: 0.07677442319 | X139: 0 | Y139: 0 | BB139: Open defecation | BC139: N/A | BD139: N/A | BE139: N/A | BF139: N/A | BG139: N/A | BH139: N/A | BI139: N/A | BJ139: N/A | BK139: N/A | BL139: N/A | BM139: N/A | BN139: N/A | BO139: N/A | BP139: N/A | BQ139: N/A | BR139: N/A | BS139: N/A | BT139: N/A | BU139: N/A | BV139: N/A | BW139: N/A | BX139: N/A | BY139: N/A
A140: Septic tank emptying practices | B140: Not emptied/treated and disposed in situ | C140: N/A | D140: N/A | E140: N/A | F140: N/A | G140: N/A | H140: N/A | I140: N/A | J140: N/A | K140: N/A | L140: N/A | M140: N/A | N140: N/A | O140: N/A | P140: N/A | Q140: N/A | R140: N/A | S140: N/A | T140: N/A | U140: N/A | V140: N/A | W140: N/A | X140: N/A | Y140: N/A | BA140: Septic tank emptying practices | BB140: Not emptied/treated and disposed in situ | BC140: N/A | BD140: N/A | BE140: N/A | BF140: N/A | BG140: N/A | BH140: N/A | BI140: N/A | BJ140: N/A | BK140: N/A | BL140: N/A | BM140: N/A | BN140: N/A | BO140: N/A | BP140: N/A | BQ140: N/A | BR140: N/A | BS140: N/A | BT140: N/A | BU140: N/A | BV140: N/A | BW140: N/A | BX140: N/A | BY140: N/A
B141: Emptied and buried on site | C141: N/A | D141: N/A | E141: N/A | F141: N/A | G141: N/A | H141: N/A | I141: N/A | J141: N/A | K141: N/A | L141: N/A | M141: N/A | N141: N/A | O141: N/A | P141: N/A | Q141: N/A | R141: N/A | S141: N/A | T141: N/A | U141: N/A | V141: N/A | W141: N/A | X141: N/A | Y141: N/A | BB141: Emptied and buried on site | BC141: N/A | BD141: N/A | BE141: N/A | BF141: N/A | BG141: N/A | BH141: N/A | BI141: N/A | BJ141: N/A | BK141: N/A | BL141: N/A | BM141: N/A | BN141: N/A | BO141: N/A | BP141: N/A | BQ141: N/A | BR141: N/A | BS141: N/A | BT141: N/A | BU141: N/A | BV141: N/A | BW141: N/A | BX141: N/A | BY141: N/A
B142: Emptied and discharged locally | C142: N/A | D142: N/A | E142: N/A | F142: N/A | G142: N/A | H142: N/A | I142: N/A | J142: N/A | K142: N/A | L142: N/A | M142: N/A | N142: N/A | O142: N/A | P142: N/A | Q142: N/A | R142: N/A | S142: N/A | T142: N/A | U142: N/A | V142: N/A | W142: N/A | X142: N/A | Y142: N/A | BB142: Emptied and discharged locally | BC142: N/A | BD142: N/A | BE142: N/A | BF142: N/A | BG142: N/A | BH142: N/A | BI142: N/A | BJ142: N/A | BK142: N/A | BL142: N/A | BM142: N/A | BN142: N/A | BO142: N/A | BP142: N/A | BQ142: N/A | BR142: N/A | BS142: N/A | BT142: N/A | BU142: N/A | BV142: N/A | BW142: N/A | BX142: N/A | BY142: N/A
B143: Emptied and removed offsite | C143: N/A | D143: N/A | E143: N/A | F143: N/A | G143: N/A | H143: N/A | I143: N/A | J143: N/A | K143: N/A | L143: N/A | M143: N/A | N143: N/A | O143: N/A | P143: N/A | Q143: N/A | R143: N/A | S143: N/A | T143: N/A | U143: N/A | V143: N/A | W143: N/A | X143: N/A | Y143: N/A | BB143: Emptied and removed offsite | BC143: N/A | BD143: N/A | BE143: N/A | BF143: N/A | BG143: N/A | BH143: N/A | BI143: N/A | BJ143: N/A | BK143: N/A | BL143: N/A | BM143: N/A | BN143: N/A | BO143: N/A | BP143: N/A | BQ143: N/A | BR143: N/A | BS143: N/A | BT143: N/A | BU143: N/A | BV143: N/A | BW143: N/A | BX143: N/A | BY143: N/A
A144: Latrine emptying practices | B144: Not emptied/treated and disposed in situ | C144: N/A | D144: N/A | E144: N/A | F144: N/A | G144: N/A | H144: N/A | I144: N/A | J144: N/A | K144: N/A | L144: N/A | M144: N/A | N144: N/A | O144: N/A | P144: N/A | Q144: N/A | R144: N/A | S144: N/A | T144: N/A | U144: N/A | V144: N/A | W144: N/A | X144: N/A | Y144: N/A | BA144: Latrine emptying practices | BB144: Not emptied/treated and disposed in situ | BC144: N/A | BD144: N/A | BE144: N/A | BF144: N/A | BG144: N/A | BH144: N/A | BI144: N/A | BJ144: N/A | BK144: N/A | BL144: N/A | BM144: N/A | BN144: N/A | BO144: N/A | BP144: N/A | BQ144: N/A | BR144: N/A | BS144: N/A | BT144: N/A | BU144: N/A | BV144: N/A | BW144: N/A | BX144: N/A | BY144: N/A
B145: Emptied and buried on site | C145: N/A | D145: N/A | E145: N/A | F145: N/A | G145: N/A | H145: N/A | I145: N/A | J145: N/A | K145: N/A | L145: N/A | M145: N/A | N145: N/A | O145: N/A | P145: N/A | Q145: N/A | R145: N/A | S145: N/A | T145: N/A | U145: N/A | V145: N/A | W145: N/A | X145: N/A | Y145: N/A | BB145: Emptied and buried on site | BC145: N/A | BD145: N/A | BE145: N/A | BF145: N/A | BG145: N/A | BH145: N/A | BI145: N/A | BJ145: N/A | BK145: N/A | BL145: N/A | BM145: N/A | BN145: N/A | BO145: N/A | BP145: N/A | BQ145: N/A | BR145: N/A | BS145: N/A | BT145: N/A | BU145: N/A | BV145: N/A | BW145: N/A | BX145: N/A | BY145: N/A
B146: Emptied and discharged locally | C146: N/A | D146: N/A | E146: N/A | F146: N/A | G146: N/A | H146: N/A | I146: N/A | J146: N/A | K146: N/A | L146: N/A | M146: N/A | N146: N/A | O146: N/A | P146: N/A | Q146: N/A | R146: N/A | S146: N/A | T146: N/A | U146: N/A | V146: N/A | W146: N/A | X146: N/A | Y146: N/A | BB146: Emptied and discharged locally | BC146: N/A | BD146: N/A | BE146: N/A | BF146: N/A | BG146: N/A | BH146: N/A | BI146: N/A | BJ146: N/A | BK146: N/A | BL146: N/A | BM146: N/A | BN146: N/A | BO146: N/A | BP146: N/A | BQ146: N/A | BR146: N/A | BS146: N/A | BT146: N/A | BU146: N/A | BV146: N/A | BW146: N/A | BX146: N/A | BY146: N/A
B147: Emptied and removed offsite | C147: N/A | D147: N/A | E147: N/A | F147: N/A | G147: N/A | H147: N/A | I147: N/A | J147: N/A | K147: N/A | L147: N/A | M147: N/A | N147: N/A | O147: N/A | P147: N/A | Q147: N/A | R147: N/A | S147: N/A | T147: N/A | U147: N/A | V147: N/A | W147: N/A | X147: N/A | Y147: N/A | BB147: Emptied and removed offsite | BC147: N/A | BD147: N/A | BE147: N/A | BF147: N/A | BG147: N/A | BH147: N/A | BI147: N/A | BJ147: N/A | BK147: N/A | BL147: N/A | BM147: N/A | BN147: N/A | BO147: N/A | BP147: N/A | BQ147: N/A | BR147: N/A | BS147: N/A | BT147: N/A | BU147: N/A | BV147: N/A | BW147: N/A | BX147: N/A | BY147: N/A
A148: Shared among improved sanitation facilities | B148: Yes | C148: 8.979954781 | D148: 6.522140982 | E148: 8.008032133 | F148: 3.7075314 | G148: 0.4051059154 | H148: 5.995948083 | I148: 6.902185111 | J148: 7.203533242 | K148: 2.569480303 | L148: 0.134459596 | M148: 11.45582963 | N148: 5.923666308 | O148: 7.215355064 | P148: 7.825130716 | Q148: 1.577335593 | R148: 2.551771889 | S148: 1.77701565 | T148: 5.107323798 | U148: 13.15453206 | V148: 2.123714243 | W148: 4.90116447 | X148: 9.950937306 | Y148: 4.02643609 | BA148: Shared among improved sanitation facilities | BB148: Yes | BC148: N/A | BD148: N/A | BE148: N/A | BF148: N/A | BG148: N/A | BH148: N/A | BI148: N/A | BJ148: N/A | BK148: N/A | BL148: N/A | BM148: N/A | BN148: N/A | BO148: N/A | BP148: N/A | BQ148: N/A | BR148: N/A | BS148: N/A | BT148: N/A | BU148: N/A | BV148: N/A | BW148: N/A | BX148: N/A | BY148: N/A
B149: No | C149: 74.20071128 | D149: 85.60702075 | E149: 88.06202218 | F149: 94.32916537 | G149: 97.93756954 | H149: 87.90239794 | I149: 88.55568718 | J149: 90.19474332 | K149: 97.40842745 | L149: 98.38677236 | M149: 62.66577475 | N149: 78.52199219 | O149: 85.46685244 | P149: 88.51253829 | Q149: 95.38023137 | R149: 95.81277521 | S149: 91.9985398 | T149: 74.16754115 | U149: 86.71524829 | V149: 95.06434701 | W149: 80.77201638 | X149: 81.82647355 | Y149: 86.67529746 | BB149: No | BC149: N/A | BD149: N/A | BE149: N/A | BF149: N/A | BG149: N/A | BH149: N/A | BI149: N/A | BJ149: N/A | BK149: N/A | BL149: N/A | BM149: N/A | BN149: N/A | BO149: N/A | BP149: N/A | BQ149: N/A | BR149: N/A | BS149: N/A | BT149: N/A | BU149: N/A | BV149: N/A | BW149: N/A | BX149: N/A | BY149: N/A
B150: DK/missing | C150: 16.81933394 | D150: 7.870838268 | E150: 3.929945685 | F150: 1.963303231 | G150: 1.657324547 | H150: 6.101653977 | I150: 4.542127711 | J150: 2.601723441 | K150: 0.02209224801 | L150: 1.478768047 | M150: 25.87839562 | N150: 15.5543415 | O150: 7.317792497 | P150: 3.662330989 | Q150: 3.042433035 | R150: 1.635452899 | S150: 6.224444552 | T150: 20.72513505 | U150: 0.1302196502 | V150: 2.81193875 | W150: 14.32681915 | X150: 8.222589148 | Y150: 9.298266453 | BB150: DK/missing | BC150: N/A | BD150: N/A | BE150: N/A | BF150: N/A | BG150: N/A | BH150: N/A | BI150: N/A | BJ150: N/A | BK150: N/A | BL150: N/A | BM150: N/A | BN150: N/A | BO150: N/A | BP150: N/A | BQ150: N/A | BR150: N/A | BS150: N/A | BT150: N/A | BU150: N/A | BV150: N/A | BW150: N/A | BX150: N/A | BY150: N/A
A151: Shared among all sanitation facilities | B151: Yes | C151: 11.12177495 | D151: 7.407254449 | E151: 8.155226809 | F151: 3.7075314 | G151: 0.4553737356 | H151: 8.136235324 | I151: 6.902185111 | J151: 7.203533242 | K151: 2.569480303 | L151: 0.2230257909 | M151: 13.52837617 | N151: 7.775435369 | O151: 7.554362449 | P151: 8.166321428 | Q151: 1.577335593 | R151: 3.97916918 | S151: 1.899260421 | T151: 5.707192351 | U151: 13.17072375 | V151: 2.539628593 | W151: 8.134905012 | X151: 10.10684412 | Y151: 4.096411785 | BA151: Shared among all sanitation facilities | BB151: Yes | BC151: N/A | BD151: N/A | BE151: N/A | BF151: N/A | BG151: N/A | BH151: N/A | BI151: N/A | BJ151: N/A | BK151: N/A | BL151: N/A | BM151: N/A | BN151: N/A | BO151: N/A | BP151: N/A | BQ151: N/A | BR151: N/A | BS151: N/A | BT151: N/A | BU151: N/A | BV151: N/A | BW151: N/A | BX151: N/A | BY151: N/A
B152: No | C152: 88.87822505 | D152: 92.59274555 | E152: 91.84477319 | F152: 96.2924686 | G152: 99.54462626 | H152: 91.86376468 | I152: 93.09781489 | J152: 92.79646676 | K152: 97.4305197 | L152: 99.77697421 | M152: 86.47162383 | N152: 92.22456463 | O152: 92.44563755 | P152: 91.83367857 | Q152: 98.42266441 | R152: 96.02083082 | S152: 98.10073958 | T152: 94.29280765 | U152: 86.82927625 | V152: 97.46037141 | W152: 91.86509499 | X152: 89.89315588 | Y152: 95.90358822 | BB152: No | BC152: N/A | BD152: N/A | BE152: N/A | BF152: N/A | BG152: N/A | BH152: N/A | BI152: N/A | BJ152: N/A | BK152: N/A | BL152: N/A | BM152: N/A | BN152: N/A | BO152: N/A | BP152: N/A | BQ152: N/A | BR152: N/A | BS152: N/A | BT152: N/A | BU152: N/A | BV152: N/A | BW152: N/A | BX152: N/A | BY152: N/A
A153: Kind of toilet facility | B153: Flush to piped sewer system | C153: 40.77902609 | D153: 52.89589361 | E153: 59.48643653 | F153: 68.66980503 | G153: 80.96452377 | H153: 77.94675846 | I153: 84.48277531 | J153: 82.9683308 | K153: 83.28504801 | L153: 86.97638047 | M153: 16.33851737 | N153: 28.01897697 | O153: 31.78644446 | P153: 33.50713626 | Q153: 43.93919865 | R153: 96.91503321 | S153: 66.80273367 | T153: 60.93166343 | U153: 23.40735133 | V153: 66.98335505 | W153: 47.34293468 | X153: 56.95632419 | Y153: 78.70458242 | BA153: Kind of toilet facility | BB153: Flush to piped sewer system | BC153: 1920.239867 | BD153: 2475.56006 | BE153: 2789.833003 | BF153: 3227.745448 | BG153: 3796.561594 | BH153: 2080.624639 | BI153: 2242.073904 | BJ153: 2242.400501 | BK153: 2221.533549 | BL153: 2314.829889 | BM153: 330.4563741 | BN153: 566.5154074 | BO153: 638.6615668 | BP153: 677.941887 | BQ153: 894.902256 | BR153: 2505.035367 | BS153: 1192.40318 | BT153: 1575.37942 | BU153: 883.0790321 | BV153: 4418.448387 | BW153: 885.8154172 | BX153: 1606.266533 | BY153: 1143.512637
B154: Flush to septic tank | C154: 33.93745691 | D154: 34.50381189 | E154: 35.39562274 | F154: 28.221254 | G154: 17.23726572 | H154: 10.07925777 | I154: 9.048431543 | J154: 14.42994576 | K154: 16.69285974 | L154: 11.50056838 | M154: 47.71883818 | N154: 50.27622151 | O154: 56.08029617 | P154: 60.47164188 | Q154: 50.3360604 | R154: 0.1781051107 | S154: 18.80224267 | T154: 17.20657354 | U154: 72.2742227 | V154: 27.72237941 | W154: 28.5054853 | X154: 34.52896471 | Y154: 11.02155399 | BB154: Flush to septic tank | BC154: 1598.077835 | BD154: 1614.799426 | BE154: 1660.006587 | BF154: 1326.507686 | BG154: 808.284147 | BH154: 269.0445692 | BI154: 240.1347749 | BJ154: 390.0008268 | BK154: 445.2629713 | BL154: 306.081482 | BM154: 965.1423005 | BN154: 1016.534406 | BO154: 1126.779998 | BP154: 1223.50829 | BQ154: 1025.186062 | BR154: 4.603616041 | BS154: 335.6128217 | BT154: 444.8734914 | BU154: 2726.658378 | BV154: 1828.6618 | BW154: 533.3551569 | BX154: 973.7763318 | BY154: 160.1340847
B155: Flush to pit (latrine) | C155: 4.378205212 | D155: 0.7295330148 | E155: 0.8183756477 | F155: 0.1375098229 | G155: 0 | H155: 3.031824261 | I155: 0.2265649503 | J155: 0 | K155: 0 | L155: 0 | M155: 5.073912713 | N155: 2.597015881 | O155: 0.2420840995 | P155: 1.798980811 | Q155: 0.08918470595 | R155: 0.8493044885 | S155: 0.1838999545 | T155: 0.5009687782 | U155: 0.7746696706 | V155: 0.2513010243 | W155: 9.717657163 | X155: 0.2243378674 | Y155: 0.8955580641 | BB155: Flush to pit (latrine) | BC155: 206.1649088 | BD155: 34.14258973 | BE155: 38.38070532 | BF155: 6.463491557 | BG155: 0 | BH155: 80.92816666 | BI155: 6.012768412 | BJ155: 0 | BK155: 0 | BL155: 0 | BM155: 102.6229467 | BN155: 52.50903742 | BO155: 4.864017129 | BP155: 36.39834917 | BQ155: 1.81640988 | BR155: 21.95260849 | BS155: 3.282543668 | BT155: 12.95247592 | BU155: 29.22562801 | BV155: 16.57666452 | BW155: 181.8233405 | BX155: 6.326714613 | BY155: 13.01171967
B156: Flush to somewhere else | C156: 7.195946624 | D156: 4.624660573 | E156: 3.207946283 | F156: 1.489223038 | G156: 0.8334552152 | H156: 2.372986243 | I156: 2.706370571 | J156: 1.873265656 | K156: 0.02209224801 | L156: 1.434484949 | M156: 8.569652422 | N156: 12.08266711 | O156: 5.303133967 | P156: 2.076081266 | Q156: 1.181878434 | R156: 0 | S156: 5.456754203 | T156: 13.11387375 | U156: 0.08664635423 | V156: 2.644007522 | W156: 0 | X156: 6.130457657 | Y156: 1.912810014 | BB156: Flush to somewhere else | BC156: 338.849279 | BD156: 216.4369335 | BE156: 150.4483195 | BF156: 69.99922137 | BG156: 39.08210551 | BH156: 63.34187261 | BI156: 71.82390505 | BJ156: 50.62909915 | BK156: 0.5892854875 | BL156: 38.17805039 | BM156: 173.326392 | BN156: 244.2993222 | BO156: 106.5519566 | BP156: 42.00485651 | BQ156: 24.07111894 | BR156: 0 | BS156: 97.40097005 | BT156: 339.0573252 | BU156: 3.268869576 | BV156: 174.4076683 | BW156: 0 | BX156: 172.8894747 | BY156: 27.79155109
B157: Flush to unknown place/not sure/DK where | C157: 1.972932138 | D157: 1.014749694 | E157: 0.2322383011 | F157: 0.03108963244 | G157: 0.1408859556 | H157: 0.6853977688 | I157: 0 | J157: 0 | K157: 0 | L157: 0.04428309744 | M157: 2.503389989 | N157: 1.368809661 | O157: 2.311247743 | P157: 0.4074490888 | Q157: 0.3382528619 | R157: 0.02759456515 | S157: 0.01511049701 | T157: 0.3693127159 | U157: 0.04389479436 | V157: 2.231025764 | W157: 0 | X157: 0 | Y157: 0 | BB157: Flush to unknown place/not sure/DK where | BC157: 92.90322281 | BD157: 47.49090414 | BE157: 10.8916606 | BF157: 1.461332526 | BG157: 6.606377498 | BH157: 18.29525068 | BI157: 0 | BJ157: 0 | BK157: 0 | BL157: 1.178570975 | BM157: 50.63257333 | BN157: 27.67594847 | BO157: 46.43819497 | BP157: 8.243820121 | BQ157: 6.889139049 | BR157: 0.7132573694 | BS157: 0.2697165774 | BT157: 9.548527308 | BU157: 1.655999945 | BV157: 147.1659964 | BW157: 0 | BX157: 0 | BY157: 0
B158: Ventilated Improved Pit latrine (VIP) | C158: 0.155098755 | D158: 0 | E158: 0.01593837517 | F158: 0 | G158: 0 | H158: 0.2708164465 | I158: 0 | J158: 0 | K158: 0 | L158: 0 | M158: 0.003686231679 | N158: 0 | O158: 0 | P158: 0.0369444447 | Q158: 0 | R158: 0.311474691 | S158: 0 | T158: 0 | U158: 0 | V158: 0 | W158: 0 | X158: 0 | Y158: 0 | BB158: Ventilated Improved Pit latrine (VIP) | BC158: 7.30343123 | BD158: 0 | BE158: 0.7474881279 | BF158: 0 | BG158: 0 | BH158: 7.22887497 | BI158: 0 | BJ158: 0 | BK158: 0 | BL158: 0 | BM158: 0.07455626035 | BN158: 0 | BO158: 0 | BP158: 0.7474881279 | BQ158: 0 | BR158: 8.050919358 | BS158: 0 | BT158: 0 | BU158: 0 | BV158: 0 | BW158: 0 | BX158: 0 | BY158: 0
B159: Pit latrine with slab | C159: 1.957946961 | D159: 2.985173521 | E159: 0.121442725 | F159: 0.9770382851 | G159: 0 | H159: 1.884291318 | I159: 1.700100486 | J159: 0 | K159: 0 | L159: 0 | M159: 2.483259903 | N159: 2.184634481 | O159: 2.26213503 | P159: 0.1155165291 | Q159: 2.25487034 | R159: 0.0830350344 | S159: 7.97156865 | T159: 0.2663464771 | U159: 3.369641849 | V159: 0 | W159: 0.1071036991 | X159: 0.06778408513 | Y159: 0.08003907134 | BB159: Pit latrine with slab | BC159: 92.19758716 | BD159: 139.7079402 | BE159: 5.695498703 | BF159: 45.92456431 | BG159: 0 | BH159: 50.29719031 | BI159: 45.1186756 | BJ159: 0 | BK159: 0 | BL159: 0 | BM159: 50.22543019 | BN159: 44.17110212 | BO159: 45.45140948 | BP159: 2.33721835 | BQ159: 45.92456431 | BR159: 2.146268654 | BS159: 142.2894436 | BT159: 6.886349968 | BU159: 127.1250224 | BV159: 0 | BW159: 2.003976064 | BX159: 1.911628059 | BY159: 1.16290166
B160: Pit latrine without slab/open pit | C160: 7.45308601 | D160: 3.246177695 | E160: 0.7219994021 | F160: 0.474080193 | G160: 0.7987354214 | H160: 3.053829854 | I160: 1.83575714 | J160: 0.7284577849 | K160: 0 | L160: 0 | M160: 13.14650671 | N160: 3.471674391 | O160: 2.01465853 | P160: 1.586249724 | Q160: 1.860554602 | R160: 1.627165741 | S160: 0.7676903492 | T160: 5.456019328 | U160: 0.04357329594 | V160: 0.002376178631 | W160: 14.25004473 | X160: 0.8482022518 | Y160: 7.385456439 | BB160: Pit latrine without slab/open pit | BC160: 350.9576923 | BD160: 151.9230946 | BE160: 33.86079042 | BF160: 22.28359589 | BG160: 37.45403645 | BH160: 81.51555965 | BI160: 48.71884432 | BJ160: 19.68816398 | BK160: 0 | BL160: 0 | BM160: 265.8960321 | BN160: 70.19374885 | BO160: 40.47904682 | BP160: 32.09421189 | BQ160: 37.8936021 | BR160: 42.05857022 | BS160: 13.70297835 | BT160: 141.0645973 | BU160: 1.643870913 | BV160: 0.1567407699 | BW160: 266.6270986 | BX160: 23.92076578 | BY160: 107.3045877
B161: No facilities or bush or field | C161: 1.184487915 | D161: 0 | E161: 0 | F161: 0 | G161: 0 | H161: 0.2229147759 | I161: 0 | J161: 0 | K161: 0 | L161: 0 | M161: 2.463511334 | N161: 0 | O161: 0 | P161: 0 | Q161: 0 | R161: 0.008287158016 | S161: 0 | T161: 2.093438149 | U161: 0 | V161: 0 | W161: 0.07677442319 | X161: 0 | Y161: 0 | BB161: No facilities or bush or field | BC161: 55.77624417 | BD161: 0 | BE161: 0 | BF161: 0 | BG161: 0 | BH161: 5.950240707 | BI161: 0 | BJ161: 0 | BK161: 0 | BL161: 0 | BM161: 49.82600347 | BN161: 0 | BO161: 0 | BP161: 0 | BQ161: 0 | BR161: 0.214204373 | BS161: 0 | BT161: 54.12554314 | BU161: 0 | BV161: 0 | BW161: 1.436496663 | BX161: 0 | BY161: 0
B162: Other | C162: 0.9858133889 | D162: 0 | E162: 0 | F162: 0 | G162: 0.02513391008 | H162: 0.4519231041 | I162: 0 | J162: 0 | K162: 0 | L162: 0.04428309744 | M162: 1.698725155 | N162: 0 | O162: 0 | P162: 0 | Q162: 0 | R162: 0 | S162: 0 | T162: 0.06180382334 | U162: 0 | V162: 0.1655550496 | W162: 0 | X162: 1.243929239 | Y162: 0 | BB162: Other | BC162: 46.42087741 | BD162: 0 | BE162: 0 | BF162: 0 | BG162: 1.178570975 | BH162: 12.06313597 | BI162: 0 | BJ162: 0 | BK162: 0 | BL162: 1.178570975 | BM162: 34.35774144 | BN162: 0 | BO162: 0 | BP162: 0 | BQ162: 0 | BR162: 0 | BS162: 0 | BT162: 1.597928989 | BU162: 0 | BV162: 10.92057036 | BW162: 0 | BX162: 35.08094903 | BY162: 0
BB163: Total | BC163: 4708.890946 | BD163: 4680.060948 | BE163: 4689.864053 | BF163: 4700.38534 | BG163: 4689.166832 | BH163: 2669.2895 | BI163: 2653.882872 | BJ163: 2702.718591 | BK163: 2667.385805 | BL163: 2661.446563 | BM163: 2022.56035 | BN163: 2021.898973 | BO163: 2009.22619 | BP163: 2023.276122 | BQ163: 2036.683152 | BR163: 2584.774812 | BS163: 1784.961654 | BT163: 2585.485659 | BU163: 3772.656801 | BV163: 6596.337827 | BW163: 1871.061486 | BX163: 2820.172397 | BY163: 1452.917482
A208: =A1026 -> North Macedonia
A209: =A1034 -> 2006
A210: Access to hygiene facilities
A211: by wealth quintile and sub-national region
A212: Notes:
A213: WHO/UNICEF JMP customised wealth index excludes water,
A214: sanitation and hygiene assets.
A215: Survey used for analysis: | B215: =A1025 -> MICS06
A220: Access to handwashing | C220: NATIONAL wealth index quintile | H220: URBAN wealth index quintile | M220: RURAL wealth index quintile | R220: SUB-REGIONS: | BA220: Raw numbers of respondents: | BB220: Access to handwashing | BC220: NATIONAL wealth index quintile | BH220: URBAN wealth index quintile | BM220: RURAL wealth index quintile | BR220: SUB-REGIONS:
A221: Weighted percentage (used in graphs) | C221: Poorest | D221: Poor | E221: Middle | F221: Rich | G221: Richest | H221: Poorest | I221: Poor | J221: Middle | K221: Rich | L221: Richest | M221: Poorest | N221: Poor | O221: Middle | P221: Rich | Q221: Richest | R221: East | S221: North East | T221: Pelagoniski | U221: Poloski | V221: Skopski | W221: South East | X221: South West | Y221: Vardarski | BA221: Hygiene data, raw numbers (weighted) | BC221: Poorest | BD221: Poor | BE221: Middle | BF221: Rich | BG221: Richest | BH221: Poorest | BI221: Poor | BJ221: Middle | BK221: Rich | BL221: Richest | BM221: Poorest | BN221: Poor | BO221: Middle | BP221: Rich | BQ221: Richest | BR221: East | BS221: North East | BT221: Pelagoniski | BU221: Poloski | BV221: Skopski | BW221: South East | BX221: South West | BY221: Vardarski
A222: Hygiene ladder | B222: Basic | C222: N/A | D222: N/A | E222: N/A | F222: N/A | G222: N/A | H222: N/A | I222: N/A | J222: N/A | K222: N/A | L222: N/A | M222: N/A | N222: N/A | O222: N/A | P222: N/A | Q222: N/A | R222: N/A | S222: N/A | T222: N/A | U222: N/A | V222: N/A | W222: N/A | X222: N/A | Y222: N/A | BA222: Hygiene ladder | BB222: Basic | BC222: N/A | BD222: N/A | BE222: N/A | BF222: N/A | BG222: N/A | BH222: N/A | BI222: N/A | BJ222: N/A | BK222: N/A | BL222: N/A | BM222: N/A | BN222: N/A | BO222: N/A | BP222: N/A | BQ222: N/A | BR222: N/A | BS222: N/A | BT222: N/A | BU222: N/A | BV222: N/A | BW222: N/A | BX222: N/A | BY222: N/A
B223: Limited | C223: N/A | D223: N/A | E223: N/A | F223: N/A | G223: N/A | H223: N/A | I223: N/A | J223: N/A | K223: N/A | L223: N/A | M223: N/A | N223: N/A | O223: N/A | P223: N/A | Q223: N/A | R223: N/A | S223: N/A | T223: N/A | U223: N/A | V223: N/A | W223: N/A | X223: N/A | Y223: N/A | BB223: Limited | BC223: N/A | BD223: N/A | BE223: N/A | BF223: N/A | BG223: N/A | BH223: N/A | BI223: N/A | BJ223: N/A | BK223: N/A | BL223: N/A | BM223: N/A | BN223: N/A | BO223: N/A | BP223: N/A | BQ223: N/A | BR223: N/A | BS223: N/A | BT223: N/A | BU223: N/A | BV223: N/A | BW223: N/A | BX223: N/A | BY223: N/A
B224: No facility | C224: N/A | D224: N/A | E224: N/A | F224: N/A | G224: N/A | H224: N/A | I224: N/A | J224: N/A | K224: N/A | L224: N/A | M224: N/A | N224: N/A | O224: N/A | P224: N/A | Q224: N/A | R224: N/A | S224: N/A | T224: N/A | U224: N/A | V224: N/A | W224: N/A | X224: N/A | Y224: N/A | BB224: No facility | BC224: N/A | BD224: N/A | BE224: N/A | BF224: N/A | BG224: N/A | BH224: N/A | BI224: N/A | BJ224: N/A | BK224: N/A | BL224: N/A | BM224: N/A | BN224: N/A | BO224: N/A | BP224: N/A | BQ224: N/A | BR224: N/A | BS224: N/A | BT224: N/A | BU224: N/A | BV224: N/A | BW224: N/A | BX224: N/A | BY224: N/A
BA225: Observed handwashing place | BB225: Fixed | BC225: N/A | BD225: N/A | BE225: N/A | BF225: N/A | BG225: N/A | BH225: N/A | BI225: N/A | BJ225: N/A | BK225: N/A | BL225: N/A | BM225: N/A | BN225: N/A | BO225: N/A | BP225: N/A | BQ225: N/A | BR225: N/A | BS225: N/A | BT225: N/A | BU225: N/A | BV225: N/A | BW225: N/A | BX225: N/A | BY225: N/A
BB226: Mobile | BC226: N/A | BD226: N/A | BE226: N/A | BF226: N/A | BG226: N/A | BH226: N/A | BI226: N/A | BJ226: N/A | BK226: N/A | BL226: N/A | BM226: N/A | BN226: N/A | BO226: N/A | BP226: N/A | BQ226: N/A | BR226: N/A | BS226: N/A | BT226: N/A | BU226: N/A | BV226: N/A | BW226: N/A | BX226: N/A | BY226: N/A
BA227: Water / Soap | BB227: Water and soap | BC227: N/A | BD227: N/A | BE227: N/A | BF227: N/A | BG227: N/A | BH227: N/A | BI227: N/A | BJ227: N/A | BK227: N/A | BL227: N/A | BM227: N/A | BN227: N/A | BO227: N/A | BP227: N/A | BQ227: N/A | BR227: N/A | BS227: N/A | BT227: N/A | BU227: N/A | BV227: N/A | BW227: N/A | BX227: N/A | BY227: N/A
BB228: Water only | BC228: N/A | BD228: N/A | BE228: N/A | BF228: N/A | BG228: N/A | BH228: N/A | BI228: N/A | BJ228: N/A | BK228: N/A | BL228: N/A | BM228: N/A | BN228: N/A | BO228: N/A | BP228: N/A | BQ228: N/A | BR228: N/A | BS228: N/A | BT228: N/A | BU228: N/A | BV228: N/A | BW228: N/A | BX228: N/A | BY228: N/A
BB229: Soap only | BC229: N/A | BD229: N/A | BE229: N/A | BF229: N/A | BG229: N/A | BH229: N/A | BI229: N/A | BJ229: N/A | BK229: N/A | BL229: N/A | BM229: N/A | BN229: N/A | BO229: N/A | BP229: N/A | BQ229: N/A | BR229: N/A | BS229: N/A | BT229: N/A | BU229: N/A | BV229: N/A | BW229: N/A | BX229: N/A | BY229: N/A
BB230: Neither | BC230: N/A | BD230: N/A | BE230: N/A | BF230: N/A | BG230: N/A | BH230: N/A | BI230: N/A | BJ230: N/A | BK230: N/A | BL230: N/A | BM230: N/A | BN230: N/A | BO230: N/A | BP230: N/A | BQ230: N/A | BR230: N/A | BS230: N/A | BT230: N/A | BU230: N/A | BV230: N/A | BW230: N/A | BX230: N/A | BY230: N/A
BA259: Raw numbers of respondents: | BB259: Menstrual health and hygiene | BC259: NATIONAL wealth index quintile | BH259: URBAN wealth index quintile | BM259: RURAL wealth index quintile | BR259: SUB-REGIONS:
BA260: MHH data, raw numbers (weighted) | BC260: Poorest | BD260: Poor | BE260: Middle | BF260: Rich | BG260: Richest | BH260: Poorest | BI260: Poor | BJ260: Middle | BK260: Rich | BL260: Richest | BM260: Poorest | BN260: Poor | BO260: Middle | BP260: Rich | BQ260: Richest | BR260: East | BS260: North East | BT260: Pelagoniski | BU260: Poloski | BV260: Skopski | BW260: South East | BX260: South West | BY260: Vardarski
BA261: Private place to wash and change | BB261: Yes | BC261: N/A | BD261: N/A | BE261: N/A | BF261: N/A | BG261: N/A | BH261: N/A | BI261: N/A | BJ261: N/A | BK261: N/A | BL261: N/A | BM261: N/A | BN261: N/A | BO261: N/A | BP261: N/A | BQ261: N/A | BR261: N/A | BS261: N/A | BT261: N/A | BU261: N/A | BV261: N/A | BW261: N/A | BX261: N/A | BY261: N/A
BB262: No | BC262: N/A | BD262: N/A | BE262: N/A | BF262: N/A | BG262: N/A | BH262: N/A | BI262: N/A | BJ262: N/A | BK262: N/A | BL262: N/A | BM262: N/A | BN262: N/A | BO262: N/A | BP262: N/A | BQ262: N/A | BR262: N/A | BS262: N/A | BT262: N/A | BU262: N/A | BV262: N/A | BW262: N/A | BX262: N/A | BY262: N/A
BB263: DK/not sure/missing | BC263: N/A | BD263: N/A | BE263: N/A | BF263: N/A | BG263: N/A | BH263: N/A | BI263: N/A | BJ263: N/A | BK263: N/A | BL263: N/A | BM263: N/A | BN263: N/A | BO263: N/A | BP263: N/A | BQ263: N/A | BR263: N/A | BS263: N/A | BT263: N/A | BU263: N/A | BV263: N/A | BW263: N/A | BX263: N/A | BY263: N/A
BA264: Use of menstrual materials | BB264: Materials reusable | BC264: N/A | BD264: N/A | BE264: N/A | BF264: N/A | BG264: N/A | BH264: N/A | BI264: N/A | BJ264: N/A | BK264: N/A | BL264: N/A | BM264: N/A | BN264: N/A | BO264: N/A | BP264: N/A | BQ264: N/A | BR264: N/A | BS264: N/A | BT264: N/A | BU264: N/A | BV264: N/A | BW264: N/A | BX264: N/A | BY264: N/A
BB265: Materials not reusable | BC265: N/A | BD265: N/A | BE265: N/A | BF265: N/A | BG265: N/A | BH265: N/A | BI265: N/A | BJ265: N/A | BK265: N/A | BL265: N/A | BM265: N/A | BN265: N/A | BO265: N/A | BP265: N/A | BQ265: N/A | BR265: N/A | BS265: N/A | BT265: N/A | BU265: N/A | BV265: N/A | BW265: N/A | BX265: N/A | BY265: N/A
BB266: No materials used | BC266: N/A | BD266: N/A | BE266: N/A | BF266: N/A | BG266: N/A | BH266: N/A | BI266: N/A | BJ266: N/A | BK266: N/A | BL266: N/A | BM266: N/A | BN266: N/A | BO266: N/A | BP266: N/A | BQ266: N/A | BR266: N/A | BS266: N/A | BT266: N/A | BU266: N/A | BV266: N/A | BW266: N/A | BX266: N/A | BY266: N/A
BB267: DK/not sure/missing | BC267: N/A | BD267: N/A | BE267: N/A | BF267: N/A | BG267: N/A | BH267: N/A | BI267: N/A | BJ267: N/A | BK267: N/A | BL267: N/A | BM267: N/A | BN267: N/A | BO267: N/A | BP267: N/A | BQ267: N/A | BR267: N/A | BS267: N/A | BT267: N/A | BU267: N/A | BV267: N/A | BW267: N/A | BX267: N/A | BY267: N/A
BA268: Use of menstrual materials with private place to wash and change | BB268: Materials reusable | BC268: N/A | BD268: N/A | BE268: N/A | BF268: N/A | BG268: N/A | BH268: N/A | BI268: N/A | BJ268: N/A | BK268: N/A | BL268: N/A | BM268: N/A | BN268: N/A | BO268: N/A | BP268: N/A | BQ268: N/A | BR268: N/A | BS268: N/A | BT268: N/A | BU268: N/A | BV268: N/A | BW268: N/A | BX268: N/A | BY268: N/A
BB269: Materials not reusable | BC269: N/A | BD269: N/A | BE269: N/A | BF269: N/A | BG269: N/A | BH269: N/A | BI269: N/A | BJ269: N/A | BK269: N/A | BL269: N/A | BM269: N/A | BN269: N/A | BO269: N/A | BP269: N/A | BQ269: N/A | BR269: N/A | BS269: N/A | BT269: N/A | BU269: N/A | BV269: N/A | BW269: N/A | BX269: N/A | BY269: N/A
BB270: No materials used | BC270: N/A | BD270: N/A | BE270: N/A | BF270: N/A | BG270: N/A | BH270: N/A | BI270: N/A | BJ270: N/A | BK270: N/A | BL270: N/A | BM270: N/A | BN270: N/A | BO270: N/A | BP270: N/A | BQ270: N/A | BR270: N/A | BS270: N/A | BT270: N/A | BU270: N/A | BV270: N/A | BW270: N/A | BX270: N/A | BY270: N/A
BA271: Awareness of menstruation before menarche | BB271: Yes | BC271: N/A | BD271: N/A | BE271: N/A | BF271: N/A | BG271: N/A | BH271: N/A | BI271: N/A | BJ271: N/A | BK271: N/A | BL271: N/A | BM271: N/A | BN271: N/A | BO271: N/A | BP271: N/A | BQ271: N/A | BR271: N/A | BS271: N/A | BT271: N/A | BU271: N/A | BV271: N/A | BW271: N/A | BX271: N/A | BY271: N/A
BB272: No | BC272: N/A | BD272: N/A | BE272: N/A | BF272: N/A | BG272: N/A | BH272: N/A | BI272: N/A | BJ272: N/A | BK272: N/A | BL272: N/A | BM272: N/A | BN272: N/A | BO272: N/A | BP272: N/A | BQ272: N/A | BR272: N/A | BS272: N/A | BT272: N/A | BU272: N/A | BV272: N/A | BW272: N/A | BX272: N/A | BY272: N/A
BB273: DK/not sure/missing | BC273: N/A | BD273: N/A | BE273: N/A | BF273: N/A | BG273: N/A | BH273: N/A | BI273: N/A | BJ273: N/A | BK273: N/A | BL273: N/A | BM273: N/A | BN273: N/A | BO273: N/A | BP273: N/A | BQ273: N/A | BR273: N/A | BS273: N/A | BT273: N/A | BU273: N/A | BV273: N/A | BW273: N/A | BX273: N/A | BY273: N/A
BA274: Participation in (all) activities during menstruation | BB274: Yes | BC274: N/A | BD274: N/A | BE274: N/A | BF274: N/A | BG274: N/A | BH274: N/A | BI274: N/A | BJ274: N/A | BK274: N/A | BL274: N/A | BM274: N/A | BN274: N/A | BO274: N/A | BP274: N/A | BQ274: N/A | BR274: N/A | BS274: N/A | BT274: N/A | BU274: N/A | BV274: N/A | BW274: N/A | BX274: N/A | BY274: N/A
BB275: No | BC275: N/A | BD275: N/A | BE275: N/A | BF275: N/A | BG275: N/A | BH275: N/A | BI275: N/A | BJ275: N/A | BK275: N/A | BL275: N/A | BM275: N/A | BN275: N/A | BO275: N/A | BP275: N/A | BQ275: N/A | BR275: N/A | BS275: N/A | BT275: N/A | BU275: N/A | BV275: N/A | BW275: N/A | BX275: N/A | BY275: N/A
BB276: DK/not sure/missing/no such activity | BC276: N/A | BD276: N/A | BE276: N/A | BF276: N/A | BG276: N/A | BH276: N/A | BI276: N/A | BJ276: N/A | BK276: N/A | BL276: N/A | BM276: N/A | BN276: N/A | BO276: N/A | BP276: N/A | BQ276: N/A | BR276: N/A | BS276: N/A | BT276: N/A | BU276: N/A | BV276: N/A | BW276: N/A | BX276: N/A | BY276: N/A
BA277: Participation in specific activities during menstruation | BB277: Did not go to school (amongst those usually attending school) | BC277: N/A | BD277: N/A | BE277: N/A | BF277: N/A | BG277: N/A | BH277: N/A | BI277: N/A | BJ277: N/A | BK277: N/A | BL277: N/A | BM277: N/A | BN277: N/A | BO277: N/A | BP277: N/A | BQ277: N/A | BR277: N/A | BS277: N/A | BT277: N/A | BU277: N/A | BV277: N/A | BW277: N/A | BX277: N/A | BY277: N/A
BB278: Did not go to work (amongst those who usually work) | BC278: N/A | BD278: N/A | BE278: N/A | BF278: N/A | BG278: N/A | BH278: N/A | BI278: N/A | BJ278: N/A | BK278: N/A | BL278: N/A | BM278: N/A | BN278: N/A | BO278: N/A | BP278: N/A | BQ278: N/A | BR278: N/A | BS278: N/A | BT278: N/A | BU278: N/A | BV278: N/A | BW278: N/A | BX278: N/A | BY278: N/A
BB279: Did not participate in social activities | BC279: N/A | BD279: N/A | BE279: N/A | BF279: N/A | BG279: N/A | BH279: N/A | BI279: N/A | BJ279: N/A | BK279: N/A | BL279: N/A | BM279: N/A | BN279: N/A | BO279: N/A | BP279: N/A | BQ279: N/A | BR279: N/A | BS279: N/A | BT279: N/A | BU279: N/A | BV279: N/A | BW279: N/A | BX279: N/A | BY279: N/A
BB280: Did not cook food | BC280: N/A | BD280: N/A | BE280: N/A | BF280: N/A | BG280: N/A | BH280: N/A | BI280: N/A | BJ280: N/A | BK280: N/A | BL280: N/A | BM280: N/A | BN280: N/A | BO280: N/A | BP280: N/A | BQ280: N/A | BR280: N/A | BS280: N/A | BT280: N/A | BU280: N/A | BV280: N/A | BW280: N/A | BX280: N/A | BY280: N/A
BB281: Did not eat with others | BC281: N/A | BD281: N/A | BE281: N/A | BF281: N/A | BG281: N/A | BH281: N/A | BI281: N/A | BJ281: N/A | BK281: N/A | BL281: N/A | BM281: N/A | BN281: N/A | BO281: N/A | BP281: N/A | BQ281: N/A | BR281: N/A | BS281: N/A | BT281: N/A | BU281: N/A | BV281: N/A | BW281: N/A | BX281: N/A | BY281: N/A
BB282: Did not bathe in regular place | BC282: N/A | BD282: N/A | BE282: N/A | BF282: N/A | BG282: N/A | BH282: N/A | BI282: N/A | BJ282: N/A | BK282: N/A | BL282: N/A | BM282: N/A | BN282: N/A | BO282: N/A | BP282: N/A | BQ282: N/A | BR282: N/A | BS282: N/A | BT282: N/A | BU282: N/A | BV282: N/A | BW282: N/A | BX282: N/A | BY282: N/A
BB283: Did not participate in other activities | BC283: N/A | BD283: N/A | BE283: N/A | BF283: N/A | BG283: N/A | BH283: N/A | BI283: N/A | BJ283: N/A | BK283: N/A | BL283: N/A | BM283: N/A | BN283: N/A | BO283: N/A | BP283: N/A | BQ283: N/A | BR283: N/A | BS283: N/A | BT283: N/A | BU283: N/A | BV283: N/A | BW283: N/A | BX283: N/A | BY283: N/A
BB284: DK/not sure/missing/no such activity | BC284: N/A | BD284: N/A | BE284: N/A | BF284: N/A | BG284: N/A | BH284: N/A | BI284: N/A | BJ284: N/A | BK284: N/A | BL284: N/A | BM284: N/A | BN284: N/A | BO284: N/A | BP284: N/A | BQ284: N/A | BR284: N/A | BS284: N/A | BT284: N/A | BU284: N/A | BV284: N/A | BW284: N/A | BX284: N/A | BY284: N/A
BA339: Raw numbers of respondents: | BB339: Basic water, sanitation and hygiene | BC339: NATIONAL wealth index quintile | BH339: URBAN wealth index quintile | BM339: RURAL wealth index quintile | BR339: SUB-REGIONS:
BA340: WatSan data, raw numbers (weighted) | BC340: Poorest | BD340: Poor | BE340: Middle | BF340: Rich | BG340: Richest | BH340: Poorest | BI340: Poor | BJ340: Middle | BK340: Rich | BL340: Richest | BM340: Poorest | BN340: Poor | BO340: Middle | BP340: Rich | BQ340: Richest | BR340: East | BS340: North East | BT340: Pelagoniski | BU340: Poloski | BV340: Skopski | BW340: South East | BX340: South West | BY340: Vardarski
BA341: Use of Basic Water Sanitation and Hygiene | BB341: Yes | BC341: N/A | BD341: N/A | BE341: N/A | BF341: N/A | BG341: N/A | BH341: N/A | BI341: N/A | BJ341: N/A | BK341: N/A | BL341: N/A | BM341: N/A | BN341: N/A | BO341: N/A | BP341: N/A | BQ341: N/A | BR341: N/A | BS341: N/A | BT341: N/A | BU341: N/A | BV341: N/A | BW341: N/A | BX341: N/A | BY341: N/A
BB342: No | BC342: N/A | BD342: N/A | BE342: N/A | BF342: N/A | BG342: N/A | BH342: N/A | BI342: N/A | BJ342: N/A | BK342: N/A | BL342: N/A | BM342: N/A | BN342: N/A | BO342: N/A | BP342: N/A | BQ342: N/A | BR342: N/A | BS342: N/A | BT342: N/A | BU342: N/A | BV342: N/A | BW342: N/A | BX342: N/A | BY342: N/A
BA343: Use of Basic Water and Sanitation | BB343: Yes | BC343: N/A | BD343: N/A | BE343: N/A | BF343: N/A | BG343: N/A | BH343: N/A | BI343: N/A | BJ343: N/A | BK343: N/A | BL343: N/A | BM343: N/A | BN343: N/A | BO343: N/A | BP343: N/A | BQ343: N/A | BR343: N/A | BS343: N/A | BT343: N/A | BU343: N/A | BV343: N/A | BW343: N/A | BX343: N/A | BY343: N/A
BB344: No | BC344: N/A | BD344: N/A | BE344: N/A | BF344: N/A | BG344: N/A | BH344: N/A | BI344: N/A | BJ344: N/A | BK344: N/A | BL344: N/A | BM344: N/A | BN344: N/A | BO344: N/A | BP344: N/A | BQ344: N/A | BR344: N/A | BS344: N/A | BT344: N/A | BU344: N/A | BV344: N/A | BW344: N/A | BX344: N/A | BY344: N/A
BA345: Use of Basic Water and Hygiene | BB345: Yes | BC345: N/A | BD345: N/A | BE345: N/A | BF345: N/A | BG345: N/A | BH345: N/A | BI345: N/A | BJ345: N/A | BK345: N/A | BL345: N/A | BM345: N/A | BN345: N/A | BO345: N/A | BP345: N/A | BQ345: N/A | BR345: N/A | BS345: N/A | BT345: N/A | BU345: N/A | BV345: N/A | BW345: N/A | BX345: N/A | BY345: N/A
BB346: No | BC346: N/A | BD346: N/A | BE346: N/A | BF346: N/A | BG346: N/A | BH346: N/A | BI346: N/A | BJ346: N/A | BK346: N/A | BL346: N/A | BM346: N/A | BN346: N/A | BO346: N/A | BP346: N/A | BQ346: N/A | BR346: N/A | BS346: N/A | BT346: N/A | BU346: N/A | BV346: N/A | BW346: N/A | BX346: N/A | BY346: N/A
BA347: Use of Basic Sanitation and Hygiene | BB347: Yes | BC347: N/A | BD347: N/A | BE347: N/A | BF347: N/A | BG347: N/A | BH347: N/A | BI347: N/A | BJ347: N/A | BK347: N/A | BL347: N/A | BM347: N/A | BN347: N/A | BO347: N/A | BP347: N/A | BQ347: N/A | BR347: N/A | BS347: N/A | BT347: N/A | BU347: N/A | BV347: N/A | BW347: N/A | BX347: N/A | BY347: N/A
BB348: No | BC348: N/A | BD348: N/A | BE348: N/A | BF348: N/A | BG348: N/A | BH348: N/A | BI348: N/A | BJ348: N/A | BK348: N/A | BL348: N/A | BM348: N/A | BN348: N/A | BO348: N/A | BP348: N/A | BQ348: N/A | BR348: N/A | BS348: N/A | BT348: N/A | BU348: N/A | BV348: N/A | BW348: N/A | BX348: N/A | BY348: N/A
BA349: Use of Basic Water | BB349: Yes | BC349: N/A | BD349: N/A | BE349: N/A | BF349: N/A | BG349: N/A | BH349: N/A | BI349: N/A | BJ349: N/A | BK349: N/A | BL349: N/A | BM349: N/A | BN349: N/A | BO349: N/A | BP349: N/A | BQ349: N/A | BR349: N/A | BS349: N/A | BT349: N/A | BU349: N/A | BV349: N/A | BW349: N/A | BX349: N/A | BY349: N/A
BB350: No | BC350: N/A | BD350: N/A | BE350: N/A | BF350: N/A | BG350: N/A | BH350: N/A | BI350: N/A | BJ350: N/A | BK350: N/A | BL350: N/A | BM350: N/A | BN350: N/A | BO350: N/A | BP350: N/A | BQ350: N/A | BR350: N/A | BS350: N/A | BT350: N/A | BU350: N/A | BV350: N/A | BW350: N/A | BX350: N/A | BY350: N/A
BA351: Use of Basic Sanitation | BB351: Yes | BC351: N/A | BD351: N/A | BE351: N/A | BF351: N/A | BG351: N/A | BH351: N/A | BI351: N/A | BJ351: N/A | BK351: N/A | BL351: N/A | BM351: N/A | BN351: N/A | BO351: N/A | BP351: N/A | BQ351: N/A | BR351: N/A | BS351: N/A | BT351: N/A | BU351: N/A | BV351: N/A | BW351: N/A | BX351: N/A | BY351: N/A
BB352: No | BC352: N/A | BD352: N/A | BE352: N/A | BF352: N/A | BG352: N/A | BH352: N/A | BI352: N/A | BJ352: N/A | BK352: N/A | BL352: N/A | BM352: N/A | BN352: N/A | BO352: N/A | BP352: N/A | BQ352: N/A | BR352: N/A | BS352: N/A | BT352: N/A | BU352: N/A | BV352: N/A | BW352: N/A | BX352: N/A | BY352: N/A
BA353: Access to Basic Hygiene | BB353: Yes | BC353: N/A | BD353: N/A | BE353: N/A | BF353: N/A | BG353: N/A | BH353: N/A | BI353: N/A | BJ353: N/A | BK353: N/A | BL353: N/A | BM353: N/A | BN353: N/A | BO353: N/A | BP353: N/A | BQ353: N/A | BR353: N/A | BS353: N/A | BT353: N/A | BU353: N/A | BV353: N/A | BW353: N/A | BX353: N/A | BY353: N/A
BB354: No | BC354: N/A | BD354: N/A | BE354: N/A | BF354: N/A | BG354: N/A | BH354: N/A | BI354: N/A | BJ354: N/A | BK354: N/A | BL354: N/A | BM354: N/A | BN354: N/A | BO354: N/A | BP354: N/A | BQ354: N/A | BR354: N/A | BS354: N/A | BT354: N/A | BU354: N/A | BV354: N/A | BW354: N/A | BX354: N/A | BY354: N/A
C399: INITIAL (national) Wealth Index | H399: URBAN Wealth Index | M399: RURAL Wealth Index
C400: Component Matrix | H400: Component Matrix | M400: Component Matrix
E401: Component | J401: Component | O401: Component
B402: Note: The INITIAL (national) Wealth Index is based on the first component of the Principal Component Analysis (PCA) which has been obtained at national level. The final national-level (NATIONAL) Wealth Index is based on the URBAN and RURAL specific wealth indexes. Regression procedures are used to establish the relationships between the two sets of scores (urban and rural) and the initial (national) wealth factors. This allows best use of the available information for each area and a better precision of the FINAL (NATIONAL) Wealth Index. For dependency reasons, all WASH variables (contained in the generic MICS and DHS scripts) have been excluded from the sets of asset variables used in the PCAs. The PCA can extracts as many components as there are asset variables in the input. Only the first of the components is used to represent the Wealth Index. The scores represent the weights of the asset variables on the Wealth Index (correlations between the variables and the component). The communalities are the proportion of each variable's variance that can be explained by the component. Proportion of explained variance is the part of the model's total variance that is explained by the component. For more information on the procedure used: The DHS Wealth Index, DHS Comparative Reports No. 6, Shea Oscar Rutstein, Kiersten Johnson, ORC Macro International Inc., 2004. The DHS Wealth Index: Approaches for Rural and Urban Areas, Shea O. Rutstein, ORC Macro International Inc., 2008. MICS Methodological Paper No. 4, Review of options for reporting water, sanitation and hygiene coverage by wealth quintile, UNICEF, 2016. | E402: 1 | J402: 1 | O402: 1
C403: Sofa | E403: 0.6464417283 | H403: Sofa | J403: 0.7025010241 | M403: Wood fuel | O403: -0.615006739
C404: Parquet/polished wood floor | E404: 0.614810975 | H404: Non-mobile telephone | J404: 0.6718895505 | M404: Electricity fuel | O404: 0.6004934859
C405: Non-mobile telephone | E405: 0.6071834475 | H405: Refrigetaror | J405: 0.6647916599 | M405: cooks on closed owen | O405: -0.5803256261
C406: Refrigetaror | E406: 0.6038840977 | H406: Parquet/polished wood floor | J406: 0.6573178447 | M406: Sofa | O406: 0.5413376406
C407: Animal drawn cart | E407: 0.5739336089 | H407: Animal drawn cart | J407: 0.6137808892 | M407: Parquet/polished wood floor | O407: 0.5146900489
C408: Wood fuel | E408: -0.5676596861 | H408: Stove that works with solar energy | J408: 0.6112214836 | M408: Animal drawn cart | O408: 0.5099761713
C409: Stove that works with solar energy | E409: 0.5538464014 | H409: Wood fuel | J409: -0.5630991263 | M409: Non-mobile telephone | O409: 0.5034025296
C410: Electricity fuel | E410: 0.551435015 | H410: Mobile telephone | J410: 0.5499227476 | M410: Refrigetaror | O410: 0.4927765987
C411: cooks on closed owen | E411: -0.5258312127 | H411: Electricity fuel | J411: 0.5423500355 | M411: Stove that works with solar energy | O411: 0.4660332228
C412: Mobile telephone | E412: 0.5171331079 | H412: cooks on closed owen | J412: -0.5112284864 | M412: Mobile telephone | O412: 0.4371523905
C413: Radio | E413: 0.4712295365 | H413: Radio | J413: 0.4945951082 | M413: Radio | O413: 0.4280891632
C414: Persons per sleeping rooms | E414: -0.4386146409 | H414: Persons per sleeping rooms | J414: -0.4890356478 | M414: Television | O414: 0.4165410068
C415: Cupboard | E415: 0.4169708429 | H415: Cement floor | J415: -0.4591741741 | M415: Earth/sand floor | O415: -0.4025653957
C416: Cement floor | E416: -0.3943064297 | H416: Cupboard | J416: 0.4355402688 | M416: Cupboard | O416: 0.3397527401
C417: Television | E417: 0.3851774874 | H417: Watch | J417: 0.3893852958 | M417: Palm/bamboo roof | O417: -0.3329734306
C418: Earth/sand floor | E418: -0.376262801 | H418: Earth/sand floor | J418: -0.3826699276 | M418: Persons per sleeping rooms | O418: -0.3300575604
... 247 more rows

Sheet MICS11
A2: =A1026 -> North Macedonia
A3: =A1034 -> 2011
A4: Use of drinking water sources
A5: by wealth quintile and sub-national region
A6: Notes:
A7: WHO/UNICEF JMP customised wealth index excludes water,
A8: sanitation and hygiene assets.
A9: Survey used for analysis: | B9: =A1025 -> MICS11
A10: =B1028 -> 
A11: =B1027 -> 
A14: Use of drinking water sources | C14: NATIONAL wealth index quintile | H14: URBAN wealth index quintile | M14: RURAL wealth index quintile | R14: SUB-REGIONS: | BA14: Raw numbers of respondents: | BB14: Use of drinking water sources | BC14: NATIONAL wealth index quintile | BH14: URBAN wealth index quintile | BM14: RURAL wealth index quintile | BR14: SUB-REGIONS:
A15: Weighted percentage (used in graphs) | C15: Poorest | D15: Poor | E15: Middle | F15: Rich | G15: Richest | H15: Poorest | I15: Poor | J15: Middle | K15: Rich | L15: Richest | M15: Poorest | N15: Poor | O15: Middle | P15: Rich | Q15: Richest | R15: East | S15: Northeast | T15: Pelagonia | U15: Polog | V15: Skopje | W15: Southeast | X15: Southwest | Y15: Vardar | BA15: Water data, raw numbers (weighted) | BC15: Poorest | BD15: Poor | BE15: Middle | BF15: Rich | BG15: Richest | BH15: Poorest | BI15: Poor | BJ15: Middle | BK15: Rich | BL15: Richest | BM15: Poorest | BN15: Poor | BO15: Middle | BP15: Rich | BQ15: Richest | BR15: East | BS15: Northeast | BT15: Pelagonia | BU15: Polog | BV15: Skopje | BW15: Southeast | BX15: Southwest | BY15: Vardar
A16: Water | B16: Improved | C16: 98.7 | D16: 99.8 | E16: 99.7 | F16: 99.6 | G16: 100 | H16: 100 | I16: 100 | J16: 100 | K16: 100 | L16: 100 | M16: 97.8 | N16: 99.3 | O16: 100 | P16: 98.9 | Q16: 99 | R16: 99.7 | S16: 99 | T16: 100 | U16: 99.7 | V16: 99.8 | W16: 97.6 | X16: 99.8 | Y16: 100 | BA16: Water | BB16: Improved | BC16: N/A | BD16: N/A | BE16: N/A | BF16: N/A | BG16: N/A | BH16: N/A | BI16: N/A | BJ16: N/A | BK16: N/A | BL16: N/A | BM16: N/A | BN16: N/A | BO16: N/A | BP16: N/A | BQ16: N/A | BR16: N/A | BS16: N/A | BT16: N/A | BU16: N/A | BV16: N/A | BW16: N/A | BX16: N/A | BY16: N/A
B17: Not Improved | C17: 1.3 | D17: 0.2 | E17: 0.3 | F17: 0.4 | G17: 0 | H17: 0 | I17: 0 | J17: 0 | K17: 0 | L17: 0 | M17: 2.2 | N17: 0.7 | O17: 0 | P17: 1.1 | Q17: 1 | R17: 0.3 | S17: 1 | T17: 0 | U17: 0.3 | V17: 0.2 | W17: 2.4 | X17: 0.2 | Y17: 0 | BB17: Not Improved | BC17: N/A | BD17: N/A | BE17: N/A | BF17: N/A | BG17: N/A | BH17: N/A | BI17: N/A | BJ17: N/A | BK17: N/A | BL17: N/A | BM17: N/A | BN17: N/A | BO17: N/A | BP17: N/A | BQ17: N/A | BR17: N/A | BS17: N/A | BT17: N/A | BU17: N/A | BV17: N/A | BW17: N/A | BX17: N/A | BY17: N/A
A18: Water ladder | B18: Basic | C18: 98.3 | D18: 99.5 | E18: 99.7 | F18: 99.4 | G18: 99.8 | H18: 99.6 | I18: 100 | J18: 100 | K18: 99.5 | L18: 99.8 | M18: 97.7 | N18: 98.6 | O18: 99.8 | P18: 98.9 | Q18: 99 | R18: 99.5 | S18: 99 | T18: 98.7 | U18: 99.7 | V18: 99.8 | W18: 97.6 | X18: 99.8 | Y18: 99.8 | BA18: Water ladder | BB18: Basic | BC18: N/A | BD18: N/A | BE18: N/A | BF18: N/A | BG18: N/A | BH18: N/A | BI18: N/A | BJ18: N/A | BK18: N/A | BL18: N/A | BM18: N/A | BN18: N/A | BO18: N/A | BP18: N/A | BQ18: N/A | BR18: N/A | BS18: N/A | BT18: N/A | BU18: N/A | BV18: N/A | BW18: N/A | BX18: N/A | BY18: N/A
B19: Limited | C19: 0.4 | D19: 0.3 | E19: 0 | F19: 0.2 | G19: 0.2 | H19: 0.4 | I19: 0 | J19: 0 | K19: 0.5 | L19: 0.2 | M19: 0.1 | N19: 0.7 | O19: 0.2 | P19: 0 | Q19: 0 | R19: 0.2 | S19: 0 | T19: 1.3 | U19: 0 | V19: 0 | W19: 0 | X19: 0 | Y19: 0.2 | BB19: Limited | BC19: N/A | BD19: N/A | BE19: N/A | BF19: N/A | BG19: N/A | BH19: N/A | BI19: N/A | BJ19: N/A | BK19: N/A | BL19: N/A | BM19: N/A | BN19: N/A | BO19: N/A | BP19: N/A | BQ19: N/A | BR19: N/A | BS19: N/A | BT19: N/A | BU19: N/A | BV19: N/A | BW19: N/A | BX19: N/A | BY19: N/A
B20: Unimproved | C20: 1.3 | D20: 0.2 | E20: 0.3 | F20: 0.4 | G20: 0 | H20: 0 | I20: 0 | J20: 0 | K20: 0 | L20: 0 | M20: 2.2 | N20: 0.7 | O20: 0 | P20: 1.1 | Q20: 1 | R20: 0.3 | S20: 1 | T20: 0 | U20: 0.3 | V20: 0.2 | W20: 2.4 | X20: 0.2 | Y20: 0 | BB20: Unimproved | BC20: N/A | BD20: N/A | BE20: N/A | BF20: N/A | BG20: N/A | BH20: N/A | BI20: N/A | BJ20: N/A | BK20: N/A | BL20: N/A | BM20: N/A | BN20: N/A | BO20: N/A | BP20: N/A | BQ20: N/A | BR20: N/A | BS20: N/A | BT20: N/A | BU20: N/A | BV20: N/A | BW20: N/A | BX20: N/A | BY20: N/A
B21: Surface water | C21: 0 | D21: 0 | E21: 0 | F21: 0 | G21: 0 | H21: 0 | I21: 0 | J21: 0 | K21: 0 | L21: 0 | M21: 0 | N21: 0 | O21: 0 | P21: 0 | Q21: 0 | R21: 0 | S21: 0 | T21: 0 | U21: 0 | V21: 0 | W21: 0 | X21: 0 | Y21: 0 | BB21: Surface water | BC21: N/A | BD21: N/A | BE21: N/A | BF21: N/A | BG21: N/A | BH21: N/A | BI21: N/A | BJ21: N/A | BK21: N/A | BL21: N/A | BM21: N/A | BN21: N/A | BO21: N/A | BP21: N/A | BQ21: N/A | BR21: N/A | BS21: N/A | BT21: N/A | BU21: N/A | BV21: N/A | BW21: N/A | BX21: N/A | BY21: N/A
A22: Improved water point at more than 30 minutes | B22: Yes | C22: 0.4 | D22: 0.3 | E22: 0 | F22: 0.2 | G22: 0.2 | H22: 0.4 | I22: 0 | J22: 0 | K22: 0.5 | L22: 0.2 | M22: 0.1 | N22: 0.7 | O22: 0.2 | P22: 0 | Q22: 0 | R22: 0.2 | S22: 0 | T22: 1.3 | U22: 0 | V22: 0 | W22: 0 | X22: 0 | Y22: 0.2 | BA22: Improved water point at more than 30 minutes | BB22: Yes | BC22: N/A | BD22: N/A | BE22: N/A | BF22: N/A | BG22: N/A | BH22: N/A | BI22: N/A | BJ22: N/A | BK22: N/A | BL22: N/A | BM22: N/A | BN22: N/A | BO22: N/A | BP22: N/A | BQ22: N/A | BR22: N/A | BS22: N/A | BT22: N/A | BU22: N/A | BV22: N/A | BW22: N/A | BX22: N/A | BY22: N/A
B23: No | C23: 99.6 | D23: 99.7 | E23: 100 | F23: 99.8 | G23: 99.8 | H23: 99.6 | I23: 100 | J23: 100 | K23: 99.5 | L23: 99.8 | M23: 99.9 | N23: 99.3 | O23: 99.8 | P23: 100 | Q23: 100 | R23: 99.8 | S23: 100 | T23: 98.7 | U23: 100 | V23: 100 | W23: 100 | X23: 100 | Y23: 99.8 | BB23: No | BC23: N/A | BD23: N/A | BE23: N/A | BF23: N/A | BG23: N/A | BH23: N/A | BI23: N/A | BJ23: N/A | BK23: N/A | BL23: N/A | BM23: N/A | BN23: N/A | BO23: N/A | BP23: N/A | BQ23: N/A | BR23: N/A | BS23: N/A | BT23: N/A | BU23: N/A | BV23: N/A | BW23: N/A | BX23: N/A | BY23: N/A
A24: Manually calculated ratios | B24: Improved wells
B25: Improved springs
B26: Other
C27: NATIONAL wealth index quintile | H27: URBAN wealth index quintile | M27: RURAL wealth index quintile | R27: SUB-REGIONS: | BA27: Raw numbers of respondents: | BB27: Use of drinking water sources | BC27: NATIONAL wealth index quintile | BH27: URBAN wealth index quintile | BM27: RURAL wealth index quintile | BR27: SUB-REGIONS:
A28: Percentage based on weighted population | C28: Poorest | D28: Poor | E28: Middle | F28: Rich | G28: Richest | H28: Poorest | I28: Poor | J28: Middle | K28: Rich | L28: Richest | M28: Poorest | N28: Poor | O28: Middle | P28: Rich | Q28: Richest | R28: East | S28: Northeast | T28: Pelagonia | U28: Polog | V28: Skopje | W28: Southeast | X28: Southwest | Y28: Vardar | BA28: Water data, raw numbers (weighted) | BC28: Poorest | BD28: Poor | BE28: Middle | BF28: Rich | BG28: Richest | BH28: Poorest | BI28: Poor | BJ28: Middle | BK28: Rich | BL28: Richest | BM28: Poorest | BN28: Poor | BO28: Middle | BP28: Rich | BQ28: Richest | BR28: East | BS28: Northeast | BT28: Pelagonia | BU28: Polog | BV28: Skopje | BW28: Southeast | BX28: Southwest | BY28: Vardar
A29: Piped water | B29: Yes | C29: 82 | D29: 89.4 | E29: 95 | F29: 97.1 | G29: 98.1 | H29: 98 | I29: 98.8 | J29: 97.7 | K29: 98.4 | L29: 99.1 | M29: 75.2 | N29: 83.8 | O29: 83.6 | P29: 87.9 | Q29: 92.8 | R29: 92.9 | S29: 76.4 | T29: 92.7 | U29: 95.6 | V29: 96.1 | W29: 92.6 | X29: 96.1 | Y29: 85.9 | BA29: Piped water | BB29: Yes | BC29: N/A | BD29: N/A | BE29: N/A | BF29: N/A | BG29: N/A | BH29: N/A | BI29: N/A | BJ29: N/A | BK29: N/A | BL29: N/A | BM29: N/A | BN29: N/A | BO29: N/A | BP29: N/A | BQ29: N/A | BR29: N/A | BS29: N/A | BT29: N/A | BU29: N/A | BV29: N/A | BW29: N/A | BX29: N/A | BY29: N/A
B30: No | C30: 18 | D30: 10.6 | E30: 5 | F30: 2.9 | G30: 1.9 | H30: 2 | I30: 1.2 | J30: 2.3 | K30: 1.6 | L30: 0.9 | M30: 24.8 | N30: 16.2 | O30: 16.4 | P30: 12.1 | Q30: 7.2 | R30: 7.1 | S30: 23.6 | T30: 7.3 | U30: 4.4 | V30: 3.9 | W30: 7.4 | X30: 3.9 | Y30: 14.1 | BB30: No | BC30: N/A | BD30: N/A | BE30: N/A | BF30: N/A | BG30: N/A | BH30: N/A | BI30: N/A | BJ30: N/A | BK30: N/A | BL30: N/A | BM30: N/A | BN30: N/A | BO30: N/A | BP30: N/A | BQ30: N/A | BR30: N/A | BS30: N/A | BT30: N/A | BU30: N/A | BV30: N/A | BW30: N/A | BX30: N/A | BY30: N/A
A31: Piped water on premises | B31: Yes | C31: 79.9 | D31: 88.3 | E31: 94.7 | F31: 96.8 | G31: 97.8 | H31: 97.3 | I31: 98.5 | J31: 97.6 | K31: 97.8 | L31: 99.1 | M31: 71.8 | N31: 82.8 | O31: 81.5 | P31: 87.8 | Q31: 92.5 | R31: 92.8 | S31: 72.3 | T31: 92.7 | U31: 95.6 | V31: 95.5 | W31: 92.6 | X31: 95.5 | Y31: 83.4 | BA31: Piped water on premises | BB31: Yes | BC31: N/A | BD31: N/A | BE31: N/A | BF31: N/A | BG31: N/A | BH31: N/A | BI31: N/A | BJ31: N/A | BK31: N/A | BL31: N/A | BM31: N/A | BN31: N/A | BO31: N/A | BP31: N/A | BQ31: N/A | BR31: N/A | BS31: N/A | BT31: N/A | BU31: N/A | BV31: N/A | BW31: N/A | BX31: N/A | BY31: N/A
B32: No | C32: 20.1 | D32: 11.7 | E32: 5.3 | F32: 3.2 | G32: 2.2 | H32: 2.7 | I32: 1.5 | J32: 2.4 | K32: 2.2 | L32: 0.9 | M32: 28.2 | N32: 17.2 | O32: 18.5 | P32: 12.2 | Q32: 7.5 | R32: 7.2 | S32: 27.7 | T32: 7.3 | U32: 4.4 | V32: 4.5 | W32: 7.4 | X32: 4.5 | Y32: 16.6 | BB32: No | BC32: N/A | BD32: N/A | BE32: N/A | BF32: N/A | BG32: N/A | BH32: N/A | BI32: N/A | BJ32: N/A | BK32: N/A | BL32: N/A | BM32: N/A | BN32: N/A | BO32: N/A | BP32: N/A | BQ32: N/A | BR32: N/A | BS32: N/A | BT32: N/A | BU32: N/A | BV32: N/A | BW32: N/A | BX32: N/A | BY32: N/A
A33: Piped water into dwelling | B33: Yes | C33: N/A | D33: N/A | E33: N/A | F33: N/A | G33: N/A | H33: N/A | I33: N/A | J33: N/A | K33: N/A | L33: N/A | M33: N/A | N33: N/A | O33: N/A | P33: N/A | Q33: N/A | R33: N/A | S33: N/A | T33: N/A | U33: N/A | V33: N/A | W33: N/A | X33: N/A | Y33: N/A | BA33: Piped water into dwelling | BB33: Yes | BC33: N/A | BD33: N/A | BE33: N/A | BF33: N/A | BG33: N/A | BH33: N/A | BI33: N/A | BJ33: N/A | BK33: N/A | BL33: N/A | BM33: N/A | BN33: N/A | BO33: N/A | BP33: N/A | BQ33: N/A | BR33: N/A | BS33: N/A | BT33: N/A | BU33: N/A | BV33: N/A | BW33: N/A | BX33: N/A | BY33: N/A
B34: No | C34: N/A | D34: N/A | E34: N/A | F34: N/A | G34: N/A | H34: N/A | I34: N/A | J34: N/A | K34: N/A | L34: N/A | M34: N/A | N34: N/A | O34: N/A | P34: N/A | Q34: N/A | R34: N/A | S34: N/A | T34: N/A | U34: N/A | V34: N/A | W34: N/A | X34: N/A | Y34: N/A | BB34: No | BC34: N/A | BD34: N/A | BE34: N/A | BF34: N/A | BG34: N/A | BH34: N/A | BI34: N/A | BJ34: N/A | BK34: N/A | BL34: N/A | BM34: N/A | BN34: N/A | BO34: N/A | BP34: N/A | BQ34: N/A | BR34: N/A | BS34: N/A | BT34: N/A | BU34: N/A | BV34: N/A | BW34: N/A | BX34: N/A | BY34: N/A
A35: Water source on premises | B35: Yes | C35: 93.8 | D35: 97 | E35: 98.1 | F35: 97.9 | G35: 98.7 | H35: 98.2 | I35: 98.8 | J35: 98.3 | K35: 98 | L35: 99.1 | M35: 91.6 | N35: 94.4 | O35: 96.2 | P35: 96.7 | Q35: 98.1 | R35: 98.3 | S35: 93.8 | T35: 95.8 | U35: 99.6 | V35: 98.8 | W35: 97 | X35: 97.8 | Y35: 89.9 | BA35: Water source on premises | BB35: Yes | BC35: N/A | BD35: N/A | BE35: N/A | BF35: N/A | BG35: N/A | BH35: N/A | BI35: N/A | BJ35: N/A | BK35: N/A | BL35: N/A | BM35: N/A | BN35: N/A | BO35: N/A | BP35: N/A | BQ35: N/A | BR35: N/A | BS35: N/A | BT35: N/A | BU35: N/A | BV35: N/A | BW35: N/A | BX35: N/A | BY35: N/A
B36: No | C36: 6.2 | D36: 3 | E36: 1.9 | F36: 2.1 | G36: 1.3 | H36: 1.8 | I36: 1.2 | J36: 1.7 | K36: 2 | L36: 0.9 | M36: 8.4 | N36: 5.6 | O36: 3.8 | P36: 3.3 | Q36: 1.9 | R36: 1.7 | S36: 6.2 | T36: 4.2 | U36: 0.4 | V36: 1.2 | W36: 3 | X36: 2.2 | Y36: 10.1 | BB36: No | BC36: N/A | BD36: N/A | BE36: N/A | BF36: N/A | BG36: N/A | BH36: N/A | BI36: N/A | BJ36: N/A | BK36: N/A | BL36: N/A | BM36: N/A | BN36: N/A | BO36: N/A | BP36: N/A | BQ36: N/A | BR36: N/A | BS36: N/A | BT36: N/A | BU36: N/A | BV36: N/A | BW36: N/A | BX36: N/A | BY36: N/A
A37: Improved Water source on premises | B37: Yes | C37: 93.6 | D37: 96.9 | E37: 98.1 | F37: 97.9 | G37: 98.7 | H37: 98.2 | I37: 98.8 | J37: 98.3 | K37: 98 | L37: 99.1 | M37: 91.2 | N37: 94.4 | O37: 96.2 | P37: 96.4 | Q37: 98.1 | R37: 98.3 | S37: 93.8 | T37: 95.8 | U37: 99.4 | V37: 98.8 | W37: 97 | X37: 97.8 | Y37: 89.9 | BA37: Improved water source on premises | BB37: Yes | BC37: N/A | BD37: N/A | BE37: N/A | BF37: N/A | BG37: N/A | BH37: N/A | BI37: N/A | BJ37: N/A | BK37: N/A | BL37: N/A | BM37: N/A | BN37: N/A | BO37: N/A | BP37: N/A | BQ37: N/A | BR37: N/A | BS37: N/A | BT37: N/A | BU37: N/A | BV37: N/A | BW37: N/A | BX37: N/A | BY37: N/A
B38: No | C38: 6.4 | D38: 3.1 | E38: 1.9 | F38: 2.1 | G38: 1.3 | H38: 1.8 | I38: 1.2 | J38: 1.7 | K38: 2 | L38: 0.9 | M38: 8.8 | N38: 5.6 | O38: 3.8 | P38: 3.6 | Q38: 1.9 | R38: 1.7 | S38: 6.2 | T38: 4.2 | U38: 0.6 | V38: 1.2 | W38: 3 | X38: 2.2 | Y38: 10.1 | BB38: No | BC38: N/A | BD38: N/A | BE38: N/A | BF38: N/A | BG38: N/A | BH38: N/A | BI38: N/A | BJ38: N/A | BK38: N/A | BL38: N/A | BM38: N/A | BN38: N/A | BO38: N/A | BP38: N/A | BQ38: N/A | BR38: N/A | BS38: N/A | BT38: N/A | BU38: N/A | BV38: N/A | BW38: N/A | BX38: N/A | BY38: N/A
A39: Piped water on premises available when needed | B39: Yes | C39: N/A | D39: N/A | E39: N/A | F39: N/A | G39: N/A | H39: N/A | I39: N/A | J39: N/A | K39: N/A | L39: N/A | M39: N/A | N39: N/A | O39: N/A | P39: N/A | Q39: N/A | R39: N/A | S39: N/A | T39: N/A | U39: N/A | V39: N/A | W39: N/A | X39: N/A | Y39: N/A | BA39: Piped water on premises available when needed | BB39: Yes | BC39: N/A | BD39: N/A | BE39: N/A | BF39: N/A | BG39: N/A | BH39: N/A | BI39: N/A | BJ39: N/A | BK39: N/A | BL39: N/A | BM39: N/A | BN39: N/A | BO39: N/A | BP39: N/A | BQ39: N/A | BR39: N/A | BS39: N/A | BT39: N/A | BU39: N/A | BV39: N/A | BW39: N/A | BX39: N/A | BY39: N/A
B40: No | C40: N/A | D40: N/A | E40: N/A | F40: N/A | G40: N/A | H40: N/A | I40: N/A | J40: N/A | K40: N/A | L40: N/A | M40: N/A | N40: N/A | O40: N/A | P40: N/A | Q40: N/A | R40: N/A | S40: N/A | T40: N/A | U40: N/A | V40: N/A | W40: N/A | X40: N/A | Y40: N/A | BB40: No | BC40: N/A | BD40: N/A | BE40: N/A | BF40: N/A | BG40: N/A | BH40: N/A | BI40: N/A | BJ40: N/A | BK40: N/A | BL40: N/A | BM40: N/A | BN40: N/A | BO40: N/A | BP40: N/A | BQ40: N/A | BR40: N/A | BS40: N/A | BT40: N/A | BU40: N/A | BV40: N/A | BW40: N/A | BX40: N/A | BY40: N/A
A41: Water point at more than 30 minutes | B41: Yes | C41: 0.9 | D41: 0.3 | E41: 0 | F41: 0.2 | G41: 0.2 | H41: 0.4 | I41: 0 | J41: 0 | K41: 0.5 | L41: 0.2 | M41: 1.2 | N41: 0.7 | O41: 0.2 | P41: 0 | Q41: 0 | R41: 0.2 | S41: 1 | T41: 1.3 | U41: 0 | V41: 0 | W41: 0 | X41: 0 | Y41: 0.2 | BA41: Water point at more than 30 minutes | BB41: Yes | BC41: N/A | BD41: N/A | BE41: N/A | BF41: N/A | BG41: N/A | BH41: N/A | BI41: N/A | BJ41: N/A | BK41: N/A | BL41: N/A | BM41: N/A | BN41: N/A | BO41: N/A | BP41: N/A | BQ41: N/A | BR41: N/A | BS41: N/A | BT41: N/A | BU41: N/A | BV41: N/A | BW41: N/A | BX41: N/A | BY41: N/A
B42: No | C42: 99.1 | D42: 99.7 | E42: 100 | F42: 99.8 | G42: 99.8 | H42: 99.6 | I42: 100 | J42: 100 | K42: 99.5 | L42: 99.8 | M42: 98.8 | N42: 99.3 | O42: 99.8 | P42: 100 | Q42: 100 | R42: 99.8 | S42: 99 | T42: 98.7 | U42: 100 | V42: 100 | W42: 100 | X42: 100 | Y42: 99.8 | BB42: No | BC42: N/A | BD42: N/A | BE42: N/A | BF42: N/A | BG42: N/A | BH42: N/A | BI42: N/A | BJ42: N/A | BK42: N/A | BL42: N/A | BM42: N/A | BN42: N/A | BO42: N/A | BP42: N/A | BQ42: N/A | BR42: N/A | BS42: N/A | BT42: N/A | BU42: N/A | BV42: N/A | BW42: N/A | BX42: N/A | BY42: N/A
A43: Water source available when needed | B43: Yes | C43: N/A | D43: N/A | E43: N/A | F43: N/A | G43: N/A | H43: N/A | I43: N/A | J43: N/A | K43: N/A | L43: N/A | M43: N/A | N43: N/A | O43: N/A | P43: N/A | Q43: N/A | R43: N/A | S43: N/A | T43: N/A | U43: N/A | V43: N/A | W43: N/A | X43: N/A | Y43: N/A | BA43: Water source available when needed | BB43: Yes | BC43: N/A | BD43: N/A | BE43: N/A | BF43: N/A | BG43: N/A | BH43: N/A | BI43: N/A | BJ43: N/A | BK43: N/A | BL43: N/A | BM43: N/A | BN43: N/A | BO43: N/A | BP43: N/A | BQ43: N/A | BR43: N/A | BS43: N/A | BT43: N/A | BU43: N/A | BV43: N/A | BW43: N/A | BX43: N/A | BY43: N/A
B44: No | C44: N/A | D44: N/A | E44: N/A | F44: N/A | G44: N/A | H44: N/A | I44: N/A | J44: N/A | K44: N/A | L44: N/A | M44: N/A | N44: N/A | O44: N/A | P44: N/A | Q44: N/A | R44: N/A | S44: N/A | T44: N/A | U44: N/A | V44: N/A | W44: N/A | X44: N/A | Y44: N/A | BB44: No | BC44: N/A | BD44: N/A | BE44: N/A | BF44: N/A | BG44: N/A | BH44: N/A | BI44: N/A | BJ44: N/A | BK44: N/A | BL44: N/A | BM44: N/A | BN44: N/A | BO44: N/A | BP44: N/A | BQ44: N/A | BR44: N/A | BS44: N/A | BT44: N/A | BU44: N/A | BV44: N/A | BW44: N/A | BX44: N/A | BY44: N/A
A45: Improved water source available when needed | B45: Yes | C45: N/A | D45: N/A | E45: N/A | F45: N/A | G45: N/A | H45: N/A | I45: N/A | J45: N/A | K45: N/A | L45: N/A | M45: N/A | N45: N/A | O45: N/A | P45: N/A | Q45: N/A | R45: N/A | S45: N/A | T45: N/A | U45: N/A | V45: N/A | W45: N/A | X45: N/A | Y45: N/A | BA45: Improved water source available when needed | BB45: Yes | BC45: N/A | BD45: N/A | BE45: N/A | BF45: N/A | BG45: N/A | BH45: N/A | BI45: N/A | BJ45: N/A | BK45: N/A | BL45: N/A | BM45: N/A | BN45: N/A | BO45: N/A | BP45: N/A | BQ45: N/A | BR45: N/A | BS45: N/A | BT45: N/A | BU45: N/A | BV45: N/A | BW45: N/A | BX45: N/A | BY45: N/A
B46: No | C46: N/A | D46: N/A | E46: N/A | F46: N/A | G46: N/A | H46: N/A | I46: N/A | J46: N/A | K46: N/A | L46: N/A | M46: N/A | N46: N/A | O46: N/A | P46: N/A | Q46: N/A | R46: N/A | S46: N/A | T46: N/A | U46: N/A | V46: N/A | W46: N/A | X46: N/A | Y46: N/A | BB46: No | BC46: N/A | BD46: N/A | BE46: N/A | BF46: N/A | BG46: N/A | BH46: N/A | BI46: N/A | BJ46: N/A | BK46: N/A | BL46: N/A | BM46: N/A | BN46: N/A | BO46: N/A | BP46: N/A | BQ46: N/A | BR46: N/A | BS46: N/A | BT46: N/A | BU46: N/A | BV46: N/A | BW46: N/A | BX46: N/A | BY46: N/A
A47: Microbiological quality at point of collection | B47: Not contaminated (No E. coli in 100 mL) | C47: N/A | D47: N/A | E47: N/A | F47: N/A | G47: N/A | H47: N/A | I47: N/A | J47: N/A | K47: N/A | L47: N/A | M47: N/A | N47: N/A | O47: N/A | P47: N/A | Q47: N/A | R47: N/A | S47: N/A | T47: N/A | U47: N/A | V47: N/A | W47: N/A | X47: N/A | Y47: N/A | BA47: Microbiological quality at point of collection | BB47: Not contaminated (No E. coli in 100 mL) | BC47: N/A | BD47: N/A | BE47: N/A | BF47: N/A | BG47: N/A | BH47: N/A | BI47: N/A | BJ47: N/A | BK47: N/A | BL47: N/A | BM47: N/A | BN47: N/A | BO47: N/A | BP47: N/A | BQ47: N/A | BR47: N/A | BS47: N/A | BT47: N/A | BU47: N/A | BV47: N/A | BW47: N/A | BX47: N/A | BY47: N/A
B48: Contaminated (E. coli detected in 100 mL) | C48: N/A | D48: N/A | E48: N/A | F48: N/A | G48: N/A | H48: N/A | I48: N/A | J48: N/A | K48: N/A | L48: N/A | M48: N/A | N48: N/A | O48: N/A | P48: N/A | Q48: N/A | R48: N/A | S48: N/A | T48: N/A | U48: N/A | V48: N/A | W48: N/A | X48: N/A | Y48: N/A | BB48: Contaminated (E. coli detected in 100 mL) | BC48: N/A | BD48: N/A | BE48: N/A | BF48: N/A | BG48: N/A | BH48: N/A | BI48: N/A | BJ48: N/A | BK48: N/A | BL48: N/A | BM48: N/A | BN48: N/A | BO48: N/A | BP48: N/A | BQ48: N/A | BR48: N/A | BS48: N/A | BT48: N/A | BU48: N/A | BV48: N/A | BW48: N/A | BX48: N/A | BY48: N/A
B49: Highly contaminated (>100 CFU/100 mL) | C49: N/A | D49: N/A | E49: N/A | F49: N/A | G49: N/A | H49: N/A | I49: N/A | J49: N/A | K49: N/A | L49: N/A | M49: N/A | N49: N/A | O49: N/A | P49: N/A | Q49: N/A | R49: N/A | S49: N/A | T49: N/A | U49: N/A | V49: N/A | W49: N/A | X49: N/A | Y49: N/A | BB49: Highly contaminated (>100 CFU/100 mL) | BC49: N/A | BD49: N/A | BE49: N/A | BF49: N/A | BG49: N/A | BH49: N/A | BI49: N/A | BJ49: N/A | BK49: N/A | BL49: N/A | BM49: N/A | BN49: N/A | BO49: N/A | BP49: N/A | BQ49: N/A | BR49: N/A | BS49: N/A | BT49: N/A | BU49: N/A | BV49: N/A | BW49: N/A | BX49: N/A | BY49: N/A
A50: Microbiological quality of improved water sources at point of collection | B50: Not contaminated (No E. coli in 100 mL) | C50: N/A | D50: N/A | E50: N/A | F50: N/A | G50: N/A | H50: N/A | I50: N/A | J50: N/A | K50: N/A | L50: N/A | M50: N/A | N50: N/A | O50: N/A | P50: N/A | Q50: N/A | R50: N/A | S50: N/A | T50: N/A | U50: N/A | V50: N/A | W50: N/A | X50: N/A | Y50: N/A | BA50: Microbiological quality of improved water sources at point of collection | BB50: Not contaminated (No E. coli in 100 mL) | BC50: N/A | BD50: N/A | BE50: N/A | BF50: N/A | BG50: N/A | BH50: N/A | BI50: N/A | BJ50: N/A | BK50: N/A | BL50: N/A | BM50: N/A | BN50: N/A | BO50: N/A | BP50: N/A | BQ50: N/A | BR50: N/A | BS50: N/A | BT50: N/A | BU50: N/A | BV50: N/A | BW50: N/A | BX50: N/A | BY50: N/A
B51: Contaminated (E. coli detected in 100 mL) | C51: N/A | D51: N/A | E51: N/A | F51: N/A | G51: N/A | H51: N/A | I51: N/A | J51: N/A | K51: N/A | L51: N/A | M51: N/A | N51: N/A | O51: N/A | P51: N/A | Q51: N/A | R51: N/A | S51: N/A | T51: N/A | U51: N/A | V51: N/A | W51: N/A | X51: N/A | Y51: N/A | BB51: Contaminated (E. coli detected in 100 mL) | BC51: N/A | BD51: N/A | BE51: N/A | BF51: N/A | BG51: N/A | BH51: N/A | BI51: N/A | BJ51: N/A | BK51: N/A | BL51: N/A | BM51: N/A | BN51: N/A | BO51: N/A | BP51: N/A | BQ51: N/A | BR51: N/A | BS51: N/A | BT51: N/A | BU51: N/A | BV51: N/A | BW51: N/A | BX51: N/A | BY51: N/A
B52: Highly contaminated (>100 CFU/100 mL) | C52: N/A | D52: N/A | E52: N/A | F52: N/A | G52: N/A | H52: N/A | I52: N/A | J52: N/A | K52: N/A | L52: N/A | M52: N/A | N52: N/A | O52: N/A | P52: N/A | Q52: N/A | R52: N/A | S52: N/A | T52: N/A | U52: N/A | V52: N/A | W52: N/A | X52: N/A | Y52: N/A | BB52: Highly contaminated (>100 CFU/100 mL) | BC52: N/A | BD52: N/A | BE52: N/A | BF52: N/A | BG52: N/A | BH52: N/A | BI52: N/A | BJ52: N/A | BK52: N/A | BL52: N/A | BM52: N/A | BN52: N/A | BO52: N/A | BP52: N/A | BQ52: N/A | BR52: N/A | BS52: N/A | BT52: N/A | BU52: N/A | BV52: N/A | BW52: N/A | BX52: N/A | BY52: N/A
A53: Microbiological quality of piped on premises at point of collection | B53: Not contaminated (No E. coli in 100 mL) | C53: N/A | D53: N/A | E53: N/A | F53: N/A | G53: N/A | H53: N/A | I53: N/A | J53: N/A | K53: N/A | L53: N/A | M53: N/A | N53: N/A | O53: N/A | P53: N/A | Q53: N/A | R53: N/A | S53: N/A | T53: N/A | U53: N/A | V53: N/A | W53: N/A | X53: N/A | Y53: N/A | BA53: Microbiological quality of piped on premises at point of collection | BB53: Not contaminated (No E. coli in 100 mL) | BC53: N/A | BD53: N/A | BE53: N/A | BF53: N/A | BG53: N/A | BH53: N/A | BI53: N/A | BJ53: N/A | BK53: N/A | BL53: N/A | BM53: N/A | BN53: N/A | BO53: N/A | BP53: N/A | BQ53: N/A | BR53: N/A | BS53: N/A | BT53: N/A | BU53: N/A | BV53: N/A | BW53: N/A | BX53: N/A | BY53: N/A
B54: Contaminated (E. coli detected in 100 mL) | C54: N/A | D54: N/A | E54: N/A | F54: N/A | G54: N/A | H54: N/A | I54: N/A | J54: N/A | K54: N/A | L54: N/A | M54: N/A | N54: N/A | O54: N/A | P54: N/A | Q54: N/A | R54: N/A | S54: N/A | T54: N/A | U54: N/A | V54: N/A | W54: N/A | X54: N/A | Y54: N/A | BB54: Contaminated (E. coli detected in 100 mL) | BC54: N/A | BD54: N/A | BE54: N/A | BF54: N/A | BG54: N/A | BH54: N/A | BI54: N/A | BJ54: N/A | BK54: N/A | BL54: N/A | BM54: N/A | BN54: N/A | BO54: N/A | BP54: N/A | BQ54: N/A | BR54: N/A | BS54: N/A | BT54: N/A | BU54: N/A | BV54: N/A | BW54: N/A | BX54: N/A | BY54: N/A
B55: Highly contaminated (>100 CFU/100 mL) | C55: N/A | D55: N/A | E55: N/A | F55: N/A | G55: N/A | H55: N/A | I55: N/A | J55: N/A | K55: N/A | L55: N/A | M55: N/A | N55: N/A | O55: N/A | P55: N/A | Q55: N/A | R55: N/A | S55: N/A | T55: N/A | U55: N/A | V55: N/A | W55: N/A | X55: N/A | Y55: N/A | BB55: Highly contaminated (>100 CFU/100 mL) | BC55: N/A | BD55: N/A | BE55: N/A | BF55: N/A | BG55: N/A | BH55: N/A | BI55: N/A | BJ55: N/A | BK55: N/A | BL55: N/A | BM55: N/A | BN55: N/A | BO55: N/A | BP55: N/A | BQ55: N/A | BR55: N/A | BS55: N/A | BT55: N/A | BU55: N/A | BV55: N/A | BW55: N/A | BX55: N/A | BY55: N/A
C56: NATIONAL wealth index quintile | H56: URBAN wealth index quintile | M56: RURAL wealth index quintile | R56: SUB-REGIONS: | BA56: Raw numbers of respondents: | BB56: Use of drinking water sources | BC56: NATIONAL wealth index quintile | BH56: URBAN wealth index quintile | BM56: RURAL wealth index quintile | BR56: SUB-REGIONS:
A57: Percentage based on weighted population | C57: Poorest | D57: Poor | E57: Middle | F57: Rich | G57: Richest | H57: Poorest | I57: Poor | J57: Middle | K57: Rich | L57: Richest | M57: Poorest | N57: Poor | O57: Middle | P57: Rich | Q57: Richest | R57: East | S57: Northeast | T57: Pelagonia | U57: Polog | V57: Skopje | W57: Southeast | X57: Southwest | Y57: Vardar | BA57: Water data, raw numbers (weighted) | BC57: Poorest | BD57: Poor | BE57: Middle | BF57: Rich | BG57: Richest | BH57: Poorest | BI57: Poor | BJ57: Middle | BK57: Rich | BL57: Richest | BM57: Poorest | BN57: Poor | BO57: Middle | BP57: Rich | BQ57: Richest | BR57: East | BS57: Northeast | BT57: Pelagonia | BU57: Polog | BV57: Skopje | BW57: Southeast | BX57: Southwest | BY57: Vardar
A58: Main source of drinking water | B58: Piped into dwelling | C58: 76 | D58: 86.8 | E58: 91.6 | F58: 91.7 | G58: 85.5 | H58: 95.3 | I58: 94.8 | J58: 93.5 | K58: 89 | L58: 83.9 | M58: 65.7 | N58: 81.2 | O58: 81.1 | P58: 84.2 | Q58: 88.4 | R58: 89.6 | S58: 70.1 | T58: 85.8 | U58: 94 | V58: 87.7 | W58: 86 | X58: 94.1 | Y58: 76.1
B59: Piped into compound, yard or plot | C59: 3.4 | D59: 0.7 | E59: 0.5 | F59: 0 | G59: 0 | H59: 0.2 | I59: 0.5 | J59: 0 | K59: 0 | L59: 0 | M59: 5.8 | N59: 1.5 | O59: 0.4 | P59: 1.8 | Q59: 0 | R59: 0.5 | S59: 0 | T59: 0.4 | U59: 0 | V59: 1.5 | W59: 3.6 | X59: 0.1 | Y59: 0.9
B60: Piped to neighbour | C60: 0.5 | D60: 0 | E60: 0.1 | F60: 0 | G60: 0 | H60: 0.1 | I60: 0 | J60: 0 | K60: 0 | L60: 0 | M60: 0.5 | N60: 0.6 | O60: 0 | P60: 0.1 | Q60: 0 | R60: 0.1 | S60: 0 | T60: 0 | U60: 0 | V60: 0.3 | W60: 0 | X60: 0.1 | Y60: 0
B61: Public tap / standpipe | C61: 1.5 | D61: 1.2 | E61: 0.2 | F61: 0.2 | G61: 0.3 | H61: 0.6 | I61: 0.3 | J61: 0.1 | K61: 0.6 | L61: 0 | M61: 2.7 | N61: 0.5 | O61: 2.1 | P61: 0 | Q61: 0.3 | R61: 0 | S61: 4.1 | T61: 0 | U61: 0.1 | V61: 0.2 | W61: 0 | X61: 0.4 | Y61: 2.4
B62: Tube well, Borehole | C62: 2.2 | D62: 2.3 | E62: 1.6 | F62: 0.3 | G62: 0 | H62: 0.2 | I62: 0.2 | J62: 0.3 | K62: 0 | L62: 0 | M62: 2.3 | N62: 2.7 | O62: 3.9 | P62: 3.4 | Q62: 1.4 | R62: 0.2 | S62: 3 | T62: 2.2 | U62: 1.6 | V62: 0 | W62: 4.6 | X62: 0 | Y62: 0.8
B63: Protected well | C63: 6.9 | D63: 4.4 | E63: 1.6 | F63: 1 | G63: 1.2 | H63: 0.7 | I63: 0.3 | J63: 1 | K63: 0.4 | L63: 0.3 | M63: 9.5 | N63: 6.5 | O63: 6.5 | P63: 5.1 | Q63: 3.1 | R63: 1.7 | S63: 14.6 | T63: 1.1 | U63: 1 | V63: 1 | W63: 0.4 | X63: 2.3 | Y63: 8.3
B64: Unprotected well | C64: 0.7 | D64: 0 | E64: 0.2 | F64: 0 | G64: 0 | H64: 0 | I64: 0 | J64: 0 | K64: 0 | L64: 0 | M64: 0.8 | N64: 0.7 | O64: 0 | P64: 0.4 | Q64: 0 | R64: 0.3 | S64: 0 | T64: 0 | U64: 0 | V64: 0.1 | W64: 1.4 | X64: 0 | Y64: 0
B65: Protected spring | C65: 7.4 | D65: 3.4 | E65: 1.5 | F65: 1.2 | G65: 0.8 | H65: 1 | I65: 0.7 | J65: 1 | K65: 1.2 | L65: 0.6 | M65: 10.8 | N65: 6.2 | O65: 5.5 | P65: 2.6 | Q65: 1.7 | R65: 4.9 | S65: 4.5 | T65: 3.9 | U65: 1.5 | V65: 2.7 | W65: 0 | X65: 1.2 | Y65: 5.1
B66: Unprotected spring | C66: 0.6 | D66: 0.2 | E66: 0.1 | F66: 0.4 | G66: 0 | H66: 0 | I66: 0 | J66: 0 | K66: 0 | L66: 0 | M66: 1.3 | N66: 0 | O66: 0 | P66: 0.7 | Q66: 1 | R66: 0 | S66: 1 | T66: 0 | U66: 0.3 | V66: 0.1 | W66: 1 | X66: 0.2 | Y66: 0
B67: Bottled water | C67: 0.7 | D67: 0.9 | E67: 2.5 | F67: 5.1 | G67: 12.2 | H67: 1.8 | I67: 3.2 | J67: 4.2 | K67: 8.8 | L67: 15.2 | M67: 0.5 | N67: 0.1 | O67: 0.4 | P67: 1.8 | Q67: 4.2 | R67: 2.6 | S67: 2.6 | T67: 6.6 | U67: 1.5 | V67: 6.4 | W67: 3 | X67: 1.5 | Y67: 6.4
A108: =A1026 -> North Macedonia
A109: =A1034 -> 2011
A110: Use of sanitation facilities
A111: by wealth quintile and sub-national region
A112: Notes:
A113: WHO/UNICEF JMP customised wealth index excludes water,
A114: sanitation and hygiene assets.
A115: Survey used for analysis: | B115: =A1025 -> MICS11
A116: =B1030 -> 
A117: =B1029 -> 
A120: Use of sanitation facilities | C120: NATIONAL wealth index quintile | H120: URBAN wealth index quintile | M120: RURAL wealth index quintile | R120: SUB-REGIONS: | BA120: Raw numbers of respondents: | BB120: Use of sanitation facilities | BC120: NATIONAL wealth index quintile | BH120: URBAN wealth index quintile | BM120: RURAL wealth index quintile | BR120: SUB-REGIONS:
A121: Weighted percentage (used in graphs) | C121: Poorest | D121: Poor | E121: Middle | F121: Rich | G121: Richest | H121: Poorest | I121: Poor | J121: Middle | K121: Rich | L121: Richest | M121: Poorest | N121: Poor | O121: Middle | P121: Rich | Q121: Richest | R121: East | S121: Northeast | T121: Pelagonia | U121: Polog | V121: Skopje | W121: Southeast | X121: Southwest | Y121: Vardar | BA121: Sanitation data, raw numbers (weighted) | BC121: Poorest | BD121: Poor | BE121: Middle | BF121: Rich | BG121: Richest | BH121: Poorest | BI121: Poor | BJ121: Middle | BK121: Rich | BL121: Richest | BM121: Poorest | BN121: Poor | BO121: Middle | BP121: Rich | BQ121: Richest | BR121: East | BS121: Northeast | BT121: Pelagonia | BU121: Polog | BV121: Skopje | BW121: Southeast | BX121: Southwest | BY121: Vardar
A122: Sanitation | B122: Improved | C122: =C153+C154+C155+C157+C158+C159+C161 -> 80.53546105 | D122: =D153+D154+D155+D157+D158+D159+D161 -> 93.44105029 | E122: 98.53845974 | F122: 99.57355786 | G122: 99.82027018 | H122: 99.15548665 | I122: 100 | J122: 100 | K122: 100 | L122: 100 | M122: 70.7038808 | N122: 83.92237792 | O122: 90.28363441 | P122: 95.23046416 | Q122: 97.71269119 | R122: 92.90107733 | S122: 96.45175759 | T122: 95.36777926 | U122: 82.68433604 | V122: 97.56155444 | W122: 93.82476829 | X122: 99.6532383 | Y122: 95.13136272 | BA122: Sanitation | BB122: Improved | BC122: 2376.542454 | BD122: 2762.214203 | BE122: 2911.477693 | BF122: 2936.664192 | BG122: 2947.613893 | BH122: 1626.864966 | BI122: 1644.650913 | BJ122: 1637.280847 | BK122: 1640.206403 | BL122: 1639.434013 | BM122: 927.0289441 | BN122: 1104.492268 | BO122: 1180.643846 | BP122: 1252.043169 | BQ122: 1281.867065 | BR122: 1147.583889 | BS122: 1413.613908 | BT122: 1865.895042 | BU122: 1702.785189 | BV122: 4247.282384 | BW122: 1213.109499 | BX122: 1332.381275 | BY122: 1011.861248
B123: Not Improved | C123: 19.46453895 | D123: 6.558949713 | E123: 1.461540259 | F123: 0.4264421422 | G123: 0.1797298239 | H123: 0.8445133543 | I123: 0 | J123: 0 | K123: 0 | L123: 0 | M123: 29.2961192 | N123: 16.07762208 | O123: 9.716365588 | P123: 4.769535839 | Q123: 2.28730881 | R123: 7.098922672 | S123: 3.548242413 | T123: 4.632220742 | U123: 17.31566396 | V123: 2.438445556 | W123: 6.175231712 | X123: 0.3467617011 | Y123: 4.868637281 | BB123: Not Improved | BC123: 574.3842845 | BD123: 193.8893452 | BE123: 43.1835638 | BF123: 12.57680649 | BG123: 5.307280025 | BH123: 13.85610858 | BI123: 0 | BJ123: 0 | BK123: 0 | BL123: 0 | BM123: 384.1139998 | BN123: 211.5956401 | BO123: 127.0614249 | BP123: 62.70750458 | BQ123: 30.00660196 | BR123: 87.69122514 | BS123: 52.00366431 | BT123: 90.63058597 | BU123: 356.5954272 | BV123: 106.1562304 | BW123: 79.84280041 | BX123: 4.636264766 | BY123: 51.78508174
A124: Sanitation ladder | B124: Basic | C124: =C122*C129/100 -> 75.65187705 | D124: =D122*D129/100 -> 91.68113841 | E124: =E122*E129/100 -> 98.12341722 | F124: 99.05291678 | G124: 99.74101243 | H124: 95.60780344 | I124: 99.42433084 | J124: 99.29336712 | K124: 100 | L124: 99.85724227 | M124: 65.81911027 | N124: 81.02555125 | O124: 88.30905909 | P124: 94.26903621 | Q124: 97.42414242 | R124: 88.51132595 | S124: 94.11789918 | T124: 94.12554461 | U124: 81.38555587 | V124: 96.90816695 | W124: 92.7309808 | X124: 97.96342682 | Y124: 93.14633697 | BA124: Sanitation ladder | BB124: Basic | BC124: 2226.683932 | BD124: 2705.5436 | BE124: 2899.214593 | BF124: 2921.309232 | BG124: 2945.273474 | BH124: 1565.104021 | BI124: 1635.183165 | BJ124: 1625.711282 | BK124: 1640.206403 | BL124: 1637.093594 | BM124: 860.7173869 | BN124: 1066.367482 | BO124: 1152.996519 | BP124: 1236.563305 | BQ124: 1278.08167 | BR124: 1093.358383 | BS124: 1376.609434 | BT124: 1841.590403 | BU124: 1676.038362 | BV124: 4212.759979 | BW124: 1198.967348 | BX124: 1307.953326 | BY124: 990.7475943
B125: Limited | C125: =C122*C128/100 -> 4.883583992 | D125: =D122*D128/100 -> 1.759911877 | E125: =E122*E128/100 -> 0.4150425204 | F125: 0.5206410791 | G125: 0.0792577466 | H125: 3.547683208 | I125: 0.5756691555 | J125: 0.7066328822 | K125: 0 | L125: 0.1427577299 | M125: 4.884770522 | N125: 2.896826666 | O125: 1.974575317 | P125: 0.9614279544 | Q125: 0.2885487691 | R125: 4.389751383 | S125: 2.333858407 | T125: 1.242234646 | U125: 1.298780167 | V125: 0.6533874964 | W125: 1.093787489 | X125: 1.689811484 | Y125: 1.985025749 | BB125: Limited | BC125: 143.7399629 | BD125: 51.93563689 | BE125: 12.26310055 | BF125: 15.35496016 | BG125: 2.34041878 | BH125: 58.07573291 | BI125: 9.467748025 | BJ125: 11.56956484 | BK125: 0 | BL125: 2.34041878 | BM125: 63.87820956 | BN125: 38.12478546 | BO125: 25.78080314 | BP125: 12.61142128 | BQ125: 3.785395319 | BR125: 54.2255064 | BS125: 34.13603076 | BT125: 24.30463921 | BU125: 26.746827 | BV125: 28.40384647 | BW125: 14.14215049 | BX125: 22.56142545 | BY125: 21.11365352
B126: Unimproved | C126: =100-C124-C125-C127 -> 16.79035112 | D126: =100-D124-D125-D127 -> 6.354246377 | E126: =100-E124-E125-E127 -> 1.461540259 | F126: 0.4264421422 | G126: 0.1797298239 | H126: 0.7875503012 | I126: -2.076117056e-14 | J126: -1.998401444e-15 | K126: -4.263256415e-14 | L126: 1.432187702e-14 | M126: 24.71137992 | N126: 14.44846014 | O126: 9.531302924 | P126: 4.769535839 | Q126: 2.28730881 | R126: 4.053892727 | S126: 3.548242413 | T126: 4.356747356 | U126: 17.31566396 | V126: 1.607789067 | W126: 5.736255631 | X126: 0.3467617011 | Y126: 4.868637281 | BB126: Unimproved | BC126: 495.6345824 | BD126: 187.8477952 | BE126: 43.1835638 | BF126: 12.57680649 | BG126: 5.307280025 | BH126: 12.92360297 | BI126: 0 | BJ126: 0 | BK126: 0 | BL126: 0 | BM126: 324.1130767 | BN126: 190.1544368 | BO126: 124.644805 | BP126: 62.70750458 | BQ126: 30.00660196 | BR126: 50.07672801 | BS126: 52.00366431 | BT126: 85.24087858 | BU126: 356.5954272 | BV126: 70.04493432 | BW126: 74.16704908 | BX126: 4.636264766 | BY126: 51.78508174
B127: Open defecation | C127: 2.674187833 | D127: 0.2047033354 | E127: 0 | F127: 0 | G127: 0 | H127: 0.0569630531 | I127: 0 | J127: 0 | K127: 0 | L127: 0 | M127: 4.584739289 | N127: 1.629161944 | O127: 0.1850626638 | P127: 0 | Q127: 0 | R127: 3.045029945 | S127: 0 | T127: 0.2754733856 | U127: 0 | V127: 0.8306564883 | W127: 0.4389760809 | X127: 0 | Y127: 0 | BB127: Open defecation | BC127: 78.74970203 | BD127: 6.041549925 | BE127: 0 | BF127: 0 | BG127: 0 | BH127: 0.9325056079 | BI127: 0 | BJ127: 0 | BK127: 0 | BL127: 0 | BM127: 60.00092304 | BN127: 21.44120334 | BO127: 2.41661997 | BP127: 0 | BQ127: 0 | BR127: 37.61449713 | BS127: 0 | BT127: 5.389707387 | BU127: 0 | BV127: 36.11129611 | BW127: 5.675751332 | BX127: 0 | BY127: 0
A128: Shared among Improved Sanitation | B128: Yes | C128: 6.06389276 | D128: 1.883446164 | E128: 0.4211985062 | F128: 0.5228708206 | G128: 0.07940045289 | H128: 3.577899044 | I128: 0.5756691555 | J128: 0.7066328822 | K128: 0 | L128: 0.1427577299 | M128: 6.908772852 | N128: 3.45179288 | O128: 2.187080006 | P128: 1.009580246 | Q128: 0.2953032668 | R128: 4.725188888 | S128: 2.419715789 | T128: 1.302572688 | U128: 1.5707693 | V128: 0.6697182103 | W128: 1.165776915 | X128: 1.695691492 | Y128: 2.086615489 | BA128: Shared among improved sanitation facilities | BB128: Yes | BC128: N/A | BD128: N/A | BE128: N/A | BF128: N/A | BG128: N/A | BH128: N/A | BI128: N/A | BJ128: N/A | BK128: N/A | BL128: N/A | BM128: N/A | BN128: N/A | BO128: N/A | BP128: N/A | BQ128: N/A | BR128: N/A | BS128: N/A | BT128: N/A | BU128: N/A | BV128: N/A | BW128: N/A | BX128: N/A | BY128: N/A
B129: No | C129: 93.93610724 | D129: 98.11655384 | E129: 99.57880149 | F129: 99.47712918 | G129: 99.92059955 | H129: 96.42210096 | I129: 99.42433084 | J129: 99.29336712 | K129: 100 | L129: 99.85724227 | M129: 93.09122715 | N129: 96.54820712 | O129: 97.81291999 | P129: 98.99041975 | Q129: 99.70469673 | R129: 95.27481111 | S129: 97.58028421 | T129: 98.69742731 | U129: 98.4292307 | V129: 99.33028179 | W129: 98.83422308 | X129: 98.30430851 | Y129: 97.91338451 | BB129: No | BC129: N/A | BD129: N/A | BE129: N/A | BF129: N/A | BG129: N/A | BH129: N/A | BI129: N/A | BJ129: N/A | BK129: N/A | BL129: N/A | BM129: N/A | BN129: N/A | BO129: N/A | BP129: N/A | BQ129: N/A | BR129: N/A | BS129: N/A | BT129: N/A | BU129: N/A | BV129: N/A | BW129: N/A | BX129: N/A | BY129: N/A
A130: Manually calculated ratios | B130: Improved latrines
B131: Other
B132: Other
C133: NATIONAL wealth index quintile | H133: URBAN wealth index quintile | M133: RURAL wealth index quintile | R133: SUB-REGIONS: | BA133: Raw numbers of respondents: | BB133: Use of sanitation facilities | BC133: NATIONAL wealth index quintile | BH133: URBAN wealth index quintile | BM133: RURAL wealth index quintile | BR133: SUB-REGIONS:
A134: Percentage based on weighted population | C134: Poorest | D134: Poor | E134: Middle | F134: Rich | G134: Richest | H134: Poorest | I134: Poor | J134: Middle | K134: Rich | L134: Richest | M134: Poorest | N134: Poor | O134: Middle | P134: Rich | Q134: Richest | R134: East | S134: Northeast | T134: Pelagonia | U134: Polog | V134: Skopje | W134: Southeast | X134: Southwest | Y134: Vardar | BA134: Sanitation data, raw numbers (weighted) | BC134: Poorest | BD134: Poor | BE134: Middle | BF134: Rich | BG134: Richest | BH134: Poorest | BI134: Poor | BJ134: Middle | BK134: Rich | BL134: Richest | BM134: Poorest | BN134: Poor | BO134: Middle | BP134: Rich | BQ134: Richest | BR134: East | BS134: Northeast | BT134: Pelagonia | BU134: Polog | BV134: Skopje | BW134: Southeast | BX134: Southwest | BY134: Vardar
A135: Sanitation type | B135: Sewer connection | C135: 32.0716132 | D135: 60.90838736 | E135: 76.37992023 | F135: 89.0001678 | G135: 93.81506532 | H135: 94.27411308 | I135: 98.49413104 | J135: 99.47899758 | K135: 98.9612725 | L135: 99.47896659 | M135: 12.81627281 | N135: 32.20710038 | O135: 39.67495896 | P135: 40.04077062 | Q135: 54.28527745 | R135: 82.977276 | S135: 74.33631329 | T135: 81.74034117 | U135: 36.8593931 | V135: 79.76187898 | W135: 52.37061732 | X135: 66.50062116 | Y135: 83.4244353 | BA135: Sanitation type | BB135: Sewer connection | BC135: N/A | BD135: N/A | BE135: N/A | BF135: N/A | BG135: N/A | BH135: N/A | BI135: N/A | BJ135: N/A | BK135: N/A | BL135: N/A | BM135: N/A | BN135: N/A | BO135: N/A | BP135: N/A | BQ135: N/A | BR135: N/A | BS135: N/A | BT135: N/A | BU135: N/A | BV135: N/A | BW135: N/A | BX135: N/A | BY135: N/A
B136: Septic tank connection | C136: 25.31456962 | D136: 24.09573091 | E136: 18.22485921 | F136: 9.026206844 | G136: 5.795124051 | H136: 2.383011433 | I136: 1.100001428 | J136: 0.521002419 | K136: 1.038727504 | L136: 0.5210334117 | M136: 24.2006315 | N136: 33.90405936 | O136: 38.35983738 | P136: 43.73235844 | Q136: 38.3958893 | R136: 0.3973278649 | S136: 6.680338269 | T136: 4.429261258 | U136: 44.81569663 | V136: 14.27497241 | W136: 21.74098077 | X136: 30.44731046 | Y136: 1.229900751 | BB136: Septic tank connection | BC136: N/A | BD136: N/A | BE136: N/A | BF136: N/A | BG136: N/A | BH136: N/A | BI136: N/A | BJ136: N/A | BK136: N/A | BL136: N/A | BM136: N/A | BN136: N/A | BO136: N/A | BP136: N/A | BQ136: N/A | BR136: N/A | BS136: N/A | BT136: N/A | BU136: N/A | BV136: N/A | BW136: N/A | BX136: N/A | BY136: N/A
B137: Improved latrines | C137: 23.14927823 | D137: 8.436932018 | E137: 3.933680296 | F137: 1.547183218 | G137: 0.2100808023 | H137: 2.498362133 | I137: 0.4058675331 | J137: 0 | K137: 0 | L137: 0 | M137: 33.68697648 | N137: 17.81121818 | O137: 12.24883807 | P137: 11.45733511 | Q137: 5.031524435 | R137: 9.52647346 | S137: 15.43510603 | T137: 9.198176829 | U137: 1.009246309 | V137: 3.524703052 | W137: 19.7131702 | X137: 2.705306684 | Y137: 10.47702667 | BB137: Improved latrines | BC137: N/A | BD137: N/A | BE137: N/A | BF137: N/A | BG137: N/A | BH137: N/A | BI137: N/A | BJ137: N/A | BK137: N/A | BL137: N/A | BM137: N/A | BN137: N/A | BO137: N/A | BP137: N/A | BQ137: N/A | BR137: N/A | BS137: N/A | BT137: N/A | BU137: N/A | BV137: N/A | BW137: N/A | BX137: N/A | BY137: N/A
B138: Unimproved facilities | C138: 16.79589588 | D138: 6.354574263 | E138: 1.461540259 | F138: 0.4264421422 | G138: 0.1797298239 | H138: 0.7876782454 | I138: 0 | J138: 0 | K138: 0 | L138: 0 | M138: 24.71988872 | N138: 14.44846014 | O138: 9.531567069 | P138: 4.769535839 | Q138: 2.28730881 | R138: 4.053892727 | S138: 3.548242413 | T138: 4.356747356 | U138: 17.31566396 | V138: 1.608956517 | W138: 5.736255631 | X138: 0.3467617011 | Y138: 4.868637281 | BB138: Unimproved facilities | BC138: N/A | BD138: N/A | BE138: N/A | BF138: N/A | BG138: N/A | BH138: N/A | BI138: N/A | BJ138: N/A | BK138: N/A | BL138: N/A | BM138: N/A | BN138: N/A | BO138: N/A | BP138: N/A | BQ138: N/A | BR138: N/A | BS138: N/A | BT138: N/A | BU138: N/A | BV138: N/A | BW138: N/A | BX138: N/A | BY138: N/A
B139: Open defecation | C139: 2.668643074 | D139: 0.2043754499 | E139: 0 | F139: 0 | G139: 0 | H139: 0.05683510881 | I139: 0 | J139: 0 | K139: 0 | L139: 0 | M139: 4.576230481 | N139: 1.629161944 | O139: 0.1847985188 | P139: 0 | Q139: 0 | R139: 3.045029945 | S139: 0 | T139: 0.2754733856 | U139: 0 | V139: 0.8294890385 | W139: 0.4389760809 | X139: 0 | Y139: 0 | BB139: Open defecation | BC139: N/A | BD139: N/A | BE139: N/A | BF139: N/A | BG139: N/A | BH139: N/A | BI139: N/A | BJ139: N/A | BK139: N/A | BL139: N/A | BM139: N/A | BN139: N/A | BO139: N/A | BP139: N/A | BQ139: N/A | BR139: N/A | BS139: N/A | BT139: N/A | BU139: N/A | BV139: N/A | BW139: N/A | BX139: N/A | BY139: N/A
A140: Septic tank emptying practices | B140: Not emptied/treated and disposed in situ | C140: N/A | D140: N/A | E140: N/A | F140: N/A | G140: N/A | H140: N/A | I140: N/A | J140: N/A | K140: N/A | L140: N/A | M140: N/A | N140: N/A | O140: N/A | P140: N/A | Q140: N/A | R140: N/A | S140: N/A | T140: N/A | U140: N/A | V140: N/A | W140: N/A | X140: N/A | Y140: N/A | BA140: Septic tank emptying practices | BB140: Not emptied/treated and disposed in situ | BC140: N/A | BD140: N/A | BE140: N/A | BF140: N/A | BG140: N/A | BH140: N/A | BI140: N/A | BJ140: N/A | BK140: N/A | BL140: N/A | BM140: N/A | BN140: N/A | BO140: N/A | BP140: N/A | BQ140: N/A | BR140: N/A | BS140: N/A | BT140: N/A | BU140: N/A | BV140: N/A | BW140: N/A | BX140: N/A | BY140: N/A
B141: Emptied and buried on site | C141: N/A | D141: N/A | E141: N/A | F141: N/A | G141: N/A | H141: N/A | I141: N/A | J141: N/A | K141: N/A | L141: N/A | M141: N/A | N141: N/A | O141: N/A | P141: N/A | Q141: N/A | R141: N/A | S141: N/A | T141: N/A | U141: N/A | V141: N/A | W141: N/A | X141: N/A | Y141: N/A | BB141: Emptied and buried on site | BC141: N/A | BD141: N/A | BE141: N/A | BF141: N/A | BG141: N/A | BH141: N/A | BI141: N/A | BJ141: N/A | BK141: N/A | BL141: N/A | BM141: N/A | BN141: N/A | BO141: N/A | BP141: N/A | BQ141: N/A | BR141: N/A | BS141: N/A | BT141: N/A | BU141: N/A | BV141: N/A | BW141: N/A | BX141: N/A | BY141: N/A
B142: Emptied and discharged locally | C142: N/A | D142: N/A | E142: N/A | F142: N/A | G142: N/A | H142: N/A | I142: N/A | J142: N/A | K142: N/A | L142: N/A | M142: N/A | N142: N/A | O142: N/A | P142: N/A | Q142: N/A | R142: N/A | S142: N/A | T142: N/A | U142: N/A | V142: N/A | W142: N/A | X142: N/A | Y142: N/A | BB142: Emptied and discharged locally | BC142: N/A | BD142: N/A | BE142: N/A | BF142: N/A | BG142: N/A | BH142: N/A | BI142: N/A | BJ142: N/A | BK142: N/A | BL142: N/A | BM142: N/A | BN142: N/A | BO142: N/A | BP142: N/A | BQ142: N/A | BR142: N/A | BS142: N/A | BT142: N/A | BU142: N/A | BV142: N/A | BW142: N/A | BX142: N/A | BY142: N/A
B143: Emptied and removed offsite | C143: N/A | D143: N/A | E143: N/A | F143: N/A | G143: N/A | H143: N/A | I143: N/A | J143: N/A | K143: N/A | L143: N/A | M143: N/A | N143: N/A | O143: N/A | P143: N/A | Q143: N/A | R143: N/A | S143: N/A | T143: N/A | U143: N/A | V143: N/A | W143: N/A | X143: N/A | Y143: N/A | BB143: Emptied and removed offsite | BC143: N/A | BD143: N/A | BE143: N/A | BF143: N/A | BG143: N/A | BH143: N/A | BI143: N/A | BJ143: N/A | BK143: N/A | BL143: N/A | BM143: N/A | BN143: N/A | BO143: N/A | BP143: N/A | BQ143: N/A | BR143: N/A | BS143: N/A | BT143: N/A | BU143: N/A | BV143: N/A | BW143: N/A | BX143: N/A | BY143: N/A
A144: Latrine emptying practices | B144: Not emptied/treated and disposed in situ | C144: N/A | D144: N/A | E144: N/A | F144: N/A | G144: N/A | H144: N/A | I144: N/A | J144: N/A | K144: N/A | L144: N/A | M144: N/A | N144: N/A | O144: N/A | P144: N/A | Q144: N/A | R144: N/A | S144: N/A | T144: N/A | U144: N/A | V144: N/A | W144: N/A | X144: N/A | Y144: N/A | BA144: Latrine emptying practices | BB144: Not emptied/treated and disposed in situ | BC144: N/A | BD144: N/A | BE144: N/A | BF144: N/A | BG144: N/A | BH144: N/A | BI144: N/A | BJ144: N/A | BK144: N/A | BL144: N/A | BM144: N/A | BN144: N/A | BO144: N/A | BP144: N/A | BQ144: N/A | BR144: N/A | BS144: N/A | BT144: N/A | BU144: N/A | BV144: N/A | BW144: N/A | BX144: N/A | BY144: N/A
B145: Emptied and buried on site | C145: N/A | D145: N/A | E145: N/A | F145: N/A | G145: N/A | H145: N/A | I145: N/A | J145: N/A | K145: N/A | L145: N/A | M145: N/A | N145: N/A | O145: N/A | P145: N/A | Q145: N/A | R145: N/A | S145: N/A | T145: N/A | U145: N/A | V145: N/A | W145: N/A | X145: N/A | Y145: N/A | BB145: Emptied and buried on site | BC145: N/A | BD145: N/A | BE145: N/A | BF145: N/A | BG145: N/A | BH145: N/A | BI145: N/A | BJ145: N/A | BK145: N/A | BL145: N/A | BM145: N/A | BN145: N/A | BO145: N/A | BP145: N/A | BQ145: N/A | BR145: N/A | BS145: N/A | BT145: N/A | BU145: N/A | BV145: N/A | BW145: N/A | BX145: N/A | BY145: N/A
B146: Emptied and discharged locally | C146: N/A | D146: N/A | E146: N/A | F146: N/A | G146: N/A | H146: N/A | I146: N/A | J146: N/A | K146: N/A | L146: N/A | M146: N/A | N146: N/A | O146: N/A | P146: N/A | Q146: N/A | R146: N/A | S146: N/A | T146: N/A | U146: N/A | V146: N/A | W146: N/A | X146: N/A | Y146: N/A | BB146: Emptied and discharged locally | BC146: N/A | BD146: N/A | BE146: N/A | BF146: N/A | BG146: N/A | BH146: N/A | BI146: N/A | BJ146: N/A | BK146: N/A | BL146: N/A | BM146: N/A | BN146: N/A | BO146: N/A | BP146: N/A | BQ146: N/A | BR146: N/A | BS146: N/A | BT146: N/A | BU146: N/A | BV146: N/A | BW146: N/A | BX146: N/A | BY146: N/A
B147: Emptied and removed offsite | C147: N/A | D147: N/A | E147: N/A | F147: N/A | G147: N/A | H147: N/A | I147: N/A | J147: N/A | K147: N/A | L147: N/A | M147: N/A | N147: N/A | O147: N/A | P147: N/A | Q147: N/A | R147: N/A | S147: N/A | T147: N/A | U147: N/A | V147: N/A | W147: N/A | X147: N/A | Y147: N/A | BB147: Emptied and removed offsite | BC147: N/A | BD147: N/A | BE147: N/A | BF147: N/A | BG147: N/A | BH147: N/A | BI147: N/A | BJ147: N/A | BK147: N/A | BL147: N/A | BM147: N/A | BN147: N/A | BO147: N/A | BP147: N/A | BQ147: N/A | BR147: N/A | BS147: N/A | BT147: N/A | BU147: N/A | BV147: N/A | BW147: N/A | BX147: N/A | BY147: N/A
A148: Shared among improved sanitation facilities | B148: Yes | C148: 4.871010895 | D148: 1.75689505 | E148: 0.4150425204 | F148: 0.5206410791 | G148: 0.0792577466 | H148: 3.539646916 | I148: 0.5756691555 | J148: 0.7066328822 | K148: 0 | L148: 0.1427577299 | M148: 4.871948544 | N148: 2.896826666 | O148: 1.971453638 | P148: 0.9592253138 | Q148: 0.2885487691 | R148: 4.389751383 | S148: 2.329122645 | T148: 1.242234646 | U148: 1.298780167 | V148: 0.652446238 | W148: 1.093787489 | X148: 1.687444239 | Y148: 1.985025749 | BA148: Shared among improved sanitation facilities | BB148: Yes | BC148: N/A | BD148: N/A | BE148: N/A | BF148: N/A | BG148: N/A | BH148: N/A | BI148: N/A | BJ148: N/A | BK148: N/A | BL148: N/A | BM148: N/A | BN148: N/A | BO148: N/A | BP148: N/A | BQ148: N/A | BR148: N/A | BS148: N/A | BT148: N/A | BU148: N/A | BV148: N/A | BW148: N/A | BX148: N/A | BY148: N/A
B149: No | C149: 75.4571065 | D149: 91.52397931 | E149: 98.12341722 | F149: 99.05291678 | G149: 99.74101243 | H149: 95.39123046 | I149: 99.42433084 | J149: 99.29336712 | K149: 100 | L149: 99.85724227 | M149: 65.64634245 | N149: 81.02555125 | O149: 88.16944804 | P149: 94.05306494 | Q149: 97.42414242 | R149: 88.51132595 | S149: 93.9269193 | T149: 94.12554461 | U149: 81.38555587 | V149: 96.76856277 | W149: 92.7309808 | X149: 97.82619055 | Y149: 93.14633697 | BB149: No | BC149: N/A | BD149: N/A | BE149: N/A | BF149: N/A | BG149: N/A | BH149: N/A | BI149: N/A | BJ149: N/A | BK149: N/A | BL149: N/A | BM149: N/A | BN149: N/A | BO149: N/A | BP149: N/A | BQ149: N/A | BR149: N/A | BS149: N/A | BT149: N/A | BU149: N/A | BV149: N/A | BW149: N/A | BX149: N/A | BY149: N/A
B150: DK/missing | C150: 19.6718826 | D150: 6.71912564 | E150: 1.461540259 | F150: 0.4264421422 | G150: 0.1797298239 | H150: 1.069122623 | I150: 0 | J150: 0 | K150: 0 | L150: 0 | M150: 29.48170901 | N150: 16.07762208 | O150: 9.859098317 | P150: 4.987709742 | Q150: 2.28730881 | R150: 7.098922672 | S150: 3.743958056 | T150: 4.632220742 | U150: 17.31566396 | V150: 2.57899099 | W150: 6.175231712 | X150: 0.4863652113 | Y150: 4.868637281 | BB150: DK/missing | BC150: N/A | BD150: N/A | BE150: N/A | BF150: N/A | BG150: N/A | BH150: N/A | BI150: N/A | BJ150: N/A | BK150: N/A | BL150: N/A | BM150: N/A | BN150: N/A | BO150: N/A | BP150: N/A | BQ150: N/A | BR150: N/A | BS150: N/A | BT150: N/A | BU150: N/A | BV150: N/A | BW150: N/A | BX150: N/A | BY150: N/A
A151: Shared among all sanitation facilities | B151: Yes | C151: 5.572222061 | D151: 1.787599907 | E151: 0.5572002599 | F151: 0.5206410791 | G151: 0.0792577466 | H151: 3.965942774 | I151: 0.5756691555 | J151: 0.7066328822 | K151: 0 | L151: 0.1427577299 | M151: 5.646990673 | N151: 3.143552431 | O151: 2.036367339 | P151: 1.278698788 | Q151: 0.2885487691 | R151: 4.839061084 | S151: 2.329122645 | T151: 1.245666125 | U151: 1.298780167 | V151: 0.6579034752 | W151: 1.098610125 | X151: 1.687444239 | Y151: 3.637270943 | BA151: Shared among all sanitation facilities | BB151: Yes | BC151: N/A | BD151: N/A | BE151: N/A | BF151: N/A | BG151: N/A | BH151: N/A | BI151: N/A | BJ151: N/A | BK151: N/A | BL151: N/A | BM151: N/A | BN151: N/A | BO151: N/A | BP151: N/A | BQ151: N/A | BR151: N/A | BS151: N/A | BT151: N/A | BU151: N/A | BV151: N/A | BW151: N/A | BX151: N/A | BY151: N/A
B152: No | C152: 94.17238863 | D152: 98.01768995 | E152: 99.35026242 | F152: 99.47935892 | G152: 99.92074225 | H152: 95.80932023 | I152: 99.42433084 | J152: 99.29336712 | K152: 100 | L152: 99.85724227 | M152: 94.06127415 | N152: 96.85644757 | O152: 97.82063568 | P152: 98.21841417 | Q152: 99.71145123 | R152: 95.16093892 | S152: 97.47516171 | T152: 98.75433388 | U152: 98.51945314 | V152: 99.17219435 | W152: 98.90138988 | X152: 98.17295225 | Y152: 96.36272906 | BB152: No | BC152: N/A | BD152: N/A | BE152: N/A | BF152: N/A | BG152: N/A | BH152: N/A | BI152: N/A | BJ152: N/A | BK152: N/A | BL152: N/A | BM152: N/A | BN152: N/A | BO152: N/A | BP152: N/A | BQ152: N/A | BR152: N/A | BS152: N/A | BT152: N/A | BU152: N/A | BV152: N/A | BW152: N/A | BX152: N/A | BY152: N/A
A153: Type of toilet facility | B153: Flush to piped sewer system | C153: 32.0716132 | D153: 60.90838736 | E153: 76.37992023 | F153: 89.0001678 | G153: 93.81506532 | H153: 94.27411308 | I153: 98.49413104 | J153: 99.47899758 | K153: 98.9612725 | L153: 99.47896659 | M153: 12.81627281 | N153: 32.20710038 | O153: 39.67495896 | P153: 40.04077062 | Q153: 54.28527745 | R153: 82.977276 | S153: 74.33631329 | T153: 81.74034117 | U153: 36.8593931 | V153: 79.76187898 | W153: 52.37061732 | X153: 66.50062116 | Y153: 83.4244353 | BA153: Type of toilet facility | BB153: Flush to piped sewer system | BC153: 946.4098092 | BD153: 1800.515 | BE153: 2256.767911 | BF153: 2624.829438 | BG153: 2770.284927 | BH153: 1546.775241 | BI153: 1619.884626 | BJ153: 1628.750574 | BK153: 1623.169128 | BL153: 1630.892014 | BM153: 168.0396566 | BN153: 423.8737535 | BO153: 518.8315295 | BP153: 526.4363015 | BQ153: 712.15426 | BR153: 1024.997641 | BS153: 1089.48607 | BT153: 1599.270724 | BU153: 759.0751967 | BV153: 3472.384439 | BW153: 677.1271008 | BX153: 889.124969 | BY153: 887.3409441
B154: Flush to septic tank | C154: 25.31456962 | D154: 24.09573091 | E154: 18.22485921 | F154: 9.026206844 | G154: 5.795124051 | H154: 2.383011433 | I154: 1.100001428 | J154: 0.521002419 | K154: 1.038727504 | L154: 0.5210334117 | M154: 24.2006315 | N154: 33.90405936 | O154: 38.35983738 | P154: 43.73235844 | Q154: 38.3958893 | R154: 0.3973278649 | S154: 6.680338269 | T154: 4.429261258 | U154: 44.81569663 | V154: 14.27497241 | W154: 21.74098077 | X154: 30.44731046 | Y154: 1.229900751 | BB154: Flush to septic tank | BC154: 747.0144037 | BD154: 712.2947564 | BE154: 538.4828543 | BF154: 266.2045929 | BG154: 171.1254451 | BH154: 39.09857079 | BI154: 18.09118353 | BJ154: 8.53027282 | BK154: 17.03727503 | BL154: 8.541998969 | BM154: 317.3048723 | BN154: 446.2072254 | BO154: 501.6336153 | BP154: 574.9714772 | BQ154: 503.705561 | BR154: 4.908092237 | BS154: 97.90821156 | BT154: 86.65963165 | BU154: 922.9257695 | BV154: 621.4521612 | BW154: 281.1005108 | BX154: 407.0858812 | BY154: 13.08179419
B155: Flush to pit (latrine) | C155: 1.195043555 | D155: 1.355421081 | E155: 1.043481699 | F155: 0 | G155: 0 | H155: 0.1209229542 | I155: 0 | J155: 0 | K155: 0 | L155: 0 | M155: 1.513855707 | N155: 1.522357228 | O155: 1.885172485 | P155: 2.180356899 | Q155: 0.8367210333 | R155: 0.4399600419 | S155: 1.813603075 | T155: 1.766747276 | U155: 0.2680517381 | V155: 0.5265285721 | W155: 0 | X155: 0.833159653 | Y155: 0 | BB155: Flush to pit (latrine) | BC155: 35.2648598 | BD155: 40.06765065 | BE155: 30.83134947 | BF155: 0 | BG155: 0 | BH155: 1.984008393 | BI155: 0 | BJ155: 0 | BK155: 0 | BL155: 0 | BM155: 19.84881228 | BN155: 20.03555939 | BO155: 24.65249994 | BP155: 28.66625701 | BQ155: 10.9767229 | BR155: 5.43471691 | BS155: 26.58048536 | BT155: 34.56686324 | BU155: 5.520205537 | BV155: 22.92209818 | BW155: 0 | BX155: 11.1394907 | BY155: 0
B156: Flush to somewhere else | C156: 10.3025371 | D156: 4.010334362 | E156: 1.258972783 | F156: 0.2424664047 | G156: 0.1797298239 | H156: 0 | I156: 0 | J156: 0 | K156: 0 | L156: 0 | M156: 14.07809101 | N156: 10.71679992 | O156: 6.335959205 | P156: 2.978796477 | Q156: 1.873710457 | R156: 0 | S156: 1.139601717 | T156: 3.306787141 | U156: 16.63189493 | V156: 1.069293387 | W156: 0 | X156: 0.1317219569 | Y156: 0 | BB156: Flush to somewhere else | BC156: 304.020322 | BD156: 118.5496363 | BE156: 37.19838105 | BF156: 7.150918616 | BG156: 5.307280025 | BH156: 0 | BI156: 0 | BJ156: 0 | BK156: 0 | BL156: 0 | BM156: 184.5838969 | BN156: 141.0425079 | BO156: 82.85567247 | BP156: 39.16374675 | BQ156: 24.58071408 | BR156: 0 | BS156: 16.70220302 | BT156: 64.69813789 | BU156: 342.5140202 | BV156: 46.55103122 | BW156: 0 | BX156: 1.761145668 | BY156: 0
B157: Flush to unknown place / Not sure / DK where | C157: 1.34988302 | D157: 0.5776700657 | E157: 0.4403524514 | F157: 0 | G157: 0 | H157: 0 | I157: 0 | J157: 0 | K157: 0 | L157: 0 | M157: 1.8553756 | N157: 1.178297636 | O157: 1.30583899 | P157: 0.9896114552 | Q157: 0 | R157: 0.9114220004 | S157: 1.742433358 | T157: 0.171901933 | U157: 0.7010470748 | V157: 0.3208021014 | W157: 0 | X157: 0.1016496321 | Y157: 0 | BB157: Flush to unknown place / Not sure / DK where | BC157: 39.83405897 | BD157: 17.07652531 | BE157: 13.01092327 | BF157: 0 | BG157: 0 | BH157: 0 | BI157: 0 | BJ157: 0 | BK157: 0 | BL157: 0 | BM157: 24.32662626 | BN157: 15.50743271 | BO157: 17.07652531 | BP157: 13.01092327 | BQ157: 0 | BR157: 11.25856916 | BS157: 25.53740948 | BT157: 3.363305375 | BU157: 14.43722757 | BV157: 13.96592256 | BW157: 0 | BX157: 1.35907341 | BY157: 0
B158: Ventilated Improved Pit latrine (VIP) | C158: 2.652481514 | D158: 1.036138477 | E158: 0.2305582885 | F158: 0 | G158: 0 | H158: 0.9257005374 | I158: 0.05027144367 | J158: 0 | K158: 0 | L158: 0 | M158: 3.8503025 | N158: 1.497428201 | O158: 1.271652027 | P158: 0.7364616748 | Q158: 0.2436849685 | R158: 0.5410269538 | S158: 0.9286463428 | T158: 1.064958661 | U158: 0.04014749634 | V158: 1.176863078 | W158: 0.06128042006 | X158: 0.05456681089 | Y158: 1.974516154 | BB158: Ventilated Improved Pit latrine (VIP) | BC158: 78.27278622 | BD158: 30.62932628 | BE158: 6.812216425 | BF158: 0 | BG158: 0 | BH158: 15.1881638 | BI158: 0.8267897576 | BJ158: 0 | BK158: 0 | BL158: 0 | BM158: 50.48296955 | BN158: 19.70747148 | BO158: 16.62946058 | BP158: 9.682634832 | BQ158: 3.196838932 | BR158: 6.683171322 | BS158: 13.61040399 | BT158: 20.83618914 | BU158: 0.8267897576 | BV158: 51.2340117 | BW158: 0.7923266002 | BX158: 0.7295678326 | BY158: 21.00186859
B159: Pit latrine with slab | C159: 15.87290423 | D159: 5.467702395 | E159: 2.219287858 | F159: 1.407847711 | G159: 0.2100808023 | H159: 1.451738641 | I159: 0.3555960894 | J159: 0 | K159: 0 | L159: 0 | M159: 22.05705632 | N159: 13.34550168 | O159: 7.786174565 | P159: 7.550905078 | Q159: 3.637876389 | R159: 2.952802063 | S159: 10.95042326 | T159: 6.194568958 | U159: 0 | V159: 1.5005093 | W159: 19.65188978 | X159: 1.145135442 | Y159: 8.502510514 | BB159: Pit latrine with slab | BC159: 468.3977752 | BD159: 161.6309445 | BE159: 65.57243851 | BF159: 41.5208219 | BG159: 6.203520492 | BH159: 23.81898183 | BI159: 5.848314333 | BJ159: 0 | BK159: 0 | BL159: 0 | BM159: 289.1995376 | BN159: 175.6385338 | BO159: 101.8202152 | BP159: 99.27557538 | BQ159: 47.72434239 | BR159: 36.47522906 | BS159: 160.4913275 | BT159: 121.1983292 | BU159: 0 | BV159: 65.3237513 | BW159: 254.0895608 | BX159: 15.31066171 | BY159: 90.43664101
B160: Pit latrine without slab / Open pit | C160: 5.828532231 | D160: 2.006270792 | E160: 0.2025674766 | F160: 0 | G160: 0 | H160: 0.3226954091 | I160: 0 | J160: 0 | K160: 0 | L160: 0 | M160: 10.12060151 | N160: 3.339904799 | O160: 2.508785438 | P160: 1.713986881 | Q160: 0 | R160: 3.697555064 | S160: 2.408640696 | T160: 1.049960215 | U160: 0 | V160: 0.3160859501 | W160: 5.736255631 | X160: 0.2150397442 | Y160: 4.227569267 | BB160: Pit latrine without slab / Open pit | BC160: 171.9957161 | BD160: 59.30744205 | BE160: 5.985182749 | BF160: 0 | BG160: 0 | BH160: 5.294531584 | BI160: 0 | BJ160: 0 | BK160: 0 | BL160: 0 | BM160: 132.6955526 | BN160: 43.95608319 | BO160: 32.8075194 | BP160: 22.53465407 | BQ160: 0 | BR160: 45.67497755 | BS160: 35.30146129 | BT160: 20.54274069 | BU160: 0 | BV160: 13.76060781 | BW160: 74.16704908 | BX160: 2.875119098 | BY160: 44.96638534
B161: Composting toilet | C161: 2.078965906 | D161: 0 | E161: 0 | F161: 0.1393355068 | G161: 0 | H161: 0 | I161: 0 | J161: 0 | K161: 0 | L161: 0 | M161: 4.410386353 | N161: 0.2676334396 | O161: 0 | P161: 0 | Q161: 0.3132420441 | R161: 4.6812624 | S161: 0 | T161: 0 | U161: 0 | V161: 0 | W161: 0 | X161: 0.5707951466 | Y161: 0 | BB161: Composting toilet | BC161: 61.3487608 | BD161: 0 | BE161: 0 | BF161: 4.109339891 | BG161: 0 | BH161: 0 | BI161: 0 | BJ161: 0 | BK161: 0 | BL161: 0 | BM161: 57.82646946 | BN161: 3.522291335 | BO161: 0 | BP161: 0 | BQ161: 4.109339891 | BR161: 57.82646946 | BS161: 0 | BT161: 0 | BU161: 0 | BV161: 0 | BW161: 0 | BX161: 7.631631226 | BY161: 0
B162: Hanging toilet, Hanging latrine | C162: 0.1204234712 | D162: 0 | E162: 0 | F162: 0 | G162: 0 | H162: 0 | I162: 0 | J162: 0 | K162: 0 | L162: 0 | M162: 0 | N162: 0.2700129976 | O162: 0 | P162: 0 | Q162: 0 | R162: 0 | S162: 0 | T162: 0 | U162: 0 | V162: 0.08162762187 | W162: 0 | X162: 0 | Y162: 0 | BB162: Hanging toilet, Hanging latrine | BC162: 3.553608411 | BD162: 0 | BE162: 0 | BF162: 0 | BG162: 0 | BH162: 0 | BI162: 0 | BJ162: 0 | BK162: 0 | BL162: 0 | BM162: 0 | BN162: 3.553608411 | BO162: 0 | BP162: 0 | BQ162: 0 | BR162: 0 | BS162: 0 | BT162: 0 | BU162: 0 | BV162: 3.553608411 | BW162: 0 | BX162: 0 | BY162: 0
B163: No facility, Bush, Field | C163: 2.668643074 | D163: 0.2043754499 | E163: 0 | F163: 0 | G163: 0 | H163: 0.05683510881 | I163: 0 | J163: 0 | K163: 0 | L163: 0 | M163: 4.576230481 | N163: 1.629161944 | O163: 0.1847985188 | P163: 0 | Q163: 0 | R163: 3.045029945 | S163: 0 | T163: 0.2754733856 | U163: 0 | V163: 0.8294890385 | W163: 0.4389760809 | X163: 0 | Y163: 0 | BB163: No facility, Bush, Field | BC163: 78.74970203 | BD163: 6.041549925 | BE163: 0 | BF163: 0 | BG163: 0 | BH163: 0.9325056079 | BI163: 0 | BJ163: 0 | BK163: 0 | BL163: 0 | BM163: 60.00092304 | BN163: 21.44120334 | BO163: 2.41661997 | BP163: 0 | BQ163: 0 | BR163: 37.61449713 | BS163: 0 | BT163: 5.389707387 | BU163: 0 | BV163: 36.11129611 | BW163: 5.675751332 | BX163: 0 | BY163: 0
B164: Other | C164: 0.5444030773 | D164: 0.04516748984 | E164: 0 | F164: 0 | G164: 0 | H164: 0.4649828363 | I164: 0 | J164: 0 | K164: 0 | L164: 0 | M164: 0.5211962047 | N164: 0.1217424242 | O164: 0.1021023467 | P164: 0 | Q164: 0 | R164: 0.3563376621 | S164: 0 | T164: 0 | U164: 0 | V164: 0.1419495582 | W164: 0 | X164: 0 | Y164: 0.641068014 | BB164: Other | BC164: 16.06493597 | BD164: 1.33519777 | BE164: 0 | BF164: 0 | BG164: 0 | BH164: 7.629071388 | BI164: 0 | BJ164: 0 | BK164: 0 | BL164: 0 | BM164: 6.833627262 | BN164: 1.602237323 | BO164: 1.33519777 | BP164: 0 | BQ164: 0 | BR164: 4.401750463 | BS164: 0 | BT164: 0 | BU164: 0 | BV164: 6.179686878 | BW164: 0 | BX164: 0 | BY164: 6.818696402
B165: Missing | C165: 0 | D165: 0.2928016197 | E165: 0 | F165: 0.1839757375 | G165: 0 | H165: 0 | I165: 0 | J165: 0 | K165: 0 | L165: 0 | M165: 0 | N165: 0 | O165: 0.58472008 | P165: 0.07675248111 | Q165: 0.4135983528 | R165: 0 | S165: 0 | T165: 0 | U165: 0.683769034 | V165: 0 | W165: 0 | X165: 0 | Y165: 0 | BB165: Missing | BC165: 0 | BD165: 8.655519068 | BE165: 0 | BF165: 5.425887878 | BG165: 0 | BH165: 0 | BI165: 0 | BJ165: 0 | BK165: 0 | BL165: 0 | BM165: 0 | BN165: 0 | BO165: 7.646415306 | BP165: 1.009103763 | BQ165: 5.425887878 | BR165: 0 | BS165: 0 | BT165: 0 | BU165: 14.08140695 | BV165: 0 | BW165: 0 | BX165: 0 | BY165: 0
BB166: Total | BC166: 2950.926738 | BD166: 2956.103548 | BE166: 2954.661257 | BF166: 2949.240999 | BG166: 2952.921173 | BH166: 1640.721075 | BI166: 1644.650913 | BJ166: 1637.280847 | BK166: 1640.206403 | BL166: 1639.434013 | BM166: 1311.142944 | BN166: 1316.087908 | BO166: 1307.705271 | BP166: 1314.750674 | BQ166: 1311.873667 | BR166: 1235.275114 | BS166: 1465.617572 | BT166: 1956.525628 | BU166: 2059.380616 | BV166: 4353.438615 | BW166: 1292.952299 | BX166: 1337.01754 | BY166: 1063.64633
A208: =A1026 -> North Macedonia
A209: =A1034 -> 2011
A210: Access to hygiene facilities
A211: by wealth quintile and sub-national region
A212: Notes:
A213: WHO/UNICEF JMP customised wealth index excludes water,
A214: sanitation and hygiene assets.
A215: Survey used for analysis: | B215: =A1025 -> MICS11
A220: Access to handwashing | C220: NATIONAL wealth index quintile | H220: URBAN wealth index quintile | M220: RURAL wealth index quintile | R220: SUB-REGIONS: | BA220: Raw numbers of respondents: | BB220: Access to handwashing | BC220: NATIONAL wealth index quintile | BH220: URBAN wealth index quintile | BM220: RURAL wealth index quintile | BR220: SUB-REGIONS:
A221: Weighted percentage (used in graphs) | C221: Poorest | D221: Poor | E221: Middle | F221: Rich | G221: Richest | H221: Poorest | I221: Poor | J221: Middle | K221: Rich | L221: Richest | M221: Poorest | N221: Poor | O221: Middle | P221: Rich | Q221: Richest | R221: East | S221: Northeast | T221: Pelagonia | U221: Polog | V221: Skopje | W221: Southeast | X221: Southwest | Y221: Vardar | BA221: Hygiene data, raw numbers (weighted) | BC221: Poorest | BD221: Poor | BE221: Middle | BF221: Rich | BG221: Richest | BH221: Poorest | BI221: Poor | BJ221: Middle | BK221: Rich | BL221: Richest | BM221: Poorest | BN221: Poor | BO221: Middle | BP221: Rich | BQ221: Richest | BR221: East | BS221: Northeast | BT221: Pelagonia | BU221: Polog | BV221: Skopje | BW221: Southeast | BX221: Southwest | BY221: Vardar
A222: Hygiene ladder | B222: Basic | C222: N/A | D222: N/A | E222: N/A | F222: N/A | G222: N/A | H222: N/A | I222: N/A | J222: N/A | K222: N/A | L222: N/A | M222: N/A | N222: N/A | O222: N/A | P222: N/A | Q222: N/A | R222: N/A | S222: N/A | T222: N/A | U222: N/A | V222: N/A | W222: N/A | X222: N/A | Y222: N/A | BA222: Hygiene ladder | BB222: Basic | BC222: N/A | BD222: N/A | BE222: N/A | BF222: N/A | BG222: N/A | BH222: N/A | BI222: N/A | BJ222: N/A | BK222: N/A | BL222: N/A | BM222: N/A | BN222: N/A | BO222: N/A | BP222: N/A | BQ222: N/A | BR222: N/A | BS222: N/A | BT222: N/A | BU222: N/A | BV222: N/A | BW222: N/A | BX222: N/A | BY222: N/A
B223: Limited | C223: N/A | D223: N/A | E223: N/A | F223: N/A | G223: N/A | H223: N/A | I223: N/A | J223: N/A | K223: N/A | L223: N/A | M223: N/A | N223: N/A | O223: N/A | P223: N/A | Q223: N/A | R223: N/A | S223: N/A | T223: N/A | U223: N/A | V223: N/A | W223: N/A | X223: N/A | Y223: N/A | BB223: Limited | BC223: N/A | BD223: N/A | BE223: N/A | BF223: N/A | BG223: N/A | BH223: N/A | BI223: N/A | BJ223: N/A | BK223: N/A | BL223: N/A | BM223: N/A | BN223: N/A | BO223: N/A | BP223: N/A | BQ223: N/A | BR223: N/A | BS223: N/A | BT223: N/A | BU223: N/A | BV223: N/A | BW223: N/A | BX223: N/A | BY223: N/A
B224: No facility | C224: N/A | D224: N/A | E224: N/A | F224: N/A | G224: N/A | H224: N/A | I224: N/A | J224: N/A | K224: N/A | L224: N/A | M224: N/A | N224: N/A | O224: N/A | P224: N/A | Q224: N/A | R224: N/A | S224: N/A | T224: N/A | U224: N/A | V224: N/A | W224: N/A | X224: N/A | Y224: N/A | BB224: No facility | BC224: N/A | BD224: N/A | BE224: N/A | BF224: N/A | BG224: N/A | BH224: N/A | BI224: N/A | BJ224: N/A | BK224: N/A | BL224: N/A | BM224: N/A | BN224: N/A | BO224: N/A | BP224: N/A | BQ224: N/A | BR224: N/A | BS224: N/A | BT224: N/A | BU224: N/A | BV224: N/A | BW224: N/A | BX224: N/A | BY224: N/A
BA225: Observed handwashing place | BB225: Fixed | BC225: N/A | BD225: N/A | BE225: N/A | BF225: N/A | BG225: N/A | BH225: N/A | BI225: N/A | BJ225: N/A | BK225: N/A | BL225: N/A | BM225: N/A | BN225: N/A | BO225: N/A | BP225: N/A | BQ225: N/A | BR225: N/A | BS225: N/A | BT225: N/A | BU225: N/A | BV225: N/A | BW225: N/A | BX225: N/A | BY225: N/A
BB226: Mobile | BC226: N/A | BD226: N/A | BE226: N/A | BF226: N/A | BG226: N/A | BH226: N/A | BI226: N/A | BJ226: N/A | BK226: N/A | BL226: N/A | BM226: N/A | BN226: N/A | BO226: N/A | BP226: N/A | BQ226: N/A | BR226: N/A | BS226: N/A | BT226: N/A | BU226: N/A | BV226: N/A | BW226: N/A | BX226: N/A | BY226: N/A
BA227: Water / Soap | BB227: Water and soap | BC227: N/A | BD227: N/A | BE227: N/A | BF227: N/A | BG227: N/A | BH227: N/A | BI227: N/A | BJ227: N/A | BK227: N/A | BL227: N/A | BM227: N/A | BN227: N/A | BO227: N/A | BP227: N/A | BQ227: N/A | BR227: N/A | BS227: N/A | BT227: N/A | BU227: N/A | BV227: N/A | BW227: N/A | BX227: N/A | BY227: N/A
BB228: Water only | BC228: N/A | BD228: N/A | BE228: N/A | BF228: N/A | BG228: N/A | BH228: N/A | BI228: N/A | BJ228: N/A | BK228: N/A | BL228: N/A | BM228: N/A | BN228: N/A | BO228: N/A | BP228: N/A | BQ228: N/A | BR228: N/A | BS228: N/A | BT228: N/A | BU228: N/A | BV228: N/A | BW228: N/A | BX228: N/A | BY228: N/A
BB229: Soap only | BC229: N/A | BD229: N/A | BE229: N/A | BF229: N/A | BG229: N/A | BH229: N/A | BI229: N/A | BJ229: N/A | BK229: N/A | BL229: N/A | BM229: N/A | BN229: N/A | BO229: N/A | BP229: N/A | BQ229: N/A | BR229: N/A | BS229: N/A | BT229: N/A | BU229: N/A | BV229: N/A | BW229: N/A | BX229: N/A | BY229: N/A
BB230: Neither | BC230: N/A | BD230: N/A | BE230: N/A | BF230: N/A | BG230: N/A | BH230: N/A | BI230: N/A | BJ230: N/A | BK230: N/A | BL230: N/A | BM230: N/A | BN230: N/A | BO230: N/A | BP230: N/A | BQ230: N/A | BR230: N/A | BS230: N/A | BT230: N/A | BU230: N/A | BV230: N/A | BW230: N/A | BX230: N/A | BY230: N/A
BA259: Raw numbers of respondents: | BB259: Menstrual health and hygiene | BC259: NATIONAL wealth index quintile | BH259: URBAN wealth index quintile | BM259: RURAL wealth index quintile | BR259: SUB-REGIONS:
BA260: MHH data, raw numbers (weighted) | BC260: Poorest | BD260: Poor | BE260: Middle | BF260: Rich | BG260: Richest | BH260: Poorest | BI260: Poor | BJ260: Middle | BK260: Rich | BL260: Richest | BM260: Poorest | BN260: Poor | BO260: Middle | BP260: Rich | BQ260: Richest | BR260: East | BS260: Northeast | BT260: Pelagonia | BU260: Polog | BV260: Skopje | BW260: Southeast | BX260: Southwest | BY260: Vardar
BA261: Private place to wash and change | BB261: Yes | BC261: N/A | BD261: N/A | BE261: N/A | BF261: N/A | BG261: N/A | BH261: N/A | BI261: N/A | BJ261: N/A | BK261: N/A | BL261: N/A | BM261: N/A | BN261: N/A | BO261: N/A | BP261: N/A | BQ261: N/A | BR261: N/A | BS261: N/A | BT261: N/A | BU261: N/A | BV261: N/A | BW261: N/A | BX261: N/A | BY261: N/A
BB262: No | BC262: N/A | BD262: N/A | BE262: N/A | BF262: N/A | BG262: N/A | BH262: N/A | BI262: N/A | BJ262: N/A | BK262: N/A | BL262: N/A | BM262: N/A | BN262: N/A | BO262: N/A | BP262: N/A | BQ262: N/A | BR262: N/A | BS262: N/A | BT262: N/A | BU262: N/A | BV262: N/A | BW262: N/A | BX262: N/A | BY262: N/A
BB263: DK/not sure/missing | BC263: N/A | BD263: N/A | BE263: N/A | BF263: N/A | BG263: N/A | BH263: N/A | BI263: N/A | BJ263: N/A | BK263: N/A | BL263: N/A | BM263: N/A | BN263: N/A | BO263: N/A | BP263: N/A | BQ263: N/A | BR263: N/A | BS263: N/A | BT263: N/A | BU263: N/A | BV263: N/A | BW263: N/A | BX263: N/A | BY263: N/A
BA264: Use of menstrual materials | BB264: Materials reusable | BC264: N/A | BD264: N/A | BE264: N/A | BF264: N/A | BG264: N/A | BH264: N/A | BI264: N/A | BJ264: N/A | BK264: N/A | BL264: N/A | BM264: N/A | BN264: N/A | BO264: N/A | BP264: N/A | BQ264: N/A | BR264: N/A | BS264: N/A | BT264: N/A | BU264: N/A | BV264: N/A | BW264: N/A | BX264: N/A | BY264: N/A
BB265: Materials not reusable | BC265: N/A | BD265: N/A | BE265: N/A | BF265: N/A | BG265: N/A | BH265: N/A | BI265: N/A | BJ265: N/A | BK265: N/A | BL265: N/A | BM265: N/A | BN265: N/A | BO265: N/A | BP265: N/A | BQ265: N/A | BR265: N/A | BS265: N/A | BT265: N/A | BU265: N/A | BV265: N/A | BW265: N/A | BX265: N/A | BY265: N/A
BB266: No materials used | BC266: N/A | BD266: N/A | BE266: N/A | BF266: N/A | BG266: N/A | BH266: N/A | BI266: N/A | BJ266: N/A | BK266: N/A | BL266: N/A | BM266: N/A | BN266: N/A | BO266: N/A | BP266: N/A | BQ266: N/A | BR266: N/A | BS266: N/A | BT266: N/A | BU266: N/A | BV266: N/A | BW266: N/A | BX266: N/A | BY266: N/A
BB267: DK/not sure/missing | BC267: N/A | BD267: N/A | BE267: N/A | BF267: N/A | BG267: N/A | BH267: N/A | BI267: N/A | BJ267: N/A | BK267: N/A | BL267: N/A | BM267: N/A | BN267: N/A | BO267: N/A | BP267: N/A | BQ267: N/A | BR267: N/A | BS267: N/A | BT267: N/A | BU267: N/A | BV267: N/A | BW267: N/A | BX267: N/A | BY267: N/A
BA268: Use of menstrual materials with private place to wash and change | BB268: Materials reusable | BC268: N/A | BD268: N/A | BE268: N/A | BF268: N/A | BG268: N/A | BH268: N/A | BI268: N/A | BJ268: N/A | BK268: N/A | BL268: N/A | BM268: N/A | BN268: N/A | BO268: N/A | BP268: N/A | BQ268: N/A | BR268: N/A | BS268: N/A | BT268: N/A | BU268: N/A | BV268: N/A | BW268: N/A | BX268: N/A | BY268: N/A
BB269: Materials not reusable | BC269: N/A | BD269: N/A | BE269: N/A | BF269: N/A | BG269: N/A | BH269: N/A | BI269: N/A | BJ269: N/A | BK269: N/A | BL269: N/A | BM269: N/A | BN269: N/A | BO269: N/A | BP269: N/A | BQ269: N/A | BR269: N/A | BS269: N/A | BT269: N/A | BU269: N/A | BV269: N/A | BW269: N/A | BX269: N/A | BY269: N/A
BB270: No materials used | BC270: N/A | BD270: N/A | BE270: N/A | BF270: N/A | BG270: N/A | BH270: N/A | BI270: N/A | BJ270: N/A | BK270: N/A | BL270: N/A | BM270: N/A | BN270: N/A | BO270: N/A | BP270: N/A | BQ270: N/A | BR270: N/A | BS270: N/A | BT270: N/A | BU270: N/A | BV270: N/A | BW270: N/A | BX270: N/A | BY270: N/A
BA271: Awareness of menstruation before menarche | BB271: Yes | BC271: N/A | BD271: N/A | BE271: N/A | BF271: N/A | BG271: N/A | BH271: N/A | BI271: N/A | BJ271: N/A | BK271: N/A | BL271: N/A | BM271: N/A | BN271: N/A | BO271: N/A | BP271: N/A | BQ271: N/A | BR271: N/A | BS271: N/A | BT271: N/A | BU271: N/A | BV271: N/A | BW271: N/A | BX271: N/A | BY271: N/A
BB272: No | BC272: N/A | BD272: N/A | BE272: N/A | BF272: N/A | BG272: N/A | BH272: N/A | BI272: N/A | BJ272: N/A | BK272: N/A | BL272: N/A | BM272: N/A | BN272: N/A | BO272: N/A | BP272: N/A | BQ272: N/A | BR272: N/A | BS272: N/A | BT272: N/A | BU272: N/A | BV272: N/A | BW272: N/A | BX272: N/A | BY272: N/A
BB273: DK/not sure/missing | BC273: N/A | BD273: N/A | BE273: N/A | BF273: N/A | BG273: N/A | BH273: N/A | BI273: N/A | BJ273: N/A | BK273: N/A | BL273: N/A | BM273: N/A | BN273: N/A | BO273: N/A | BP273: N/A | BQ273: N/A | BR273: N/A | BS273: N/A | BT273: N/A | BU273: N/A | BV273: N/A | BW273: N/A | BX273: N/A | BY273: N/A
BA274: Participation in (all) activities during menstruation | BB274: Yes | BC274: N/A | BD274: N/A | BE274: N/A | BF274: N/A | BG274: N/A | BH274: N/A | BI274: N/A | BJ274: N/A | BK274: N/A | BL274: N/A | BM274: N/A | BN274: N/A | BO274: N/A | BP274: N/A | BQ274: N/A | BR274: N/A | BS274: N/A | BT274: N/A | BU274: N/A | BV274: N/A | BW274: N/A | BX274: N/A | BY274: N/A
BB275: No | BC275: N/A | BD275: N/A | BE275: N/A | BF275: N/A | BG275: N/A | BH275: N/A | BI275: N/A | BJ275: N/A | BK275: N/A | BL275: N/A | BM275: N/A | BN275: N/A | BO275: N/A | BP275: N/A | BQ275: N/A | BR275: N/A | BS275: N/A | BT275: N/A | BU275: N/A | BV275: N/A | BW275: N/A | BX275: N/A | BY275: N/A
BB276: DK/not sure/missing/no such activity | BC276: N/A | BD276: N/A | BE276: N/A | BF276: N/A | BG276: N/A | BH276: N/A | BI276: N/A | BJ276: N/A | BK276: N/A | BL276: N/A | BM276: N/A | BN276: N/A | BO276: N/A | BP276: N/A | BQ276: N/A | BR276: N/A | BS276: N/A | BT276: N/A | BU276: N/A | BV276: N/A | BW276: N/A | BX276: N/A | BY276: N/A
BA277: Participation in specific activities during menstruation | BB277: Did not go to school (amongst those usually attending school) | BC277: N/A | BD277: N/A | BE277: N/A | BF277: N/A | BG277: N/A | BH277: N/A | BI277: N/A | BJ277: N/A | BK277: N/A | BL277: N/A | BM277: N/A | BN277: N/A | BO277: N/A | BP277: N/A | BQ277: N/A | BR277: N/A | BS277: N/A | BT277: N/A | BU277: N/A | BV277: N/A | BW277: N/A | BX277: N/A | BY277: N/A
BB278: Did not go to work (amongst those who usually work) | BC278: N/A | BD278: N/A | BE278: N/A | BF278: N/A | BG278: N/A | BH278: N/A | BI278: N/A | BJ278: N/A | BK278: N/A | BL278: N/A | BM278: N/A | BN278: N/A | BO278: N/A | BP278: N/A | BQ278: N/A | BR278: N/A | BS278: N/A | BT278: N/A | BU278: N/A | BV278: N/A | BW278: N/A | BX278: N/A | BY278: N/A
BB279: Did not participate in social activities | BC279: N/A | BD279: N/A | BE279: N/A | BF279: N/A | BG279: N/A | BH279: N/A | BI279: N/A | BJ279: N/A | BK279: N/A | BL279: N/A | BM279: N/A | BN279: N/A | BO279: N/A | BP279: N/A | BQ279: N/A | BR279: N/A | BS279: N/A | BT279: N/A | BU279: N/A | BV279: N/A | BW279: N/A | BX279: N/A | BY279: N/A
BB280: Did not cook food | BC280: N/A | BD280: N/A | BE280: N/A | BF280: N/A | BG280: N/A | BH280: N/A | BI280: N/A | BJ280: N/A | BK280: N/A | BL280: N/A | BM280: N/A | BN280: N/A | BO280: N/A | BP280: N/A | BQ280: N/A | BR280: N/A | BS280: N/A | BT280: N/A | BU280: N/A | BV280: N/A | BW280: N/A | BX280: N/A | BY280: N/A
BB281: Did not eat with others | BC281: N/A | BD281: N/A | BE281: N/A | BF281: N/A | BG281: N/A | BH281: N/A | BI281: N/A | BJ281: N/A | BK281: N/A | BL281: N/A | BM281: N/A | BN281: N/A | BO281: N/A | BP281: N/A | BQ281: N/A | BR281: N/A | BS281: N/A | BT281: N/A | BU281: N/A | BV281: N/A | BW281: N/A | BX281: N/A | BY281: N/A
BB282: Did not bathe in regular place | BC282: N/A | BD282: N/A | BE282: N/A | BF282: N/A | BG282: N/A | BH282: N/A | BI282: N/A | BJ282: N/A | BK282: N/A | BL282: N/A | BM282: N/A | BN282: N/A | BO282: N/A | BP282: N/A | BQ282: N/A | BR282: N/A | BS282: N/A | BT282: N/A | BU282: N/A | BV282: N/A | BW282: N/A | BX282: N/A | BY282: N/A
BB283: Did not participate in other activities | BC283: N/A | BD283: N/A | BE283: N/A | BF283: N/A | BG283: N/A | BH283: N/A | BI283: N/A | BJ283: N/A | BK283: N/A | BL283: N/A | BM283: N/A | BN283: N/A | BO283: N/A | BP283: N/A | BQ283: N/A | BR283: N/A | BS283: N/A | BT283: N/A | BU283: N/A | BV283: N/A | BW283: N/A | BX283: N/A | BY283: N/A
BB284: DK/not sure/missing/no such activity | BC284: N/A | BD284: N/A | BE284: N/A | BF284: N/A | BG284: N/A | BH284: N/A | BI284: N/A | BJ284: N/A | BK284: N/A | BL284: N/A | BM284: N/A | BN284: N/A | BO284: N/A | BP284: N/A | BQ284: N/A | BR284: N/A | BS284: N/A | BT284: N/A | BU284: N/A | BV284: N/A | BW284: N/A | BX284: N/A | BY284: N/A
BA339: Raw numbers of respondents: | BB339: Basic water, sanitation and hygiene | BC339: NATIONAL wealth index quintile | BH339: URBAN wealth index quintile | BM339: RURAL wealth index quintile | BR339: SUB-REGIONS:
BA340: WatSan data, raw numbers (weighted) | BC340: Poorest | BD340: Poor | BE340: Middle | BF340: Rich | BG340: Richest | BH340: Poorest | BI340: Poor | BJ340: Middle | BK340: Rich | BL340: Richest | BM340: Poorest | BN340: Poor | BO340: Middle | BP340: Rich | BQ340: Richest | BR340: East | BS340: Northeast | BT340: Pelagonia | BU340: Polog | BV340: Skopje | BW340: Southeast | BX340: Southwest | BY340: Vardar
BA341: Use of Basic Water Sanitation and Hygiene | BB341: Yes | BC341: N/A | BD341: N/A | BE341: N/A | BF341: N/A | BG341: N/A | BH341: N/A | BI341: N/A | BJ341: N/A | BK341: N/A | BL341: N/A | BM341: N/A | BN341: N/A | BO341: N/A | BP341: N/A | BQ341: N/A | BR341: N/A | BS341: N/A | BT341: N/A | BU341: N/A | BV341: N/A | BW341: N/A | BX341: N/A | BY341: N/A
BB342: No | BC342: N/A | BD342: N/A | BE342: N/A | BF342: N/A | BG342: N/A | BH342: N/A | BI342: N/A | BJ342: N/A | BK342: N/A | BL342: N/A | BM342: N/A | BN342: N/A | BO342: N/A | BP342: N/A | BQ342: N/A | BR342: N/A | BS342: N/A | BT342: N/A | BU342: N/A | BV342: N/A | BW342: N/A | BX342: N/A | BY342: N/A
BA343: Use of Basic Water and Sanitation | BB343: Yes | BC343: N/A | BD343: N/A | BE343: N/A | BF343: N/A | BG343: N/A | BH343: N/A | BI343: N/A | BJ343: N/A | BK343: N/A | BL343: N/A | BM343: N/A | BN343: N/A | BO343: N/A | BP343: N/A | BQ343: N/A | BR343: N/A | BS343: N/A | BT343: N/A | BU343: N/A | BV343: N/A | BW343: N/A | BX343: N/A | BY343: N/A
BB344: No | BC344: N/A | BD344: N/A | BE344: N/A | BF344: N/A | BG344: N/A | BH344: N/A | BI344: N/A | BJ344: N/A | BK344: N/A | BL344: N/A | BM344: N/A | BN344: N/A | BO344: N/A | BP344: N/A | BQ344: N/A | BR344: N/A | BS344: N/A | BT344: N/A | BU344: N/A | BV344: N/A | BW344: N/A | BX344: N/A | BY344: N/A
BA345: Use of Basic Water and Hygiene | BB345: Yes | BC345: N/A | BD345: N/A | BE345: N/A | BF345: N/A | BG345: N/A | BH345: N/A | BI345: N/A | BJ345: N/A | BK345: N/A | BL345: N/A | BM345: N/A | BN345: N/A | BO345: N/A | BP345: N/A | BQ345: N/A | BR345: N/A | BS345: N/A | BT345: N/A | BU345: N/A | BV345: N/A | BW345: N/A | BX345: N/A | BY345: N/A
BB346: No | BC346: N/A | BD346: N/A | BE346: N/A | BF346: N/A | BG346: N/A | BH346: N/A | BI346: N/A | BJ346: N/A | BK346: N/A | BL346: N/A | BM346: N/A | BN346: N/A | BO346: N/A | BP346: N/A | BQ346: N/A | BR346: N/A | BS346: N/A | BT346: N/A | BU346: N/A | BV346: N/A | BW346: N/A | BX346: N/A | BY346: N/A
BA347: Use of Basic Sanitation and Hygiene | BB347: Yes | BC347: N/A | BD347: N/A | BE347: N/A | BF347: N/A | BG347: N/A | BH347: N/A | BI347: N/A | BJ347: N/A | BK347: N/A | BL347: N/A | BM347: N/A | BN347: N/A | BO347: N/A | BP347: N/A | BQ347: N/A | BR347: N/A | BS347: N/A | BT347: N/A | BU347: N/A | BV347: N/A | BW347: N/A | BX347: N/A | BY347: N/A
BB348: No | BC348: N/A | BD348: N/A | BE348: N/A | BF348: N/A | BG348: N/A | BH348: N/A | BI348: N/A | BJ348: N/A | BK348: N/A | BL348: N/A | BM348: N/A | BN348: N/A | BO348: N/A | BP348: N/A | BQ348: N/A | BR348: N/A | BS348: N/A | BT348: N/A | BU348: N/A | BV348: N/A | BW348: N/A | BX348: N/A | BY348: N/A
BA349: Use of Basic Water | BB349: Yes | BC349: N/A | BD349: N/A | BE349: N/A | BF349: N/A | BG349: N/A | BH349: N/A | BI349: N/A | BJ349: N/A | BK349: N/A | BL349: N/A | BM349: N/A | BN349: N/A | BO349: N/A | BP349: N/A | BQ349: N/A | BR349: N/A | BS349: N/A | BT349: N/A | BU349: N/A | BV349: N/A | BW349: N/A | BX349: N/A | BY349: N/A
BB350: No | BC350: N/A | BD350: N/A | BE350: N/A | BF350: N/A | BG350: N/A | BH350: N/A | BI350: N/A | BJ350: N/A | BK350: N/A | BL350: N/A | BM350: N/A | BN350: N/A | BO350: N/A | BP350: N/A | BQ350: N/A | BR350: N/A | BS350: N/A | BT350: N/A | BU350: N/A | BV350: N/A | BW350: N/A | BX350: N/A | BY350: N/A
BA351: Use of Basic Sanitation | BB351: Yes | BC351: N/A | BD351: N/A | BE351: N/A | BF351: N/A | BG351: N/A | BH351: N/A | BI351: N/A | BJ351: N/A | BK351: N/A | BL351: N/A | BM351: N/A | BN351: N/A | BO351: N/A | BP351: N/A | BQ351: N/A | BR351: N/A | BS351: N/A | BT351: N/A | BU351: N/A | BV351: N/A | BW351: N/A | BX351: N/A | BY351: N/A
BB352: No | BC352: N/A | BD352: N/A | BE352: N/A | BF352: N/A | BG352: N/A | BH352: N/A | BI352: N/A | BJ352: N/A | BK352: N/A | BL352: N/A | BM352: N/A | BN352: N/A | BO352: N/A | BP352: N/A | BQ352: N/A | BR352: N/A | BS352: N/A | BT352: N/A | BU352: N/A | BV352: N/A | BW352: N/A | BX352: N/A | BY352: N/A
BA353: Access to Basic Hygiene | BB353: Yes | BC353: N/A | BD353: N/A | BE353: N/A | BF353: N/A | BG353: N/A | BH353: N/A | BI353: N/A | BJ353: N/A | BK353: N/A | BL353: N/A | BM353: N/A | BN353: N/A | BO353: N/A | BP353: N/A | BQ353: N/A | BR353: N/A | BS353: N/A | BT353: N/A | BU353: N/A | BV353: N/A | BW353: N/A | BX353: N/A | BY353: N/A
BB354: No | BC354: N/A | BD354: N/A | BE354: N/A | BF354: N/A | BG354: N/A | BH354: N/A | BI354: N/A | BJ354: N/A | BK354: N/A | BL354: N/A | BM354: N/A | BN354: N/A | BO354: N/A | BP354: N/A | BQ354: N/A | BR354: N/A | BS354: N/A | BT354: N/A | BU354: N/A | BV354: N/A | BW354: N/A | BX354: N/A | BY354: N/A
C399: INITIAL (national) Wealth Index | H399: URBAN Wealth Index | M399: RURAL Wealth Index
C400: Component Matrix | H400: Component Matrix | M400: Component Matrix
E401: Component | J401: Component | O401: Component
B402: Note: The INITIAL (national) Wealth Index is based on the first component of the Principal Component Analysis (PCA) which has been obtained at national level. The final national-level (NATIONAL) Wealth Index is based on the URBAN and RURAL specific wealth indexes. Regression procedures are used to establish the relationships between the two sets of scores (urban and rural) and the initial (national) wealth factors. This allows best use of the available information for each area and a better precision of the FINAL (NATIONAL) Wealth Index. For dependency reasons, all WASH variables (contained in the generic MICS and DHS scripts) have been excluded from the sets of asset variables used in the PCAs. The PCA can extracts as many components as there are asset variables in the input. Only the first of the components is used to represent the Wealth Index. The scores represent the weights of the asset variables on the Wealth Index (correlations between the variables and the component). The communalities are the proportion of each variable's variance that can be explained by the component. Proportion of explained variance is the part of the model's total variance that is explained by the component. For more information on the procedure used: The DHS Wealth Index, DHS Comparative Reports No. 6, Shea Oscar Rutstein, Kiersten Johnson, ORC Macro International Inc., 2004. The DHS Wealth Index: Approaches for Rural and Urban Areas, Shea O. Rutstein, ORC Macro International Inc., 2008. MICS Methodological Paper No. 4, Review of options for reporting water, sanitation and hygiene coverage by wealth quintile, UNICEF, 2016. | E402: 1 | J402: 1 | O402: 1
C403: boiler | E403: 0.5980961822 | H403: car | J403: 0.5876695458 | M403: boiler | O403: 0.6390188588
C404: fuelwood | E404: -0.5721656587 | H404: aircond | J404: 0.5469486009 | M404: laundry | O404: 0.6266494844
C405: comp | E405: 0.5693949062 | H405: bed | J405: 0.5206877998 | M405: comp | O405: 0.599141992
C406: laundry | E406: 0.5667218295 | H406: comp | J406: 0.5168844993 | M406: car | O406: 0.5879763502
C407: aircond | E407: 0.5580330336 | H407: boiler | J407: 0.5140407101 | M407: bed | O407: 0.5582497779
C408: car | E408: 0.5513930588 | H408: laptop | J408: 0.5064286427 | M408: mwave | O408: 0.5053000822
C409: mwave | E409: 0.5065843708 | H409: laundry | J409: 0.4991393052 | M409: sofa | O409: 0.4996345689
C410: bed | E410: 0.5026048771 | H410: dishmch | J410: 0.4926689247 | M410: bike | O410: 0.4661114353
C411: laptop | E411: 0.4941182378 | H411: sofa | J411: 0.4924426555 | M411: table | O411: 0.4623724941
C412: sofa | E412: 0.4910582385 | H412: mwave | J412: 0.480423923 | M412: fuelwood | O412: -0.4477686579
C413: flrpq | E413: 0.4867896002 | H413: lcd | J413: 0.4540316568 | M413: phone | O413: 0.4240848977
C414: fuelelec | E414: 0.4842537089 | H414: table | J414: 0.4359135767 | M414: lcd | O414: 0.4030150804
C415: dishmch | E415: 0.4772649504 | H415: fuelwood | J415: -0.4311600501 | M415: laptop | O415: 0.3996198509
C416: lcd | E416: 0.4567352189 | H416: bank | J416: 0.4235747109 | M416: fridge | O416: 0.3944482133
... 204 more rows

Sheet MICS19
A2: =A1026 -> Macedonia
A3: =A1034 -> 2019
A4: Use of drinking water sources
A5: by wealth quintile and sub-national region
A6: Notes:
A7: WHO/UNICEF JMP customised wealth index excludes water,
A8: sanitation and hygiene assets.
A9: Survey used for analysis: | B9: =A1025 -> MICS19
A10: =B1028 -> 
A11: =B1027 -> 
A14: Use of drinking water sources | C14: NATIONAL wealth index quintile | H14: URBAN wealth index quintile | M14: RURAL wealth index quintile | R14: SUB-REGIONS: | BA14: Raw numbers of respondents: | BB14: Use of drinking water sources | BC14: NATIONAL wealth index quintile | BH14: URBAN wealth index quintile | BM14: RURAL wealth index quintile | BR14: SUB-REGIONS:
A15: Weighted percentage (used in graphs) | C15: Poorest | D15: Poor | E15: Middle | F15: Rich | G15: Richest | H15: Poorest | I15: Poor | J15: Middle | K15: Rich | L15: Richest | M15: Poorest | N15: Poor | O15: Middle | P15: Rich | Q15: Richest | R15: EAST | S15: NORTHEAST | T15: PELAGONIJA | U15: POLOG | V15: SKOPJE | W15: SOUTHEAST | X15: SOUTHWEST | Y15: VARDAR | BA15: Water data, raw numbers (weighted) | BC15: Poorest | BD15: Poor | BE15: Middle | BF15: Rich | BG15: Richest | BH15: Poorest | BI15: Poor | BJ15: Middle | BK15: Rich | BL15: Richest | BM15: Poorest | BN15: Poor | BO15: Middle | BP15: Rich | BQ15: Richest | BR15: EAST | BS15: NORTHEAST | BT15: PELAGONIJA | BU15: POLOG | BV15: SKOPJE | BW15: SOUTHEAST | BX15: SOUTHWEST | BY15: VARDAR
A16: Water | B16: Improved | C16: 98.42834674 | D16: 99.16973169 | E16: 99.08452176 | F16: 99.76853701 | G16: 99.93928665 | H16: 99.6240125 | I16: 98.77154442 | J16: 99.92195238 | K16: 99.96131117 | L16: 100 | M16: 99.13003347 | N16: 96.66224127 | O16: 98.93925089 | P16: 99.1113288 | Q16: 99.25775528 | R16: 98.72955911 | S16: 98.71452319 | T16: 99.93902699 | U16: 99.76357408 | V16: 98.92732644 | W16: 99.17973585 | X16: 100 | Y16: 99.89545062 | BA16: Water | BB16: Improved | BC16: 2774.995825 | BD16: 2794.031283 | BE16: 2790.539023 | BF16: 2813.654752 | BG16: 2816.417149 | BH16: 1787.770247 | BI16: 1761.935497 | BJ16: 1780.74598 | BK16: 1796.871681 | BL16: 1790.78652 | BM16: 1019.175668 | BN16: 994.8690787 | BO16: 1017.381804 | BP16: 1018.127435 | BQ16: 1021.974122 | BR16: 1148.721848 | BS16: 1348.464986 | BT16: 1744.124583 | BU16: 1748.933657 | BV16: 5162.913755 | BW16: 871.1151369 | BX16: 1022.5699 | BY16: 942.794168
B17: Not Improved | C17: 1.57165326 | D17: 0.8302683096 | E17: 0.915478237 | F17: 0.2314629853 | G17: 0.06071335411 | H17: 0.3759875042 | I17: 1.228455584 | J17: 0.07804761749 | K17: 0.03868882997 | L17: 0 | M17: 0.8699665317 | N17: 3.337758735 | O17: 1.06074911 | P17: 0.8886712034 | Q17: 0.7422447163 | R17: 1.270440894 | S17: 1.285476806 | T17: 0.06097301345 | U17: 0.2364259218 | V17: 1.072673559 | W17: 0.8202641504 | X17: 0 | Y17: 0.1045493756 | BB17: Not Improved | BC17: 44.3097073 | BD17: 23.39217411 | BE17: 25.7828135 | BF17: 6.527678444 | BG17: 1.710980111 | BH17: 6.747161215 | BI17: 21.91379625 | BJ17: 1.390915388 | BK17: 0.6954576938 | BL17: 0 | BM17: 8.944299625 | BN17: 34.3529481 | BO17: 10.90757039 | BP17: 9.128931516 | BQ17: 7.642273289 | BR17: 14.78162391 | BS17: 17.5599335 | BT17: 1.064094127 | BU17: 4.144731739 | BV17: 55.98171173 | BW17: 7.204541448 | BX17: 0 | BY17: 0.9867170222
A18: Water ladder | B18: Basic | C18: 97.68814227 | D18: 98.36138798 | E18: 98.70110711 | F18: 99.47858622 | G18: 99.69110679 | H18: 99.32531061 | I18: 98.22240358 | J18: 99.92195238 | K18: 99.63592484 | L18: 99.60944389 | M18: 97.83248925 | N18: 95.43315693 | O18: 98.37471785 | P18: 98.37334927 | Q18: 99.03164159 | R18: 98.2959685 | S18: 97.91267368 | T18: 99.93902699 | U18: 99.63879337 | V18: 98.16796479 | W18: 98.98319607 | X18: 100 | Y18: 98.84399981 | BA18: Water ladder | BB18: Basic | BC18: 2746.170756 | BD18: 2771.256818 | BE18: 2774.539455 | BF18: 2805.477611 | BG18: 2809.423123 | BH18: 1782.409989 | BI18: 1752.139652 | BJ18: 1780.74598 | BK18: 1791.022643 | BL18: 1783.792494 | BM18: 1001.357412 | BN18: 978.8144145 | BO18: 1011.576771 | BP18: 1005.362388 | BQ18: 1019.646018 | BR18: 1143.677006 | BS18: 1334.018405 | BT18: 1744.124583 | BU18: 1736.934739 | BV18: 5123.283464 | BW18: 869.3888893 | BX18: 1022.5699 | BY18: 932.8707762
B19: Limited | C19: 0.7356509409 | D19: 0.8083437092 | E19: 0.3816984186 | F19: 0.2899507929 | G19: 0.2481798511 | H19: 0.2987018881 | I19: 0.5491408358 | J19: 0 | K19: 0.3253863278 | L19: 0.3905561114 | M19: 1.293653838 | N19: 1.217474449 | O19: 0.5645330389 | P19: 0.7333971301 | Q19: 0.2261136895 | R19: 0.433590601 | S19: 0.798483499 | T19: 0 | U19: 0.1234452133 | V19: 0.7593616537 | W19: 0.196539781 | X19: 0 | Y19: 1.051450811 | BB19: Limited | BC19: 20.68033083 | BD19: 22.77446528 | BE19: 10.72974107 | BF19: 8.177141319 | BG19: 6.994026197 | BH19: 5.36025738 | BI19: 9.795844919 | BJ19: 0 | BK19: 5.849037702 | BL19: 6.994026197 | BM19: 13.24110088 | BN19: 12.48708079 | BO19: 5.805033255 | BP19: 7.495219954 | BQ19: 2.328103618 | BR19: 5.044841695 | BS19: 10.87899701 | BT19: 0 | BU19: 2.151935727 | BV19: 39.63029092 | BW19: 1.726247572 | BX19: 0 | BY19: 9.923391769
B20: Unimproved | C20: 1.538354308 | D20: 0.6571761018 | E20: 0.917194467 | F20: 0.2314629853 | G20: 0.06071335411 | H20: 0.3759875042 | I20: 1.228455584 | J20: 0.07804761749 | K20: 0.03868882997 | L20: 0 | M20: 0.8738569131 | N20: 3.245620802 | O20: 0.5864915146 | P20: 0.8932535958 | Q20: 0.7422447163 | R20: 1.270440894 | S20: 0.9309057025 | T20: 0 | U20: 0.2377614197 | V20: 1.072673559 | W20: 0.8202641504 | X20: 0 | Y20: 0.1045493756 | BB20: Unimproved | BC20: 43.24561318 | BD20: 18.51543365 | BE20: 25.7828135 | BF20: 6.527678444 | BG20: 1.710980111 | BH20: 6.747161215 | BI20: 21.91379625 | BJ20: 1.390915388 | BK20: 0.6954576938 | BL20: 0 | BM20: 8.944299625 | BN20: 33.28885397 | BO20: 6.030829927 | BP20: 9.128931516 | BQ20: 7.642273289 | BR20: 14.78162391 | BS20: 12.68319303 | BT20: 0 | BU20: 4.144731739 | BV20: 55.98171173 | BW20: 7.204541448 | BX20: 0 | BY20: 0.9867170222
B21: Surface water | C21: 0.03785248176 | D21: 0.1730922078 | E21: 0 | F21: 0 | G21: 0 | H21: 0 | I21: 0 | J21: 0 | K21: 0 | L21: 0 | M21: 0 | N21: 0.1037478201 | O21: 0.4742575958 | P21: 0 | Q21: 0 | R21: 0 | S21: 0.3579371139 | T21: 0.06097301345 | U21: 0 | V21: 0 | W21: 0 | X21: 0 | Y21: 0 | BB21: Surface water | BC21: 1.064094127 | BD21: 4.876740465 | BE21: 0 | BF21: 0 | BG21: 0 | BH21: 0 | BI21: 0 | BJ21: 0 | BK21: 0 | BL21: 0 | BM21: 0 | BN21: 1.064094127 | BO21: 4.876740465 | BP21: 0 | BQ21: 0 | BR21: 0 | BS21: 4.876740465 | BT21: 1.064094127 | BU21: 0 | BV21: 0 | BW21: 0 | BX21: 0 | BY21: 0
A22: Improved water point at more than 30 minutes | B22: Yes | C22: 0.7474320151 | D22: 0.8151113202 | E22: 0.3852317428 | F22: 0.2906234787 | G22: 0.248330621 | H22: 0.2998292085 | I22: 0.5559706887 | J22: 0 | K22: 0.3255122647 | L22: 0.3905561114 | M22: 1.30505818 | N22: 1.259665283 | O22: 0.5705855198 | P22: 0.7400072717 | Q22: 0.2278045568 | R22: 0.4391699962 | S22: 0.8089090654 | T22: 0 | U22: 0.1237394178 | V22: 0.7675954471 | W22: 0.1981652595 | X22: 0 | Y22: 1.052551247 | BA22: Improved water point at more than 30 minutes | BB22: Yes | BC22: 20.68033083 | BD22: 22.77446528 | BE22: 10.72974107 | BF22: 8.177141319 | BG22: 6.994026197 | BH22: 5.36025738 | BI22: 9.795844919 | BJ22: 0 | BK22: 5.849037702 | BL22: 6.994026197 | BM22: 13.24110088 | BN22: 12.48708079 | BO22: 5.805033255 | BP22: 7.495219954 | BQ22: 2.328103618 | BR22: 5.044841695 | BS22: 10.87899701 | BT22: 0 | BU22: 2.151935727 | BV22: 39.63029092 | BW22: 1.726247572 | BX22: 0 | BY22: 9.923391769
B23: No | C23: 99.25256798 | D23: 99.18488868 | E23: 99.61476826 | F23: 99.70937652 | G23: 99.75166938 | H23: 99.70017079 | I23: 99.44402931 | J23: 100 | K23: 99.67448774 | L23: 99.60944389 | M23: 98.69494182 | N23: 98.74033472 | O23: 99.42941448 | P23: 99.25999273 | Q23: 99.77219544 | R23: 99.56083 | S23: 99.19109093 | T23: 100 | U23: 99.87626058 | V23: 99.23240455 | W23: 99.80183474 | X23: 100 | Y23: 98.94744875 | BB23: No | BC23: 2746.170756 | BD23: 2771.256818 | BE23: 2774.539455 | BF23: 2805.477611 | BG23: 2809.423123 | BH23: 1782.409989 | BI23: 1752.139652 | BJ23: 1780.74598 | BK23: 1791.022643 | BL23: 1783.792494 | BM23: 1001.357412 | BN23: 978.8144145 | BO23: 1011.576771 | BP23: 1005.362388 | BQ23: 1019.646018 | BR23: 1143.677006 | BS23: 1334.018405 | BT23: 1744.124583 | BU23: 1736.934739 | BV23: 5123.283464 | BW23: 869.3888893 | BX23: 1022.5699 | BY23: 932.8707762
A24: Manually calculated ratios | B24: Improved wells
B25: Improved springs
B26: Other
C27: NATIONAL wealth index quintile | H27: URBAN wealth index quintile | M27: RURAL wealth index quintile | R27: SUB-REGIONS: | BA27: Raw numbers of respondents: | BB27: Use of drinking water sources | BC27: NATIONAL wealth index quintile | BH27: URBAN wealth index quintile | BM27: RURAL wealth index quintile | BR27: SUB-REGIONS:
A28: Percentage based on weighted population | C28: Poorest | D28: Poor | E28: Middle | F28: Rich | G28: Richest | H28: Poorest | I28: Poor | J28: Middle | K28: Rich | L28: Richest | M28: Poorest | N28: Poor | O28: Middle | P28: Rich | Q28: Richest | R28: EAST | S28: NORTHEAST | T28: PELAGONIJA | U28: POLOG | V28: SKOPJE | W28: SOUTHEAST | X28: SOUTHWEST | Y28: VARDAR | BA28: Water data, raw numbers (weighted) | BC28: Poorest | BD28: Poor | BE28: Middle | BF28: Rich | BG28: Richest | BH28: Poorest | BI28: Poor | BJ28: Middle | BK28: Rich | BL28: Richest | BM28: Poorest | BN28: Poor | BO28: Middle | BP28: Rich | BQ28: Richest | BR28: EAST | BS28: NORTHEAST | BT28: PELAGONIJA | BU28: POLOG | BV28: SKOPJE | BW28: SOUTHEAST | BX28: SOUTHWEST | BY28: VARDAR
A29: Piped water | B29: Yes | C29: 80.35256359 | D29: 90.52108593 | E29: 97.41592978 | F29: 97.44171321 | G29: 99.08997919 | H29: 98.69515593 | I29: 98.32806893 | J29: 99.86629878 | K29: 99.4681074 | L29: 99.44625447 | M29: 70.81005004 | N29: 74.522179 | O29: 85.25897691 | P29: 88.96468431 | Q29: 91.33861944 | R29: 92.88520508 | S29: 73.13271499 | T29: 98.51067516 | U29: 94.26973637 | V29: 94.26924466 | W29: 93.92083055 | X29: 96.61049064 | Y29: 97.01487483 | BA29: Piped water | BB29: Yes | BC29: 2265.384271 | BD29: 2550.362309 | BE29: 2743.546103 | BF29: 2748.034076 | BG29: 2792.482577 | BH29: 1771.101754 | BI29: 1754.024563 | BJ29: 1779.754157 | BK29: 1788.006012 | BL29: 1780.87012 | BM29: 728.0122636 | BN29: 766.9986812 | BO29: 876.7090004 | BP29: 913.8953837 | BQ29: 940.4374006 | BR29: 1080.722586 | BS29: 999.0111107 | BT29: 1719.197149 | BU29: 1652.622375 | BV29: 4919.813336 | BW29: 824.9251368 | BX29: 987.9097979 | BY29: 915.6078443
B30: No | C30: 19.64743641 | D30: 9.478914068 | E30: 2.58407022 | F30: 2.558286794 | G30: 0.9100208135 | H30: 1.304844071 | I30: 1.671931073 | J30: 0.13370122 | K30: 0.5318926 | L30: 0.5537455275 | M30: 29.18994996 | N30: 25.477821 | O30: 14.74102309 | P30: 11.03531569 | Q30: 8.661380557 | R30: 7.114794917 | S30: 26.86728501 | T30: 1.489324837 | U30: 5.73026363 | V30: 5.730755341 | W30: 6.079169451 | X30: 3.389509356 | Y30: 2.985125168 | BB30: No | BC30: 553.9212618 | BD30: 267.0611484 | BE30: 72.77573388 | BF30: 72.1483547 | BG30: 25.64555253 | BH30: 23.41565399 | BI30: 29.82473064 | BJ30: 2.382738771 | BK30: 9.56112659 | BL30: 9.916400262 | BM30: 300.1077041 | BN30: 262.2233457 | BO30: 151.5803741 | BP30: 113.3609831 | BQ30: 89.17899423 | BR30: 82.78088585 | BS30: 367.0138084 | BT30: 25.99152842 | BU30: 100.4560133 | BV30: 299.0821307 | BW30: 53.39454157 | BX30: 34.66010244 | BY30: 28.17304073
A31: Piped water on premises | B31: Yes | C31: 78.48606153 | D31: 89.76642621 | E31: 97.11918937 | F31: 97.27706028 | G31: 99.00533657 | H31: 98.58653706 | I31: 98.54975062 | J31: 99.70170467 | K31: 99.36892942 | L31: 99.44625447 | M31: 67.52344306 | N31: 72.73978061 | O31: 83.59269553 | P31: 88.08692108 | Q31: 90.55554603 | R31: 92.27551349 | S31: 71.21648728 | T31: 97.36208307 | U31: 92.72685303 | V31: 94.47689858 | W31: 92.7367249 | X31: 96.61049064 | Y31: 95.9835286 | BA31: Piped water on premises | BB31: Yes | BC31: 2212.761875 | BD31: 2529.100348 | BE31: 2720.881644 | BF31: 2743.390563 | BG31: 2790.09724 | BH31: 1769.152569 | BI31: 1743.46099 | BJ31: 1776.820865 | BK31: 1786.223221 | BL31: 1780.87012 | BM31: 694.222001 | BN31: 748.6538443 | BO31: 859.574806 | BP31: 904.8785051 | BQ31: 932.3747484 | BR31: 1073.628803 | BS31: 972.8349628 | BT31: 1699.15205 | BU31: 1625.574421 | BV31: 4916.732537 | BW31: 814.5249039 | BX31: 987.9097979 | BY31: 905.8741957
B32: No | C32: 21.51393847 | D32: 10.23357379 | E32: 2.880810633 | F32: 2.722939715 | G32: 0.9946634291 | H32: 1.413462939 | I32: 1.450249385 | J32: 0.2982953325 | K32: 0.6310705759 | L32: 0.5537455275 | M32: 32.47655694 | N32: 27.26021939 | O32: 16.40730447 | P32: 11.91307892 | Q32: 9.444453966 | R32: 7.724486509 | S32: 28.78351272 | T32: 2.637916931 | U32: 7.273146972 | V32: 5.523101421 | W32: 7.263275096 | X32: 3.389509356 | Y32: 4.016471401 | BB32: No | BC32: 606.5436575 | BD32: 288.3231085 | BE32: 80.70850696 | BF32: 76.79186746 | BG32: 28.03088989 | BH32: 25.3648385 | BI32: 25.65661722 | BJ32: 5.316031179 | BK32: 11.34391729 | BL32: 9.916400262 | BM32: 333.8979667 | BN32: 280.5681825 | BO32: 168.7145685 | BP32: 122.3778617 | BQ32: 97.24164644 | BR32: 89.87466869 | BS32: 393.1899563 | BT32: 46.0366276 | BU32: 127.5039677 | BV32: 287.4312437 | BW32: 63.79477446 | BX32: 34.66010244 | BY32: 37.90668934
A33: Piped water into dwelling | B33: Yes | C33: 76.21880597 | D33: 89.58291735 | E33: 97.0187439 | F33: 97.08443957 | G33: 99.00533657 | H33: 96.79752193 | I33: 98.52405467 | J33: 99.39688771 | K33: 99.36892942 | L33: 99.44625447 | M33: 64.65735086 | N33: 72.24757048 | O33: 83.56183196 | P33: 87.64923037 | Q33: 90.55554603 | R33: 91.23552289 | S33: 71.0437614 | T33: 97.3360348 | U33: 92.57033307 | V33: 93.79920753 | W33: 91.00859991 | X33: 96.11507854 | Y33: 95.54205483 | BA33: Piped water into dwelling | BB33: Yes | BC33: 2148.841014 | BD33: 2523.930127 | BE33: 2718.067574 | BF33: 2737.958308 | BG33: 2790.09724 | BH33: 1737.048381 | BI33: 1743.006399 | BJ33: 1771.388609 | BK33: 1786.223221 | BL33: 1780.87012 | BM33: 664.7551348 | BN33: 743.5879092 | BO33: 859.2574391 | BP33: 900.3822994 | BQ33: 932.3747484 | BR33: 1061.528476 | BS33: 970.4754842 | BT33: 1698.697458 | BU33: 1622.830503 | BV33: 4881.464385 | BW33: 799.346442 | BX33: 982.8438628 | BY33: 901.7076506
B34: No | C34: 23.78119403 | D34: 10.41708265 | E34: 2.981256095 | F34: 2.915560426 | G34: 0.9946634291 | H34: 3.202478069 | I34: 1.475945332 | J34: 0.6031122887 | K34: 0.6310705759 | L34: 0.5537455275 | M34: 35.34264914 | N34: 27.75242952 | O34: 16.43816804 | P34: 12.35076963 | Q34: 9.444453966 | R34: 8.764477112 | S34: 28.9562386 | T34: 2.663965205 | U34: 7.429666926 | V34: 6.200792473 | W34: 8.991400091 | X34: 3.884921464 | Y34: 4.457945171 | BB34: No | BC34: 670.464519 | BD34: 293.4933301 | BE34: 83.52257713 | BF34: 82.2241229 | BG34: 28.03088989 | BH34: 57.46902643 | BI34: 26.11120875 | BJ34: 10.74828662 | BK34: 11.34391729 | BL34: 9.916400262 | BM34: 363.3648329 | BN34: 285.6341176 | BO34: 169.0319353 | BP34: 126.8740674 | BQ34: 97.24164644 | BR34: 101.9749955 | BS34: 395.5494349 | BT34: 46.49121912 | BU34: 130.2478852 | BV34: 322.699396 | BW34: 78.97323636 | BX34: 39.72603755 | BY34: 42.07323438
A35: Water source on premises | B35: Yes | C35: 92.34846302 | D35: 96.01215488 | E35: 98.66607966 | F35: 99.20858601 | G35: 99.49431248 | H35: 98.70134598 | I35: 98.6386604 | J35: 99.70170467 | K35: 99.46700111 | L35: 99.44625447 | M35: 87.43585751 | N35: 91.10382506 | O35: 94.68330532 | P35: 96.40823657 | Q35: 98.29968895 | R35: 96.18143431 | S35: 94.21793466 | T35: 97.95265644 | U35: 98.09793891 | V35: 97.42246524 | W35: 94.18576274 | X35: 99.51791175 | Y35: 97.96477466 | BA35: Water source on premises | BB35: Yes | BC35: 2603.585327 | BD35: 2705.068973 | BE35: 2778.754347 | BF35: 2797.863112 | BG35: 2803.877207 | BH35: 1771.212835 | BI35: 1759.565047 | BJ35: 1776.820865 | BK35: 1787.986126 | BL35: 1780.87012 | BM35: 898.94551 | BN35: 937.6606348 | BO35: 973.618368 | BP35: 990.3597483 | BQ35: 1012.109713 | BR35: 1119.074327 | BS35: 1287.040466 | BT35: 1709.458669 | BU35: 1719.733766 | BV35: 5084.376622 | BW35: 827.2520883 | BX35: 1017.640211 | BY35: 924.5728173
B36: No | C36: 7.65153698 | D36: 3.987845124 | E36: 1.333920338 | F36: 0.7914139925 | G36: 0.5056875156 | H36: 1.29865402 | I36: 1.361339596 | J36: 0.2982953325 | K36: 0.5329988906 | L36: 0.5537455275 | M36: 12.56414249 | N36: 8.896174939 | O36: 5.31669468 | P36: 3.591763431 | Q36: 1.700311051 | R36: 3.818565693 | S36: 5.782065341 | T36: 2.047343559 | U36: 1.902061089 | V36: 2.577534761 | W36: 5.814237264 | X36: 0.4820882547 | Y36: 2.035225343 | BB36: No | BC36: 215.7202054 | BD36: 112.354484 | BE36: 37.56748975 | BF36: 22.31931837 | BG36: 14.25092212 | BH36: 23.30457246 | BI36: 24.28424677 | BJ36: 5.316031179 | BK36: 9.581012907 | BL36: 9.916400262 | BM36: 129.1744577 | BN36: 91.56139202 | BO36: 54.67100646 | BP36: 36.89661853 | BQ36: 17.50668135 | BR36: 44.42914439 | BS36: 78.9844534 | BT36: 35.73000797 | BU36: 33.34462189 | BV36: 134.5188448 | BW36: 51.06759004 | BX36: 4.929689386 | BY36: 19.20806776
A37: Improved water source on premises | B37: Yes | C37: 93.67813131 | D37: 96.51313979 | E37: 98.80228308 | F37: 99.41403267 | G37: 99.49400528 | H37: 99.07385128 | I37: 99.02935514 | J37: 99.77958025 | K37: 99.46679482 | L37: 99.44625447 | M37: 87.80865202 | N37: 94.24965102 | O37: 94.86671661 | P37: 96.74067371 | Q37: 98.7215551 | R37: 97.20959792 | S37: 94.65072095 | T37: 98.01241757 | U37: 98.33041751 | V37: 98.05421229 | W37: 94.90695116 | X37: 99.51791175 | Y37: 97.96264461 | BA37: Improved water source on premises | BB37: Yes | BC37: 2599.564233 | BD37: 2696.607318 | BE37: 2757.116265 | BF37: 2797.167655 | BG37: 2802.166227 | BH37: 1771.212835 | BI37: 1744.833361 | BJ37: 1776.820865 | BK37: 1787.290668 | BL37: 1780.87012 | BM37: 894.9244159 | BN37: 937.6606348 | BO37: 965.1567129 | BP37: 984.9433401 | BQ37: 1008.908746 | BR37: 1116.667889 | BS37: 1276.331831 | BT37: 1709.458669 | BU37: 1719.733766 | BV37: 5062.454414 | BW37: 826.7488175 | BX37: 1017.640211 | BY37: 923.5861002
B38: No | C38: 6.32186869 | D38: 3.486860207 | E38: 1.197716919 | F38: 0.5859673298 | G38: 0.5059947219 | H38: 0.9261487192 | I38: 0.9706448571 | J38: 0.2204197474 | K38: 0.5332051815 | L38: 0.5537455275 | M38: 12.19134798 | N38: 5.75034898 | O38: 5.133283392 | P38: 3.259326292 | Q38: 1.278444895 | R38: 2.790402077 | S38: 5.349279046 | T38: 1.987582434 | U38: 1.669582493 | V38: 1.945787708 | W38: 5.093048841 | X38: 0.4820882547 | Y38: 2.037355386 | BB38: No | BC38: 175.4315922 | BD38: 97.42396496 | BE38: 33.42275801 | BF38: 16.48709762 | BG38: 14.25092212 | BH38: 16.55741124 | BI38: 17.10213629 | BJ38: 3.925115791 | BK38: 9.581012907 | BL38: 9.916400262 | BM38: 124.2512522 | BN38: 57.20844392 | BO38: 52.22509118 | BP38: 33.18409518 | BQ38: 13.06537598 | BR38: 32.05395829 | BS38: 72.13315492 | BT38: 34.66591384 | BU38: 29.19989015 | BV38: 100.4593412 | BW38: 44.36631938 | BX38: 4.929689386 | BY38: 19.20806776
A39: Piped water on premises available when needed | B39: Yes | C39: 71.11891181 | D39: 79.67016842 | E39: 79.51859591 | F39: 83.9821118 | G39: 88.98075085 | H39: 83.24789043 | I39: 80.02587631 | J39: 83.01264389 | K39: 85.4970731 | L39: 91.83925236 | M39: 67.98348784 | N39: 64.99328482 | O39: 73.99162475 | P39: 75.90749428 | Q39: 80.56405149 | R39: 85.78641194 | S39: 76.4066149 | T39: 65.13424097 | U39: 72.14840469 | V39: 91.204196 | W39: 81.37727742 | X39: 74.89731961 | Y39: 77.69785877 | BA39: Piped water on premises available when needed | BB39: Yes | BC39: 1573.692167 | BD39: 2010.561879 | BE39: 2161.658307 | BF39: 2295.565913 | BG39: 2475.062746 | BH39: 1472.782192 | BI39: 1393.258932 | BJ39: 1470.014337 | BK39: 1523.746216 | BL39: 1632.822709 | BM39: 471.9563297 | BN39: 486.5747253 | BO39: 636.0133649 | BP39: 682.7006709 | BQ39: 746.6715336 | BR39: 921.0276274 | BS39: 743.3102636 | BT39: 1097.388452 | BU39: 1165.129353 | BV39: 4484.26638 | BW39: 661.6561223 | BX39: 739.9179588 | BY39: 703.8448532
B40: No | C40: 28.88108819 | D40: 20.32983158 | E40: 20.48140409 | F40: 16.0178882 | G40: 11.01924915 | H40: 16.75210957 | I40: 19.97412369 | J40: 16.98735611 | K40: 14.5029269 | L40: 8.160747637 | M40: 32.01651216 | N40: 35.00671518 | O40: 26.00837525 | P40: 24.09250572 | Q40: 19.43594851 | R40: 14.21358806 | S40: 23.5933851 | T40: 34.86575903 | U40: 27.85159531 | V40: 8.795803999 | W40: 18.62272258 | X40: 25.10268039 | Y40: 22.30214123 | BB40: No | BC40: 639.0697086 | BD40: 513.0450353 | BE40: 556.7728752 | BF40: 437.8327403 | BG40: 306.5082368 | BH40: 296.3703769 | BI40: 347.7515965 | BJ40: 300.8175123 | BK40: 258.4741113 | BL40: 145.0910556 | BM40: 222.2656714 | BN40: 262.079119 | BO40: 223.5614411 | BP40: 216.6843996 | BQ40: 180.1333127 | BR40: 152.6011753 | BS40: 229.5246992 | BT40: 587.421927 | BU40: 449.7772524 | BV40: 432.4661571 | BW40: 151.4162037 | BX40: 247.9918391 | BY40: 202.0293425
A41: Water point at more than 30 minutes | B41: Yes | C41: 1.65785004 | D41: 0.8761917711 | E41: 0.3816984186 | F41: 0.3146108179 | G41: 0.2481798511 | H41: 0.4052245222 | I41: 0.5491408358 | J41: 0.03902380874 | K41: 0.3253863278 | L41: 0.3905561114 | M41: 1.642206274 | N41: 3.401445786 | O41: 0.5645330389 | P41: 0.7333971301 | Q41: 0.2261136895 | R41: 0.7607710316 | S41: 1.062259173 | T41: 0 | U41: 0.1234452133 | V41: 1.163972577 | W41: 0.196539781 | X41: 0 | Y41: 1.051450811 | BA41: Water point at more than 30 minutes | BB41: Yes | BC41: 46.56386611 | BD41: 24.68603249 | BE41: 10.72974107 | BF41: 8.872599013 | BG41: 6.994026197 | BH41: 7.271824592 | BI41: 9.795844919 | BJ41: 0.6954576938 | BK41: 5.849037702 | BL41: 6.994026197 | BM41: 16.80868428 | BN41: 34.80303267 | BO41: 5.805033255 | BP41: 7.495219954 | BQ41: 2.328103618 | BR41: 8.851597362 | BS41: 14.44658041 | BT41: 0 | BU41: 2.151935727 | BV41: 60.74651204 | BW41: 1.726247572 | BX41: 0 | BY41: 9.923391769
B42: No | C42: 98.34214996 | D42: 99.12380823 | E42: 99.61830158 | F42: 99.68538918 | G42: 99.75182015 | H42: 99.59477548 | I42: 99.45085916 | J42: 99.96097619 | K42: 99.67461367 | L42: 99.60944389 | M42: 98.35779373 | N42: 96.59855421 | O42: 99.43546696 | P42: 99.26660287 | Q42: 99.77388631 | R42: 99.23922897 | S42: 98.93774083 | T42: 100 | U42: 99.87655479 | V42: 98.83602742 | W42: 99.80346022 | X42: 100 | Y42: 98.94854919 | BB42: No | BC42: 2762.126003 | BD42: 2792.737424 | BE42: 2800.322269 | BF42: 2811.309832 | BG42: 2811.134103 | BH42: 1787.245583 | BI42: 1774.053449 | BJ42: 1781.441438 | BK42: 1791.718101 | BL42: 1783.792494 | BM42: 1006.734128 | BN42: 988.3804858 | BO42: 1022.484341 | BP42: 1014.49132 | BQ42: 1027.288291 | BR42: 1154.651874 | BS42: 1345.53983 | BT42: 1745.188677 | BU42: 1741.07947 | BV42: 5158.148955 | BW42: 876.5934308 | BX42: 1022.5699 | BY42: 933.8574932
A43: Water source available when needed | B43: Yes | C43: 72.44102577 | D43: 81.15895931 | E43: 79.85172878 | F43: 84.06480327 | G43: 89.09068791 | H43: 83.45752057 | I43: 80.31595271 | J43: 83.06348724 | K43: 85.58880107 | L43: 91.88451686 | M43: 71.59732499 | N43: 67.96038505 | O43: 77.68471577 | P43: 77.02623943 | Q43: 81.43541708 | R43: 86.88433863 | S43: 81.21279965 | T43: 65.42027352 | U43: 72.98573415 | V43: 89.78438078 | W43: 81.20452245 | X43: 75.74817731 | Y43: 78.5936179 | BA43: Water source available when needed | BB43: Yes | BC43: 2041.228236 | BD43: 2282.133143 | BE43: 2235.161433 | BF43: 2362.381133 | BG43: 2503.093636 | BH43: 1497.659735 | BI43: 1418.915549 | BJ43: 1475.330368 | BK43: 1535.090133 | BL43: 1642.73911 | BM43: 735.0136595 | BN43: 699.4632524 | BO43: 798.8236779 | BP43: 787.0255625 | BQ43: 833.9365324 | BR43: 1010.902296 | BS43: 1109.387081 | BT43: 1132.324846 | BU43: 1271.711149 | BV43: 4672.526225 | BW43: 710.816379 | BX43: 774.5780612 | BY43: 741.7515425
B44: No | C44: 27.55897423 | D44: 18.84104069 | E44: 20.14827122 | F44: 15.93519673 | G44: 10.90931209 | H44: 16.54247943 | I44: 19.68404729 | J44: 16.93651276 | K44: 14.41119893 | L44: 8.115483137 | M44: 28.40267501 | N44: 32.03961495 | O44: 22.31528423 | P44: 22.97376057 | Q44: 18.56458292 | R44: 13.11566137 | S44: 18.78720035 | T44: 34.57972648 | U44: 27.01426585 | V44: 10.21561922 | W44: 18.79547755 | X44: 24.25182269 | Y44: 21.4063821 | BB44: No | BC44: 776.5510737 | BD44: 529.7968796 | BE44: 563.9782564 | BF44: 447.8093879 | BG44: 306.5082368 | BH44: 296.857673 | BI44: 347.7515965 | BJ44: 300.8175123 | BK44: 258.4741113 | BL44: 145.0910556 | BM44: 291.5800849 | BN44: 329.7587744 | BO44: 229.4656966 | BP44: 234.7373696 | BQ44: 190.1099603 | BR44: 152.6011753 | BS44: 256.6378384 | BT44: 598.5221609 | BU44: 470.6994245 | BV44: 531.6375557 | BW44: 164.5244981 | BX44: 247.9918391 | BY44: 202.0293425
A45: Improved water source available when needed | B45: Yes | C45: 72.91865816 | D45: 81.0009077 | E45: 79.90118906 | F45: 84.18611269 | G45: 89.08404035 | H45: 83.39508818 | I45: 80.23560363 | J45: 83.05021373 | K45: 85.58321093 | L45: 91.88451686 | M45: 71.34768889 | N45: 69.41301213 | O45: 77.44546878 | P45: 77.17519245 | Q45: 81.73279377 | R45: 86.71556777 | S45: 80.96814963 | T45: 65.39900144 | U45: 72.92132117 | V45: 90.35172044 | W45: 81.04854142 | X45: 75.74817731 | Y45: 78.57121423 | BA45: Improved water source available when needed | BB45: Yes | BC45: 2022.376818 | BD45: 2258.740969 | BE45: 2227.715913 | BF45: 2360.29476 | BG45: 2501.382656 | BH45: 1490.912574 | BI45: 1411.733439 | BJ45: 1473.939452 | BK45: 1534.394676 | BL45: 1642.73911 | BM45: 726.0693598 | BN45: 690.5685943 | BO45: 787.9161075 | BP45: 781.5022388 | BQ45: 830.7355645 | BR45: 996.1206722 | BS45: 1091.827147 | BT45: 1131.260752 | BU45: 1267.566417 | BV45: 4664.781402 | BW45: 703.6118375 | BX45: 774.5780612 | BY45: 740.7648255
B46: No | C46: 27.08134184 | D46: 18.9990923 | E46: 20.09881094 | F46: 15.81388731 | G46: 10.91595965 | H46: 16.60491182 | I46: 19.76439637 | J46: 16.94978627 | K46: 14.41678907 | L46: 8.115483137 | M46: 28.65231111 | N46: 30.58698787 | O46: 22.55453122 | P46: 22.82480755 | Q46: 18.26720623 | R46: 13.28443223 | S46: 19.03185037 | T46: 34.60099856 | U46: 27.07867883 | V46: 9.648279562 | W46: 18.95145858 | X46: 24.25182269 | Y46: 21.42878577 | BB46: No | BC46: 751.0927838 | BD46: 529.7968796 | BE46: 560.3726486 | BF46: 443.3680826 | BG46: 306.5082368 | BH46: 296.857673 | BI46: 347.7515965 | BJ46: 300.8175123 | BK46: 258.4741113 | BL46: 145.0910556 | BM46: 291.5800849 | BN46: 304.3004845 | BO46: 229.4656966 | BP46: 231.1317619 | BQ46: 185.6686549 | BR46: 152.6011753 | BS46: 256.6378384 | BT46: 598.5221609 | BU46: 470.6994245 | BV46: 498.1323526 | BW46: 164.5244981 | BX46: 247.9918391 | BY46: 202.0293425
A47: Microbiological quality at point of collection | B47: Not contaminated (No E. coli in 100 mL) | C47: N/A | D47: N/A | E47: N/A | F47: N/A | G47: N/A | H47: N/A | I47: N/A | J47: N/A | K47: N/A | L47: N/A | M47: N/A | N47: N/A | O47: N/A | P47: N/A | Q47: N/A | R47: N/A | S47: N/A | T47: N/A | U47: N/A | V47: N/A | W47: N/A | X47: N/A | Y47: N/A | BA47: Microbiological quality at point of collection | BB47: Not contaminated (No E. coli in 100 mL) | BC47: N/A | BD47: N/A | BE47: N/A | BF47: N/A | BG47: N/A | BH47: N/A | BI47: N/A | BJ47: N/A | BK47: N/A | BL47: N/A | BM47: N/A | BN47: N/A | BO47: N/A | BP47: N/A | BQ47: N/A | BR47: N/A | BS47: N/A | BT47: N/A | BU47: N/A | BV47: N/A | BW47: N/A | BX47: N/A | BY47: N/A
B48: Contaminated (E. coli detected in 100 mL) | C48: N/A | D48: N/A | E48: N/A | F48: N/A | G48: N/A | H48: N/A | I48: N/A | J48: N/A | K48: N/A | L48: N/A | M48: N/A | N48: N/A | O48: N/A | P48: N/A | Q48: N/A | R48: N/A | S48: N/A | T48: N/A | U48: N/A | V48: N/A | W48: N/A | X48: N/A | Y48: N/A | BB48: Contaminated (E. coli detected in 100 mL) | BC48: N/A | BD48: N/A | BE48: N/A | BF48: N/A | BG48: N/A | BH48: N/A | BI48: N/A | BJ48: N/A | BK48: N/A | BL48: N/A | BM48: N/A | BN48: N/A | BO48: N/A | BP48: N/A | BQ48: N/A | BR48: N/A | BS48: N/A | BT48: N/A | BU48: N/A | BV48: N/A | BW48: N/A | BX48: N/A | BY48: N/A
B49: Highly contaminated (>100 CFU/100 mL) | C49: N/A | D49: N/A | E49: N/A | F49: N/A | G49: N/A | H49: N/A | I49: N/A | J49: N/A | K49: N/A | L49: N/A | M49: N/A | N49: N/A | O49: N/A | P49: N/A | Q49: N/A | R49: N/A | S49: N/A | T49: N/A | U49: N/A | V49: N/A | W49: N/A | X49: N/A | Y49: N/A | BB49: Highly contaminated (>100 CFU/100 mL) | BC49: N/A | BD49: N/A | BE49: N/A | BF49: N/A | BG49: N/A | BH49: N/A | BI49: N/A | BJ49: N/A | BK49: N/A | BL49: N/A | BM49: N/A | BN49: N/A | BO49: N/A | BP49: N/A | BQ49: N/A | BR49: N/A | BS49: N/A | BT49: N/A | BU49: N/A | BV49: N/A | BW49: N/A | BX49: N/A | BY49: N/A
